Workbook

Sheet START

Sheet Instructions
D2: 2020
X4: Yes
X5: No
W7: Type of Entities Range:
X8: Parent Municipality
X9: Consolidated Information
W17: MTREF Range: | X17: 2008
X18: 2009
X19: 2010
X20: 2011
X21: 2012
X22: 2013
X23: 2014
X24: 2015
X25: 2016
X26: 2017
X27: 2018
X28: 2019
X29: 2020
X30: 2021
X31: 2022
W33: MTREF Linked: | X33: 13
W34: MTREF: | X34: =INDEX(X17:X31,X33,1) -> 2020
W36: Fin Year: | X36: =MTREF&"/"&RIGHT(MTREF,2)+1 -> 2020/21

Sheet Template names (hidden)
A1: Common sheet headings
A2: Head1 | B2: =HLOOKUP(MTREF,Headings,2) -> 2018/19 | C2: Prior year -1
A3: Head1A | B3: =HLOOKUP(MTREF,Headings,3) -> 2017/18 | C3: Prior year -2
A4: Head1B | B4: =HLOOKUP(MTREF,Headings,4) -> 2016/17 | C4: Prior year -3
A5: Head2 | B5: =HLOOKUP(MTREF,Headings,5) -> Current Year 2019/20 | C5: Year in which budget is being prepared
A6: Head2A | B6: =HLOOKUP(MTREF,Headings,6) -> 2019/20 | C6: Year in which budget is being prepared
A7: Head3 | B7: =HLOOKUP(MTREF,Headings,7) -> 2020/21 Medium Term Revenue & Expenditure Framework | C7: MTREF name
A8: Head4 | B8: LTFS | C8: Long term financial strategy
A9: Head5 | B9: Audited Outcome
A10: Head5A | B10: Outcome
A11: Head5B | B11: Pre-audit outcome
A12: Head6 | B12: Original Budget
A13: Head7 | B13: Adjusted Budget
A14: Head8 | B14: Full Year Forecast
A15: Head9 | B15: =HLOOKUP(MTREF,Headings,8) -> Budget Year 2020/21 | C15: 1st year of MTREF | D15: Year1
A16: Head10 | B16: =HLOOKUP(MTREF,Headings,9) -> Budget Year +1 2021/22 | C16: 2nd year of MTREF | D16: Year2
A17: Head11 | B17: =HLOOKUP(MTREF,Headings,10) -> Budget Year +2 2022/23 | C17: 3rd year of MTREF | D17: Year3
A18: Head12 | B18: =HLOOKUP(MTREF,Headings,11) -> Forecast 2023/24 | C18: 1st yr of long term forecast | D18: Year4
A19: Head13 | B19: =HLOOKUP(MTREF,Headings,12) -> Forecast 2024/25 | C19: Next yr of long term forecast | D19: Year5
A20: Head14 | B20: =HLOOKUP(MTREF,Headings,13) -> Forecast 2025/26 | C20: Next yr of long term forecast | D20: Year6
A21: Head15 | B21: =HLOOKUP(MTREF,Headings,14) -> Forecast 2026/27 | C21: Next yr of long term forecast | D21: Year7
A22: Head16 | B22: =HLOOKUP(MTREF,Headings,15) -> Forecast 2027/28 | C22: Next yr of long term forecast | D22: Year8
A23: Head17 | B23: =HLOOKUP(MTREF,Headings,16) -> Forecast 2028/29 | C23: Next yr of long term forecast | D23: Year9
A24: Head18 | B24: =HLOOKUP(MTREF,Headings,17) -> Forecast 2029/30 | C24: Next yr of long term forecast | D24: Year10
A25: Head19 | B25: =HLOOKUP(MTREF,Headings,18) -> Forecast 2030/31 | C25: Next yr of long term forecast | D25: Year11
A26: Head20 | B26: =HLOOKUP(MTREF,Headings,19) -> Forecast 2031/32 | C26: Next yr of long term forecast | D26: Year12
A27: Head21 | B27: =HLOOKUP(MTREF,Headings,20) -> Forecast 2032/33 | C27: Next yr of long term forecast | D27: Year13
A28: Head22 | B28: =HLOOKUP(MTREF,Headings,21) -> Forecast 2033/34 | C28: Next yr of long term forecast | D28: Year14
A29: Head23 | B29: =HLOOKUP(MTREF,Headings,22) -> Forecast 2034/35 | C29: Next yr of long term forecast | D29: Year15
A30: Head24 | B30: Description
A31: Head25
A32: Head26 | B32: Vote Description
A33: Head27 | B33: Ref
A34: Head27a | B34: References
A35: Head28 | B35: Surplus/(Deficit) for the year | D35: Result
A36: Head29 | B36: =HLOOKUP(MTREF,Headings,23) -> Annual target 2020/21
A37: Head30 | B37: =HLOOKUP(MTREF,Headings,24) -> Revised target 2020/21
A38: Head31 | B38: Quarter ended 30 September
A39: Head32 | B39: Quarter ended 31 December
A40: Head33 | B40: Quarter ended 31 March
A41: Head34 | B41: Quarter ended 30 June
A42: Head35 | B42: Variance explanation
A43: Head36 | B43: YTD Actual 31 Dec
A44: Head37 | B44: YTD Budget 31 Dec
A45: Head38 | B45: Monthly actual
A46: Head39 | B46: YTD actual
A47: Head40 | B47: YTD budget
A48: Head41 | B48: YTD variance
A49: Head42 | B49: Surplus/ (Deficit) for the yr/period
A50: Head43 | B50: =Head3&" Summary" -> 2020/21 Medium Term Revenue & Expenditure Framework Summary
A51: Head44 | B51: 2001 Census
A52: Head45 | B52: 2011 Census
A53: Head46 | B53: - Adjustments Budget - January 2007
A54: Head47 | B54: Previous target year to complete
A55: Head48 | B55: Present value
A56: Head49
A57: Head50 | B57: Other Adjusts.
A58: Head51 | B58: Accum. Funds
A59: Head52 | B59: Multi-year capital
A60: Head53 | B60: Unfore. Unavoid.
A61: Head54 | B61: Prior Adjusted
A62: Head55 | B62: Nat. or Prov. Govt
A63: Head56 | B63: Total Adjusts.
A64: SFPerf1 | B64: Budgeted Financial Performance
A65: SFPerf2 | B65: Forecast Financial Performance
A66: SFPos1 | B66: Budgeted Financial Position
A67: SFPos2 | B67: Forecast Financial Position
A68: Cash1 | B68: Budget Cash Flow
A69: Cash2 | B69: Forecast Cash Flow
A70: RandM | B70: Expenditure includes repairs & maintenance of R'000
A71: Depart1 | B71: Department 1 - | D71: DEP1
A72: Depart2 | B72: Department 2 - | D72: DEP2
A73: Depart3 | B73: Department 3 - | D73: DEP3
A74: Depart4 | B74: Department 4 - | D74: DEP4
A75: Depart5 | B75: Department 5 - | D75: DEP5
A76: Depart6 | B76: Department 6 - | D76: DEP6
A77: Depart7 | B77: Department 7 - | D77: DEP7
A78: Depart8 | B78: Department 8 - | D78: DEP8
A79: Depart9 | B79: Department 9 - | D79: DEP9
A80: Depart10 | B80: Department 10 - | D80: DEP10
A81: Depart11 | B81: Department 11 - | D81: DEP11
A82: Depart12 | B82: Department 12 - | D82: DEP12
A83: Depart13 | B83: Department 13 - | D83: DEP13
A84: Depart14 | B84: Department 14 - | D84: DEP14
A87: Base year of forecast column selection names
A88: Choose | B88: ACT
B89: APP
B90: ADJ
A92: Standard nomenclature
A93: Muni | B93: ='Lookup and lists'!B28 -> DC47 Sekhukhune
A94: Municipal Entities | B94: 1 | C94: Type of report: | D94: 1
A95: =IF((MuniEntities=1)*(MuniType=2),"YES","NO") -> NO | B95: Does this municipality have entities (consolidated budget and entity budgets required)? YES/NO
A96: Entity 1 | B96: (Pty) Ltd Example 1 - Municipal entity - | D96: Ent1
A97: Entity 2 | B97: (Pty) Ltd Example 2 - Municipal entity - | D97: Ent2
A98: Entity 3 | B98: Municipal Entity Example 3 | D98: Ent3
A99: Budget approval tables | C99: Chart x-ref | D99: Sch/Tab/Ch | E99: Alternative for municipalities without entities | F99: Alternative for municipalities without entities
B100: =IF(Consolques="YES",E100,F100) -> Table A1 Budget Summary | D100: Table A1 | E100: =D100&"Consolidated Budget Summary" -> Table A1 Consolidated Budget Summary | F100: =D100&"Budget Summary" -> Table A1 Budget Summary
B101: Table A2 Budgeted Financial Performance (revenue and expenditure by functional classification) | C101: Charts 5, 6 | D101: Table A2 | E101: =D101&"Consolidated Budgeted Financial Performance (revenue and expenditure by functional classification)" -> Table A2 Consolidated Budgeted Financial Performance (revenue and expenditure by functional classification) | F101: =D101&"Budgeted Financial Performance (revenue and expenditure by functional classification)" -> Table A2 Budgeted Financial Performance (revenue and expenditure by functional classification)
B102: Table A3 Budgeted Financial Performance (revenue and expenditure by municipal vote) | D102: Table A3 | E102: =D102&"Consolidated Budgeted Financial Performance (revenue and expenditure by municipal vote)" -> Table A3 Consolidated Budgeted Financial Performance (revenue and expenditure by municipal vote) | F102: =D102&"Budgeted Financial Performance (revenue and expenditure by municipal vote)" -> Table A3 Budgeted Financial Performance (revenue and expenditure by municipal vote)
B103: Table A4 Budgeted Financial Performance (revenue and expenditure) | C103: Charts 1, 2, 3, 4 | D103: Table A4 | E103: =D103&"Consolidated Budgeted Financial Performance (revenue and expenditure)" -> Table A4 Consolidated Budgeted Financial Performance (revenue and expenditure) | F103: =D103&"Budgeted Financial Performance (revenue and expenditure)" -> Table A4 Budgeted Financial Performance (revenue and expenditure)
B104: Table A5 Budgeted Capital Expenditure by vote, functional classification and funding | C104: Charts 7, 8, 9, 10, 20 | D104: Table A5 | E104: =D104&"Consolidated Budgeted Capital Expenditure by vote, functional classification and funding" -> Table A5 Consolidated Budgeted Capital Expenditure by vote, functional classification and funding | F104: =D104&"Budgeted Capital Expenditure by vote, functional classification and funding" -> Table A5 Budgeted Capital Expenditure by vote, functional classification and funding
B105: Table A6 Budgeted Financial Position | D105: Table A6 | E105: =D105&"Consolidated Budgeted Financial Position" -> Table A6 Consolidated Budgeted Financial Position | F105: =D105&"Budgeted Financial Position" -> Table A6 Budgeted Financial Position
B106: Table A7 Budgeted Cash Flows | D106: Table A7 | E106: =D106&"Consolidated Budgeted Cash Flows" -> Table A7 Consolidated Budgeted Cash Flows | F106: =D106&"Budgeted Cash Flows" -> Table A7 Budgeted Cash Flows
B107: Table A8 Cash backed reserves/accumulated surplus reconciliation | D107: Table A8 | E107: =D107&"Consolidated Cash backed reserves/accumulated surplus reconciliation" -> Table A8 Consolidated Cash backed reserves/accumulated surplus reconciliation | F107: =D107&"Cash backed reserves/accumulated surplus reconciliation" -> Table A8 Cash backed reserves/accumulated surplus reconciliation
B108: Table A9 Asset Management | D108: Table A9 | E108: =D108&"Consolidated Asset Management" -> Table A9 Consolidated Asset Management | F108: =D108&"Asset Management" -> Table A9 Asset Management
B109: Table A10 Basic service delivery measurement | D109: Table A10 | E109: =D109&"Consolidated basic service delivery measurement" -> Table A10 Consolidated basic service delivery measurement | F109: =D109&"Basic service delivery measurement" -> Table A10 Basic service delivery measurement
A110: Supportinging Tables to the Budget Approval Tables | C110: =$C$99 -> Chart x-ref | D110: =$D$99 -> Sch/Tab/Ch
A111: Supporting Table SA1 | B111: =A111&" Supportinging detail to 'Budgeted Financial Performance'" -> Supporting Table SA1 Supportinging detail to 'Budgeted Financial Performance'
A112: Supporting Table SA2 | B112: =IF(Consolques="YES",E112,F112) -> Supporting Table SA2 Matrix Financial Performance Budget (revenue source/expenditure type and dept.) | E112: =A112&"Consolidated Matrix Financial Performance Budget (revenue source/expenditure type & dept.)" -> Supporting Table SA2 Consolidated Matrix Financial Performance Budget (revenue source/expenditure type & dept.) | F112: =A112&"Matrix Financial Performance Budget (revenue source/expenditure type and dept.)" -> Supporting Table SA2 Matrix Financial Performance Budget (revenue source/expenditure type and dept.)
A113: Supporting Table SA3 | B113: =A113&"Supportinging detail to 'Budgeted Financial Position'" -> Supporting Table SA3 Supportinging detail to 'Budgeted Financial Position'
A114: Supporting Table SA4 | B114: =A114&"Reconciliation of IDP strategic objectives and budget (revenue)" -> Supporting Table SA4 Reconciliation of IDP strategic objectives and budget (revenue) | C114: Chart 11
A115: Supporting Table SA5 | B115: =A115&"Reconciliation of IDP strategic objectives and budget (operating expenditure)" -> Supporting Table SA5 Reconciliation of IDP strategic objectives and budget (operating expenditure) | C115: Chart 12
A116: Supporting Table SA6 | B116: =A116&"Reconciliation of IDP strategic objectives and budget (capital expenditure)" -> Supporting Table SA6 Reconciliation of IDP strategic objectives and budget (capital expenditure) | C116: Chart 13
A117: Supporting Table SA7 | B117: =A117&" Measureable performance objectives" -> Supporting Table SA7 Measureable performance objectives
A118: Supporting Table SA8 | B118: =A118&" Performance indicators and benchmarks" -> Supporting Table SA8 Performance indicators and benchmarks | C118: Chts 15-19
A119: Supporting Table SA9 | B119: =A119&" Social, economic and demographic statistics and assumptions" -> Supporting Table SA9 Social, economic and demographic statistics and assumptions
A120: Supporting Table SA10 | B120: =A120&" Funding measurement" -> Supporting Table SA10 Funding measurement | C120: Chart 14
A121: Supporting Table SA11 | B121: =A121&" Property rates summary" -> Supporting Table SA11 Property rates summary
A122: Supporting Table SA12a | B122: =A122&" Property rates by category (current year)" -> Supporting Table SA12a Property rates by category (current year)
A123: Supporting Table SA12b | B123: =A123&" Property rates by category (budget year)" -> Supporting Table SA12b Property rates by category (budget year)
A124: Supporting Table SA13a | B124: =A124&" Service Tariffs by category" -> Supporting Table SA13a Service Tariffs by category
A125: Supporting Table SA13b | B125: =A125&" Service Tariffs by category - explanatory" -> Supporting Table SA13b Service Tariffs by category - explanatory
A126: Supporting Table SA14 | B126: =A126&" Household bills" -> Supporting Table SA14 Household bills
A127: Supporting Table SA15 | B127: =A127&" Investment particulars by type" -> Supporting Table SA15 Investment particulars by type
A128: Supporting Table SA16 | B128: =A128&" Investment particulars by maturity" -> Supporting Table SA16 Investment particulars by maturity
A129: Supporting Table SA17 | B129: =A129&" Borrowing" -> Supporting Table SA17 Borrowing
A130: Supporting Table SA18 | B130: =A130&" Transfers and grant receipts" -> Supporting Table SA18 Transfers and grant receipts
A131: Supporting Table SA19 | B131: =A131&" Expenditure on transfers and grant programme" -> Supporting Table SA19 Expenditure on transfers and grant programme
A132: Supporting Table SA20 | B132: =A132&" Reconciliation of transfers, grant receipts and unspent funds" -> Supporting Table SA20 Reconciliation of transfers, grant receipts and unspent funds
A133: Supporting Table SA21 | B133: =A133&" Transfers and grants made by the municipality" -> Supporting Table SA21 Transfers and grants made by the municipality
A134: Supporting Table SA22 | B134: =A134&" Summary councillor and staff benefits" -> Supporting Table SA22 Summary councillor and staff benefits
A135: Supporting Table SA23 | B135: =A135&" Salaries, allowances & benefits (political office bearers/councillors/senior managers)" -> Supporting Table SA23 Salaries, allowances & benefits (political office bearers/councillors/senior managers)
A136: Supporting Table SA24 | B136: =A136&" Summary of personnel numbers" -> Supporting Table SA24 Summary of personnel numbers
A137: Supporting Table SA25 | B137: =IF(Consolques="YES",E137,F137) -> Supporting Table SA25 Budgeted monthly revenue and expenditure | E137: =A137&" Consolidated budgeted monthly revenue and expenditure" -> Supporting Table SA25 Consolidated budgeted monthly revenue and expenditure | F137: =A137&" Budgeted monthly revenue and expenditure" -> Supporting Table SA25 Budgeted monthly revenue and expenditure
A138: Supporting Table SA26 | B138: Supporting Table SA26 Budgeted monthly revenue and expenditure (municipal vote) | E138: =A138&" Consolidated budgeted monthly revenue and expenditure (municipal vote)" -> Supporting Table SA26 Consolidated budgeted monthly revenue and expenditure (municipal vote) | F138: =A138&" Budgeted monthly revenue and expenditure (municipal vote)" -> Supporting Table SA26 Budgeted monthly revenue and expenditure (municipal vote)
A139: Supporting Table SA27 | B139: Supporting Table SA27 Budgeted monthly revenue and expenditure (functional classification) | E139: =A139&" Consolidated budgeted monthly revenue and expenditure (functional classification)" -> Supporting Table SA27 Consolidated budgeted monthly revenue and expenditure (functional classification) | F139: =A139&" Budgeted monthly revenue and expenditure (functional classification)" -> Supporting Table SA27 Budgeted monthly revenue and expenditure (functional classification)
A140: Supporting Table SA28 | B140: Supporting Table SA28 Budgeted monthly capital expenditure (municipal vote) | E140: =A140&" Consolidated budgeted monthly capital expenditure (municipal vote)" -> Supporting Table SA28 Consolidated budgeted monthly capital expenditure (municipal vote) | F140: =A140&" Budgeted monthly capital expenditure (municipal vote)" -> Supporting Table SA28 Budgeted monthly capital expenditure (municipal vote)
A141: Supporting Table SA29 | B141: Supporting Table SA29 Budgeted monthly capital expenditure (functional classification) | E141: =A141&" Consolidated budgeted monthly capital expenditure (functional classification)" -> Supporting Table SA29 Consolidated budgeted monthly capital expenditure (functional classification) | F141: =A141&" Budgeted monthly capital expenditure (functional classification)" -> Supporting Table SA29 Budgeted monthly capital expenditure (functional classification)
A142: Supporting Table SA30 | B142: Supporting Table SA30 Budgeted monthly cash flow | E142: =A142&" Consolidated budgeted monthly cash flow" -> Supporting Table SA30 Consolidated budgeted monthly cash flow | F142: =A142&" Budgeted monthly cash flow" -> Supporting Table SA30 Budgeted monthly cash flow
A143: Supporting Table SA31 | B143: NOT REQUIRED - municipality does not have entities | E143: =A143&" Aggregated entity budget" -> Supporting Table SA31 Aggregated entity budget | F143: NOT REQUIRED - municipality does not have entities
A144: Supporting Table SA32 | B144: =A144&" List of external mechanisms" -> Supporting Table SA32 List of external mechanisms
A145: Supporting Table SA33 | B145: =A145&" Contracts having future budgetary implications" -> Supporting Table SA33 Contracts having future budgetary implications
A146: Supporting Table SA34a | B146: =IF(Consolques="YES",E146,F146) -> Supporting Table SA34a Capital expenditure on new assets by asset class | E146: =A146&" Consolidated capital expenditure on new assets by asset class" -> Supporting Table SA34a Consolidated capital expenditure on new assets by asset class | F146: =A146&" Capital expenditure on new assets by asset class" -> Supporting Table SA34a Capital expenditure on new assets by asset class
A147: Supporting Table SA34b | B147: Supporting Table SA34b Capital expenditure on the renewal of existing assets by asset class | E147: =A147&" Consolidated capital expenditure on the renewal of existing assets by asset class" -> Supporting Table SA34b Consolidated capital expenditure on the renewal of existing assets by asset class | F147: =A147&" Capital expenditure on the renewal of existing assets by asset class" -> Supporting Table SA34b Capital expenditure on the renewal of existing assets by asset class
A148: Supporting Table SA34c | B148: Supporting Table SA34c Repairs and maintenance expenditure by asset class | E148: =A148&" Consolidated repairs and maintenance by asset class" -> Supporting Table SA34c Consolidated repairs and maintenance by asset class | F148: =A148&" Repairs and maintenance expenditure by asset class" -> Supporting Table SA34c Repairs and maintenance expenditure by asset class
A149: Supporting Table SA34d | B149: =IF(Consolques="YES",E149,F149) -> Supporting Table SA34d Depreciation by asset class | E149: =A149&" Consolidated Depreciation by asset class" -> Supporting Table SA34d Consolidated Depreciation by asset class | F149: =A149&" Depreciation by asset class" -> Supporting Table SA34d Depreciation by asset class
A150: Supporting Table SA34e | B150: =IF(Consolques="YES",E150,F150) -> Supporting Table SA34e Capital expenditure on the upgrading of existing assets by asset class | E150: =A150&" Consolidated capital expenditure on the upgrading of existing assets by asset class" -> Supporting Table SA34e Consolidated capital expenditure on the upgrading of existing assets by asset class | F150: =A150&" Capital expenditure on the upgrading of existing assets by asset class" -> Supporting Table SA34e Capital expenditure on the upgrading of existing assets by asset class
A151: Supporting Table SA35 | B151: Supporting Table SA35 Future financial implications of the capital budget | E151: =A151&" Consolidated future financial implications of the capital budget" -> Supporting Table SA35 Consolidated future financial implications of the capital budget | F151: =A151& " Future financial implications of the capital budget" -> Supporting Table SA35 Future financial implications of the capital budget
A152: Supporting Table SA36 | B152: Supporting Table SA36 Detailed capital budget | E152: =A152&" Consolidated detailed capital budget" -> Supporting Table SA36 Consolidated detailed capital budget | F152: =A152& " Detailed capital budget" -> Supporting Table SA36 Detailed capital budget
A153: Supporting Table SA37 | B153: Supporting Table SA37 Projects delayed from previous financial year/s | E153: =A153&" Consolidated projects delayed from previous financial year/s" -> Supporting Table SA37 Consolidated projects delayed from previous financial year/s | F153: =A153& " Projects delayed from previous financial year/s" -> Supporting Table SA37 Projects delayed from previous financial year/s
A154: Supporting Table SA38 | B154: =IF(Consolques="YES",E154,F154) -> Supporting Table SA38 Detailed operational projects | E154: =A154&" Consolidated detailed operational projects" -> Supporting Table SA38 Consolidated detailed operational projects | F154: =A154& " Detailed operational projects" -> Supporting Table SA38 Detailed operational projects
A156: Budget Charts | B156: Charts | C156: Cross reference
A157: Chart A1 | B157: =A157&"Revenue by Municipal Vote" -> Chart A1 Revenue by Municipal Vote
A158: Chart A2 | B158: =A158&"Expenditure by Municipal Vote" -> Chart A2 Expenditure by Municipal Vote
A159: Chart A3 | B159: =A159&"Revenue by Standard Classification" -> Chart A3 Revenue by Standard Classification | C159: A2
A160: Chart A4 | B160: =A160&"Expenditure by Standard Classification" -> Chart A4 Expenditure by Standard Classification | C160: A2
A161: Chart A5 | B161: =A161&"Revenue by Major Source (refer 'Minor' source for 'Other Revenue' allocation" -> Chart A5 Revenue by Major Source (refer 'Minor' source for 'Other Revenue' allocation | C161: A3
A162: Chart A6 | B162: =A162&"Revenue by Minor Source (Other)" -> Chart A6 Revenue by Minor Source (Other) | C162: A3
A163: Chart A7 | B163: =A163&"Expenditure by Major Type" -> Chart A7 Expenditure by Major Type | C163: A3
A164: Chart A8 | B164: =A164&"Expenditure by Minor Type (Other)" -> Chart A8 Expenditure by Minor Type (Other) | C164: A3
A165: Chart A9 | B165: =A165&"Capital Expenditure by Municipal Vote/Appropriation (Major)" -> Chart A9 Capital Expenditure by Municipal Vote/Appropriation (Major) | C165: A5
A166: Chart A10 | B166: =A166&"Capital Expenditure by Municipal Vote/Appropriation (Minor)" -> Chart A10 Capital Expenditure by Municipal Vote/Appropriation (Minor) | C166: A5
A167: Chart A11 | B167: =A166&"Capital Expenditure by Standard Classification" -> Chart A10 Capital Expenditure by Standard Classification | C167: A5
A168: Chart A12 | B168: =A168&"Capital expenditure performance trend" -> Chart A12 Capital expenditure performance trend | C168: A5
A169: Chart A13 | B169: =A169&"Capital funding by Source" -> Chart A13 Capital funding by Source | C169: A5
A170: Chart A14 | B170: =A170&"Cash flow trend" -> Chart A14 Cash flow trend | C170: A7
A171: Chart A15 | B171: =A171&"IDP Strategic Objective - Revenue" -> Chart A15 IDP Strategic Objective - Revenue | C171: Table A4
A172: Chart A16 | B172: =A172&"IDP Strategic Objective - Expenditure" -> Chart A16 IDP Strategic Objective - Expenditure | C172: Table A5
A173: Chart A17 | B173: =A173&"IDP Strategic Objective - Capital Expenditure" -> Chart A17 IDP Strategic Objective - Capital Expenditure | C173: Table A6
A174: Chart A18 | B174: =A174&"Debt (borrowing to Total Revenue)" -> Chart A18 Debt (borrowing to Total Revenue) | C174: Table A8
A175: Chart A19 | B175: =A175&"Debtors' trend analysis" -> Chart A19 Debtors' trend analysis | C175: Table A8
A176: Chart A20 | B176: =A176&"Distribution losses" -> Chart A20 Distribution losses | C176: Table A8
A177: Chart A21 | B177: =A177&"Borrowed funding of capital expenditure" -> Chart A21 Borrowed funding of capital expenditure | C177: Table A8
A178: Chart A22 | B178: =A178&"Expenditure analysis (% of Revenue)" -> Chart A22 Expenditure analysis (% of Revenue) | C178: Table A8
A179: Chart A23 | B179: =A179&"Increases in service charges" -> Chart A23 Increases in service charges | C179: Table A10

Sheet Lookup and lists (hidden)
A1: Description | B1: 2007 | C1: 2008 | D1: 2009 | E1: 2010 | F1: 2011 | G1: 2012 | H1: 2013 | I1: 2014 | J1: 2015 | K1: 2016 | L1: 2017 | M1: 2018 | N1: 2019 | O1: 2020 | Q1: Lists | Y1: Grants: | Z1: National - opex | AA1: Provincial - opex | AB1: National - capex | AC1: Provincial - capex
A2: ='Template names'!C2 -> Prior year -1 | B2: 2005/06 | C2: 2006/07 | D2: 2007/08 | E2: =E1-2&"/"&RIGHT(E1,2)-1 -> 2008/9 | F2: 2009/10 | G2: 2010/11 | H2: 2011/12 | I2: 2012/13 | J2: 2013/14 | K2: 2014/15 | L2: 2015/16 | M2: 2016/17 | N2: 2017/18 | O2: 2018/19 | Q2: Yes | R2: <1 | S2: <4 | T2: Market | U2: Land & impr. | V2: Yes | W2: Uniform | X2: Yrs | Z2: Local Government Equitable Share | AA2: Health subsidy | AB2: Municipal Infrastructure Grant (MIG) | AC2: Agriculture
A3: ='Template names'!C3 -> Prior year -2 | B3: 2004/05 | C3: 2005/06 | D3: 2006/07 | E3: =E1-3&"/"&RIGHT(E1,2)-2 -> 2007/8 | F3: 2008/9 | G3: 2009/10 | H3: 2010/11 | I3: 2011/12 | J3: 2012/13 | K3: 2013/14 | L3: 2014/15 | M3: 2015/16 | N3: 2016/17 | O3: 2017/18 | Q3: No | R3: 1 | S3: 4 | T3: Dep.Replace | U3: Land only | V3: No | W3: Variable | X3: Mths | Z3: RSC Levy Replacement | AA3: Ambulance subsidy | AB3: Public Transport and Systems | AC3: Education
A4: ='Template names'!C4 -> Prior year -3 | B4: 2003/04 | C4: 2004/05 | D4: 2005/06 | E4: =E1-4&"/"&RIGHT(E1,2)-3 -> 2006/7 | F4: 2007/8 | G4: 2008/9 | H4: 2009/10 | I4: 2010/11 | J4: 2011/12 | K4: 2012/13 | L4: 2013/14 | M4: 2014/15 | N4: 2015/16 | O4: 2016/17 | R4: 2 | S4: 5 | T4: Other | U4: Other | Z4: Finance Management | AA4: Housing | AB4: Rural Transport Services and Infrastructure | AC4: Health
A5: ='Template names'!C5 -> Year in which budget is being prepared | B5: Current Year 2006/07 | C5: Current Year 2007/08 | D5: Current Year 2008/09 | E5: ="Current Year "& E1-1&"/"&RIGHT(E1,2) -> Current Year 2009/10 | F5: Current Year 2010/11 | G5: Current Year 2011/12 | H5: Current Year 2012/13 | I5: Current Year 2013/14 | J5: Current Year 2014/15 | K5: Current Year 2015/16 | L5: Current Year 2016/17 | M5: Current Year 2017/18 | N5: Current Year 2018/19 | O5: Current Year 2019/20 | R5: 3 | S5: 6 | Z5: Municipal Systems Improvement | AA5: Sport and Recreation | AB5: Regional Bulk Infrastructure | AC5: Housing and Local Government
A6: ='Template names'!C6 -> Year in which budget is being prepared | B6: 2006/07 | C6: 2007/08 | D6: 2008/09 | E6: =E1-1&"/"&RIGHT(E1,2) -> 2009/10 | F6: 2010/11 | G6: 2011/12 | H6: 2012/13 | I6: 2013/14 | J6: 2014/15 | K6: 2015/16 | L6: 2016/17 | M6: 2017/18 | N6: 2018/19 | O6: 2019/20 | R6: 4 | S6: 6-10 | Z6: Water Services Operating Subsidy | AB6: Rural Households Infrastructure | AC6: Other Departments
A7: ='Template names'!C7 -> MTREF name | B7: 2007/08 Medium Term Revenue & Expenditure Framework | C7: 2008/09 Medium Term Revenue & Expenditure Framework | D7: 2009/10 Medium Term Revenue & Expenditure Framework | E7: =E1&"/"&RIGHT(E1,2)+1&" Medium Term Revenue & Expenditure Framework" -> 2010/11 Medium Term Revenue & Expenditure Framework | F7: 2011/12 Medium Term Revenue & Expenditure Framework | G7: 2012/13 Medium Term Revenue & Expenditure Framework | H7: 2013/14 Medium Term Revenue & Expenditure Framework | I7: 2014/15 Medium Term Revenue & Expenditure Framework | J7: 2015/16 Medium Term Revenue & Expenditure Framework | K7: 2016/17 Medium Term Revenue & Expenditure Framework | L7: 2017/18 Medium Term Revenue & Expenditure Framework | M7: 2018/19 Medium Term Revenue & Expenditure Framework | N7: 2019/20 Medium Term Revenue & Expenditure Framework | O7: 2020/21 Medium Term Revenue & Expenditure Framework | R7: 5 | S7: >10 | Z7: Energy Efficiency and Demand Management | AB7: Neighbourhood Development Partnership | AC7: Public Works, Roads, Transport
A8: ='Template names'!C15 -> 1st year of MTREF | B8: Budget Year 2007/08 | C8: Budget Year 2008/09 | D8: Budget Year 2009/10 | E8: ="Budget Year "&E1&"/"&RIGHT(E1,2)+1 -> Budget Year 2010/11 | F8: Budget Year 2011/12 | G8: Budget Year 2012/13 | H8: Budget Year 2013/14 | I8: Budget Year 2014/15 | J8: Budget Year 2015/16 | K8: Budget Year 2016/17 | L8: Budget Year 2017/18 | M8: Budget Year 2018/19 | N8: Budget Year 2019/20 | O8: Budget Year 2020/21 | R8: >5 | Z8: Integrated National Electrification Programme | AB8: 2010 FIFA World Cup Stadiums Development | AC8: Sport and Recreation
A9: ='Template names'!C16 -> 2nd year of MTREF | B9: Budget Year +1 2008/09 | C9: Budget Year +1 2009/10 | D9: Budget Year +1 2010/11 | E9: ="Budget Year +1 "&E1+1&"/"&RIGHT(E1,2)+2 -> Budget Year +1 2011/12 | F9: Budget Year +1 2012/13 | G9: Budget Year +1 2013/14 | H9: Budget Year +1 2014/15 | I9: Budget Year +1 2015/16 | J9: Budget Year +1 2016/17 | K9: Budget Year +1 2017/18 | L9: Budget Year +1 2018/19 | M9: Budget Year +1 2019/20 | N9: Budget Year +1 2020/21 | O9: Budget Year +1 2021/22 | Z9: Municipal Drought Relief
A10: ='Template names'!C17 -> 3rd year of MTREF | B10: Budget Year +2 2009/10 | C10: Budget Year +2 2010/11 | D10: Budget Year +2 2011/12 | E10: ="Budget Year +2 "&E1+2&"/"&RIGHT(E1,2)+3 -> Budget Year +2 2012/13 | F10: Budget Year +2 2013/14 | G10: Budget Year +2 2014/15 | H10: Budget Year +2 2015/16 | I10: Budget Year +2 2016/17 | J10: Budget Year +2 2017/18 | K10: Budget Year +2 2018/19 | L10: Budget Year +2 2019/20 | M10: Budget Year +2 2020/21 | N10: Budget Year +2 2021/22 | O10: Budget Year +2 2022/23 | Z10: 2010 FIFA World Cup Operating
A11: ='Template names'!C18 -> 1st yr of long term forecast | B11: Forecast 2010/11 | C11: Forecast 2011/12 | D11: Forecast 2012/13 | E11: ="Forecast "&E1+3&"/"&RIGHT(E1,2)+4 -> Forecast 2013/14 | F11: Forecast 2014/15 | G11: Forecast 2015/16 | H11: Forecast 2016/17 | I11: Forecast 2017/18 | J11: Forecast 2018/19 | K11: Forecast 2019/20 | L11: Forecast 2020/21 | M11: Forecast 2021/22 | N11: Forecast 2022/23 | O11: Forecast 2023/24 | Z11: Electricity Demand Side Management
A12: ='Template names'!C19 -> Next yr of long term forecast | B12: Forecast 2011/12 | C12: Forecast 2012/13 | D12: Forecast 2013/14 | E12: ="Forecast "&E1+4&"/"&RIGHT(E1,2)+5 -> Forecast 2014/15 | F12: Forecast 2015/16 | G12: Forecast 2016/17 | H12: Forecast 2017/18 | I12: Forecast 2018/19 | J12: Forecast 2019/20 | K12: Forecast 2020/21 | L12: Forecast 2021/22 | M12: Forecast 2022/23 | N12: Forecast 2023/24 | O12: Forecast 2024/25 | Z12: EPWP Incentive
A13: ='Template names'!C20 -> Next yr of long term forecast | B13: Forecast 2012/13 | C13: Forecast 2013/14 | D13: Forecast 2014/15 | E13: ="Forecast "&E1+5&"/"&RIGHT(E1,2)+6 -> Forecast 2015/16 | F13: Forecast 2016/17 | G13: Forecast 2017/18 | H13: Forecast 2018/19 | I13: Forecast 2019/20 | J13: Forecast 2020/21 | K13: Forecast 2021/22 | L13: Forecast 2022/23 | M13: Forecast 2023/24 | N13: Forecast 2024/25 | O13: Forecast 2025/26
A14: ='Template names'!C21 -> Next yr of long term forecast | B14: Forecast 2013/14 | C14: Forecast 2014/15 | D14: Forecast 2015/16 | E14: ="Forecast "&E1+6&"/"&RIGHT(E1,2)+7 -> Forecast 2016/17 | F14: Forecast 2017/18 | G14: Forecast 2018/19 | H14: Forecast 2019/20 | I14: Forecast 2020/21 | J14: Forecast 2021/22 | K14: Forecast 2022/23 | L14: Forecast 2023/24 | M14: Forecast 2024/25 | N14: Forecast 2025/26 | O14: Forecast 2026/27 | Z14: Asset Class | AA14: Asset sub-class old | AB14: Asset sub-class | AC14: IUDF | AD14: MTSF
A15: ='Template names'!C22 -> Next yr of long term forecast | B15: Forecast 2014/15 | C15: Forecast 2015/16 | D15: Forecast 2016/17 | E15: ="Forecast "&E1+7&"/"&RIGHT(E1,2)+8 -> Forecast 2017/18 | F15: Forecast 2018/19 | G15: Forecast 2019/20 | H15: Forecast 2020/21 | I15: Forecast 2021/22 | J15: Forecast 2022/23 | K15: Forecast 2023/24 | L15: Forecast 2024/25 | M15: Forecast 2025/26 | N15: Forecast 2026/27 | O15: Forecast 2027/28
A16: ='Template names'!C23 -> Next yr of long term forecast | B16: Forecast 2015/16 | C16: Forecast 2016/17 | D16: Forecast 2017/18 | E16: ="Forecast "&E1+8&"/"&RIGHT(E1,2)+9 -> Forecast 2018/19 | F16: Forecast 2019/20 | G16: Forecast 2020/21 | H16: Forecast 2021/22 | I16: Forecast 2022/23 | J16: Forecast 2023/24 | K16: Forecast 2024/25 | L16: Forecast 2025/26 | M16: Forecast 2026/27 | N16: Forecast 2027/28 | O16: Forecast 2028/29 | Z16: Roads Infrastructure | AA16: Roads, Pavements & Bridges | AB16: Roads | AC16: Spatial integration | AD16: Quality basic education
A17: ='Template names'!C24 -> Next yr of long term forecast | B17: Forecast 2016/17 | C17: Forecast 2017/18 | D17: Forecast 2018/19 | E17: ="Forecast "&E1+9&"/"&RIGHT(E1,2)+10 -> Forecast 2019/20 | F17: Forecast 2020/21 | G17: Forecast 2021/22 | H17: Forecast 2022/23 | I17: Forecast 2023/24 | J17: Forecast 2024/25 | K17: Forecast 2025/26 | L17: Forecast 2026/27 | M17: Forecast 2027/28 | N17: Forecast 2028/29 | O17: Forecast 2029/30 | Z17: Storm water Infrastructure | AA17: Storm water | AB17: Road Structures | AC17: Inclusion and access | AD17: A long and healthy life for all South Africans
A18: ='Template names'!C25 -> Next yr of long term forecast | B18: Forecast 2017/18 | C18: Forecast 2018/19 | D18: Forecast 2019/20 | E18: ="Forecast "&E1+10&"/"&RIGHT(E1,2)+11 -> Forecast 2020/21 | F18: Forecast 2021/22 | G18: Forecast 2022/23 | H18: Forecast 2023/24 | I18: Forecast 2024/25 | J18: Forecast 2025/26 | K18: Forecast 2026/27 | L18: Forecast 2027/28 | M18: Forecast 2028/29 | N18: Forecast 2029/30 | O18: Forecast 2030/31 | Z18: Electrical Infrastructure | AA18: Generation | AB18: Road Furniture | AC18: Growth | AD18: All people in South Africa are and feel safe
A19: ='Template names'!C26 -> Next yr of long term forecast | B19: Forecast 2018/19 | C19: Forecast 2019/20 | D19: Forecast 2020/21 | E19: ="Forecast "&E1+11&"/"&RIGHT(E1,2)+12 -> Forecast 2021/22 | F19: Forecast 2022/23 | G19: Forecast 2023/24 | H19: Forecast 2024/25 | I19: Forecast 2025/26 | J19: Forecast 2026/27 | K19: Forecast 2027/28 | L19: Forecast 2028/29 | M19: Forecast 2029/30 | N19: Forecast 2030/31 | O19: Forecast 2031/32 | Z19: Water Supply Infrastructure | AA19: Transmission & Reticulation | AB19: Capital Spares | AC19: Governance | AD19: Decent employment through inclusive growth
A20: ='Template names'!C27 -> Next yr of long term forecast | B20: Forecast 2019/20 | C20: Forecast 2020/21 | D20: Forecast 2021/22 | E20: ="Forecast "&E1+12&"/"&RIGHT(E1,2)+13 -> Forecast 2022/23 | F20: Forecast 2023/24 | G20: Forecast 2024/25 | H20: Forecast 2025/26 | I20: Forecast 2026/27 | J20: Forecast 2027/28 | K20: Forecast 2028/29 | L20: Forecast 2029/30 | M20: Forecast 2030/31 | N20: Forecast 2031/32 | O20: Forecast 2032/33 | Z20: Sanitation Infrastructure | AA20: Street Lighting | AB20: Drainage Collection | AD20: A skilled and capable workforce to support an inclusive growth path
A21: ='Template names'!C28 -> Next yr of long term forecast | B21: Forecast 2020/21 | C21: Forecast 2021/22 | D21: Forecast 2022/23 | E21: ="Forecast "&E1+13&"/"&RIGHT(E1,2)+14 -> Forecast 2023/24 | F21: Forecast 2024/25 | G21: Forecast 2025/26 | H21: Forecast 2026/27 | I21: Forecast 2027/28 | J21: Forecast 2028/29 | K21: Forecast 2029/30 | L21: Forecast 2030/31 | M21: Forecast 2031/32 | N21: Forecast 2032/33 | O21: Forecast 2033/34 | Z21: Solid Waste Infrastructure | AA21: Dams & Reservoirs | AB21: Storm water Conveyance | AD21: An efficient, competitive and responsive economic infrastructure network
A22: ='Template names'!C29 -> Next yr of long term forecast | B22: Forecast 2021/22 | C22: Forecast 2022/23 | D22: Forecast 2023/24 | E22: ="Forecast "&E1+14&"/"&RIGHT(E1,2)+15 -> Forecast 2024/25 | F22: Forecast 2025/26 | G22: Forecast 2026/27 | H22: Forecast 2027/28 | I22: Forecast 2028/29 | J22: Forecast 2029/30 | K22: Forecast 2030/31 | L22: Forecast 2031/32 | M22: Forecast 2032/33 | N22: Forecast 2033/34 | O22: Forecast 2034/35 | Z22: Rail Infrastructure | AA22: Water purification | AB22: Attenuation | AD22: Vibrant, equitable, sustainable rural communities contributing towards food security for all
A23: Adjustments Budget | B23: Annual target 2007/08 | C23: Annual target 2008/09 | D23: Annual target 2009/10 | E23: ="Annual target " & E1&"/"&RIGHT(E1,2)+1 -> Annual target 2010/11 | F23: Annual target 2011/12 | G23: Annual target 2012/13 | H23: Annual target 2013/14 | I23: Annual target 2014/15 | J23: Annual target 2015/16 | K23: Annual target 2016/17 | L23: Annual target 2017/18 | M23: Annual target 2018/19 | N23: Annual target 2019/20 | O23: Annual target 2020/21 | Z23: Coastal Infrastructure | AA23: Reticulation | AB23: Power Plants | AD23: Sustainable human settlements and improved quality of household life
A24: =A23 -> Adjustments Budget | B24: Revised target 2007/08 | C24: Revised target 2008/09 | D24: Revised target 2009/10 | E24: ="Revised target "& E1&"/"&RIGHT(E1,2)+1 -> Revised target 2010/11 | F24: Revised target 2011/12 | G24: Revised target 2012/13 | H24: Revised target 2013/14 | I24: Revised target 2014/15 | J24: Revised target 2015/16 | K24: Revised target 2016/17 | L24: Revised target 2017/18 | M24: Revised target 2018/19 | N24: Revised target 2019/20 | O24: Revised target 2020/21 | Z24: Information and Communication Infrastructure | AA24: Sewerage purification | AB24: HV Substations | AD24: Responsive, accountable, effective and efficient local government
A25: NOTE: This sheet should not be directly amended - select headings from sheet 'S' | Z25: Community Facilities | AA25: Waste Management | AB25: HV Switching Station | AD25: Protect and enhance our environmental assets and natural resources
Z26: Sport and Recreation Facilities | AA26: Transportation | AB26: HV Transmission Conductors | AD26: Create a better South Africa and contribute to a better Africa and a better world
A27: Name link | B27: 155 | Z27: Heritage assets | AA27: Gas | AB27: MV Substations | AD27: An efficient, effective and development-oriented public service
A28: Name of Muni | B28: =INDEX(B29:B307,B27,1) -> DC47 Sekhukhune | Z28: Revenue Generating | AA28: Parks & gardens | AB28: MV Switching Stations | AD28: A comprehensive, responsive and sustainable social protection system
B29: Choose name from list | C29: Set name on 'Instructions' sheet | Z29: Non-revenue Generating | AA29: Sportsfields & stadia | AB29: MV Networks | AD29: A diverse, socially cohesive society with a common national identity
B30: BUF Buffalo City | C30: EC EASTERN CAPE | Z30: Operational Buildings | AA30: Swimming pools | AB30: LV Networks
B31: NMA Nelson Mandela Bay | C31: EC EASTERN CAPE | Z31: Housing | AA31: Community halls | AB31: Capital Spares
B32: EC101 Dr Beyers Naude | C32: EC EASTERN CAPE | Z32: Biological or Cultivated Assets | AA32: Libraries | AB32: Dams and Weirs
B33: EC102 Blue Crane Route | C33: EC EASTERN CAPE | Z33: Servitudes | AA33: Recreational facilities | AB33: Boreholes
B34: EC104 Makana | C34: EC EASTERN CAPE | Z34: Licences and Rights | AA34: Fire, safety & emergency | AB34: Reservoirs
B35: EC105 Ndlambe | C35: EC EASTERN CAPE | Z35: Computer Equipment | AA35: Security and policing | AB35: Pump Stations
B36: EC106 Sundays River Valley | C36: EC EASTERN CAPE | Z36: Furniture and Office Equipment | AA36: Buses | AB36: Water Treatment Works
B37: EC108 Kouga | C37: EC EASTERN CAPE | Z37: Machinery and Equipment | AA37: Clinics | AB37: Bulk Mains
B38: EC109 Kou-Kamma | C38: EC EASTERN CAPE | Z38: Transport Assets | AA38: Museums & Art Galleries | AB38: Distribution
B39: DC10 Sarah Baartman | C39: EC EASTERN CAPE | Z39: Land | AA39: Cemeteries | AB39: Distribution Points
B40: EC121 Mbhashe | C40: EC EASTERN CAPE | Z40: Zoo's, Marine and Non-biological Animals | AA40: Social rental housing | AB40: PRV Stations
B41: EC122 Mnquma | C41: EC EASTERN CAPE | AA41: Buildings | AB41: Capital Spares
B42: EC123 Great Kei | C42: EC EASTERN CAPE | AA42: Housing development | AB42: Pump Station
B43: EC124 Amahlathi | C43: EC EASTERN CAPE | AA43: General vehicles | AB43: Reticulation
B44: EC126 Ngqushwa | C44: EC EASTERN CAPE | AA44: Specialised vehicles - Refuse | AB44: Waste Water Treatment Works
B45: EC129 Raymond Mhlaba | C45: EC EASTERN CAPE | AA45: Specialised vehicles - Fire | AB45: Outfall Sewers
B46: DC12 Amathole | C46: EC EASTERN CAPE | AA46: Specialised vehicles - Conservancy | AB46: Toilet Facilities
B47: EC131 Inxuba Yethemba | C47: EC EASTERN CAPE | AA47: Specialised vehicles - Ambulances | AB47: Capital Spares
B48: EC135 Intsika Yethu | C48: EC EASTERN CAPE | AA48: Plant & equipment | AB48: Landfill Sites
B49: EC136 Emalahleni (Ec) | C49: EC EASTERN CAPE | AA49: Computers - hardware/equipment | AB49: Waste Transfer Stations
B50: EC137 Engcobo | C50: EC EASTERN CAPE | AA50: Furniture and other office equipment | AB50: Waste Processing Facilities
B51: EC138 Sakhisizwe | C51: EC EASTERN CAPE | AA51: Abattoirs | AB51: Waste Drop-off Points
B52: EC139 Enoch Mgijima | C52: EC EASTERN CAPE | AA52: Markets | AB52: Waste Separation Facilities
B53: DC13 Chris Hani | C53: EC EASTERN CAPE | AA53: Civic Land and Buildings | AB53: Electricity Generation Facilities
B54: EC141 Elundini | C54: EC EASTERN CAPE | AA54: Other Buildings | AB54: Capital Spares
B55: EC142 Senqu | C55: EC EASTERN CAPE | AA55: Other Land | AB55: Rail Lines
B56: EC145 Walter Sisulu | C56: EC EASTERN CAPE | AA56: Surplus Assets - (Investment or Inventory) | AB56: Rail Structures
B57: DC14 Joe Gqabi | C57: EC EASTERN CAPE | AA57: Computers - software & programming | AB57: Rail Furniture
B58: EC153 Ngquza Hills | C58: EC EASTERN CAPE | AA58: Other | AB58: Drainage Collection
B59: EC154 Port St Johns | C59: EC EASTERN CAPE | AB59: Storm water Conveyance
B60: EC155 Nyandeni | C60: EC EASTERN CAPE | Z60: SA16 - Investments | AB60: Attenuation
B61: EC156 Mhlontlo | C61: EC EASTERN CAPE | Z61: Security | AA61: Interest rate | AB61: MV Substations
B62: EC157 King Sabata Dalindyebo | C62: EC EASTERN CAPE | Z62: Yes | AA62: Fixed | AB62: LV Networks
B63: DC15 O .R. Tambo | C63: EC EASTERN CAPE | Z63: No | AA63: Variable | AB63: Capital Spares
B64: EC441 Matatiele | C64: EC EASTERN CAPE | AB64: Sand Pumps
B65: EC442 Umzimvubu | C65: EC EASTERN CAPE | AB65: Piers
B66: EC443 Mbizana | C66: EC EASTERN CAPE | Z66: SA36, SA37 - Capital projects | AB66: Revetments
B67: EC444 Ntabankulu | C67: EC EASTERN CAPE | Z67: Yes | AB67: Promenades
B68: DC44 Alfred Nzo | C68: EC EASTERN CAPE | Z68: No | AB68: Capital Spares
B69: MAN Mangaung | C69: FS FREE STATE | AB69: Data Centres
B70: FS161 Letsemeng | C70: FS FREE STATE | AB70: Core Layers
B71: FS162 Kopanong | C71: FS FREE STATE | AB71: Distribution Layers
B72: FS163 Mohokare | C72: FS FREE STATE | AB72: Capital Spares
B73: DC16 Xhariep | C73: FS FREE STATE | AB73: Halls
B74: FS181 Masilonyana | C74: FS FREE STATE | AB74: Centres
B75: FS182 Tokologo | C75: FS FREE STATE | AB75: Crèches
B76: FS183 Tswelopele | C76: FS FREE STATE | AB76: Clinics/Care Centres
B77: FS184 Matjhabeng | C77: FS FREE STATE | AB77: Fire/Ambulance Stations
B78: FS185 Nala | C78: FS FREE STATE | AB78: Testing Stations
B79: DC18 Lejweleputswa | C79: FS FREE STATE | AB79: Museums
B80: FS191 Setsoto | C80: FS FREE STATE | AB80: Galleries
B81: FS192 Dihlabeng | C81: FS FREE STATE | AB81: Theatres
B82: FS193 Nketoana | C82: FS FREE STATE | AB82: Libraries
B83: FS194 Maluti-a-Phofung | C83: FS FREE STATE | AB83: Cemeteries/Crematoria
B84: FS195 Phumelela | C84: FS FREE STATE | AB84: Police
B85: FS196 Mantsopa | C85: FS FREE STATE | AB85: Purls
B86: DC19 Thabo Mofutsanyana | C86: FS FREE STATE | AB86: Public Open Space
B87: FS201 Moqhaka | C87: FS FREE STATE | AB87: Nature Reserves
B88: FS203 Ngwathe | C88: FS FREE STATE | AB88: Public Ablution Facilities
B89: FS204 Metsimaholo | C89: FS FREE STATE | AB89: Markets
B90: FS205 Mafube | C90: FS FREE STATE | AB90: Stalls
B91: DC20 Fezile Dabi | C91: FS FREE STATE | AB91: Abattoirs
B92: EKU City of Ekurhuleni | C92: GT GAUTENG | AB92: Airports
B93: JHB City Of Johannesburg | C93: GT GAUTENG | AB93: Taxi Ranks/Bus Terminals
B94: TSH City Of Tshwane | C94: GT GAUTENG | AB94: Capital Spares
B95: GT421 Emfuleni | C95: GT GAUTENG | AB95: Indoor Facilities
B96: GT422 Midvaal | C96: GT GAUTENG | AB96: Outdoor Facilities
B97: GT423 Lesedi | C97: GT GAUTENG | AB97: Capital Spares
B98: DC42 Sedibeng | C98: GT GAUTENG | AB98: Monuments
B99: GT481 Mogale City | C99: GT GAUTENG | AB99: Historic Buildings
B100: GT484 Merafong City | C100: GT GAUTENG | AB100: Works of Art
B101: GT485 Rand West City | C101: GT GAUTENG | AB101: Conservation Areas
B102: DC48 West Rand | C102: GT GAUTENG | AB102: Other Heritage
B103: ETH eThekwini | C103: KZN KWAZULU-NATAL | AB103: Improved Property
B104: KZN212 Umdoni | C104: KZN KWAZULU-NATAL | AB104: Unimproved Property
B105: KZN213 Umzumbe | C105: KZN KWAZULU-NATAL | AB105: Municipal Offices
B106: KZN214 uMuziwabantu | C106: KZN KWAZULU-NATAL | AB106: Pay/Enquiry Points
B107: KZN216 Ray Nkonyeni | C107: KZN KWAZULU-NATAL | AB107: Building Plan Offices
B108: DC21 Ugu | C108: KZN KWAZULU-NATAL | AB108: Workshops
B109: KZN221 uMshwathi | C109: KZN KWAZULU-NATAL | AB109: Yards
B110: KZN222 uMngeni | C110: KZN KWAZULU-NATAL | AB110: Stores
B111: KZN223 Mpofana | C111: KZN KWAZULU-NATAL | AB111: Laboratories
B112: KZN224 Impendle | C112: KZN KWAZULU-NATAL | AB112: Training Centres
B113: KZN225 Msunduzi | C113: KZN KWAZULU-NATAL | AB113: Manufacturing Plant
B114: KZN226 Mkhambathini | C114: KZN KWAZULU-NATAL | AB114: Depots
B115: KZN227 Richmond | C115: KZN KWAZULU-NATAL | AB115: Capital Spares
B116: DC22 uMgungundlovu | C116: KZN KWAZULU-NATAL | AB116: Staff Housing
B117: KZN235 Okhahlamba | C117: KZN KWAZULU-NATAL | AB117: Social Housing
B118: KZN237 Inkosi Langalibalele | C118: KZN KWAZULU-NATAL | AB118: Capital Spares
B119: KZN238 Alfred Duma | C119: KZN KWAZULU-NATAL | AB119: Water Rights
B120: DC23 Uthukela | C120: KZN KWAZULU-NATAL | AB120: Effluent Licenses
B121: KZN241 Endumeni | C121: KZN KWAZULU-NATAL | AB121: Solid Waste Licenses
B122: KZN242 Nquthu | C122: KZN KWAZULU-NATAL | AB122: Computer Software and Applications
B123: KZN244 Msinga | C123: KZN KWAZULU-NATAL | AB123: Load Settlement Software Applications
B124: KZN245 Umvoti | C124: KZN KWAZULU-NATAL | AB124: Unspecified
B125: DC24 Umzinyathi | C125: KZN KWAZULU-NATAL
B126: KZN252 Newcastle | C126: KZN KWAZULU-NATAL
B127: KZN253 Emadlangeni | C127: KZN KWAZULU-NATAL
B128: KZN254 Dannhauser | C128: KZN KWAZULU-NATAL
B129: DC25 Amajuba | C129: KZN KWAZULU-NATAL
B130: KZN261 eDumbe | C130: KZN KWAZULU-NATAL
B131: KZN262 uPhongolo | C131: KZN KWAZULU-NATAL
B132: KZN263 Abaqulusi | C132: KZN KWAZULU-NATAL
B133: KZN265 Nongoma | C133: KZN KWAZULU-NATAL
B134: KZN266 Ulundi | C134: KZN KWAZULU-NATAL
B135: DC26 Zululand | C135: KZN KWAZULU-NATAL
B136: KZN271 Umhlabuyalingana | C136: KZN KWAZULU-NATAL
B137: KZN272 Jozini | C137: KZN KWAZULU-NATAL
B138: KZN275 Mtubatuba | C138: KZN KWAZULU-NATAL
B139: KZN276 Hlabisa Big Five | C139: KZN KWAZULU-NATAL
B140: DC27 Umkhanyakude | C140: KZN KWAZULU-NATAL
B141: KZN281 Mfolozi | C141: KZN KWAZULU-NATAL
B142: KZN282 uMhlathuze | C142: KZN KWAZULU-NATAL
B143: KZN284 uMlalazi | C143: KZN KWAZULU-NATAL
B144: KZN285 Mthonjaneni | C144: KZN KWAZULU-NATAL
B145: KZN286 Nkandla | C145: KZN KWAZULU-NATAL
B146: DC28 King Cetshwayo | C146: KZN KWAZULU-NATAL
B147: KZN291 Mandeni | C147: KZN KWAZULU-NATAL
B148: KZN292 KwaDukuza | C148: KZN KWAZULU-NATAL
B149: KZN293 Ndwedwe | C149: KZN KWAZULU-NATAL
B150: KZN294 Maphumulo | C150: KZN KWAZULU-NATAL
B151: DC29 iLembe | C151: KZN KWAZULU-NATAL
B152: KZN433 Greater Kokstad | C152: KZN KWAZULU-NATAL
B153: KZN434 Ubuhlebezwe | C153: KZN KWAZULU-NATAL
B154: KZN435 Umzimkhulu | C154: KZN KWAZULU-NATAL
B155: KZN436 Dr Nkosazana Dlamini Zuma | C155: KZN KWAZULU-NATAL
B156: DC43 Harry Gwala | C156: KZN KWAZULU-NATAL
B157: LIM331 Greater Giyani | C157: LIM LIMPOPO
B158: LIM332 Greater Letaba | C158: LIM LIMPOPO
B159: LIM333 Greater Tzaneen | C159: LIM LIMPOPO
B160: LIM334 Ba-Phalaborwa | C160: LIM LIMPOPO
B161: LIM335 Maruleng | C161: LIM LIMPOPO
B162: DC33 Mopani | C162: LIM LIMPOPO
B163: LIM341 Musina | C163: LIM LIMPOPO
B164: LIM343 Thulamela | C164: LIM LIMPOPO
B165: LIM344 Makhado | C165: LIM LIMPOPO
B166: LIM345 Collins Chabane | C166: LIM LIMPOPO
B167: DC34 Vhembe | C167: LIM LIMPOPO
B168: LIM351 Blouberg | C168: LIM LIMPOPO
B169: LIM353 Molemole | C169: LIM LIMPOPO
B170: LIM354 Polokwane | C170: LIM LIMPOPO
B171: LIM355 Lepelle-Nkumpi | C171: LIM LIMPOPO
B172: DC35 Capricorn | C172: LIM LIMPOPO
B173: LIM361 Thabazimbi | C173: LIM LIMPOPO
B174: LIM362 Lephalale | C174: LIM LIMPOPO
B175: LIM366 Bela Bela | C175: LIM LIMPOPO
B176: LIM367 Mogalakwena | C176: LIM LIMPOPO
B177: LIM368 Modimolle-Mookgopong | C177: LIM LIMPOPO
B178: DC36 Waterberg | C178: LIM LIMPOPO
B179: LIM471 Ephraim Mogale | C179: LIM LIMPOPO
B180: LIM472 Elias Motsoaledi | C180: LIM LIMPOPO
B181: LIM473 Makhuduthamaga | C181: LIM LIMPOPO
B182: LIM476 Tubatse Fetakgomo | C182: LIM LIMPOPO
B183: DC47 Sekhukhune | C183: LIM LIMPOPO
B184: MP301 Albert Luthuli | C184: MP MPUMALANGA
B185: MP302 Msukaligwa | C185: MP MPUMALANGA
B186: MP303 Mkhondo | C186: MP MPUMALANGA
B187: MP304 Pixley Ka Seme (MP) | C187: MP MPUMALANGA
B188: MP305 Lekwa | C188: MP MPUMALANGA
B189: MP306 Dipaleseng | C189: MP MPUMALANGA
B190: MP307 Govan Mbeki | C190: MP MPUMALANGA
B191: DC30 Gert Sibande | C191: MP MPUMALANGA
B192: MP311 Victor Khanye | C192: MP MPUMALANGA
B193: MP312 Emalahleni (Mp) | C193: MP MPUMALANGA
B194: MP313 Steve Tshwete | C194: MP MPUMALANGA
B195: MP314 Emakhazeni | C195: MP MPUMALANGA
B196: MP315 Thembisile Hani | C196: MP MPUMALANGA
B197: MP316 Dr J.S. Moroka | C197: MP MPUMALANGA
B198: DC31 Nkangala | C198: MP MPUMALANGA
B199: MP321 Thaba Chweu | C199: MP MPUMALANGA
B200: MP324 Nkomazi | C200: MP MPUMALANGA
... 87 more rows

Sheet Org structure
A1: Organisational Structure Votes | C1: Organisational Structure Sub-Votes | E1: Display Sub-Votes
A2: =B2&" - "&C2 -> Vote 01 - Speakers Office | B2: Vote 01 | C2: Speakers Office
A3: =B5&" - "&C5 -> Vote 02 - Executive Mayor's Office | B3: 01.1 | C3: Office Of The Speaker | D3: =CONCATENATE(B3, " - ", C3) -> 01.1 - Office Of The Speaker | E3: 01.1 - Office Of The Speaker
A4: =B7&" - "&C7 -> Vote 03 - Municipal Manager Office | B4: 01.2 | C4: Office Of The Chief Whip | D4: =CONCATENATE(B4, " - ", C4) -> 01.2 - Office Of The Chief Whip | E4: 01.2 - Office Of The Chief Whip
A5: =B9&" - "&C9 -> Vote 04 - Budget And Treasury | B5: Vote 02 | C5: Executive Mayor's Office
A6: =B12&" - "&C12 -> Vote 05 - Infrustracture And Water Services | B6: 02.1 | C6: Executive Mayor's Office | D6: =CONCATENATE(B6, " - ", C6) -> 02.1 - Executive Mayor's Office | E6: 02.1 - Executive Mayor's Office
A7: =B16&" - "&C16 -> Vote 06 - Planning And Economic Development | B7: Vote 03 | C7: Municipal Manager Office
A8: =B18&" - "&C18 -> Vote 07 - Community Services | B8: 03.1 | C8: Municipal Manager Admin | D8: =CONCATENATE(B8, " - ", C8) -> 03.1 - Municipal Manager Admin | E8: 03.1 - Municipal Manager Admin
A9: =B20&" - "&C20 -> Vote 08 - Sekhukhune Development Angancy | B9: Vote 04 | C9: Budget And Treasury
A10: =B22&" - "&C22 -> Vote 09 - Corporate Services | B10: 04.1 | C10: Budget & Treasury Admin | D10: =CONCATENATE(B10, " - ", C10) -> 04.1 - Budget & Treasury Admin | E10: 04.1 - Budget & Treasury Admin
A11: =B24&" - "&C24 -> Vote 10 - | B11: 04.2 | C11: Budget & Treasury Admin | D11: =CONCATENATE(B11, " - ", C11) -> 04.2 - Budget & Treasury Admin | E11: 04.2 - Budget & Treasury Admin
A12: Vote 11 - | B12: Vote 05 | C12: Infrustracture And Water Services
A13: Vote 12 - | B13: 05.1 | C13: Technical Services Admin | D13: =CONCATENATE(B13, " - ", C13) -> 05.1 - Technical Services Admin | E13: 05.1 - Technical Services Admin
A14: Vote 13 - | B14: 05.2 | C14: Water Services | D14: =CONCATENATE(B14, " - ", C14) -> 05.2 - Water Services | E14: 05.2 - Water Services
A15: Vote 14 - | B15: 05.3 | C15: Sanitation Services | D15: =CONCATENATE(B15, " - ", C15) -> 05.3 - Sanitation Services | E15: 05.3 - Sanitation Services
A16: Vote 15 - Other | B16: Vote 06 | C16: Planning And Economic Development
B17: 06.1 | C17: Planning & Economic Dev Admin | D17: =CONCATENATE(B17, " - ", C17) -> 06.1 - Planning & Economic Dev Admin | E17: 06.1 - Planning & Economic Dev Admin
B18: Vote 07 | C18: Community Services
B19: 07.1 | C19: Community Services Admin | D19: =CONCATENATE(B19, " - ", C19) -> 07.1 - Community Services Admin | E19: 07.1 - Community Services Admin
B20: Vote 08 | C20: Sekhukhune Development Angancy
B21: 08.1 | C21: Sekhukhune Development Agency | D21: =CONCATENATE(B21, " - ", C21) -> 08.1 - Sekhukhune Development Agency | E21: 08.1 - Sekhukhune Development Agency
B22: Vote 09 | C22: Corporate Services
B23: 09.1 | C23: Corporate Services Admin | D23: =CONCATENATE(B23, " - ", C23) -> 09.1 - Corporate Services Admin | E23: 09.1 - Corporate Services Admin
B24: Vote 10
B25: Vote 11
B26: Vote 12
B27: Vote 13
B28: Vote 14
B29: Vote 15 | C29: Other
B30: 15.1 | C30: Electricity Reporting Function | D30: =CONCATENATE(B30, " - ", C30) -> 15.1 - Electricity Reporting Function | E30: 15.1 - Electricity Reporting Function

Sheet Contacts
A1: =muni&" - "&" Contact Information" -> DC47 Sekhukhune - Contact Information
A3: A. GENERAL INFORMATION
A4: Municipality | B4: =muni -> DC47 Sekhukhune | C4: =IF(B4="Choose name from List","Set name on 'Instructions' sheet", "") -> 
A6: Grade | B6: grade 4 | C6: 1 Grade in terms of the Remuneration of Public Office Bearers Act.
A8: Province | B8: =IF(B4>" ",VLOOKUP(B4,'Lookup and lists'!B29:C307,2, FALSE)," ") -> LIM LIMPOPO
A10: Web Address | B10: www.sekhukhune.gov.za
A12: e-mail Address | B12: www.sekhukhune.gov.za
A14: B. CONTACT INFORMATION
A15: Postal address:
A16: P.O. Box | B16: 8611
A17: City / Town | B17: Groblersdal
A18: Postal Code | B18: 0470
A20: Street address
A21: Building | B21: Bareki Mall
A22: Street No. & Name | B22: Cnr Van Rebeck and Cris Wild
A23: City / Town | B23: groblersdal
A24: Postal Code | B24: 0470
A26: General Contacts
A27: Telephone number | B27: 0132627000
A28: Fax number | B28: 0132623688
A30: C. POLITICAL LEADERSHIP
A31: Speaker: | C31: Secretary/PA to the Speaker:
A32: ID Number | B32: 5407150766089 | C32: ID Number
A33: Title | B33: Ms | C33: Title
A34: Name | B34: MACHUENE MARIA MANAMELA | C34: Name
A35: Telephone number | B35: 0132627300 | C35: Telephone number
A36: Cell number | B36: 0769216784 | C36: Cell number
A37: Fax number | B37: 0132623688 | C37: Fax number
A38: E-mail address | C38: E-mail address
A40: Mayor/Executive Mayor: | C40: Secretary/PA to the Mayor/Executive Mayor:
A41: ID Number | B41: 610322 5684 089 | C41: ID Number
A42: Title | B42: Mr | C42: Title
A43: Name | B43: KEAMOTSENG STANLEY RAMAILA | C43: Name
A44: Telephone number | B44: 0132627754 | C44: Telephone number
A45: Cell number | B45: 0828575614 | C45: Cell number
A46: Fax number | B46: 0132623688 | C46: Fax number
A47: E-mail address | B47: ramailas@Sekhukhune.gov.za | C47: E-mail address
A49: Deputy Mayor/Executive Mayor: | C49: Secretary/PA to the Deputy Mayor/Executive Mayor:
A50: ID Number | C50: ID Number | D50: 820702 0769 082
A51: Title | C51: Title | D51: Ms
A52: Name | C52: Name | D52: MPAI RAMMUPUDU
A53: Telephone number | C53: Telephone number | D53: 0132627300
A54: Cell number | C54: Cell number | D54: 0727496336
A55: Fax number | C55: Fax number | D55: 0132623688
A56: E-mail address | C56: E-mail address | D56: Rammupudum@sekhukhune.gov.za
A58: D. MANAGEMENT LEADERSHIP
A59: Municipal Manager: | C59: Secretary/PA to the Municipal Manager:
A60: ID Number | B60: 6512225449089 | C60: ID Number | D60: 7001010698083
A61: Title | B61: Mr | C61: Title | D61: Miss
A62: Name | B62: MPHO JOSEPH MOFOKENG | C62: Name | D62: Mahlatse Kekana
A63: Telephone number | B63: 0132627576 | C63: Telephone number | D63: 0132627340
A64: Cell number | B64: 0832753968 | C64: Cell number | D64: 0768968954
A65: Fax number | B65: 013 262 4303 | C65: Fax number
A66: E-mail address | B66: mofokengm@sekhukhune.gov.za | C66: E-mail address | D66: kekanam@sekhukhune.gov.za
A68: Chief Financial Officer | C68: Secretary/PA to the Chief Financial Officer
A69: ID Number | B69: 6512225449089 | C69: ID Number | D69: 870531 0747 080
A70: Title | B70: Mr | C70: Title | D70: Ms
A71: Name | B71: COLBERT MUFAMADI | C71: Name | D71: RACHEL THULARE
A72: Telephone number | B72: 0132627576 | C72: Telephone number | D72: 0132627675
A73: Cell number | B73: 0832753968 | C73: Cell number | D73: 072 816 8285
A74: Fax number | B74: 013 262 4303 | C74: Fax number | D74: 0132623688
A75: E-mail address | B75: mufamadic@sekhukhune.gov.za | C75: E-mail address | D75: ThulareR@Sekhukhune.gov.za
A77: Official responsible for submitting financial information | C77: Official responsible for submitting financial information
A78: ID Number | B78: 8612040651089 | C78: ID Number | D78: 7809030373085
A79: Title | B79: Ms | C79: Title | D79: Ms
A80: Name | B80: MAPHOKENG PETUNIA PITJO | C80: Name | D80: MATHUNG MATLALA
A81: Telephone number | B81: 0132627666 | C81: Telephone number | D81: 013 262 7522
A82: Cell number | B82: 0605269306 | C82: Cell number | D82: 0828529934
A83: Fax number | B83: 0132623688 | C83: Fax number | D83: 013 262 4303
A84: E-mail address | B84: pitjom@sekhukhune.gov.za | C84: E-mail address | D84: matlalam@Sekhukhune.gov.za
A85: Official responsible for submitting financial information | C85: Official responsible for submitting financial information
A86: ID Number | B86: 910712 0452 008 | C86: ID Number
A87: Title | B87: Ms | C87: Title
A88: Name | B88: SENZILE MASEKO | C88: Name
A89: Telephone number | B89: 013 262 7670 | C89: Telephone number
A90: Cell number | B90: 073 985 1961 | C90: Cell number
A91: Fax number | B91: 013 262 4303 | C91: Fax number
A92: E-mail address | B92: masekos@sekhukhune.gov.za | C92: E-mail address
A93: Official responsible for submitting financial information | C93: Official responsible for submitting financial information
A94: ID Number | C94: ID Number
A95: Title | C95: Title
A96: Name | C96: Name
A97: Telephone number | C97: Telephone number
A98: Cell number | C98: Cell number
A99: Fax number | C99: Fax number
A100: E-mail address | C100: E-mail address
A101: Official responsible for submitting financial information | C101: Official responsible for submitting financial information
A102: ID Number | C102: ID Number
A103: Title | C103: Title
A104: Name | C104: Name
A105: Telephone number | C105: Telephone number
A106: Cell number | C106: Cell number
A107: Fax number | C107: Fax number
A108: E-mail address | C108: E-mail address
A109: Official responsible for submitting financial information | C109: Official responsible for submitting financial information
A110: ID Number | C110: ID Number
A111: Title | C111: Title
A112: Name | C112: Name
A113: Telephone number | C113: Telephone number
A114: Cell number | C114: Cell number
A115: Fax number | C115: Fax number
A116: E-mail address | C116: E-mail address
A117: Official responsible for submitting financial information | C117: Official responsible for submitting financial information
A118: ID Number | C118: ID Number
A119: Title | C119: Title
A120: Name | C120: Name
A121: Telephone number | C121: Telephone number
A122: Cell number | C122: Cell number
A123: Fax number | C123: Fax number
A124: E-mail address | C124: E-mail address
A125: Official responsible for submitting financial information | C125: Official responsible for submitting financial information
A126: ID Number | C126: ID Number
A127: Title | C127: Title
A128: Name | C128: Name
A129: Telephone number | C129: Telephone number
A130: Cell number | C130: Cell number
A131: Fax number | C131: Fax number
A132: E-mail address | C132: E-mail address
A133: Official responsible for submitting financial information
A134: ID Number
A135: Title
A136: Name
A137: Telephone number
A138: Cell number
A139: Fax number
A140: E-mail address

Sheet A1-Sum
A1: =muni&" - "&Approve1 -> DC47 Sekhukhune - Table A1 Budget Summary
A2: =desc -> Description | B2: =head1b -> 2016/17 | C2: =head1A -> 2017/18 | D2: =Head1 -> 2018/19 | E2: =Head2 -> Current Year 2019/20 | I2: =Head3 -> 2020/21 Medium Term Revenue & Expenditure Framework
A3: R thousands | B3: =Head5 -> Audited Outcome | C3: =Head5 -> Audited Outcome | D3: =Head5 -> Audited Outcome | E3: =Head6 -> Original Budget | F3: =Head7 -> Adjusted Budget | G3: =Head8 -> Full Year Forecast | H3: =Head5b -> Pre-audit outcome | I3: =Head9 -> Budget Year 2020/21 | J3: =Head10 -> Budget Year +1 2021/22 | K3: =Head11 -> Budget Year +2 2022/23
A4: Financial Performance
A5: Property rates | B5: ='A4-FinPerf RE'!C5 -> 0 | C5: ='A4-FinPerf RE'!D5 -> 0 | D5: ='A4-FinPerf RE'!E5 -> 0 | E5: ='A4-FinPerf RE'!F5 -> 0 | F5: ='A4-FinPerf RE'!G5 -> 0 | G5: ='A4-FinPerf RE'!H5 -> 0 | H5: ='A4-FinPerf RE'!I5 -> 0 | I5: ='A4-FinPerf RE'!J5 -> 0 | J5: ='A4-FinPerf RE'!K5 -> 0 | K5: ='A4-FinPerf RE'!L5 -> 0
A6: Service charges | B6: =SUM('A4-FinPerf RE'!C6:C9) -> 0 | C6: =SUM('A4-FinPerf RE'!D6:D9) -> 72398422.7 | D6: =SUM('A4-FinPerf RE'!E6:E9) -> 83794738.89 | E6: =SUM('A4-FinPerf RE'!F6:F9) -> 110814716 | F6: =SUM('A4-FinPerf RE'!G6:G9) -> 110814712 | G6: =SUM('A4-FinPerf RE'!H6:H9) -> 110814712 | H6: =SUM('A4-FinPerf RE'!I6:I9) -> 79453480.11 | I6: =SUM('A4-FinPerf RE'!J6:J9) -> 100640216 | J6: =SUM('A4-FinPerf RE'!K6:K9) -> 95283205 | K6: =SUM('A4-FinPerf RE'!L6:L9) -> 92143709
A7: Investment revenue | B7: ='A4-FinPerf RE'!C12 -> 0 | C7: ='A4-FinPerf RE'!D12 -> 2232158.11 | D7: ='A4-FinPerf RE'!E12 -> 2264470.08 | E7: ='A4-FinPerf RE'!F12 -> 2699424 | F7: ='A4-FinPerf RE'!G12 -> 14533538 | G7: ='A4-FinPerf RE'!H12 -> 14533538 | H7: ='A4-FinPerf RE'!I12 -> 6917700.29 | I7: ='A4-FinPerf RE'!J12 -> 13160216 | J7: ='A4-FinPerf RE'!K12 -> 13818226 | K7: ='A4-FinPerf RE'!L12 -> 14509137
A8: Transfers recognised - operational | B8: ='A4-FinPerf RE'!C18 -> 0 | C8: ='A4-FinPerf RE'!D18 -> 1100439241 | D8: ='A4-FinPerf RE'!E18 -> 1194612913 | E8: ='A4-FinPerf RE'!F18 -> 1249703000 | F8: ='A4-FinPerf RE'!G18 -> 891188921 | G8: ='A4-FinPerf RE'!H18 -> 891188921 | H8: ='A4-FinPerf RE'!I18 -> 817257872.5 | I8: ='A4-FinPerf RE'!J18 -> 914290000 | J8: ='A4-FinPerf RE'!K18 -> 995212000 | K8: ='A4-FinPerf RE'!L18 -> 1071926000
A9: Other own revenue | B9: ='A4-FinPerf RE'!C11+'A4-FinPerf RE'!C13+'A4-FinPerf RE'!C14+'A4-FinPerf RE'!C15+'A4-FinPerf RE'!C16+'A4-FinPerf RE'!C17+'A4-FinPerf RE'!C19+'A4-FinPerf RE'!C20 -> 0 | C9: ='A4-FinPerf RE'!D11+'A4-FinPerf RE'!D13+'A4-FinPerf RE'!D14+'A4-FinPerf RE'!D15+'A4-FinPerf RE'!D16+'A4-FinPerf RE'!D17+'A4-FinPerf RE'!D19+'A4-FinPerf RE'!D20 -> 26129576.22 | D9: ='A4-FinPerf RE'!E11+'A4-FinPerf RE'!E13+'A4-FinPerf RE'!E14+'A4-FinPerf RE'!E15+'A4-FinPerf RE'!E16+'A4-FinPerf RE'!E17+'A4-FinPerf RE'!E19+'A4-FinPerf RE'!E20 -> 36772143.8 | E9: ='A4-FinPerf RE'!F11+'A4-FinPerf RE'!F13+'A4-FinPerf RE'!F14+'A4-FinPerf RE'!F15+'A4-FinPerf RE'!F16+'A4-FinPerf RE'!F17+'A4-FinPerf RE'!F19+'A4-FinPerf RE'!F20 -> 21395691 | F9: ='A4-FinPerf RE'!G11+'A4-FinPerf RE'!G13+'A4-FinPerf RE'!G14+'A4-FinPerf RE'!G15+'A4-FinPerf RE'!G16+'A4-FinPerf RE'!G17+'A4-FinPerf RE'!G19+'A4-FinPerf RE'!G20 -> 103459952 | G9: ='A4-FinPerf RE'!H11+'A4-FinPerf RE'!H13+'A4-FinPerf RE'!H14+'A4-FinPerf RE'!H15+'A4-FinPerf RE'!H16+'A4-FinPerf RE'!H17+'A4-FinPerf RE'!H19+'A4-FinPerf RE'!H20 -> 103459952 | H9: ='A4-FinPerf RE'!I11+'A4-FinPerf RE'!I13+'A4-FinPerf RE'!I14+'A4-FinPerf RE'!I15+'A4-FinPerf RE'!I16+'A4-FinPerf RE'!I17+'A4-FinPerf RE'!I19+'A4-FinPerf RE'!I20 -> 20045410.71 | I9: ='A4-FinPerf RE'!J11+'A4-FinPerf RE'!J13+'A4-FinPerf RE'!J14+'A4-FinPerf RE'!J15+'A4-FinPerf RE'!J16+'A4-FinPerf RE'!J17+'A4-FinPerf RE'!J19+'A4-FinPerf RE'!J20 -> 12145391 | J9: ='A4-FinPerf RE'!K11+'A4-FinPerf RE'!K13+'A4-FinPerf RE'!K14+'A4-FinPerf RE'!K15+'A4-FinPerf RE'!K16+'A4-FinPerf RE'!K17+'A4-FinPerf RE'!K19+'A4-FinPerf RE'!K20 -> 12747121 | K9: ='A4-FinPerf RE'!L11+'A4-FinPerf RE'!L13+'A4-FinPerf RE'!L14+'A4-FinPerf RE'!L15+'A4-FinPerf RE'!L16+'A4-FinPerf RE'!L17+'A4-FinPerf RE'!L19+'A4-FinPerf RE'!L20 -> 13380283
A10: ='A4-FinPerf RE'!A21 -> Total Revenue (excluding capital transfers and contributions) | B10: =SUM(B5:B9) -> 0 | C10: 1201199398 | D10: 1317444266 | E10: 1384612831 | F10: 1119997123 | G10: 1119997123 | H10: 923674463.7 | I10: 1040235823 | J10: 1117060552 | K10: 1191959129
A11: Employee costs | B11: ='A4-FinPerf RE'!C24 -> 0 | C11: ='A4-FinPerf RE'!D24 -> 324895681.1 | D11: ='A4-FinPerf RE'!E24 -> 373154682.8 | E11: ='A4-FinPerf RE'!F24 -> 351868000 | F11: ='A4-FinPerf RE'!G24 -> 369014389 | G11: ='A4-FinPerf RE'!H24 -> 369014389 | H11: ='A4-FinPerf RE'!I24 -> 324739797.1 | I11: ='A4-FinPerf RE'!J24 -> 400081073 | J11: ='A4-FinPerf RE'!K24 -> 424031394 | K11: ='A4-FinPerf RE'!L24 -> 451419803
A12: Remuneration of councillors | B12: ='A4-FinPerf RE'!C25 -> 0 | C12: ='A4-FinPerf RE'!D25 -> 17171151.43 | D12: ='A4-FinPerf RE'!E25 -> 16597723.23 | E12: ='A4-FinPerf RE'!F25 -> 16746242 | F12: ='A4-FinPerf RE'!G25 -> 16746242 | G12: ='A4-FinPerf RE'!H25 -> 16746242 | H12: ='A4-FinPerf RE'!I25 -> 12993567.19 | I12: ='A4-FinPerf RE'!J25 -> 17292883 | J12: ='A4-FinPerf RE'!K25 -> 18904939 | K12: ='A4-FinPerf RE'!L25 -> 20086496
A13: Depreciation & asset impairment | B13: ='A4-FinPerf RE'!C27 -> 0 | C13: ='A4-FinPerf RE'!D27 -> 94287428.87 | D13: ='A4-FinPerf RE'!E27 -> 101039968 | E13: ='A4-FinPerf RE'!F27 -> 74127235 | F13: ='A4-FinPerf RE'!G27 -> 80430272 | G13: ='A4-FinPerf RE'!H27 -> 80430272 | H13: ='A4-FinPerf RE'!I27 -> 70789143.31 | I13: ='A4-FinPerf RE'!J27 -> 90340954 | J13: ='A4-FinPerf RE'!K27 -> 104150000 | K13: ='A4-FinPerf RE'!L27 -> 107382250
A14: Finance charges | B14: ='A4-FinPerf RE'!C28 -> 0 | C14: ='A4-FinPerf RE'!D28 -> 3396521.31 | D14: ='A4-FinPerf RE'!E28 -> 3057362 | E14: ='A4-FinPerf RE'!F28 -> 500000 | F14: ='A4-FinPerf RE'!G28 -> 500000 | G14: ='A4-FinPerf RE'!H28 -> 500000 | H14: ='A4-FinPerf RE'!I28 -> 0 | I14: ='A4-FinPerf RE'!J28 -> 470526 | J14: ='A4-FinPerf RE'!K28 -> 500000 | K14: ='A4-FinPerf RE'!L28 -> 500000
A15: Materials and bulk purchases | B15: ='A4-FinPerf RE'!C29+'A4-FinPerf RE'!C30 -> 0 | C15: ='A4-FinPerf RE'!D29+'A4-FinPerf RE'!D30 -> 158070596.6 | D15: ='A4-FinPerf RE'!E29+'A4-FinPerf RE'!E30 -> 238503504.2 | E15: ='A4-FinPerf RE'!F29+'A4-FinPerf RE'!F30 -> 144533834 | F15: ='A4-FinPerf RE'!G29+'A4-FinPerf RE'!G30 -> 142404510 | G15: ='A4-FinPerf RE'!H29+'A4-FinPerf RE'!H30 -> 142404510 | H15: ='A4-FinPerf RE'!I29+'A4-FinPerf RE'!I30 -> 118300064.8 | I15: ='A4-FinPerf RE'!J29+'A4-FinPerf RE'!J30 -> 152526530 | J15: ='A4-FinPerf RE'!K29+'A4-FinPerf RE'!K30 -> 170304256 | K15: ='A4-FinPerf RE'!L29+'A4-FinPerf RE'!L30 -> 186142268
A16: Transfers and grants | B16: ='A4-FinPerf RE'!C32 -> 0 | C16: ='A4-FinPerf RE'!D32 -> 6586710.47 | D16: ='A4-FinPerf RE'!E32 -> 7415578.35 | E16: ='A4-FinPerf RE'!F32 -> 8245176 | F16: ='A4-FinPerf RE'!G32 -> 4232852 | G16: ='A4-FinPerf RE'!H32 -> 4232852 | H16: ='A4-FinPerf RE'!I32 -> 3558070.59 | I16: ='A4-FinPerf RE'!J32 -> 4300000 | J16: ='A4-FinPerf RE'!K32 -> 4493500 | K16: ='A4-FinPerf RE'!L32 -> 4695708
A17: Other expenditure | B17: ='A4-FinPerf RE'!C26+'A4-FinPerf RE'!C31+'A4-FinPerf RE'!C33+'A4-FinPerf RE'!C34 -> 0 | C17: ='A4-FinPerf RE'!D26+'A4-FinPerf RE'!D31+'A4-FinPerf RE'!D33+'A4-FinPerf RE'!D34 -> 391331155.3 | D17: ='A4-FinPerf RE'!E26+'A4-FinPerf RE'!E31+'A4-FinPerf RE'!E33+'A4-FinPerf RE'!E34 -> 392461530.7 | E17: ='A4-FinPerf RE'!F26+'A4-FinPerf RE'!F31+'A4-FinPerf RE'!F33+'A4-FinPerf RE'!F34 -> 343032452 | F17: ='A4-FinPerf RE'!G26+'A4-FinPerf RE'!G31+'A4-FinPerf RE'!G33+'A4-FinPerf RE'!G34 -> 373820032 | G17: ='A4-FinPerf RE'!H26+'A4-FinPerf RE'!H31+'A4-FinPerf RE'!H33+'A4-FinPerf RE'!H34 -> 373820032 | H17: ='A4-FinPerf RE'!I26+'A4-FinPerf RE'!I31+'A4-FinPerf RE'!I33+'A4-FinPerf RE'!I34 -> 239703515.8 | I17: ='A4-FinPerf RE'!J26+'A4-FinPerf RE'!J31+'A4-FinPerf RE'!J33+'A4-FinPerf RE'!J34 -> 273616831 | J17: ='A4-FinPerf RE'!K26+'A4-FinPerf RE'!K31+'A4-FinPerf RE'!K33+'A4-FinPerf RE'!K34 -> 327746124 | K17: ='A4-FinPerf RE'!L26+'A4-FinPerf RE'!L31+'A4-FinPerf RE'!L33+'A4-FinPerf RE'!L34 -> 337630903
A18: ='A4-FinPerf RE'!A35 -> Total Expenditure | B18: =SUM(B11:B17) -> 0 | C18: =SUM(C11:C17) -> 995739245.1 | D18: 1132230349 | E18: 939052939 | F18: 987148297 | G18: 987148297 | H18: 770084158.8 | I18: 938628797 | J18: 1050130213 | K18: 1107857428
A19: ='A4-FinPerf RE'!A37 -> Surplus/(Deficit) | B19: =B10-B18 -> 0 | C19: 205460152.6 | D19: 185213916.6 | E19: 445559892 | F19: 132848826 | G19: 132848826 | H19: 153590304.8 | I19: 101607026 | J19: 66930339 | K19: 84101701
A20: ='A4-FinPerf RE'!A38 -> Transfers and subsidies - capital (monetary allocations) (National / Provincial and District) | B20: ='A4-FinPerf RE'!C38 -> 0 | C20: ='A4-FinPerf RE'!D38 -> 0 | D20: ='A4-FinPerf RE'!E38 -> 125779291.9 | E20: ='A4-FinPerf RE'!F38 -> 287427000 | F20: ='A4-FinPerf RE'!G38 -> 645136079 | G20: ='A4-FinPerf RE'!H38 -> 645136079 | H20: ='A4-FinPerf RE'!I38 -> 239298479.3 | I20: ='A4-FinPerf RE'!J38 -> 459586000 | J20: ='A4-FinPerf RE'!K38 -> 509997000 | K20: ='A4-FinPerf RE'!L38 -> 533834000
A21: ='A4-FinPerf RE'!A39&" & "&'A4-FinPerf RE'!A40 -> Transfers and subsidies - capital (monetary allocations) (National / Provincial Departmental Agencies, Households, Non-profit Institutions, Private Enterprises, Public Corporatons, Higher Educational Institutions) & Transfers and subsidies - capital (in-kind - all) | B21: ='A4-FinPerf RE'!C39+'A4-FinPerf RE'!C40 -> 0 | C21: ='A4-FinPerf RE'!D39+'A4-FinPerf RE'!D40 -> 152108463 | D21: ='A4-FinPerf RE'!E39+'A4-FinPerf RE'!E40 -> 696797.27 | E21: ='A4-FinPerf RE'!F39+'A4-FinPerf RE'!F40 -> 0 | F21: ='A4-FinPerf RE'!G39+'A4-FinPerf RE'!G40 -> 0 | G21: ='A4-FinPerf RE'!H39+'A4-FinPerf RE'!H40 -> 0 | H21: ='A4-FinPerf RE'!I39+'A4-FinPerf RE'!I40 -> 542806.59 | I21: ='A4-FinPerf RE'!J39+'A4-FinPerf RE'!J40 -> 0 | J21: ='A4-FinPerf RE'!K39+'A4-FinPerf RE'!K40 -> 0 | K21: ='A4-FinPerf RE'!L39+'A4-FinPerf RE'!L40 -> 0
A22: ='A4-FinPerf RE'!A41 -> Surplus/(Deficit) after capital transfers & contributions | B22: =B19+SUM(B20:B21) -> 0 | C22: =C19+SUM(C20:C21) -> 357568615.6 | D22: 311690005.8 | E22: 732986892 | F22: 777984905 | G22: 777984905 | H22: 393431590.7 | I22: 561193026 | J22: 576927339 | K22: 617935701
A23: ='A4-FinPerf RE'!A46 -> Share of surplus/ (deficit) of associate | B23: ='A4-FinPerf RE'!C46 -> 0 | C23: ='A4-FinPerf RE'!D46 -> 0 | D23: ='A4-FinPerf RE'!E46 -> 0 | E23: ='A4-FinPerf RE'!F46 -> 0 | F23: ='A4-FinPerf RE'!G46 -> 0 | G23: ='A4-FinPerf RE'!H46 -> 0 | H23: ='A4-FinPerf RE'!I46 -> 0 | I23: ='A4-FinPerf RE'!J46 -> 0 | J23: ='A4-FinPerf RE'!K46 -> 0 | K23: ='A4-FinPerf RE'!L46 -> 0
A24: ='A4-FinPerf RE'!A47 -> Surplus/(Deficit) for the year | B24: =B22+B23 -> 0 | C24: =C22+C23 -> 357568615.6 | D24: 311690005.8 | E24: 732986892 | F24: 777984905 | G24: 777984905 | H24: 393431590.7 | I24: 561193026 | J24: 576927339 | K24: 617935701
A26: Capital expenditure & funds sources
A27: Capital expenditure | B27: ='A5-Capex'!C63 -> 0 | C27: ='A5-Capex'!D63 -> 348038357.1 | D27: ='A5-Capex'!E63 -> 457492910.4 | E27: ='A5-Capex'!F63 -> 709125000 | F27: ='A5-Capex'!G63 -> 682272778 | G27: ='A5-Capex'!H63 -> 682272778 | H27: ='A5-Capex'!I63 -> 296130459.4 | I27: ='A5-Capex'!J63 -> 459586000 | J27: ='A5-Capex'!K63 -> 509997000 | K27: ='A5-Capex'!L63 -> 533834000
A28: Transfers recognised - capital | B28: ='A5-Capex'!C70 -> 0 | C28: ='A5-Capex'!D70 -> 346343111.8 | D28: ='A5-Capex'!E70 -> 449103607.4 | E28: ='A5-Capex'!F70 -> 690000000 | F28: ='A5-Capex'!G70 -> 662294204 | G28: ='A5-Capex'!H70 -> 662294204 | H28: ='A5-Capex'!I70 -> 289043691 | I28: ='A5-Capex'!J70 -> 459586001 | J28: ='A5-Capex'!K70 -> 509997001 | K28: ='A5-Capex'!L70 -> 533834000
A30: ='A5-Capex'!A72 -> Borrowing | B30: ='A5-Capex'!C72 -> 0 | C30: ='A5-Capex'!D72 -> 0 | D30: ='A5-Capex'!E72 -> 0 | E30: ='A5-Capex'!F72 -> 0 | F30: ='A5-Capex'!G72 -> 0 | G30: ='A5-Capex'!H72 -> 0 | H30: ='A5-Capex'!I72 -> 0 | I30: ='A5-Capex'!J72 -> 0 | J30: ='A5-Capex'!K72 -> 0 | K30: ='A5-Capex'!L72 -> 0
A31: ='A5-Capex'!A73 -> Internally generated funds | B31: ='A5-Capex'!C73 -> 0 | C31: ='A5-Capex'!D73 -> 0 | D31: ='A5-Capex'!E73 -> 8740883.9 | E31: ='A5-Capex'!F73 -> 19125000 | F31: ='A5-Capex'!G73 -> 19978574 | G31: ='A5-Capex'!H73 -> 19978574 | H31: ='A5-Capex'!I73 -> 7086768.38 | I31: ='A5-Capex'!J73 -> 7300000 | J31: ='A5-Capex'!K73 -> 1200000 | K31: ='A5-Capex'!L73 -> 1200000
A32: Total sources of capital funds | B32: =+B28+B30+B31 -> 0 | C32: =+C28+C30+C31 -> 346343111.8 | D32: 457844491.3 | E32: 709125000 | F32: 682272778 | G32: 682272778 | H32: 296130459.4 | I32: 466886001 | J32: 511197001 | K32: 535034000
A34: Financial position
A35: ='A6-FinPos'!A12 -> Total current assets | B35: ='A6-FinPos'!C12 -> 0 | C35: ='A6-FinPos'!D12 -> 188192009.5 | D35: ='A6-FinPos'!E12 -> 242696735.2 | E35: ='A6-FinPos'!F12 -> 158923163 | F35: ='A6-FinPos'!G12 -> 213376435 | G35: ='A6-FinPos'!H12 -> 213376435 | H35: ='A6-FinPos'!I12 -> 340380305.3 | I35: ='A6-FinPos'!J12 -> 488030017.7 | J35: ='A6-FinPos'!K12 -> 616489180.5 | K35: ='A6-FinPos'!L12 -> 775188482.9
A36: ='A6-FinPos'!A24 -> Total non current assets | B36: ='A6-FinPos'!C24 -> 0 | C36: ='A6-FinPos'!D24 -> 3029327088 | D36: ='A6-FinPos'!E24 -> 3417918351 | E36: ='A6-FinPos'!F24 -> 4549495002 | F36: ='A6-FinPos'!G24 -> 4529987406 | G36: ='A6-FinPos'!H24 -> 4529987406 | H36: ='A6-FinPos'!I24 -> 3872843691 | I36: ='A6-FinPos'!J24 -> 3919066264 | J36: ='A6-FinPos'!K24 -> 4127125374 | K36: ='A6-FinPos'!L24 -> 4285472780
A37: ='A6-FinPos'!A34 -> Total current liabilities | B37: ='A6-FinPos'!C34 -> 0 | C37: ='A6-FinPos'!D34 -> 393632032.3 | D37: ='A6-FinPos'!E34 -> 489453946.7 | E37: ='A6-FinPos'!F34 -> 98930167 | F37: ='A6-FinPos'!G34 -> 119803190 | G37: ='A6-FinPos'!H34 -> 119803190 | H37: ='A6-FinPos'!I34 -> 583557469.3 | I37: ='A6-FinPos'!J34 -> 184314762 | J37: ='A6-FinPos'!K34 -> 227480881 | K37: ='A6-FinPos'!L34 -> 304240373
A38: ='A6-FinPos'!A39 -> Total non current liabilities | B38: ='A6-FinPos'!C39 -> 0 | C38: ='A6-FinPos'!D39 -> 44996626.17 | D38: ='A6-FinPos'!E39 -> 53030087.08 | E38: ='A6-FinPos'!F39 -> 32814000 | F38: ='A6-FinPos'!G39 -> 14691881 | G38: ='A6-FinPos'!H39 -> 14691881 | H38: ='A6-FinPos'!I39 -> 53030087.08 | I38: ='A6-FinPos'!J39 -> 51802526 | J38: ='A6-FinPos'!K39 -> 55416440 | K38: ='A6-FinPos'!L39 -> 57910181
A39: Community wealth/Equity | B39: ='A6-FinPos'!C48 -> 0 | C39: ='A6-FinPos'!D48 -> 2753807986 | D39: ='A6-FinPos'!E48 -> 3097342847 | E39: ='A6-FinPos'!F48 -> 4562673998 | F39: ='A6-FinPos'!G48 -> 4408949954 | G39: ='A6-FinPos'!H48 -> 4408949954 | H39: ='A6-FinPos'!I48 -> 3475304504 | I39: ='A6-FinPos'!J48 -> 4446905000 | J39: ='A6-FinPos'!K48 -> 3297783394 | K39: ='A6-FinPos'!L48 -> 4765786127
A41: Cash flows
A42: Net cash from (used) operating | B42: ='A7-CFlow'!C17 -> 356748642 | C42: ='A7-CFlow'!D17 -> 503377846 | D42: ='A7-CFlow'!E17 -> 612109481.5 | E42: ='A7-CFlow'!F17 -> 527622986.6 | F42: ='A7-CFlow'!G17 -> 389245667.5 | G42: ='A7-CFlow'!H17 -> 389245667.5 | H42: ='A7-CFlow'!I17 -> 389245667.5 | I42: ='A7-CFlow'!J17 -> 596016810.4 | J42: ='A7-CFlow'!K17 -> 633511374.8 | K42: ='A7-CFlow'!L17 -> 687310963.4
A43: Net cash from (used) investing | B43: ='A7-CFlow'!C27 -> -337195467 | C43: ='A7-CFlow'!D27 -> -417500750 | D43: ='A7-CFlow'!E27 -> -658445543 | E43: ='A7-CFlow'!F27 -> -606620569 | F43: ='A7-CFlow'!G27 -> -338146869.2 | G43: ='A7-CFlow'!H27 -> -338146869.2 | H43: ='A7-CFlow'!I27 -> -338146869.2 | I43: ='A7-CFlow'!J27 -> -466886000 | J43: ='A7-CFlow'!K27 -> -511197000 | K43: ='A7-CFlow'!L27 -> -535034000
A44: Net cash from (used) financing | B44: ='A7-CFlow'!C36 -> 0 | C44: ='A7-CFlow'!D36 -> -3808715.4 | D44: ='A7-CFlow'!E36 -> -968724 | E44: ='A7-CFlow'!F36 -> 11755179.54 | F44: ='A7-CFlow'!G36 -> 4314761 | G44: ='A7-CFlow'!H36 -> 4314761 | H44: ='A7-CFlow'!I36 -> 4314761 | I44: ='A7-CFlow'!J36 -> -4314762 | J44: ='A7-CFlow'!K36 -> -4508926 | K44: ='A7-CFlow'!L36 -> -4711827
A45: =LEFT('A7-CFlow'!A40,37) -> Cash/cash equivalents at the year end | B45: ='A7-CFlow'!C40 -> 128989275 | C45: ='A7-CFlow'!D40 -> 101019010.6 | D45: ='A7-CFlow'!E40 -> 53714225.12 | E45: ='A7-CFlow'!F40 -> -34507836.86 | F45: ='A7-CFlow'!G40 -> 126441645.3 | G45: ='A7-CFlow'!H40 -> 126441645.3 | H45: ='A7-CFlow'!I40 -> 126441645.3 | I45: ='A7-CFlow'!J40 -> 251257693.7 | J45: ='A7-CFlow'!K40 -> 369063142.5 | K45: ='A7-CFlow'!L40 -> 516628278.9
A47: Cash backing/surplus reconciliation
A48: ='A8-ResRecon'!A4 -> Cash and investments available | B48: ='A8-ResRecon'!C8 -> 0 | C48: ='A8-ResRecon'!D8 -> 103378473.1 | D48: ='A8-ResRecon'!E8 -> 112582517.1 | E48: ='A8-ResRecon'!F8 -> 71864001 | F48: ='A8-ResRecon'!G8 -> 199488462.8 | G48: ='A8-ResRecon'!H8 -> 199488462.8 | H48: ='A8-ResRecon'!I8 -> 414291270.3 | I48: ='A8-ResRecon'!J8 -> 251258693.7 | J48: ='A8-ResRecon'!K8 -> 369064187.5 | K48: ='A8-ResRecon'!L8 -> 516629370.9
A49: ='A8-ResRecon'!A10 -> Application of cash and investments | B49: ='A8-ResRecon'!C18 -> 0 | C49: ='A8-ResRecon'!D18 -> 299630999.1 | D49: ='A8-ResRecon'!E18 -> 337528564.6 | E49: ='A8-ResRecon'!F18 -> 9880955 | F49: ='A8-ResRecon'!G18 -> 198743219 | G49: ='A8-ResRecon'!H18 -> 198743219 | H49: ='A8-ResRecon'!I18 -> 228838345.1 | I49: ='A8-ResRecon'!J18 -> 172376000 | J49: ='A8-ResRecon'!K18 -> 272536220 | K49: ='A8-ResRecon'!L18 -> 356241000
A50: Balance - surplus (shortfall) | B50: =B48-B49 -> 0 | C50: =C48-C49 -> -196252526.1 | D50: -224946047.5 | E50: 61983046 | F50: 745243.81 | G50: 745243.81 | H50: 185452925.2 | I50: 78882693.68 | J50: 96527967.48 | K50: 160388370.9
A52: Asset management
A53: Asset register summary (WDV) | B53: ='A9-Asset'!C165 -> 0 | C53: ='A9-Asset'!D165 -> 1895239756 | D53: ='A9-Asset'!E165 -> 2233021658 | E53: ='A9-Asset'!F165 -> 2037733494 | F53: ='A9-Asset'!G165 -> 2018225898 | G53: ='A9-Asset'!H165 -> 2018225898 | H53: ='A9-Asset'!H165 -> 2018225898 | I53: ='A9-Asset'!I165 -> 2793037864 | J53: ='A9-Asset'!J165 -> 2950425696 | K53: ='A9-Asset'!K165 -> 3055821616
A54: ='A9-Asset'!A168 -> Depreciation | B54: ='A9-Asset'!C168 -> 0 | C54: ='A9-Asset'!D168 -> 94287428.87 | D54: ='A9-Asset'!E168 -> 101039968 | E54: ='A9-Asset'!F168 -> 74127235 | F54: ='A9-Asset'!G168 -> 80430272 | G54: ='A9-Asset'!H168 -> 80430272 | H54: ='A9-Asset'!H168 -> 80430272 | I54: ='A9-Asset'!I168 -> 90340954 | J54: ='A9-Asset'!J168 -> 104150000 | K54: ='A9-Asset'!K168 -> 107382250
A55: Renewal and Upgrading of Existing Assets | B55: ='A9-Asset'!C37+'A9-Asset'!C69 -> 0 | C55: ='A9-Asset'!D37+'A9-Asset'!D69 -> 20028096.85 | D55: ='A9-Asset'!E37+'A9-Asset'!E69 -> 5086255.03 | E55: ='A9-Asset'!F37+'A9-Asset'!F69 -> 274413600 | F55: ='A9-Asset'!G37+'A9-Asset'!G69 -> 280040786 | G55: ='A9-Asset'!H37+'A9-Asset'!H69 -> 280040786 | H55: ='A9-Asset'!H37+'A9-Asset'!H69 -> 280040786 | I55: ='A9-Asset'!I37+'A9-Asset'!I69 -> 220396598 | J55: ='A9-Asset'!J37+'A9-Asset'!J69 -> 170912000 | K55: ='A9-Asset'!K37+'A9-Asset'!K69 -> 158251000
A56: Repairs and Maintenance | B56: ='A9-Asset'!C169 -> 0 | C56: ='A9-Asset'!D169 -> 120470445.9 | D56: ='A9-Asset'!E169 -> 119285459 | E56: ='A9-Asset'!F169 -> 105529316 | F56: ='A9-Asset'!G169 -> 144809088 | G56: ='A9-Asset'!H169 -> 144809088 | H56: ='A9-Asset'!H169 -> 144809088 | I56: ='A9-Asset'!I169 -> 80243694 | J56: ='A9-Asset'!J169 -> 104124035 | K56: ='A9-Asset'!K169 -> 115726348
A58: Free services
A59: Cost of Free Basic Services provided | B59: ='A10-SerDel'!C60 -> 0 | C59: ='A10-SerDel'!D60 -> 0 | D59: ='A10-SerDel'!E60 -> 2300000 | E59: ='A10-SerDel'!F60 -> 0 | F59: ='A10-SerDel'!G60 -> 0 | G59: ='A10-SerDel'!H60 -> 0 | H59: ='A10-SerDel'!I60 -> 2500000 | I59: ='A10-SerDel'!I60 -> 2500000 | J59: ='A10-SerDel'!J60 -> 2700000 | K59: ='A10-SerDel'!K60 -> 2900000
A60: Revenue cost of free services provided | B60: ='A10-SerDel'!C79 -> 0 | C60: ='A10-SerDel'!D79 -> 0 | D60: ='A10-SerDel'!E79 -> 0 | E60: ='A10-SerDel'!F79 -> 0 | F60: ='A10-SerDel'!G79 -> 0 | G60: ='A10-SerDel'!H79 -> 0 | H60: ='A10-SerDel'!I79 -> 0 | I60: ='A10-SerDel'!I79 -> 0 | J60: ='A10-SerDel'!J79 -> 0 | K60: ='A10-SerDel'!K79 -> 0
A61: Households below minimum service level
A62: ='A10-SerDel'!A5 -> Water: | B62: ='A10-SerDel'!C14 -> 0 | C62: ='A10-SerDel'!D14 -> 0 | D62: ='A10-SerDel'!E14 -> 83274 | E62: ='A10-SerDel'!F14 -> 0 | F62: ='A10-SerDel'!G14 -> 0 | G62: ='A10-SerDel'!H14 -> 0 | H62: ='A10-SerDel'!I14 -> 0 | I62: ='A10-SerDel'!I14 -> 0 | J62: ='A10-SerDel'!J14 -> 0 | K62: ='A10-SerDel'!K14 -> 0
A63: ='A10-SerDel'!A16 -> Sanitation/sewerage: | B63: ='A10-SerDel'!C26 -> 0 | C63: ='A10-SerDel'!D26 -> 0 | D63: ='A10-SerDel'!E26 -> 0 | E63: ='A10-SerDel'!F26 -> 0 | F63: ='A10-SerDel'!G26 -> 0 | G63: ='A10-SerDel'!H26 -> 0 | H63: ='A10-SerDel'!I26 -> 0 | I63: ='A10-SerDel'!I26 -> 0 | J63: ='A10-SerDel'!J26 -> 0 | K63: ='A10-SerDel'!K26 -> 0
A64: ='A10-SerDel'!A28 -> Energy: | B64: ='A10-SerDel'!C35 -> 0 | C64: ='A10-SerDel'!D35 -> 0 | D64: ='A10-SerDel'!E35 -> 0 | E64: ='A10-SerDel'!F35 -> 0 | F64: ='A10-SerDel'!G35 -> 0 | G64: ='A10-SerDel'!H35 -> 0 | H64: ='A10-SerDel'!I35 -> 0 | I64: ='A10-SerDel'!I35 -> 0 | J64: ='A10-SerDel'!J35 -> 0 | K64: ='A10-SerDel'!K35 -> 0
A65: ='A10-SerDel'!A37 -> Refuse: | B65: ='A10-SerDel'!C45 -> 0 | C65: ='A10-SerDel'!D45 -> 0 | D65: ='A10-SerDel'!E45 -> 0 | E65: ='A10-SerDel'!F45 -> 0 | F65: ='A10-SerDel'!G45 -> 0 | G65: ='A10-SerDel'!H45 -> 0 | H65: ='A10-SerDel'!I45 -> 0 | I65: ='A10-SerDel'!I45 -> 0 | J65: ='A10-SerDel'!J45 -> 0 | K65: ='A10-SerDel'!K45 -> 0

Sheet A2-FinPerf SC
A1: =muni&" - "&Approve3 -> DC47 Sekhukhune - Table A2 Budgeted Financial Performance (revenue and expenditure by functional classification)
A2: ="Functional Classification "&desc -> Functional Classification Description | B2: =head27 -> Ref | C2: =head1b -> 2016/17 | D2: =head1A -> 2017/18 | E2: =Head1 -> 2018/19 | F2: =Head2 -> Current Year 2019/20 | I2: =Head3 -> 2020/21 Medium Term Revenue & Expenditure Framework
A3: R thousand | B3: 1 | C3: =Head5 -> Audited Outcome | D3: =Head5 -> Audited Outcome | E3: =Head5 -> Audited Outcome | F3: =Head6 -> Original Budget | G3: =Head7 -> Adjusted Budget | H3: =Head8 -> Full Year Forecast | I3: =Head9 -> Budget Year 2020/21 | J3: =Head10 -> Budget Year +1 2021/22 | K3: =Head11 -> Budget Year +2 2022/23
A4: Revenue - Functional
A5: Governance and administration | C5: =SUM(C6:C8) -> 0 | D5: =SUM(D6:D8) -> 1353093094 | E5: 1446205266 | F5: 1672039831 | G5: 1765133202 | H5: 1765133202 | I5: 1499821823 | J5: 1627057552 | K5: 1725793129
A6: Executive and council | C6: =A2A!C6 -> 0 | D6: =A2A!D6 -> -3122.61 | E6: =A2A!E6 -> -1810 | F6: =A2A!F6 -> -12876 | G6: =A2A!G6 -> 0 | H6: =A2A!H6 -> 0 | I6: =A2A!I6 -> 0 | J6: =A2A!J6 -> 0 | K6: =A2A!K6 -> 0
A7: Finance and administration | C7: =A2A!C9 -> 0 | D7: =A2A!D9 -> 1353096216 | E7: =A2A!E9 -> 1446207076 | F7: =A2A!F9 -> 1672052707 | G7: =A2A!G9 -> 1765133202 | H7: =A2A!H9 -> 1765133202 | I7: =A2A!I9 -> 1499821823 | J7: =A2A!J9 -> 1627057552 | K7: =A2A!K9 -> 1725793129
A8: Internal audit | C8: =A2A!C23 -> 0 | D8: =A2A!D23 -> 0 | E8: =A2A!E23 -> 0 | F8: =A2A!F23 -> 0 | G8: =A2A!G23 -> 0 | H8: =A2A!H23 -> 0 | I8: =A2A!I23 -> 0 | J8: =A2A!J23 -> 0 | K8: =A2A!K23 -> 0
A9: Community and public safety | C9: =SUM(C10:C14) -> 0 | D9: =SUM(D10:D14) -> 0 | E9: 0 | F9: 0 | G9: 0 | H9: 0 | I9: 0 | J9: 0 | K9: 0
A10: Community and social services | C10: =A2A!C26 -> 0 | D10: =A2A!D26 -> 0 | E10: =A2A!E26 -> 0 | F10: =A2A!F26 -> 0 | G10: =A2A!G26 -> 0 | H10: =A2A!H26 -> 0 | I10: =A2A!I26 -> 0 | J10: =A2A!J26 -> 0 | K10: =A2A!K26 -> 0
A11: Sport and recreation | C11: =A2A!C48 -> 0 | D11: =A2A!D48 -> 0 | E11: =A2A!E48 -> 0 | F11: =A2A!F48 -> 0 | G11: =A2A!G48 -> 0 | H11: =A2A!H48 -> 0 | I11: =A2A!I48 -> 0 | J11: =A2A!J48 -> 0 | K11: =A2A!K48 -> 0
A12: Public safety | C12: =A2A!C54 -> 0 | D12: =A2A!D54 -> 0 | E12: =A2A!E54 -> 0 | F12: =A2A!F54 -> 0 | G12: =A2A!G54 -> 0 | H12: =A2A!H54 -> 0 | I12: =A2A!I54 -> 0 | J12: =A2A!J54 -> 0 | K12: =A2A!K54 -> 0
A13: Housing | C13: =A2A!C63 -> 0 | D13: =A2A!D63 -> 0 | E13: =A2A!E63 -> 0 | F13: =A2A!F63 -> 0 | G13: =A2A!G63 -> 0 | H13: =A2A!H63 -> 0 | I13: =A2A!I63 -> 0 | J13: =A2A!J63 -> 0 | K13: =A2A!K63 -> 0
A14: Health | C14: =A2A!C66 -> 0 | D14: =A2A!D66 -> 0 | E14: =A2A!E66 -> 0 | F14: =A2A!F66 -> 0 | G14: =A2A!G66 -> 0 | H14: =A2A!H66 -> 0 | I14: =A2A!I66 -> 0 | J14: =A2A!J66 -> 0 | K14: =A2A!K66 -> 0
A15: Economic and environmental services | C15: =SUM(C16:C18) -> 0 | D15: =SUM(D16:D18) -> 0 | E15: 0 | F15: 0 | G15: 0 | H15: 0 | I15: 0 | J15: 0 | K15: 0
A16: Planning and development | C16: =A2A!C75 -> 0 | D16: =A2A!D75 -> 0 | E16: =A2A!E75 -> 0 | F16: =A2A!F75 -> 0 | G16: =A2A!G75 -> 0 | H16: =A2A!H75 -> 0 | I16: =A2A!I75 -> 0 | J16: =A2A!J75 -> 0 | K16: =A2A!K75 -> 0
A17: Road transport | C17: =A2A!C86 -> 0 | D17: =A2A!D86 -> 0 | E17: =A2A!E86 -> 0 | F17: =A2A!F86 -> 0 | G17: =A2A!G86 -> 0 | H17: =A2A!H86 -> 0 | I17: =A2A!I86 -> 0 | J17: =A2A!J86 -> 0 | K17: =A2A!K86 -> 0
A18: Environmental protection | C18: =A2A!C91 -> 0 | D18: =A2A!D91 -> 0 | E18: =A2A!E91 -> 0 | F18: =A2A!F91 -> 0 | G18: =A2A!G91 -> 0 | H18: =A2A!H91 -> 0 | I18: =A2A!I91 -> 0 | J18: =A2A!J91 -> 0 | K18: =A2A!K91 -> 0
A19: Trading services | C19: =SUM(C20:C23) -> 0 | D19: =SUM(D20:D23) -> 201879.29 | E19: -2992.75 | F19: 0 | G19: 0 | H19: 0 | I19: 0 | J19: =SUM(J20:J23) -> 0 | K19: 0
A20: Energy sources | C20: =A2A!C99 -> 0 | D20: =A2A!D99 -> 0 | E20: =A2A!E99 -> 0 | F20: =A2A!F99 -> 0 | G20: =A2A!G99 -> 0 | H20: =A2A!H99 -> 0 | I20: =A2A!I99 -> 0 | J20: =A2A!J99 -> 0 | K20: =A2A!K99 -> 0
A21: Water management | C21: =A2A!C103 -> 0 | D21: =A2A!D103 -> -3124.16 | E21: =A2A!E103 -> -2992.75 | F21: =A2A!F103 -> 0 | G21: =A2A!G103 -> 0 | H21: =A2A!H103 -> 0 | I21: =A2A!I103 -> 0 | J21: =A2A!J103 -> 0 | K21: =A2A!K103 -> 0
A22: Waste water management | C22: =A2A!C107 -> 0 | D22: =A2A!D107 -> 205003.45 | E22: =A2A!E107 -> 0 | F22: =A2A!F107 -> 0 | G22: =A2A!G107 -> 0 | H22: =A2A!H107 -> 0 | I22: =A2A!I107 -> 0 | J22: =A2A!J107 -> 0 | K22: =A2A!K107 -> 0
A23: Waste management | C23: =A2A!C112 -> 0 | D23: =A2A!D112 -> 0 | E23: =A2A!E112 -> 0 | F23: =A2A!F112 -> 0 | G23: =A2A!G112 -> 0 | H23: =A2A!H112 -> 0 | I23: =A2A!I112 -> 0 | J23: =A2A!J112 -> 0 | K23: =A2A!K112 -> 0
A24: Other | B24: 4 | C24: =A2A!C117 -> 0 | D24: =A2A!D117 -> 0 | E24: =A2A!E117 -> 0 | F24: =A2A!F117 -> 0 | G24: =A2A!G117 -> 0 | H24: =A2A!H117 -> 0 | I24: =A2A!I117 -> 0 | J24: =A2A!J117 -> 0 | K24: =A2A!K117 -> 0
A25: ="Total "&A4 -> Total Revenue - Functional | B25: 2 | C25: =C5+C9+C15+C19+C24 -> 0 | D25: =D5+D9+D15+D19+D24 -> 1353294973 | E25: =E5+E9+E15+E19+E24 -> 1446202273 | F25: 1672039831 | G25: 1765133202 | H25: 1765133202 | I25: =I5+I9+I15+I19+I24 -> 1499821823 | J25: 1627057552 | K25: 1725793129
A27: Expenditure - Functional
A28: Governance and administration | C28: =SUM(C29:C31) -> 0 | D28: =SUM(D29:D31) -> 455347417.9 | E28: 510187364 | F28: 453099656 | G28: 481796694 | H28: 481796694 | I28: 473400459 | J28: 535591195 | K28: 557443022
A29: Executive and council | C29: =A2A!C128 -> 0 | D29: =A2A!D128 -> 121336307 | E29: =A2A!E128 -> 151008963.9 | F29: =A2A!F128 -> 136509940 | G29: =A2A!G128 -> 136558266 | H29: =A2A!H128 -> 136558266 | I29: =A2A!I128 -> 135483888 | J29: =A2A!J128 -> 170373067 | K29: =A2A!K128 -> 182662771
A30: Finance and administration | C30: =A2A!C131 -> 0 | D30: =A2A!D131 -> 334011111 | E30: =A2A!E131 -> 359178400 | F30: =A2A!F131 -> 316589716 | G30: =A2A!G131 -> 345238428 | H30: =A2A!H131 -> 345238428 | I30: =A2A!I131 -> 337916571 | J30: =A2A!J131 -> 365218128 | K30: =A2A!K131 -> 374780251
A31: Internal audit | C31: =A2A!C145 -> 0 | D31: =A2A!D145 -> 0 | E31: =A2A!E145 -> 0 | F31: =A2A!F145 -> 0 | G31: =A2A!G145 -> 0 | H31: =A2A!H145 -> 0 | I31: =A2A!I145 -> 0 | J31: =A2A!J145 -> 0 | K31: =A2A!K145 -> 0
A32: Community and public safety | C32: =SUM(C33:C37) -> 0 | D32: =SUM(D33:D37) -> 0 | E32: 0 | F32: 0 | G32: 0 | H32: 0 | I32: 0 | J32: 0 | K32: 0
A33: Community and social services | C33: =A2A!C148 -> 0 | D33: =A2A!D148 -> 0 | E33: =A2A!E148 -> 0 | F33: =A2A!F148 -> 0 | G33: =A2A!G148 -> 0 | H33: =A2A!H148 -> 0 | I33: =A2A!I148 -> 0 | J33: =A2A!J148 -> 0 | K33: =A2A!K148 -> 0
A34: Sport and recreation | C34: =A2A!C170 -> 0 | D34: =A2A!D170 -> 0 | E34: =A2A!E170 -> 0 | F34: =A2A!F170 -> 0 | G34: =A2A!G170 -> 0 | H34: =A2A!H170 -> 0 | I34: =A2A!I170 -> 0 | J34: =A2A!J170 -> 0 | K34: =A2A!K170 -> 0
A35: Public safety | C35: =A2A!C176 -> 0 | D35: =A2A!D176 -> 0 | E35: =A2A!E176 -> 0 | F35: =A2A!F176 -> 0 | G35: =A2A!G176 -> 0 | H35: =A2A!H176 -> 0 | I35: =A2A!I176 -> 0 | J35: =A2A!J176 -> 0 | K35: =A2A!K176 -> 0
A36: Housing | C36: =A2A!C185 -> 0 | D36: =A2A!D185 -> 0 | E36: =A2A!E185 -> 0 | F36: =A2A!F185 -> 0 | G36: =A2A!G185 -> 0 | H36: =A2A!H185 -> 0 | I36: =A2A!I185 -> 0 | J36: =A2A!J185 -> 0 | K36: =A2A!K185 -> 0
A37: Health | C37: =A2A!C188 -> 0 | D37: =A2A!D188 -> 0 | E37: =A2A!E188 -> 0 | F37: =A2A!F188 -> 0 | G37: =A2A!G188 -> 0 | H37: =A2A!H188 -> 0 | I37: =A2A!I188 -> 0 | J37: =A2A!J188 -> 0 | K37: =A2A!K188 -> 0
A38: Economic and environmental services | C38: =SUM(C39:C41) -> 0 | D38: =SUM(D39:D41) -> 13364081.28 | E38: 14281721.09 | F38: 14897753 | G38: 14597753 | H38: 14597753 | I38: 14690010 | J38: 24698055 | K38: 24736606
A39: Planning and development | C39: =A2A!C197 -> 0 | D39: =A2A!D197 -> 13364081.28 | E39: =A2A!E197 -> 14281721.09 | F39: =A2A!F197 -> 14897753 | G39: =A2A!G197 -> 14597753 | H39: =A2A!H197 -> 14597753 | I39: =A2A!I197 -> 14690010 | J39: =A2A!J197 -> 24698055 | K39: =A2A!K197 -> 24736606
A40: Road transport | C40: =A2A!C208 -> 0 | D40: =A2A!D208 -> 0 | E40: =A2A!E208 -> 0 | F40: =A2A!F208 -> 0 | G40: =A2A!G208 -> 0 | H40: =A2A!H208 -> 0 | I40: =A2A!I208 -> 0 | J40: =A2A!J208 -> 0 | K40: =A2A!K208 -> 0
A41: Environmental protection | C41: =A2A!C213 -> 0 | D41: =A2A!D213 -> 0 | E41: =A2A!E213 -> 0 | F41: =A2A!F213 -> 0 | G41: =A2A!G213 -> 0 | H41: =A2A!H213 -> 0 | I41: =A2A!I213 -> 0 | J41: =A2A!J213 -> 0 | K41: =A2A!K213 -> 0
A42: Trading services | C42: =SUM(C43:C46) -> 0 | D42: =SUM(D43:D46) -> 501932405.9 | E42: 589296380.2 | F42: =SUM(F43:F46) -> 457055530 | G42: 490753850 | H42: 490753850 | I42: 450538328 | J42: 489840963 | K42: =SUM(K43:K46) -> 577877800
A43: Energy sources | C43: =A2A!C221 -> 0 | D43: =A2A!D221 -> 0 | E43: =A2A!E221 -> 0 | F43: =A2A!F221 -> 0 | G43: =A2A!G221 -> 0 | H43: =A2A!H221 -> 0 | I43: =A2A!I221 -> 0 | J43: =A2A!J221 -> 0 | K43: =A2A!K221 -> 0
A44: Water management | C44: =A2A!C225 -> 0 | D44: =A2A!D225 -> 492957761.6 | E44: =A2A!E225 -> 577510375.8 | F44: =A2A!F225 -> 457055530 | G44: =A2A!G225 -> 490753850 | H44: =A2A!H225 -> 490753850 | I44: =A2A!I225 -> 402538328 | J44: =A2A!J225 -> 431840963 | K44: =A2A!K225 -> 519877800
A45: Waste water management | C45: =A2A!C229 -> 0 | D45: =A2A!D229 -> 8974644.31 | E45: =A2A!E229 -> 11786004.41 | F45: =A2A!F229 -> 0 | G45: =A2A!G229 -> 0 | H45: =A2A!H229 -> 0 | I45: =A2A!I229 -> 48000000 | J45: =A2A!J229 -> 58000000 | K45: =A2A!K229 -> 58000000
A46: Waste management | C46: =A2A!C234 -> 0 | D46: =A2A!D234 -> 0 | E46: =A2A!E234 -> 0 | F46: =A2A!F234 -> 0 | G46: =A2A!G234 -> 0 | H46: =A2A!H234 -> 0 | I46: =A2A!I234 -> 0 | J46: =A2A!J234 -> 0 | K46: =A2A!K234 -> 0
A47: Other | B47: 4 | C47: =A2A!C239 -> 0 | D47: =A2A!D239 -> 0 | E47: =A2A!E239 -> 0 | F47: =A2A!F239 -> 0 | G47: =A2A!G239 -> 0 | H47: =A2A!H239 -> 0 | I47: =A2A!I239 -> 0 | J47: =A2A!J239 -> 0 | K47: =A2A!K239 -> 0
A48: ="Total "&A27 -> Total Expenditure - Functional | B48: 3 | C48: =C28+C32+C38+C42+C47 -> 0 | D48: =D28+D32+D38+D42+D47 -> 970643905.1 | E48: =E28+E32+E38+E42+E47 -> 1113765465 | F48: =F28+F32+F38+F42+F47 -> 925052939 | G48: 987148297 | H48: 987148297 | I48: 938628797 | J48: 1050130213 | K48: 1160057428
A49: =result -> Surplus/(Deficit) for the year | C49: =C25-C48 -> 0 | D49: =D25-D48 -> 382651067.9 | E49: 332436807.8 | F49: 746986892 | G49: 777984905 | H49: 777984905 | I49: 561193026 | J49: 576927339 | K49: 565735701
A50: =head27a -> References
A51: 1. Government Finance Statistics Functions and Sub-functions are standardised to assist the compilation of national and international accounts for comparison purposes
A52: 2. Total Revenue by functional classification must reconcile to Total Operating Revenue shown in Budgeted Financial Performance (revenue and expenditure)
A53: 3. Total Expenditure by Functional Classification must reconcile to Total Operating Expenditure shown in Budgeted Financial Performance (revenue and expenditure)
A54: 4. All amounts must be classified under a functional classification . The GFS function 'Other' is only for Abbatoirs, Air Transport, Forestry, Licensing and Regulation, Markets and Tourism - and if used must be supported by footnotes. Nothing else may be placed under 'Other'. Assign associate share to relevant classification.
A57: check oprev balance | C57: =C25-'A4-FinPerf RE'!C59 -> 0 | D57: =D25-'A4-FinPerf RE'!D59 -> -12887.72 | E57: =E25-'A4-FinPerf RE'!E59 -> 2281918 | F57: =F25-'A4-FinPerf RE'!F59 -> 0 | G57: =G25-'A4-FinPerf RE'!G59 -> 0 | H57: =H25-'A4-FinPerf RE'!H59 -> 0 | I57: =I25-'A4-FinPerf RE'!J59 -> 0 | J57: =J25-'A4-FinPerf RE'!K59 -> 0 | K57: =K25-'A4-FinPerf RE'!L59 -> 0
A58: check opexp balance | C58: =C48-'A4-FinPerf RE'!C35 -> 0 | D58: =D48-'A4-FinPerf RE'!D35 -> -25095340 | E58: =E48-'A4-FinPerf RE'!E35 -> -18464883.91 | F58: =F48-'A4-FinPerf RE'!F35 -> -14000000 | G58: =G48-'A4-FinPerf RE'!G35 -> 0 | H58: =H48-'A4-FinPerf RE'!H35 -> 0 | I58: =I48-'A4-FinPerf RE'!J35 -> 0 | J58: =J48-'A4-FinPerf RE'!K35 -> 0 | K58: =K48-'A4-FinPerf RE'!L35 -> 52200000

Sheet A2A
A1: =muni&" - "&Approve3 -> DC47 Sekhukhune - Table A2 Budgeted Financial Performance (revenue and expenditure by functional classification)
A2: ="Functional Classification "&desc -> Functional Classification Description | B2: =head27 -> Ref | C2: =head1b -> 2016/17 | D2: =head1A -> 2017/18 | E2: =Head1 -> 2018/19 | F2: =Head2 -> Current Year 2019/20 | I2: =Head3 -> 2020/21 Medium Term Revenue & Expenditure Framework
A3: R thousand | B3: 1 | C3: =Head5 -> Audited Outcome | D3: =Head5 -> Audited Outcome | E3: =Head5 -> Audited Outcome | F3: =Head6 -> Original Budget | G3: =Head7 -> Adjusted Budget | H3: =Head8 -> Full Year Forecast | I3: =Head9 -> Budget Year 2020/21 | J3: =Head10 -> Budget Year +1 2021/22 | K3: =Head11 -> Budget Year +2 2022/23
A4: Revenue - Functional
A5: Municipal governance and administration | C5: =C6+C9+C23 -> 0 | D5: 1353093094 | E5: 1446205266 | F5: 1672039831 | G5: 1765133202 | H5: 1765133202 | I5: 1499821823 | J5: 1627057552 | K5: 1725793129
A6: Executive and council | C6: =SUM(C7:C8) -> 0 | D6: =SUM(D7:D8) -> -3122.61 | E6: -1810 | F6: -12876 | G6: 0 | H6: 0 | I6: 0 | J6: 0 | K6: 0
A7: Mayor and Council | C7: 0 | D7: 0 | E7: 0 | F7: 0 | G7: 0 | H7: 0 | I7: 0 | J7: 0 | K7: 0
A8: Municipal Manager, Town Secretary and Chief Executive | C8: 0 | D8: -3122.61 | E8: -1810 | F8: -12876 | G8: 0 | H8: 0 | I8: 0 | J8: 0 | K8: 0
A9: Finance and administration | C9: =SUM(C10:C22) -> 0 | D9: 1353096216 | E9: 1446207076 | F9: 1672052707 | G9: 1765133202 | H9: 1765133202 | I9: 1499821823 | J9: 1627057552 | K9: 1725793129
A10: Administrative and Corporate Support | C10: 0 | D10: 0 | E10: -16272 | F10: 0 | G10: 0 | H10: 0 | I10: 0 | J10: 0 | K10: 0
A11: Asset Management
A12: Finance | C12: 0 | D12: 1353096216 | E12: 1446223348 | F12: 1672052707 | G12: 1765133202 | H12: 1765133202 | I12: =1637321823-135000000-2500000 -> 1499821823 | J12: =1779232552-149475000-2700000 -> 1627057552 | K12: =1856688129-127995000-2900000 -> 1725793129
A13: Fleet Management
A14: Human Resources
A15: Information Technology
A16: Legal Services
A17: Marketing, Customer Relations, Publicity and Media Co-ordination
A18: Property Services
A19: Risk Management
A20: Security Services
A21: Supply Chain Management
A22: Valuation Service
A23: Internal audit | C23: =SUM(C24:C24) -> 0 | D23: 0 | E23: 0 | F23: 0 | G23: 0 | H23: 0 | I23: 0 | J23: 0 | K23: 0
A24: Governance Function
A25: Community and public safety | C25: =C26+C48+C54+C63+C66 -> 0 | D25: 0 | E25: 0 | F25: 0 | G25: 0 | H25: 0 | I25: 0 | J25: 0 | K25: 0
A26: Community and social services | C26: =SUM(C27:C47) -> 0 | D26: =SUM(D27:D47) -> 0 | E26: 0 | F26: 0 | G26: 0 | H26: 0 | I26: 0 | J26: 0 | K26: 0
A27: Aged Care
A28: Agricultural
A29: Animal Care and Diseases
A30: Cemeteries, Funeral Parlours and Crematoriums
A31: Child Care Facilities
A32: Community Halls and Facilities
A33: Consumer Protection
A34: Cultural Matters
A35: Disaster Management
A36: Education
A37: Indigenous and Customary Law
A38: Industrial Promotion
A39: Language Policy
A40: Libraries and Archives
A41: Literacy Programmes
A42: Media Services
A43: Museums and Art Galleries
A44: Population Development
A45: Provincial Cultural Matters
A46: Theatres
A47: Zoo's
A48: Sport and recreation | C48: =SUM(C49:C53) -> 0 | D48: =SUM(D49:D53) -> 0 | E48: 0 | F48: 0 | G48: 0 | H48: 0 | I48: 0 | J48: 0 | K48: 0
A49: Beaches and Jetties
A50: Casinos, Racing, Gambling, Wagering
A51: Community Parks (including Nurseries)
A52: Recreational Facilities
A53: Sports Grounds and Stadiums
A54: Public safety | C54: =SUM(C55:C62) -> 0 | D54: 0 | E54: 0 | F54: 0 | G54: 0 | H54: 0 | I54: 0 | J54: 0 | K54: 0
A55: Civil Defence
A56: Cleansing
A57: Control of Public Nuisances
A58: Fencing and Fences
A59: Fire Fighting and Protection
A60: Licensing and Control of Animals
A61: Police Forces, Traffic and Street Parking Control
A62: Pounds
A63: Housing | C63: =SUM(C64:C65) -> 0 | D63: =SUM(D64:D65) -> 0 | E63: 0 | F63: 0 | G63: 0 | H63: 0 | I63: 0 | J63: 0 | K63: 0
A64: Housing
A65: Informal Settlements
A66: Health | C66: =SUM(C67:C73) -> 0 | D66: =SUM(D67:D73) -> 0 | E66: 0 | F66: 0 | G66: 0 | H66: 0 | I66: 0 | J66: 0 | K66: 0
A67: Ambulance
A68: Health Services
A69: Laboratory Services
A70: Food Control
A71: Health Surveillance and Prevention of Communicable Diseases including immunizations
A72: Vector Control
A73: Chemical Safety
A74: Economic and environmental services | C74: =C75+C86+C91 -> 0 | D74: 0 | E74: 0 | F74: 0 | G74: 0 | H74: 0 | I74: 0 | J74: 0 | K74: 0
A75: Planning and development | C75: =SUM(C76:C85) -> 0 | D75: =SUM(D76:D85) -> 0 | E75: 0 | F75: 0 | G75: 0 | H75: 0 | I75: 0 | J75: 0 | K75: 0
A76: Billboards
A77: Corporate Wide Strategic Planning (IDPs, LEDs)
A78: Central City Improvement District
A79: Development Facilitation
A80: Economic Development/Planning | C80: 0 | D80: 0 | E80: 0 | F80: 0 | G80: 0 | H80: 0 | I80: 0 | J80: 0 | K80: 0
A81: Regional Planning and Development
A82: Town Planning, Building Regulations and Enforcement, and City Engineer
A83: Project Management Unit
A84: Provincial Planning
A85: Support to Local Municipalities | C85: 0 | D85: 0 | E85: 0 | F85: 0 | G85: 0 | H85: 0 | I85: 0 | J85: 0 | K85: 0
A86: Road transport | C86: =SUM(C87:C90) -> 0 | D86: 0 | E86: 0 | F86: 0 | G86: 0 | H86: 0 | I86: 0 | J86: 0 | K86: 0
A87: Public Transport
A88: Road and Traffic Regulation
A89: Roads
A90: Taxi Ranks
A91: Environmental protection | C91: =SUM(C92:C97) -> 0 | D91: =SUM(D92:D97) -> 0 | E91: 0 | F91: 0 | G91: 0 | H91: 0 | I91: 0 | J91: 0 | K91: 0
A92: Biodiversity and Landscape
A93: Coastal Protection
A94: Indigenous Forests
A95: Nature Conservation
A96: Pollution Control
A97: Soil Conservation
A98: Trading services | C98: =C99+C103+C107+C112 -> 0 | D98: =D99+D103+D107+D112 -> 201879.29 | E98: -2992.75 | F98: 0 | G98: 0 | H98: 0 | I98: 0 | J98: 0 | K98: =K99+K103+K107+K112 -> 0
A99: Energy sources | C99: =SUM(C100:C102) -> 0 | D99: =SUM(D100:D102) -> 0 | E99: 0 | F99: 0 | G99: 0 | H99: 0 | I99: 0 | J99: 0 | K99: 0
A100: Electricity
A101: Street Lighting and Signal Systems
A102: Nonelectric Energy
A103: Water management | C103: =SUM(C104:C106) -> 0 | D103: =SUM(D104:D106) -> -3124.16 | E103: -2992.75 | F103: 0 | G103: 0 | H103: 0 | I103: 0 | J103: 0 | K103: 0
A104: Water Treatment
A105: Water Distribution | C105: 0 | D105: -3124.16 | E105: -2992.75 | F105: 0 | G105: 0 | H105: 0 | I105: 0 | J105: 0 | K105: 0
A106: Water Storage
A107: Waste water management | C107: =SUM(C108:C111) -> 0 | D107: =SUM(D108:D111) -> 205003.45 | E107: 0 | F107: 0 | G107: 0 | H107: 0 | I107: 0 | J107: 0 | K107: 0
A108: Public Toilets
A109: Sewerage
A110: Storm Water Management
A111: Waste Water Treatment | C111: 0 | D111: 205003.45 | E111: 0 | F111: 0 | G111: 0 | H111: 0 | I111: 0 | J111: 0 | K111: 0
A112: Waste management | C112: =SUM(C113:C116) -> 0 | D112: =SUM(D113:D116) -> 0 | E112: 0 | F112: 0 | G112: 0 | H112: 0 | I112: 0 | J112: 0 | K112: 0
A113: Recycling
A114: Solid Waste Disposal (Landfill Sites)
A115: Solid Waste Removal
A116: Street Cleaning
A117: Other | C117: =SUM(C118:C123) -> 0 | D117: =SUM(D118:D123) -> 0 | E117: 0 | F117: 0 | G117: 0 | H117: 0 | I117: 0 | J117: 0 | K117: 0
A118: Abattoirs
A119: Air Transport
A120: Forestry
A121: Licensing and Regulation
A122: Markets
A123: Tourism
A124: ="Total "&A4 -> Total Revenue - Functional | B124: 2 | C124: =C5+C25+C74+C98+C117 -> 0 | D124: 1353294973 | E124: 1446202273 | F124: 1672039831 | G124: 1765133202 | H124: 1765133202 | I124: 1499821823 | J124: 1627057552 | K124: 1725793129
A126: Expenditure - Functional
A127: =A5 -> Municipal governance and administration | C127: =C128+C131+C145 -> 0 | D127: 455347417.9 | E127: 510187364 | F127: 453099656 | G127: 481796694 | H127: 481796694 | I127: 473400459 | J127: 535591195 | K127: 557443022
A128: Executive and council | C128: =SUM(C129:C130) -> 0 | D128: 121336307 | E128: 151008963.9 | F128: 136509940 | G128: 136558266 | H128: 136558266 | I128: 135483888 | J128: 170373067 | K128: 182662771
A129: Mayor and Council | C129: 0 | D129: 68670553.05 | E129: 68485195.69 | F129: 68503246 | G129: 70678696 | H129: 70678696 | I129: 70737697 | J129: 80803166 | K129: 88775139
A130: Municipal Manager, Town Secretary and Chief Executive | C130: 0 | D130: 52665753.91 | E130: 82523768.26 | F130: 68006694 | G130: 65879570 | H130: 65879570 | I130: 64746191 | J130: 89569901 | K130: 93887632
A131: Finance and administration | C131: =SUM(C132:C144) -> 0 | D131: 334011111 | E131: 359178400 | F131: 316589716 | G131: 345238428 | H131: 345238428 | I131: 337916571 | J131: 365218128 | K131: 374780251
A132: Administrative and Corporate Support | C132: 0 | D132: 176221003.7 | E132: 179674761.6 | F132: 187489657 | G132: 181325881 | H132: 181325881 | I132: 164294244 | J132: 176163637 | K132: 181068582
A133: Asset Management
A134: Finance | C134: 0 | D134: 157790107.3 | E134: 179503638.4 | F134: 129100059 | G134: 163912547 | H134: 163912547 | I134: 173622327 | J134: 189054491 | K134: 193711669
A135: Fleet Management
A136: Human Resources
A137: Information Technology
A138: Legal Services
A139: Marketing, Customer Relations, Publicity and Media Co-ordination
A140: Property Services
A141: Risk Management
A142: Security Services
A143: Supply Chain Management
A144: Valuation Service
A145: Internal audit | C145: =SUM(C146:C146) -> 0 | D145: 0 | E145: 0 | F145: 0 | G145: 0 | H145: 0 | I145: 0 | J145: 0 | K145: 0
A146: Governance Function
A147: Community and public safety | C147: =C148+C170+C176+C185+C188 -> 0 | D147: 0 | E147: 0 | F147: 0 | G147: 0 | H147: 0 | I147: 0 | J147: 0 | K147: 0
A148: Community and social services | C148: =SUM(C149:C169) -> 0 | D148: =SUM(D149:D169) -> 0 | E148: 0 | F148: 0 | G148: 0 | H148: 0 | I148: 0 | J148: 0 | K148: 0
A149: Aged Care
A150: Agricultural
A151: Animal Care and Diseases
A152: Cemeteries, Funeral Parlours and Crematoriums
A153: Child Care Facilities
A154: Community Halls and Facilities
A155: Consumer Protection
A156: Cultural Matters
A157: Disaster Management
A158: Education
A159: =A37 -> Indigenous and Customary Law
A160: Industrial Promotion
A161: Language Policy
A162: Libraries and Archives
A163: Literacy Programmes
A164: Media Services
A165: Museums and Art Galleries
A166: Population Development
A167: Provincial Cultural Matters
A168: Theatres
A169: Zoo's
A170: Sport and recreation | C170: =SUM(C171:C175) -> 0 | D170: 0 | E170: 0 | F170: 0 | G170: 0 | H170: 0 | I170: 0 | J170: 0 | K170: 0
A171: Beaches and Jetties
A172: Casinos, Racing, Gambling, Wagering
A173: Community Parks (including Nurseries)
A174: Recreational Facilities
A175: Sports Grounds and Stadiums
A176: Public safety | C176: =SUM(C177:C184) -> 0 | D176: 0 | E176: 0 | F176: 0 | G176: 0 | H176: 0 | I176: 0 | J176: 0 | K176: 0
A177: Civil Defence
A178: Cleansing
A179: =A57 -> Control of Public Nuisances
A180: Fencing and Fences
A181: Fire Fighting and Protection
A182: Licensing and Control of Animals
A183: Police Forces, Traffic and Street Parking Control
A184: Pounds
A185: =A63 -> Housing | C185: =SUM(C186:C187) -> 0 | D185: 0 | E185: 0 | F185: 0 | G185: 0 | H185: 0 | I185: 0 | J185: 0 | K185: 0
A186: Housing
A187: Informal Settlements
A188: Health | C188: =SUM(C189:C195) -> 0 | D188: =SUM(D189:D195) -> 0 | E188: 0 | F188: 0 | G188: 0 | H188: 0 | I188: 0 | J188: 0 | K188: 0
A189: Ambulance
A190: Health Services
A191: Laboratory Services
A192: Food Control
A193: Health Surveillance and Prevention of Communicable Diseases including immunizations
A194: Vector Control
A195: Chemical Safety
A196: Economic and environmental services | C196: =C197+C208+C213 -> 0 | D196: 13364081.28 | E196: 14281721.09 | F196: 14897753 | G196: 14597753 | H196: 14597753 | I196: 14690010 | J196: 24698055 | K196: 24736606
A197: Planning and development | C197: =SUM(C198:C207) -> 0 | D197: =SUM(D198:D207) -> 13364081.28 | E197: 14281721.09 | F197: 14897753 | G197: 14597753 | H197: 14597753 | I197: 14690010 | J197: 24698055 | K197: 24736606
A198: Billboards
A199: Corporate Wide Strategic Planning (IDPs, LEDs)
A200: Central City Improvement District
A201: Development Facilitation
... 53 more rows

Sheet A3-FinPerf V
A1: =muni&" - "&Approve2 -> DC47 Sekhukhune - Table A3 Budgeted Financial Performance (revenue and expenditure by municipal vote)
A2: =Vdesc -> Vote Description | B2: =head27 -> Ref | C2: =head1b -> 2016/17 | D2: =head1A -> 2017/18 | E2: =Head1 -> 2018/19 | F2: =Head2 -> Current Year 2019/20 | I2: =Head3 -> 2020/21 Medium Term Revenue & Expenditure Framework | L2: =Head4 -> LTFS
A3: R thousand | C3: =Head5 -> Audited Outcome | D3: =Head5 -> Audited Outcome | E3: =Head5 -> Audited Outcome | F3: =Head6 -> Original Budget | G3: =Head7 -> Adjusted Budget | H3: =Head8 -> Full Year Forecast | I3: =Head9 -> Budget Year 2020/21 | J3: =Head10 -> Budget Year +1 2021/22 | K3: =Head11 -> Budget Year +2 2022/23 | L3: =Head12 -> Forecast 2023/24 | M3: =Head13 -> Forecast 2024/25 | N3: =Head14 -> Forecast 2025/26 | O3: =Head15 -> Forecast 2026/27 | P3: =Head16 -> Forecast 2027/28 | Q3: =Head17 -> Forecast 2028/29 | R3: =Head18 -> Forecast 2029/30 | S3: =Head19 -> Forecast 2030/31 | T3: =Head20 -> Forecast 2031/32 | U3: =Head21 -> Forecast 2032/33 | V3: =Head22 -> Forecast 2033/34 | W3: =Head23 -> Forecast 2034/35
A4: Revenue by Vote | B4: 1
A5: =A3A!A5 -> Vote 01 - Speakers Office | C5: =A3A!C5 -> 0 | D5: =A3A!D5 -> 0 | E5: =A3A!E5 -> 0 | F5: =A3A!F5 -> 0 | G5: =A3A!G5 -> 0 | H5: =A3A!H5 -> 0 | I5: =A3A!I5 -> 0 | J5: =A3A!J5 -> 0 | K5: =A3A!K5 -> 0
A6: =A3A!A8 -> Vote 02 - Executive Mayor's Office | C6: =A3A!C8 -> 0 | D6: =A3A!D8 -> 0 | E6: =A3A!E8 -> 0 | F6: =A3A!F8 -> 0 | G6: =A3A!G8 -> 0 | H6: =A3A!H8 -> 0 | I6: =A3A!I8 -> 0 | J6: =A3A!J8 -> 0 | K6: =A3A!K8 -> 0
A7: =A3A!A10 -> Vote 03 - Municipal Manager Office | C7: =A3A!C10 -> 0 | D7: =A3A!D10 -> -3122.61 | E7: =A3A!E10 -> -1810 | F7: =A3A!F10 -> -12876 | G7: =A3A!G10 -> 0 | H7: =A3A!H10 -> 0 | I7: =A3A!I10 -> 0 | J7: =A3A!J10 -> 0 | K7: =A3A!K10 -> 0
A8: =A3A!A12 -> Vote 04 - Budget And Treasury | C8: =A3A!C12 -> 0 | D8: =A3A!D12 -> 1353096216 | E8: =A3A!E12 -> 1446223348 | F8: =A3A!F12 -> 1672052707 | G8: =A3A!G12 -> 1765133202 | H8: =A3A!H12 -> 1765133202 | I8: =A3A!I12 -> 1499821823 | J8: =A3A!J12 -> 1627057552 | K8: =A3A!K12 -> 1725793129
A9: =A3A!A15 -> Vote 05 - Infrustracture And Water Services | C9: =A3A!C15 -> 0 | D9: =A3A!D15 -> 201879.29 | E9: =A3A!E15 -> -2992.75 | F9: =A3A!F15 -> 0 | G9: =A3A!G15 -> 0 | H9: =A3A!H15 -> 0 | I9: =A3A!I15 -> 0 | J9: =A3A!J15 -> 0 | K9: =A3A!K15 -> 0
A10: =A3A!A19 -> Vote 06 - Planning And Economic Development | C10: =A3A!C19 -> 0 | D10: =A3A!D19 -> 0 | E10: =A3A!E19 -> 0 | F10: =A3A!F19 -> 0 | G10: =A3A!G19 -> 0 | H10: =A3A!H19 -> 0 | I10: =A3A!I19 -> 0 | J10: =A3A!J19 -> 0 | K10: =A3A!K19 -> 0
A11: =A3A!A21 -> Vote 07 - Community Services | C11: =A3A!C21 -> 0 | D11: =A3A!D21 -> 0 | E11: =A3A!E21 -> -16272 | F11: =A3A!F21 -> 0 | G11: =A3A!G21 -> 0 | H11: =A3A!H21 -> 0 | I11: =A3A!I21 -> 0 | J11: =A3A!J21 -> 0 | K11: =A3A!K21 -> 0
A12: =A3A!A23 -> Vote 08 - Sekhukhune Development Angancy | C12: =A3A!C23 -> 0 | D12: =A3A!D23 -> 0 | E12: =A3A!E23 -> 0 | F12: =A3A!F23 -> 0 | G12: =A3A!G23 -> 0 | H12: =A3A!H23 -> 0 | I12: =A3A!I23 -> 0 | J12: =A3A!J23 -> 0 | K12: =A3A!K23 -> 0
A13: =A3A!A25 -> Vote 09 - Corporate Services | C13: =A3A!C25 -> 0 | D13: =A3A!D25 -> 0 | E13: =A3A!E25 -> 0 | F13: =A3A!F25 -> 0 | G13: =A3A!G25 -> 0 | H13: =A3A!H25 -> 0 | I13: =A3A!I25 -> 0 | J13: =A3A!J25 -> 0 | K13: =A3A!K25 -> 0
A14: ='Org structure'!A11 -> Vote 10 - | C14: =A3A!C27 -> 0 | D14: =A3A!D27 -> 0 | E14: =A3A!E27 -> 0 | F14: =A3A!F27 -> 0 | G14: =A3A!G27 -> 0 | H14: =A3A!H27 -> 0 | I14: =A3A!I27 -> 0 | J14: =A3A!J27 -> 0 | K14: =A3A!K27 -> 0
A15: ='Org structure'!A12 -> Vote 11 - | C15: =A3A!C28 -> 0 | D15: =A3A!D28 -> 0 | E15: =A3A!E28 -> 0 | F15: =A3A!F28 -> 0 | G15: =A3A!G28 -> 0 | H15: =A3A!H28 -> 0 | I15: =A3A!I28 -> 0 | J15: =A3A!J28 -> 0 | K15: =A3A!K28 -> 0 | L15: =A5A!#REF! -> 
A16: ='Org structure'!A13 -> Vote 12 - | C16: =A3A!C29 -> 0 | D16: =A3A!D29 -> 0 | E16: =A3A!E29 -> 0 | F16: =A3A!F29 -> 0 | G16: =A3A!G29 -> 0 | H16: =A3A!H29 -> 0 | I16: =A3A!I29 -> 0 | J16: =A3A!J29 -> 0 | K16: =A3A!K29 -> 0 | L16: =A5A!#REF! -> 
A17: ='Org structure'!A14 -> Vote 13 - | C17: =A3A!C30 -> 0 | D17: =A3A!D30 -> 0 | E17: =A3A!E30 -> 0 | F17: =A3A!F30 -> 0 | G17: =A3A!G30 -> 0 | H17: =A3A!H30 -> 0 | I17: =A3A!I30 -> 0 | J17: =A3A!J30 -> 0 | K17: =A3A!K30 -> 0 | L17: =A5A!#REF! -> 
A18: ='Org structure'!A15 -> Vote 14 - | C18: =A3A!C31 -> 0 | D18: =A3A!D31 -> 0 | E18: =A3A!E31 -> 0 | F18: =A3A!F31 -> 0 | G18: =A3A!G31 -> 0 | H18: =A3A!H31 -> 0 | I18: =A3A!I31 -> 0 | J18: =A3A!J31 -> 0 | K18: =A3A!K31 -> 0 | L18: =A5A!#REF! -> 
A19: =A3A!A32 -> Vote 15 - Other | C19: =A3A!C32 -> 0 | D19: =A3A!D32 -> 0 | E19: =A3A!E32 -> 0 | F19: =A3A!F32 -> 0 | G19: =A3A!G32 -> 0 | H19: =A3A!H32 -> 0 | I19: =A3A!I32 -> 0 | J19: =A3A!J32 -> 0 | K19: =A3A!K32 -> 0 | L19: =A5A!#REF! -> 
A20: Total Revenue by Vote | B20: 2 | C20: =SUM(C5:C19) -> 0 | D20: =SUM(D5:D19) -> 1353294973 | E20: 1446202273 | F20: 1672039831 | G20: 1765133202 | H20: 1765133202 | I20: 1499821823 | J20: 1627057552 | K20: 1725793129
A22: Expenditure by Vote to be appropriated | B22: 1
A23: =A3A!A37 -> Vote 01 - Speakers Office | C23: =A3A!C37 -> 0 | D23: =A3A!D37 -> 35052302.16 | E23: =A3A!E37 -> 35925429.92 | F23: =A3A!F37 -> 36070783 | G23: =A3A!G37 -> 38047696 | H23: =A3A!H37 -> 38047696 | I23: =A3A!I37 -> 39166728 | J23: =A3A!J37 -> 43712057 | K23: =A3A!K37 -> 46646734
A24: =A3A!A40 -> Vote 02 - Executive Mayor's Office | C24: =A3A!C40 -> 0 | D24: =A3A!D40 -> 33618250.89 | E24: =A3A!E40 -> 32559765.77 | F24: =A3A!F40 -> 32432463 | G24: =A3A!G40 -> 32631000 | H24: =A3A!H40 -> 32631000 | I24: =A3A!I40 -> 31570969 | J24: =A3A!J40 -> 37091109 | K24: =A3A!K40 -> 42128405
A25: =A3A!A42 -> Vote 03 - Municipal Manager Office | C25: =A3A!C42 -> 0 | D25: =A3A!D42 -> 52665753.91 | E25: =A3A!E42 -> 82523768.26 | F25: =A3A!F42 -> 68006694 | G25: =A3A!G42 -> 65879570 | H25: =A3A!H42 -> 65879570 | I25: =A3A!I42 -> 64746191 | J25: =A3A!J42 -> 89569901 | K25: =A3A!K42 -> 93887632
A26: =A3A!A44 -> Vote 04 - Budget And Treasury | C26: =A3A!C44 -> 0 | D26: =A3A!D44 -> 157790107.3 | E26: =A3A!E44 -> 179503638.4 | F26: =A3A!F44 -> 129100059 | G26: =A3A!G44 -> 163912547 | H26: =A3A!H44 -> 163912547 | I26: =A3A!I44 -> 173622327 | J26: =A3A!J44 -> 189054491 | K26: =A3A!K44 -> 193711669
A27: =A3A!A47 -> Vote 05 - Infrustracture And Water Services | C27: =A3A!C47 -> 0 | D27: =A3A!D47 -> 501932405.9 | E27: =A3A!E47 -> 589296380.2 | F27: =A3A!F47 -> 457055530 | G27: =A3A!G47 -> 490753850 | H27: =A3A!H47 -> 490753850 | I27: =A3A!I47 -> 450538328 | J27: =A3A!J47 -> 489840963 | K27: =A3A!K47 -> 525677800
A28: =A3A!A51 -> Vote 06 - Planning And Economic Development | C28: =A3A!C51 -> 0 | D28: =A3A!D51 -> 10046677.28 | E28: =A3A!E51 -> 10582670.74 | F28: =A3A!F51 -> 10669113 | G28: =A3A!G51 -> 10369113 | H28: =A3A!H51 -> 10369113 | I28: =A3A!I51 -> 10390010 | J28: =A3A!J51 -> 20204555 | K28: =A3A!K51 -> 20040898
A29: =A3A!A53 -> Vote 07 - Community Services | C29: =A3A!C53 -> 0 | D29: =A3A!D53 -> 53348675.14 | E29: =A3A!E53 -> 59031897.25 | F29: =A3A!F53 -> 57890751 | G29: =A3A!G53 -> 60830751 | H29: =A3A!H53 -> 60830751 | I29: =A3A!I53 -> 63493118 | J29: =A3A!J53 -> 73126466 | K29: =A3A!K53 -> 78477334
A30: =A3A!A55 -> Vote 08 - Sekhukhune Development Angancy | C30: =A3A!C55 -> 0 | D30: =A3A!D55 -> 3317404 | E30: =A3A!E55 -> 3699050.35 | F30: =A3A!F55 -> 4228640 | G30: =A3A!G55 -> 4228640 | H30: =A3A!H55 -> 4228640 | I30: =A3A!I55 -> 4300000 | J30: =A3A!J55 -> 4493500 | K30: =A3A!K55 -> 4695708
A31: =A3A!A57 -> Vote 09 - Corporate Services | C31: =A3A!C57 -> 0 | D31: =A3A!D57 -> 122872328.5 | E31: =A3A!E57 -> 120642864.3 | F31: =A3A!F57 -> 129598906 | G31: =A3A!G57 -> 120495130 | H31: =A3A!H57 -> 120495130 | I31: =A3A!I57 -> 100801126 | J31: =A3A!J57 -> 103037171 | K31: =A3A!K57 -> 102591248
A32: ='Org structure'!A11 -> Vote 10 - | C32: =A3A!C59 -> 0 | D32: =A3A!D59 -> 0 | E32: =A3A!E59 -> 0 | F32: =A3A!F59 -> 0 | G32: =A3A!G59 -> 0 | H32: =A3A!H59 -> 0 | I32: =A3A!I59 -> 0 | J32: =A3A!J59 -> 0 | K32: =A3A!K59 -> 0
A33: ='Org structure'!A12 -> Vote 11 - | C33: =A3A!C60 -> 0 | D33: =A3A!D60 -> 0 | E33: =A3A!E60 -> 0 | F33: =A3A!F60 -> 0 | G33: =A3A!G60 -> 0 | H33: =A3A!H60 -> 0 | I33: =A3A!I60 -> 0 | J33: =A3A!J60 -> 0 | K33: =A3A!K60 -> 0 | L33: =A3A!#REF! -> 
A34: ='Org structure'!A13 -> Vote 12 - | C34: =A3A!C61 -> 0 | D34: =A3A!D61 -> 0 | E34: =A3A!E61 -> 0 | F34: =A3A!F61 -> 0 | G34: =A3A!G61 -> 0 | H34: =A3A!H61 -> 0 | I34: =A3A!I61 -> 0 | J34: =A3A!J61 -> 0 | K34: =A3A!K61 -> 0 | L34: =A3A!#REF! -> 
A35: ='Org structure'!A14 -> Vote 13 - | C35: =A3A!C62 -> 0 | D35: =A3A!D62 -> 0 | E35: =A3A!E62 -> 0 | F35: =A3A!F62 -> 0 | G35: =A3A!G62 -> 0 | H35: =A3A!H62 -> 0 | I35: =A3A!I62 -> 0 | J35: =A3A!J62 -> 0 | K35: =A3A!K62 -> 0 | L35: =A3A!#REF! -> 
A36: ='Org structure'!A15 -> Vote 14 - | C36: =A3A!C63 -> 0 | D36: =A3A!D63 -> 0 | E36: =A3A!E63 -> 0 | F36: =A3A!F63 -> 0 | G36: =A3A!G63 -> 0 | H36: =A3A!H63 -> 0 | I36: =A3A!I63 -> 0 | J36: =A3A!J63 -> 0 | K36: =A3A!K63 -> 0 | L36: =A3A!#REF! -> 
A37: =A3A!A64 -> Vote 15 - Other | C37: =A3A!C64 -> 0 | D37: =A3A!D64 -> 0 | E37: =A3A!E64 -> 0 | F37: =A3A!F64 -> 0 | G37: =A3A!G64 -> 0 | H37: =A3A!H64 -> 0 | I37: =A3A!I64 -> 0 | J37: =A3A!J64 -> 0 | K37: =A3A!K64 -> 0 | L37: =A3A!L65 -> 0
A38: Total Expenditure by Vote | B38: 2 | C38: =SUM(C23:C37) -> 0 | D38: =SUM(D23:D37) -> 970643905.1 | E38: 1113765465 | F38: 925052939 | G38: 987148297 | H38: 987148297 | I38: 938628797 | J38: 1050130213 | K38: 1107857428 | L38: =SUM(L23:L29) -> 0 | M38: 0 | N38: 0 | O38: 0 | P38: 0 | Q38: 0 | R38: 0 | S38: 0 | T38: 0 | U38: 0 | V38: 0 | W38: 0
A39: =result -> Surplus/(Deficit) for the year | B39: 2 | C39: =C20-C38 -> 0 | D39: 382651067.9 | E39: 332436807.8 | F39: 746986892 | G39: 777984905 | H39: 777984905 | I39: 561193026 | J39: 576927339 | K39: 617935701 | L39: 0 | M39: 0 | N39: 0 | O39: 0 | P39: 0 | Q39: 0 | R39: 0 | S39: 0 | T39: 0 | U39: 0 | V39: 0 | W39: 0
A40: =head27a -> References
A41: 1. Insert 'Vote'; e.g. department, if different to functional classification structure
A42: 2. Must reconcile to Budgeted Financial Performance (revenue and expenditure)
A43: 3. Assign share in 'associate' to relevant Vote
A45: ="check "&A39 -> check Surplus/(Deficit) for the year | C45: =C39-A3A!C68 -> 0 | D45: =D39-A3A!D68 -> 0 | E45: =E39-A3A!E68 -> 0 | F45: =F39-A3A!F68 -> 0 | G45: =G39-A3A!G68 -> 0 | H45: =H39-A3A!H68 -> 0 | I45: =I39-A3A!I68 -> 0 | J45: =J39-A3A!J68 -> 0 | K45: =K39-A3A!K68 -> 0

Sheet A3A
A1: =muni&" - "&Approve2&"A" -> DC47 Sekhukhune - Table A3 Budgeted Financial Performance (revenue and expenditure by municipal vote)A
A2: =Vdesc -> Vote Description | B2: =head27 -> Ref | C2: =head1b -> 2016/17 | D2: =head1A -> 2017/18 | E2: =Head1 -> 2018/19 | F2: =Head2 -> Current Year 2019/20 | I2: =Head3 -> 2020/21 Medium Term Revenue & Expenditure Framework | L2: =Head4 -> LTFS
A3: R thousand | C3: =Head5 -> Audited Outcome | D3: =Head5 -> Audited Outcome | E3: =Head5 -> Audited Outcome | F3: =Head6 -> Original Budget | G3: =Head7 -> Adjusted Budget | H3: =Head8 -> Full Year Forecast | I3: =Head9 -> Budget Year 2020/21 | J3: =Head10 -> Budget Year +1 2021/22 | K3: =Head11 -> Budget Year +2 2022/23 | L3: =Head12 -> Forecast 2023/24 | M3: =Head13 -> Forecast 2024/25 | N3: =Head14 -> Forecast 2025/26 | O3: =Head15 -> Forecast 2026/27 | P3: =Head16 -> Forecast 2027/28 | Q3: =Head17 -> Forecast 2028/29 | R3: =Head18 -> Forecast 2029/30 | S3: =Head19 -> Forecast 2030/31 | T3: =Head20 -> Forecast 2031/32 | U3: =Head21 -> Forecast 2032/33 | V3: =Head22 -> Forecast 2033/34 | W3: =Head23 -> Forecast 2034/35
A4: Revenue by Vote | B4: 1
A5: ='Org structure'!A2 -> Vote 01 - Speakers Office | C5: =SUM(C6:C7) -> 0 | D5: 0 | E5: 0 | F5: 0 | G5: 0 | H5: 0 | I5: 0 | J5: 0 | K5: 0
A6: ='Org structure'!E3 -> 01.1 - Office Of The Speaker | C6: 0 | D6: 0 | E6: 0 | F6: 0 | G6: 0 | H6: 0 | I6: 0 | J6: 0 | K6: 0
A7: ='Org structure'!E4 -> 01.2 - Office Of The Chief Whip | C7: 0 | D7: 0 | E7: 0 | F7: 0 | G7: 0 | H7: 0 | I7: 0 | J7: 0 | K7: 0
A8: ='Org structure'!A3 -> Vote 02 - Executive Mayor's Office | C8: =SUM(C9:C9) -> 0 | D8: 0 | E8: 0 | F8: 0 | G8: 0 | H8: 0 | I8: 0 | J8: 0 | K8: 0
A9: ='Org structure'!E6 -> 02.1 - Executive Mayor's Office | C9: 0 | D9: 0 | E9: 0 | F9: 0 | G9: 0 | H9: 0 | I9: 0 | J9: 0 | K9: 0
A10: ='Org structure'!A4 -> Vote 03 - Municipal Manager Office | C10: =SUM(C11:C11) -> 0 | D10: -3122.61 | E10: -1810 | F10: -12876 | G10: 0 | H10: 0 | I10: 0 | J10: 0 | K10: 0
A11: ='Org structure'!E8 -> 03.1 - Municipal Manager Admin | C11: 0 | D11: -3122.61 | E11: -1810 | F11: -12876 | G11: 0 | H11: 0 | I11: 0 | J11: 0 | K11: 0
A12: ='Org structure'!A5 -> Vote 04 - Budget And Treasury | C12: =SUM(C13:C14) -> 0 | D12: 1353096216 | E12: 1446223348 | F12: 1672052707 | G12: 1765133202 | H12: 1765133202 | I12: 1499821823 | J12: 1627057552 | K12: 1725793129
A13: ='Org structure'!E10 -> 04.1 - Budget & Treasury Admin | C13: 0 | D13: 902915056.1 | E13: 949043166.4 | F13: 0 | G13: 0 | H13: 0 | I13: 0 | J13: 0 | K13: 0
A14: ='Org structure'!E11 -> 04.2 - Budget & Treasury Admin | C14: 0 | D14: 450181160.2 | E14: 497180181.4 | F14: 1672052707 | G14: 1765133202 | H14: 1765133202 | I14: =1637321823-135000000-2500000 -> 1499821823 | J14: =1779232552-149475000-2700000 -> 1627057552 | K14: =1856688129-127995000-2900000 -> 1725793129
A15: ='Org structure'!A6 -> Vote 05 - Infrustracture And Water Services | C15: =SUM(C16:C18) -> 0 | D15: 201879.29 | E15: -2992.75 | F15: 0 | G15: 0 | H15: 0 | I15: 0 | J15: 0 | K15: 0
A16: ='Org structure'!E13 -> 05.1 - Technical Services Admin | C16: 0 | D16: 0 | E16: 0 | F16: 0 | G16: 0 | H16: 0 | I16: 0 | J16: 0 | K16: 0
A17: ='Org structure'!E14 -> 05.2 - Water Services | C17: 0 | D17: -3124.16 | E17: -2992.75 | F17: 0 | G17: 0 | H17: 0 | I17: 0 | J17: 0 | K17: 0
A18: ='Org structure'!E15 -> 05.3 - Sanitation Services | C18: 0 | D18: 205003.45 | E18: 0 | F18: 0 | G18: 0 | H18: 0 | I18: 0 | J18: 0 | K18: 0
A19: ='Org structure'!A7 -> Vote 06 - Planning And Economic Development | C19: =SUM(C20:C20) -> 0 | D19: 0 | E19: 0 | F19: 0 | G19: 0 | H19: 0 | I19: 0 | J19: 0 | K19: 0
A20: ='Org structure'!E17 -> 06.1 - Planning & Economic Dev Admin | C20: 0 | D20: 0 | E20: 0 | F20: 0 | G20: 0 | H20: 0 | I20: 0 | J20: 0 | K20: 0
A21: ='Org structure'!A8 -> Vote 07 - Community Services | C21: =SUM(C22:C22) -> 0 | D21: 0 | E21: -16272 | F21: 0 | G21: 0 | H21: 0 | I21: 0 | J21: 0 | K21: 0
A22: ='Org structure'!E19 -> 07.1 - Community Services Admin | C22: 0 | D22: 0 | E22: -16272 | F22: 0 | G22: 0 | H22: 0 | I22: 0 | J22: 0 | K22: 0
A23: ='Org structure'!A9 -> Vote 08 - Sekhukhune Development Angancy | C23: =SUM(C24:C24) -> 0 | D23: 0 | E23: 0 | F23: 0 | G23: 0 | H23: 0 | I23: 0 | J23: 0 | K23: 0
A24: ='Org structure'!E21 -> 08.1 - Sekhukhune Development Agency | C24: 0 | D24: 0 | E24: 0 | F24: 0 | G24: 0 | H24: 0 | I24: 0 | J24: 0 | K24: 0
A25: ='Org structure'!A10 -> Vote 09 - Corporate Services | C25: =SUM(C26:C26) -> 0 | D25: 0 | E25: 0 | F25: 0 | G25: 0 | H25: 0 | I25: 0 | J25: 0 | K25: 0
A26: ='Org structure'!E23 -> 09.1 - Corporate Services Admin | C26: 0 | D26: 0 | E26: 0 | F26: 0 | G26: 0 | H26: 0 | I26: 0 | J26: 0 | K26: 0
A27: ='Org structure'!A11 -> Vote 10 - | C27: 0 | D27: 0 | E27: 0 | F27: 0 | G27: 0 | H27: 0 | I27: 0 | J27: 0 | K27: 0
A28: ='Org structure'!A12 -> Vote 11 - | C28: 0 | D28: 0 | E28: 0 | F28: 0 | G28: 0 | H28: 0 | I28: 0 | J28: 0 | K28: 0
A29: ='Org structure'!A13 -> Vote 12 - | C29: 0 | D29: 0 | E29: 0 | F29: 0 | G29: 0 | H29: 0 | I29: 0 | J29: 0 | K29: 0
A30: ='Org structure'!A14 -> Vote 13 - | C30: 0 | D30: 0 | E30: 0 | F30: 0 | G30: 0 | H30: 0 | I30: 0 | J30: 0 | K30: 0
A31: ='Org structure'!A15 -> Vote 14 - | C31: 0 | D31: 0 | E31: 0 | F31: 0 | G31: 0 | H31: 0 | I31: 0 | J31: 0 | K31: 0
A32: ='Org structure'!A16 -> Vote 15 - Other | C32: =SUM(C33:C33) -> 0 | D32: 0 | E32: 0 | F32: 0 | G32: 0 | H32: 0 | I32: 0 | J32: 0 | K32: 0
A33: ='Org structure'!E30 -> 15.1 - Electricity Reporting Function | C33: 0 | D33: 0 | E33: 0 | F33: 0 | G33: 0 | H33: 0 | I33: 0 | J33: 0 | K33: 0
A34: Total Revenue by Vote | B34: 2 | C34: =C5+C8+C10+C12+C15+C19+C21+C23+C25+C27+C28+C29+C30+C31+C32 -> 0 | D34: 1353294973 | E34: 1446202273 | F34: 1672039831 | G34: 1765133202 | H34: 1765133202 | I34: 1499821823 | J34: 1627057552 | K34: 1725793129 | L34: =SUM(#REF!) ->  | M34: =SUM(#REF!) ->  | N34: =SUM(#REF!) ->  | O34: =SUM(#REF!) ->  | P34: =SUM(#REF!) ->  | Q34: =SUM(#REF!) ->  | R34: =SUM(#REF!) ->  | S34: =SUM(#REF!) ->  | T34: =SUM(#REF!) ->  | U34: =SUM(#REF!) ->  | V34: =SUM(#REF!) ->  | W34: =SUM(#REF!) -> 
A36: Expenditure by Vote | B36: 1
A37: ='Org structure'!A2 -> Vote 01 - Speakers Office | C37: =SUM(C38:C39) -> 0 | D37: 35052302.16 | E37: 35925429.92 | F37: 36070783 | G37: 38047696 | H37: 38047696 | I37: 39166728 | J37: 43712057 | K37: 46646734
A38: ='Org structure'!E3 -> 01.1 - Office Of The Speaker | C38: 0 | D38: 35052302.16 | E38: 36354199.1 | F38: 36070783 | G38: 38047696 | H38: 38047696 | I38: 39166728 | J38: 43712057 | K38: 46646734
A39: ='Org structure'!E4 -> 01.2 - Office Of The Chief Whip | C39: 0 | D39: 0 | E39: -428769.18 | F39: 0 | G39: 0 | H39: 0 | I39: 0 | J39: 0 | K39: 0
A40: ='Org structure'!A3 -> Vote 02 - Executive Mayor's Office | C40: =SUM(C41:C41) -> 0 | D40: 33618250.89 | E40: 32559765.77 | F40: 32432463 | G40: 32631000 | H40: 32631000 | I40: 31570969 | J40: 37091109 | K40: 42128405
A41: ='Org structure'!E6 -> 02.1 - Executive Mayor's Office | C41: 0 | D41: 33618250.89 | E41: 32559765.77 | F41: 32432463 | G41: 32631000 | H41: 32631000 | I41: 31570969 | J41: 37091109 | K41: 42128405
A42: ='Org structure'!A4 -> Vote 03 - Municipal Manager Office | C42: =SUM(C43:C43) -> 0 | D42: 52665753.91 | E42: 82523768.26 | F42: 68006694 | G42: 65879570 | H42: 65879570 | I42: 64746191 | J42: 89569901 | K42: 93887632
A43: ='Org structure'!E8 -> 03.1 - Municipal Manager Admin | C43: 0 | D43: 52665753.91 | E43: 82523768.26 | F43: 68006694 | G43: 65879570 | H43: 65879570 | I43: 64746191 | J43: 89569901 | K43: 93887632
A44: ='Org structure'!A5 -> Vote 04 - Budget And Treasury | C44: =SUM(C45:C46) -> 0 | D44: 157790107.3 | E44: 179503638.4 | F44: 129100059 | G44: 163912547 | H44: 163912547 | I44: 173622327 | J44: 189054491 | K44: 193711669
A45: ='Org structure'!E10 -> 04.1 - Budget & Treasury Admin | C45: 0 | D45: 0 | E45: 0 | F45: 0 | G45: 0 | H45: 0 | I45: 0 | J45: 0 | K45: 0
A46: ='Org structure'!E11 -> 04.2 - Budget & Treasury Admin | C46: 0 | D46: 157790107.3 | E46: 179503638.4 | F46: 129100059 | G46: 163912547 | H46: 163912547 | I46: 173622327 | J46: 189054491 | K46: 193711669
A47: ='Org structure'!A6 -> Vote 05 - Infrustracture And Water Services | C47: =SUM(C48:C50) -> 0 | D47: 501932405.9 | E47: 589296380.2 | F47: 457055530 | G47: 490753850 | H47: 490753850 | I47: 450538328 | J47: 489840963 | K47: 525677800
A48: ='Org structure'!E13 -> 05.1 - Technical Services Admin | C48: 0 | D48: 88654511.27 | E48: 68844869.32 | F48: 61779732 | G48: 101235654 | H48: 101235654 | I48: 50924930 | J48: 61076239 | K48: 61235587
A49: ='Org structure'!E14 -> 05.2 - Water Services | C49: 0 | D49: 404303250.3 | E49: 508665506.5 | F49: 395275798 | G49: 389518196 | H49: 389518196 | I49: =399613398-48000000 -> 351613398 | J49: =428764724-58000000 -> 370764724 | K49: =464442213-58000000 -> 406442213
A50: ='Org structure'!E15 -> 05.3 - Sanitation Services | C50: 0 | D50: 8974644.31 | E50: 11786004.41 | F50: 0 | G50: 0 | H50: 0 | I50: 48000000 | J50: 58000000 | K50: 58000000
A51: ='Org structure'!A7 -> Vote 06 - Planning And Economic Development | C51: =SUM(C52:C52) -> 0 | D51: 10046677.28 | E51: 10582670.74 | F51: 10669113 | G51: 10369113 | H51: 10369113 | I51: 10390010 | J51: 20204555 | K51: 20040898
A52: ='Org structure'!E17 -> 06.1 - Planning & Economic Dev Admin | C52: 0 | D52: 10046677.28 | E52: 10582670.74 | F52: 10669113 | G52: 10369113 | H52: 10369113 | I52: 10390010 | J52: 20204555 | K52: 20040898
A53: ='Org structure'!A8 -> Vote 07 - Community Services | C53: =SUM(C54:C54) -> 0 | D53: 53348675.14 | E53: 59031897.25 | F53: 57890751 | G53: 60830751 | H53: 60830751 | I53: 63493118 | J53: 73126466 | K53: 78477334
A54: ='Org structure'!E19 -> 07.1 - Community Services Admin | C54: 0 | D54: 53348675.14 | E54: 59031897.25 | F54: 57890751 | G54: 60830751 | H54: 60830751 | I54: 63493118 | J54: 73126466 | K54: 78477334
A55: ='Org structure'!A9 -> Vote 08 - Sekhukhune Development Angancy | C55: =SUM(C56:C56) -> 0 | D55: 3317404 | E55: 3699050.35 | F55: 4228640 | G55: 4228640 | H55: 4228640 | I55: 4300000 | J55: 4493500 | K55: 4695708
A56: ='Org structure'!E21 -> 08.1 - Sekhukhune Development Agency | C56: 0 | D56: 3317404 | E56: 3699050.35 | F56: 4228640 | G56: 4228640 | H56: 4228640 | I56: 4300000 | J56: 4493500 | K56: 4695708
A57: ='Org structure'!A10 -> Vote 09 - Corporate Services | C57: =SUM(C58:C58) -> 0 | D57: 122872328.5 | E57: 120642864.3 | F57: 129598906 | G57: 120495130 | H57: 120495130 | I57: 100801126 | J57: 103037171 | K57: 102591248
A58: ='Org structure'!E23 -> 09.1 - Corporate Services Admin | C58: 0 | D58: 122872328.5 | E58: 120642864.3 | F58: 129598906 | G58: 120495130 | H58: 120495130 | I58: 100801126 | J58: 103037171 | K58: 102591248
A59: ='Org structure'!A11 -> Vote 10 - | C59: 0 | D59: 0 | E59: 0 | F59: 0 | G59: 0 | H59: 0 | I59: 0 | J59: 0 | K59: 0
A60: ='Org structure'!A12 -> Vote 11 - | C60: 0 | D60: 0 | E60: 0 | F60: 0 | G60: 0 | H60: 0 | I60: 0 | J60: 0 | K60: 0
A61: ='Org structure'!A13 -> Vote 12 - | C61: 0 | D61: 0 | E61: 0 | F61: 0 | G61: 0 | H61: 0 | I61: 0 | J61: 0 | K61: 0
A62: ='Org structure'!A14 -> Vote 13 - | C62: 0 | D62: 0 | E62: 0 | F62: 0 | G62: 0 | H62: 0 | I62: 0 | J62: 0 | K62: 0
A63: ='Org structure'!A15 -> Vote 14 - | C63: 0 | D63: 0 | E63: 0 | F63: 0 | G63: 0 | H63: 0 | I63: 0 | J63: 0 | K63: 0
A64: ='Org structure'!A16 -> Vote 15 - Other | C64: =SUM(C65:C65) -> 0 | D64: 0 | E64: 0 | F64: 0 | G64: 0 | H64: 0 | I64: 0 | J64: 0 | K64: 0
A65: ='Org structure'!E30 -> 15.1 - Electricity Reporting Function | C65: 0 | D65: 0 | E65: 0 | F65: 0 | G65: 0 | H65: 0 | I65: 0 | J65: 0 | K65: 0
A66: Total Expenditure by Vote | B66: 2 | C66: =C37+C40+C42+C44+C47+C51+C53+C55+C57+C59+C60+C61+C62+C63+C64 -> 0 | D66: 970643905.1 | E66: 1113765465 | F66: 925052939 | G66: 987148297 | H66: 987148297 | I66: 938628797 | J66: 1050130213 | K66: 1107857428 | L66: =SUM(L37:L54) -> 0 | M66: 0 | N66: 0 | O66: 0 | P66: 0 | Q66: 0 | R66: 0 | S66: 0 | T66: 0 | U66: 0 | V66: 0 | W66: 0
A68: =result -> Surplus/(Deficit) for the year | B68: 2 | C68: =C34-C66 -> 0 | D68: 382651067.9 | E68: 332436807.8 | F68: 746986892 | G68: 777984905 | H68: 777984905 | I68: 561193026 | J68: 576927339 | K68: 617935701
A69: =head27a -> References
A70: 1. Insert 'Vote'; e.g. Department, if different to Functional structure
A71: 2. Must reconcile to Financial Performance ('Revenue and Expenditure by Functional Classification' and 'Revenue and Expenditure')
A72: 3. Assign share in 'associate' to relevant Vote
A74: check revenue | C74: =C34-'A4-FinPerf RE'!C59 -> 0 | D74: =D34-'A4-FinPerf RE'!D59 -> -12887.72 | E74: =E34-'A4-FinPerf RE'!E59 -> 2281918 | F74: =F34-'A4-FinPerf RE'!F59 -> 0 | G74: =G34-'A4-FinPerf RE'!G59 -> 0 | H74: =H34-'A4-FinPerf RE'!H59 -> 0 | I74: =I34-'A4-FinPerf RE'!J59 -> 0 | J74: =J34-'A4-FinPerf RE'!K59 -> 0 | K74: =K34-'A4-FinPerf RE'!L59 -> 0
A75: check expenditure | C75: =C66-'A4-FinPerf RE'!C35 -> 0 | D75: =D66-'A4-FinPerf RE'!D35 -> -25095340 | E75: =E66-'A4-FinPerf RE'!E35 -> -18464883.91 | F75: =F66-'A4-FinPerf RE'!F35 -> -14000000 | G75: =G66-'A4-FinPerf RE'!G35 -> 0 | H75: =H66-'A4-FinPerf RE'!H35 -> 0 | I75: =I66-'A4-FinPerf RE'!J35 -> 0 | J75: =J66-'A4-FinPerf RE'!K35 -> 0 | K75: =K66-'A4-FinPerf RE'!L35 -> 0

Sheet A4-FinPerf RE
A1: =muni&" - "&Approve4 -> DC47 Sekhukhune - Table A4 Budgeted Financial Performance (revenue and expenditure)
A2: =desc -> Description | B2: =head27 -> Ref | C2: =head1b -> 2016/17 | D2: =head1A -> 2017/18 | E2: =Head1 -> 2018/19 | F2: =Head2 -> Current Year 2019/20 | J2: =Head3 -> 2020/21 Medium Term Revenue & Expenditure Framework | M2: =Head4 -> LTFS
A3: R thousand | B3: 1 | C3: =Head5 -> Audited Outcome | D3: =Head5 -> Audited Outcome | E3: =Head5 -> Audited Outcome | F3: =Head6 -> Original Budget | G3: =Head7 -> Adjusted Budget | H3: =Head8 -> Full Year Forecast | I3: =Head5b -> Pre-audit outcome | J3: =Head9 -> Budget Year 2020/21 | K3: =Head10 -> Budget Year +1 2021/22 | L3: =Head11 -> Budget Year +2 2022/23 | M3: =Head12 -> Forecast 2023/24 | N3: =Head13 -> Forecast 2024/25 | O3: =Head14 -> Forecast 2025/26 | P3: =Head15 -> Forecast 2026/27 | Q3: =Head16 -> Forecast 2027/28 | R3: =Head17 -> Forecast 2028/29 | S3: =Head18 -> Forecast 2029/30 | T3: =Head19 -> Forecast 2030/31 | U3: =Head20 -> Forecast 2031/32 | V3: =Head21 -> Forecast 2032/33 | W3: =Head22 -> Forecast 2033/34 | X3: =Head23 -> Forecast 2034/35
A4: Revenue By Source
A5: Property rates | B5: 2 | C5: ='SA1'!C9 -> 0 | D5: ='SA1'!D9 -> 0 | E5: ='SA1'!E9 -> 0 | F5: ='SA1'!F9 -> 0 | G5: ='SA1'!G9 -> 0 | H5: ='SA1'!H9 -> 0 | I5: ='SA1'!I9 -> 0 | J5: ='SA1'!J9 -> 0 | K5: ='SA1'!K9 -> 0 | L5: ='SA1'!L9 -> 0
A6: Service charges - electricity revenue | B6: 2 | C6: ='SA1'!C15 -> 0 | D6: ='SA1'!D15 -> 0 | E6: ='SA1'!E15 -> 0 | F6: ='SA1'!F15 -> 97381 | G6: ='SA1'!G15 -> 97381 | H6: ='SA1'!H15 -> 97381 | I6: ='SA1'!I15 -> 0 | J6: ='SA1'!J15 -> 89591 | K6: ='SA1'!K15 -> 85111 | L6: ='SA1'!L15 -> 82558
A7: Service charges - water revenue | B7: 2 | C7: ='SA1'!C21 -> 0 | D7: ='SA1'!D21 -> 59633188.84 | E7: ='SA1'!E21 -> 71537262.32 | F7: ='SA1'!F21 -> 93392631 | G7: ='SA1'!G21 -> 93392628 | H7: ='SA1'!H21 -> 93392628 | I7: ='SA1'!I21 -> 68750955.67 | J7: ='SA1'!J21 -> 83421218 | K7: ='SA1'!K21 -> 78925157 | L7: ='SA1'!L21 -> 76276403
A8: Service charges - sanitation revenue | B8: 2 | C8: ='SA1'!C27 -> 0 | D8: ='SA1'!D27 -> 12765233.86 | E8: ='SA1'!E27 -> 12257476.57 | F8: ='SA1'!F27 -> 17324704 | G8: ='SA1'!G27 -> 17324703 | H8: ='SA1'!H27 -> 17324703 | I8: ='SA1'!I27 -> 10702524.44 | J8: ='SA1'!J27 -> 17129407 | K8: ='SA1'!K27 -> 16272937 | L8: ='SA1'!L27 -> 15784748
A9: Service charges - refuse revenue | B9: 2 | C9: ='SA1'!C34 -> 0 | D9: ='SA1'!D34 -> 0 | E9: ='SA1'!E34 -> 0 | F9: ='SA1'!F34 -> 0 | G9: ='SA1'!G34 -> 0 | H9: ='SA1'!H34 -> 0 | I9: ='SA1'!I34 -> 0 | J9: ='SA1'!J34 -> 0 | K9: ='SA1'!K34 -> 0 | L9: ='SA1'!L34 -> 0
A11: Rental of facilities and equipment
A12: Interest earned - external investments | C12: 0 | D12: 2232158.11 | E12: 2264470.08 | F12: 2699424 | G12: 14533538 | H12: 14533538 | I12: 6917700.29 | J12: 13160216 | K12: 13818226 | L12: 14509137
A13: Interest earned - outstanding debtors | C13: 0 | D13: 17894886.24 | E13: 21580133.2 | F13: 19095034 | G13: 9260940 | H13: 9260940 | I13: 15076891.73 | J13: 9723988 | K13: 10210187 | L13: 10720696
A14: Dividends received | C14: 0 | D14: 0 | E14: 0 | F14: 0 | G14: 0 | H14: 0 | I14: 0 | J14: 0 | K14: 0 | L14: 0
A15: Fines, penalties and forfeits | C15: 0 | D15: 9715.26 | E15: -55688.5 | F15: 57059 | G15: 57059 | H15: 57059 | I15: 63336.31 | J15: 52495 | K15: 49870 | L15: 48374
A16: Licences and permits
A17: Agency services
A18: Transfers and subsidies | C18: 0 | D18: 1100439241 | E18: 1194612913 | F18: 1249703000 | G18: 891188921 | H18: 891188921 | I18: 817257872.5 | J18: 914290000 | K18: 995212000 | L18: 1071926000
A19: Other revenue | B19: 2 | C19: ='SA1'!C49 -> 0 | D19: ='SA1'!D49 -> 11569323.98 | E19: ='SA1'!E49 -> 14731638.37 | F19: ='SA1'!F49 -> 1889014 | G19: ='SA1'!G49 -> 93787369 | H19: ='SA1'!H49 -> 93787369 | I19: ='SA1'!I49 -> 4905182.67 | J19: ='SA1'!J49 -> 1996602 | K19: ='SA1'!K49 -> 2096135 | L19: ='SA1'!L49 -> 2200738
A20: Gains | C20: 0 | D20: -3344349.26 | E20: 516060.73 | F20: 354584 | G20: 354584 | H20: 354584 | I20: 0 | J20: 372306 | K20: 390929 | L20: 410475
A21: Total Revenue (excluding capital transfers and contributions) | C21: =SUM(C5:C9)+SUM(C11:C20) -> 0 | D21: =SUM(D5:D9)+SUM(D11:D20) -> 1201199398 | E21: 1317444266 | F21: 1384612831 | G21: 1119997123 | H21: 1119997123 | I21: 923674463.7 | J21: 1040235823 | K21: 1117060552 | L21: 1191959129 | M21: =SUM(M5:M20) -> 0 | N21: 0 | O21: 0 | P21: 0 | Q21: 0 | R21: 0 | S21: 0 | T21: 0 | U21: 0 | V21: 0 | W21: 0 | X21: 0
A23: Expenditure By Type
A24: Employee related costs | B24: 2 | C24: ='SA1'!C67 -> 0 | D24: ='SA1'!D67 -> 324895681.1 | E24: ='SA1'!E67 -> 373154682.8 | F24: ='SA1'!F67 -> 351868000 | G24: ='SA1'!G67 -> 369014389 | H24: ='SA1'!H67 -> 369014389 | I24: ='SA1'!I67 -> 324739797.1 | J24: ='SA1'!J67 -> 400081073 | K24: ='SA1'!K67 -> 424031394 | L24: ='SA1'!L67 -> 451419803
A25: Remuneration of councillors | C25: 0 | D25: 17171151.43 | E25: 16597723.23 | F25: 16746242 | G25: 16746242 | H25: 16746242 | I25: 12993567.19 | J25: 17292883 | K25: 18904939 | L25: 20086496
A26: Debt impairment | B26: 3 | C26: 0 | D26: 25095340 | E26: 15754455 | F26: 14000000 | G26: 10000000 | H26: 10000000 | I26: 2630289.44 | J26: 15000000 | K26: 12000000 | L26: 10000000
A27: Depreciation & asset impairment | B27: 2 | C27: ='SA1'!C83 -> 0 | D27: ='SA1'!D83 -> 94287428.87 | E27: ='SA1'!E83 -> 101039968 | F27: ='SA1'!F83 -> 74127235 | G27: ='SA1'!G83 -> 80430272 | H27: ='SA1'!H83 -> 80430272 | I27: ='SA1'!I83 -> 70789143.31 | J27: ='SA1'!J83 -> 90340954 | K27: ='SA1'!K83 -> 104150000 | L27: ='SA1'!L83 -> 107382250
A28: Finance charges | C28: 0 | D28: 3396521.31 | E28: 3057362 | F28: 500000 | G28: 500000 | H28: 500000 | I28: 0 | J28: 470526 | K28: 500000 | L28: 500000
A29: Bulk purchases | B29: 2 | C29: ='SA1'!C88 -> 0 | D29: ='SA1'!D88 -> 133159048.9 | E29: ='SA1'!E88 -> 196006451.7 | F29: ='SA1'!F88 -> 109589589 | G29: ='SA1'!G88 -> 111140265 | H29: ='SA1'!H88 -> 111140265 | I29: ='SA1'!I88 -> 94318878.45 | J29: ='SA1'!J88 -> 130000000 | K29: ='SA1'!K88 -> 135850000 | L29: ='SA1'!L88 -> 141963250
A30: Other materials | B30: 8 | C30: 0 | D30: 24911547.66 | E30: 42497052.46 | F30: 34944245 | G30: 31264245 | H30: 31264245 | I30: 23981186.37 | J30: 22526530 | K30: 34454256 | L30: 44179018
A31: Contracted services | C31: ='SA1'!C127 -> 0 | D31: ='SA1'!D127 -> 221863296.5 | E31: ='SA1'!E127 -> 225862566.5 | F31: ='SA1'!F127 -> 175157715 | G31: ='SA1'!G127 -> 219816892 | H31: ='SA1'!H127 -> 219816892 | I31: ='SA1'!I127 -> 115682469.9 | J31: ='SA1'!J127 -> 137759635 | K31: ='SA1'!K127 -> 189151432 | L31: ='SA1'!L127 -> 194784423
A32: Transfers and subsidies | C32: ='SA1'!C93 -> 0 | D32: ='SA1'!D93 -> 6586710.47 | E32: ='SA1'!E93 -> 7415578.35 | F32: ='SA1'!F93 -> 8245176 | G32: ='SA1'!G93 -> 4232852 | H32: ='SA1'!H93 -> 4232852 | I32: ='SA1'!I93 -> 3558070.59 | J32: ='SA1'!J93 -> 4300000 | K32: ='SA1'!K93 -> 4493500 | L32: ='SA1'!L93 -> 4695708
A33: Other expenditure | B33: 4, 5 | C33: ='SA1'!C157 -> 0 | D33: ='SA1'!D157 -> 144372518.8 | E33: ='SA1'!E157 -> 146800560.9 | F33: ='SA1'!F157 -> 153874737 | G33: ='SA1'!G157 -> 144003140 | H33: ='SA1'!H157 -> 144003140 | I33: ='SA1'!I157 -> 121390756.5 | J33: ='SA1'!J157 -> 120857196 | K33: ='SA1'!K157 -> 126594692 | L33: ='SA1'!L157 -> 132846480
A34: Losses | C34: 0 | D34: 0 | E34: 4043948.3 | F34: 0 | G34: 0 | H34: 0 | I34: 0 | J34: 0 | K34: 0 | L34: 0
A35: Total Expenditure | C35: =SUM(C24:C34) -> 0 | D35: =SUM(D24:D34) -> 995739245.1 | E35: 1132230349 | F35: 939052939 | G35: 987148297 | H35: 987148297 | I35: 770084158.8 | J35: 938628797 | K35: 1050130213 | L35: 1107857428 | M35: =SUM(M24:M34) -> 0 | N35: 0 | O35: 0 | P35: 0 | Q35: 0 | R35: 0 | S35: 0 | T35: 0 | U35: 0 | V35: 0 | W35: 0 | X35: 0
A37: Surplus/(Deficit) | C37: =C21-C35 -> 0 | D37: 205460152.6 | E37: 185213916.6 | F37: 445559892 | G37: 132848826 | H37: 132848826 | I37: 153590304.8 | J37: 101607026 | K37: 66930339 | L37: 84101701 | M37: =M21+M35 -> 0 | N37: 0 | O37: 0 | P37: 0 | Q37: 0 | R37: 0 | S37: 0 | T37: 0 | U37: 0 | V37: 0 | W37: 0 | X37: 0
A38: Transfers and subsidies - capital (monetary allocations) (National / Provincial and District) | C38: 0 | D38: 0 | E38: 125779291.9 | F38: 287427000 | G38: 645136079 | H38: 645136079 | I38: 239298479.3 | J38: =594586000-135000000 -> 459586000 | K38: =659472000-149475000 -> 509997000 | L38: =661829000-127995000 -> 533834000
A39: Transfers and subsidies - capital (monetary allocations) (National / Provincial Departmental Agencies, Households, Non-profit Institutions, Private Enterprises, Public Corporatons, Higher Educational Institutions) | B39: 6 | C39: 0 | D39: 0 | E39: 0 | F39: 0 | G39: 0 | H39: 0 | I39: 0 | J39: 0 | K39: 0 | L39: 0
A40: Transfers and subsidies - capital (in-kind - all) | C40: 0 | D40: 152108463 | E40: 696797.27 | F40: 0 | G40: 0 | H40: 0 | I40: 542806.59 | J40: 0 | K40: 0 | L40: 0
A41: Surplus/(Deficit) after capital transfers & contributions | C41: =SUM(C37:C40) -> 0 | D41: 357568615.6 | E41: 311690005.8 | F41: 732986892 | G41: 777984905 | H41: 777984905 | I41: 393431590.7 | J41: 561193026 | K41: 576927339 | L41: 617935701
A42: Taxation
A43: Surplus/(Deficit) after taxation | C43: =C41-C42 -> 0 | D43: 357568615.6 | E43: 311690005.8 | F43: 732986892 | G43: 777984905 | H43: 777984905 | I43: 393431590.7 | J43: 561193026 | K43: 576927339 | L43: 617935701
A44: Attributable to minorities
A45: Surplus/(Deficit) attributable to municipality | C45: =SUM(C43:C44) -> 0 | D45: 357568615.6 | E45: 311690005.8 | F45: 732986892 | G45: 777984905 | H45: 777984905 | I45: 393431590.7 | J45: 561193026 | K45: 576927339 | L45: 617935701
A46: Share of surplus/ (deficit) of associate | B46: 7
A47: =result -> Surplus/(Deficit) for the year | C47: =SUM(C45:C46) -> 0 | D47: 357568615.6 | E47: 311690005.8 | F47: 732986892 | G47: 777984905 | H47: 777984905 | I47: 393431590.7 | J47: 561193026 | K47: 576927339 | L47: 617935701 | M47: =M25+M46 -> 0 | N47: 0 | O47: 0 | P47: 0 | Q47: 0 | R47: 0 | S47: 0 | T47: 0 | U47: 0 | V47: 0 | W47: 0 | X47: 0
A48: =head27a -> References
A49: 1. Classifications are revenue sources and expenditure type
A50: 2. Detail to be provided in Table SA1
A51: 3. Previously described as 'bad or doubtful debts' - amounts shown should reflect the change in the provision for debt impairment
A52: 4. Expenditure type components previously shown under repairs and maintenance should be allocated back to the originating expenditure group/item; e.g. employee costs
A53: 5. Repairs & maintenance detailed in Table A9 and Table SA34c
A54: 6. Contributions are funds provided by external organisations to assist with infrastructure development; e.g. developer contributions (detail to be provided in Table SA1)
A55: 7. Equity method ( Includes Joint Ventures)
A56: 8. All materials not part of 'bulk' e.g road making materials, pipe, cable etc.
A57: check balance | C57: =C45-'A3-FinPerf V'!C39 -> 0 | D57: =D45-'A3-FinPerf V'!D39 -> -25082452.28 | E57: =E45-'A3-FinPerf V'!E39 -> -20746801.91 | F57: =F45-'A3-FinPerf V'!F39 -> -14000000 | G57: =G45-'A3-FinPerf V'!G39 -> 0 | H57: =H45-'A3-FinPerf V'!H39 -> 0 | J57: =J45-'A3-FinPerf V'!I39 -> 0 | K57: =K45-'A3-FinPerf V'!J39 -> 0 | L57: =L45-'A3-FinPerf V'!K39 -> 0
A59: Total revenue | C59: =C21+SUM(C38:C40) -> 0 | D59: 1353307861 | E59: 1443920355 | F59: 1672039831 | G59: 1765133202 | H59: 1765133202 | I59: 1163515750 | J59: 1499821823 | K59: 1627057552 | L59: 1725793129

Sheet A5-Capex
A2: =Vdesc -> Vote Description | B2: =head27 -> Ref | C2: =head1b -> 2016/17 | D2: =head1A -> 2017/18 | E2: =Head1 -> 2018/19 | F2: =Head2 -> Current Year 2019/20 | J2: =Head3 -> 2020/21 Medium Term Revenue & Expenditure Framework
A3: R thousand | B3: 1 | C3: =Head5 -> Audited Outcome | D3: =Head5 -> Audited Outcome | E3: =Head5 -> Audited Outcome | F3: =Head6 -> Original Budget | G3: =Head7 -> Adjusted Budget | H3: =Head8 -> Full Year Forecast | I3: =Head5b -> Pre-audit outcome | J3: =Head9 -> Budget Year 2020/21 | K3: =Head10 -> Budget Year +1 2021/22 | L3: =Head11 -> Budget Year +2 2022/23
A4: Capital expenditure - Vote
A5: Multi-year expenditure to be appropriated | B5: 2
A6: =A5A!A6 -> Vote 01 - Speakers Office | C6: =A5A!C6 -> 0 | D6: =A5A!D6 -> 0 | E6: =A5A!E6 -> 0 | F6: =A5A!F6 -> 0 | G6: =A5A!G6 -> 0 | H6: =A5A!H6 -> 0 | I6: =A5A!I6 -> 0 | J6: =A5A!J6 -> 0 | K6: =A5A!K6 -> 0 | L6: =A5A!L6 -> 0
A7: =A5A!A9 -> Vote 02 - Executive Mayor's Office | C7: =A5A!C9 -> 0 | D7: =A5A!D9 -> 0 | E7: =A5A!E9 -> 0 | F7: =A5A!F9 -> 0 | G7: =A5A!G9 -> 0 | H7: =A5A!H9 -> 0 | I7: =A5A!I9 -> 0 | J7: =A5A!J9 -> 0 | K7: =A5A!K9 -> 0 | L7: =A5A!L9 -> 0
A8: =A5A!A11 -> Vote 03 - Municipal Manager Office | C8: =A5A!C11 -> 0 | D8: =A5A!D11 -> 0 | E8: =A5A!E11 -> 0 | F8: =A5A!F11 -> 0 | G8: =A5A!G11 -> 0 | H8: =A5A!H11 -> 0 | I8: =A5A!I11 -> 0 | J8: =A5A!J11 -> 0 | K8: =A5A!K11 -> 0 | L8: =A5A!L11 -> 0
A9: =A5A!A13 -> Vote 04 - Budget And Treasury | C9: =A5A!C13 -> 0 | D9: =A5A!D13 -> 0 | E9: =A5A!E13 -> 0 | F9: =A5A!F13 -> 0 | G9: =A5A!G13 -> 0 | H9: =A5A!H13 -> 0 | I9: =A5A!I13 -> 0 | J9: =A5A!J13 -> 0 | K9: =A5A!K13 -> 0 | L9: =A5A!L13 -> 0
A10: =A5A!A16 -> Vote 05 - Infrustracture And Water Services | C10: =A5A!C16 -> 0 | D10: =A5A!D16 -> 0 | E10: =A5A!E16 -> 0 | F10: =A5A!F16 -> 0 | G10: =A5A!G16 -> 9158706 | H10: =A5A!H16 -> 9158706 | I10: =A5A!I16 -> 6730804.13 | J10: =A5A!J16 -> 11000000 | K10: =A5A!K16 -> 26500000 | L10: =A5A!L16 -> 29000000
A11: =A5A!A20 -> Vote 06 - Planning And Economic Development | C11: =A5A!C20 -> 0 | D11: =A5A!D20 -> 0 | E11: =A5A!E20 -> 0 | F11: =A5A!F20 -> 0 | G11: =A5A!G20 -> 0 | H11: =A5A!H20 -> 0 | I11: =A5A!I20 -> 0 | J11: =A5A!J20 -> 0 | K11: =A5A!K20 -> 0 | L11: =A5A!L20 -> 0
A12: =A5A!A22 -> Vote 07 - Community Services | C12: =A5A!C22 -> 0 | D12: =A5A!D22 -> 0 | E12: =A5A!E22 -> 0 | F12: =A5A!F22 -> 0 | G12: =A5A!G22 -> 0 | H12: =A5A!H22 -> 0 | I12: =A5A!I22 -> 0 | J12: =A5A!J22 -> 0 | K12: =A5A!K22 -> 0 | L12: =A5A!L22 -> 0
A13: =A5A!A24 -> Vote 08 - Sekhukhune Development Angancy | C13: =A5A!C24 -> 0 | D13: =A5A!D24 -> 0 | E13: =A5A!E24 -> 0 | F13: =A5A!F24 -> 0 | G13: =A5A!G24 -> 0 | H13: =A5A!H24 -> 0 | I13: =A5A!I24 -> 0 | J13: =A5A!J24 -> 0 | K13: =A5A!K24 -> 0 | L13: =A5A!L24 -> 0
A14: =A5A!A26 -> Vote 09 - Corporate Services | C14: =A5A!C26 -> 0 | D14: =A5A!D26 -> 0 | E14: =A5A!E26 -> 0 | F14: =A5A!F26 -> 0 | G14: =A5A!G26 -> 0 | H14: =A5A!H26 -> 0 | I14: =A5A!I26 -> 0 | J14: =A5A!J26 -> 0 | K14: =A5A!K26 -> 0 | L14: =A5A!L26 -> 0
A15: ='Org structure'!A11 -> Vote 10 - | C15: =A5A!C28 -> 0 | D15: =A5A!D28 -> 0 | E15: =A5A!E28 -> 0 | F15: =A5A!F28 -> 0 | G15: =A5A!G28 -> 0 | H15: =A5A!H28 -> 0 | I15: =A5A!I28 -> 0 | J15: =A5A!J28 -> 0 | K15: =A5A!K28 -> 0 | L15: =A5A!L28 -> 0
A16: ='Org structure'!A12 -> Vote 11 - | C16: =A5A!C29 -> 0 | D16: =A5A!D29 -> 0 | E16: =A5A!E29 -> 0 | F16: =A5A!F29 -> 0 | G16: =A5A!G29 -> 0 | H16: =A5A!H29 -> 0 | I16: =A5A!I29 -> 0 | J16: =A5A!J29 -> 0 | K16: =A5A!K29 -> 0 | L16: =A5A!L29 -> 0
A17: ='Org structure'!A13 -> Vote 12 - | C17: =A5A!C30 -> 0 | D17: =A5A!D30 -> 0 | E17: =A5A!E30 -> 0 | F17: =A5A!F30 -> 0 | G17: =A5A!G30 -> 0 | H17: =A5A!H30 -> 0 | I17: =A5A!I30 -> 0 | J17: =A5A!J30 -> 0 | K17: =A5A!K30 -> 0 | L17: =A5A!L30 -> 0
A18: ='Org structure'!A14 -> Vote 13 - | C18: =A5A!C31 -> 0 | D18: =A5A!D31 -> 0 | E18: =A5A!E31 -> 0 | F18: =A5A!F31 -> 0 | G18: =A5A!G31 -> 0 | H18: =A5A!H31 -> 0 | I18: =A5A!I31 -> 0 | J18: =A5A!J31 -> 0 | K18: =A5A!K31 -> 0 | L18: =A5A!L31 -> 0
A19: ='Org structure'!A15 -> Vote 14 - | C19: =A5A!C32 -> 0 | D19: =A5A!D32 -> 0 | E19: =A5A!E32 -> 0 | F19: =A5A!F32 -> 0 | G19: =A5A!G32 -> 0 | H19: =A5A!H32 -> 0 | I19: =A5A!I32 -> 0 | J19: =A5A!J32 -> 0 | K19: =A5A!K32 -> 0 | L19: =A5A!L32 -> 0
A20: =A5A!A33 -> Vote 15 - Other | C20: =A5A!C33 -> 0 | D20: =A5A!D33 -> 0 | E20: =A5A!E33 -> 0 | F20: =A5A!F33 -> 0 | G20: =A5A!G33 -> 0 | H20: =A5A!H33 -> 0 | I20: =A5A!I33 -> 0 | J20: =A5A!J33 -> 0 | K20: =A5A!K33 -> 0 | L20: =A5A!L33 -> 0
A21: Capital multi-year expenditure sub-total | B21: 7 | C21: =SUM(C6:C20) -> 0 | D21: =SUM(D6:D20) -> 0 | E21: 0 | F21: 0 | G21: 9158706 | H21: =SUM(H6:H20) -> 9158706 | I21: 6730804.13 | J21: 11000000 | K21: 26500000 | L21: 29000000
A23: Single-year expenditure to be appropriated | B23: 2
A24: =A5A!A39 -> Vote 01 - Speakers Office | C24: =A5A!C39 -> 0 | D24: =A5A!D39 -> 0 | E24: =A5A!E39 -> 0 | F24: =A5A!F39 -> 0 | G24: =A5A!G39 -> 0 | H24: =A5A!H39 -> 0 | I24: =A5A!I39 -> 0 | J24: =A5A!J39 -> 0 | K24: =A5A!K39 -> 0 | L24: =A5A!L39 -> 0
A25: =A5A!A42 -> Vote 02 - Executive Mayor's Office | C25: =A5A!C42 -> 0 | D25: =A5A!D42 -> 0 | E25: =A5A!E42 -> 0 | F25: =A5A!F42 -> 0 | G25: =A5A!G42 -> 0 | H25: =A5A!H42 -> 0 | I25: =A5A!I42 -> 0 | J25: =A5A!J42 -> 0 | K25: =A5A!K42 -> 0 | L25: =A5A!L42 -> 0
A26: =A5A!A44 -> Vote 03 - Municipal Manager Office | C26: =A5A!C44 -> 0 | D26: =A5A!D44 -> 0 | E26: =A5A!E44 -> 0 | F26: =A5A!F44 -> 0 | G26: =A5A!G44 -> 0 | H26: =A5A!H44 -> 0 | I26: =A5A!I44 -> 0 | J26: =A5A!J44 -> 0 | K26: =A5A!K44 -> 0 | L26: =A5A!L44 -> 0
A27: =A5A!A46 -> Vote 04 - Budget And Treasury | C27: =A5A!C46 -> 0 | D27: =A5A!D46 -> 0 | E27: =A5A!E46 -> 0 | F27: =A5A!F46 -> 0 | G27: =A5A!G46 -> 0 | H27: =A5A!H46 -> 0 | I27: =A5A!I46 -> 0 | J27: =A5A!J46 -> 0 | K27: =A5A!K46 -> 0 | L27: =A5A!L46 -> 0
A28: =A5A!A49 -> Vote 05 - Infrustracture And Water Services | C28: =A5A!C49 -> 0 | D28: =A5A!D49 -> 348038357.1 | E28: =A5A!E49 -> 457492910.4 | F28: =A5A!F49 -> 709125000 | G28: =A5A!G49 -> 673114072 | H28: =A5A!H49 -> 673114072 | I28: =A5A!I49 -> 289399655.3 | J28: =A5A!J49 -> 455886001 | K28: =A5A!K49 -> 484697001 | L28: =A5A!L49 -> 506034000
A29: =A5A!A53 -> Vote 06 - Planning And Economic Development | C29: =A5A!C53 -> 0 | D29: =A5A!D53 -> 0 | E29: =A5A!E53 -> 0 | F29: =A5A!F53 -> 0 | G29: =A5A!G53 -> 0 | H29: =A5A!H53 -> 0 | I29: =A5A!I53 -> 0 | J29: =A5A!J53 -> 0 | K29: =A5A!K53 -> 0 | L29: =A5A!L53 -> 0
A30: =A5A!A55 -> Vote 07 - Community Services | C30: =A5A!C55 -> 0 | D30: =A5A!D55 -> 0 | E30: =A5A!E55 -> 0 | F30: =A5A!F55 -> 0 | G30: =A5A!G55 -> 0 | H30: =A5A!H55 -> 0 | I30: =A5A!I55 -> 0 | J30: =A5A!J55 -> 0 | K30: =A5A!K55 -> 0 | L30: =A5A!L55 -> 0
A31: =A5A!A57 -> Vote 08 - Sekhukhune Development Angancy | C31: =A5A!C57 -> 0 | D31: =A5A!D57 -> 0 | E31: =A5A!E57 -> 0 | F31: =A5A!F57 -> 0 | G31: =A5A!G57 -> 0 | H31: =A5A!H57 -> 0 | I31: =A5A!I57 -> 0 | J31: =A5A!J57 -> 0 | K31: =A5A!K57 -> 0 | L31: =A5A!L57 -> 0
A32: =A5A!A59 -> Vote 09 - Corporate Services | C32: =A5A!C59 -> 0 | D32: =A5A!D59 -> 0 | E32: =A5A!E59 -> 0 | F32: =A5A!F59 -> 0 | G32: =A5A!G59 -> 0 | H32: =A5A!H59 -> 0 | I32: =A5A!I59 -> 0 | J32: =A5A!J59 -> 0 | K32: =A5A!K59 -> 0 | L32: =A5A!L59 -> 0
A33: ='Org structure'!A11 -> Vote 10 - | C33: =A5A!C61 -> 0 | D33: =A5A!D61 -> 0 | E33: =A5A!E61 -> 0 | F33: =A5A!F61 -> 0 | G33: =A5A!G61 -> 0 | H33: =A5A!H61 -> 0 | I33: =A5A!I61 -> 0 | J33: =A5A!J61 -> 0 | K33: =A5A!K61 -> 0 | L33: =A5A!L61 -> 0
A34: ='Org structure'!A12 -> Vote 11 - | C34: =A5A!C62 -> 0 | D34: =A5A!D62 -> 0 | E34: =A5A!E62 -> 0 | F34: =A5A!F62 -> 0 | G34: =A5A!G62 -> 0 | H34: =A5A!H62 -> 0 | I34: =A5A!I62 -> 0 | J34: =A5A!J62 -> 0 | K34: =A5A!K62 -> 0 | L34: =A5A!L62 -> 0
A35: ='Org structure'!A13 -> Vote 12 - | C35: =A5A!C63 -> 0 | D35: =A5A!D63 -> 0 | E35: =A5A!E63 -> 0 | F35: =A5A!F63 -> 0 | G35: =A5A!G63 -> 0 | H35: =A5A!H63 -> 0 | I35: =A5A!I63 -> 0 | J35: =A5A!J63 -> 0 | K35: =A5A!K63 -> 0 | L35: =A5A!L63 -> 0
A36: ='Org structure'!A14 -> Vote 13 - | C36: =A5A!C64 -> 0 | D36: =A5A!D64 -> 0 | E36: =A5A!E64 -> 0 | F36: =A5A!F64 -> 0 | G36: =A5A!G64 -> 0 | H36: =A5A!H64 -> 0 | I36: =A5A!I64 -> 0 | J36: =A5A!J64 -> 0 | K36: =A5A!K64 -> 0 | L36: =A5A!L64 -> 0
A37: ='Org structure'!A15 -> Vote 14 - | C37: =A5A!C65 -> 0 | D37: =A5A!D65 -> 0 | E37: =A5A!E65 -> 0 | F37: =A5A!F65 -> 0 | G37: =A5A!G65 -> 0 | H37: =A5A!H65 -> 0 | I37: =A5A!I65 -> 0 | J37: =A5A!J65 -> 0 | K37: =A5A!K65 -> 0 | L37: =A5A!L65 -> 0
A38: =A5A!A66 -> Vote 15 - Other | C38: =A5A!C66 -> 0 | D38: =A5A!D66 -> 0 | E38: =A5A!E66 -> 0 | F38: =A5A!F66 -> 0 | G38: =A5A!G66 -> 0 | H38: =A5A!H66 -> 0 | I38: =A5A!I66 -> 0 | J38: =A5A!J66 -> 0 | K38: =A5A!K66 -> 0 | L38: =A5A!L66 -> 0
A39: Capital single-year expenditure sub-total | C39: =SUM(C24:C38) -> 0 | D39: =SUM(D24:D38) -> 348038357.1 | E39: 457492910.4 | F39: 709125000 | G39: 673114072 | H39: 673114072 | I39: 289399655.3 | J39: 455886001 | K39: 484697001 | L39: 506034000
A40: Total Capital Expenditure - Vote | C40: =C39+C21 -> 0 | D40: =D39+D21 -> 348038357.1 | E40: 457492910.4 | F40: 709125000 | G40: 682272778 | H40: 682272778 | I40: 296130459.4 | J40: 466886001 | K40: 511197001 | L40: 535034000
A42: Capital Expenditure - Functional
A43: Governance and administration | C43: =SUM(C44:C46) -> 0 | D43: =SUM(D44:D46) -> 0 | E43: 0 | F43: 0 | G43: 0 | H43: 0 | I43: 0 | J43: 0 | K43: 0 | L43: 0
A44: Executive and council
A45: Finance and administration | C45: 0 | D45: 0 | E45: 0 | F45: 0 | G45: 0 | H45: 0 | I45: 0 | J45: 0 | K45: 0 | L45: 0
A46: Internal audit
A47: Community and public safety | C47: =SUM(C48:C52) -> 0 | D47: =SUM(D48:D52) -> 0 | E47: 0 | F47: 0 | G47: 0 | H47: 0 | I47: 0 | J47: 0 | K47: 0 | L47: 0
A48: Community and social services
A49: Sport and recreation
A50: Public safety
A51: Housing
A52: Health
A53: Economic and environmental services | C53: =SUM(C54:C56) -> 0 | D53: =SUM(D54:D56) -> 0 | E53: 0 | F53: 0 | G53: 0 | H53: 0 | I53: 0 | J53: 0 | K53: 0 | L53: 0
A54: Planning and development
A55: Road transport
A56: Environmental protection
A57: Trading services | C57: =SUM(C58:C61) -> 0 | D57: =SUM(D58:D61) -> 348038357.1 | E57: 457492910.4 | F57: 709125000 | G57: 682272778 | H57: 682272778 | I57: 296130459.4 | J57: 459586000 | K57: 509997000 | L57: 533834000
A58: Energy sources
A59: Water management | C59: 0 | D59: 312525601.7 | E59: 446548116.3 | F59: 709125000 | G59: 682272778 | H59: 682272778 | I59: 296130459.4 | J59: 459586000 | K59: 509997000 | L59: 533834000
A60: Waste water management | C60: 0 | D60: 35512755.42 | E60: 10944794.03 | F60: 0 | G60: 0 | H60: 0 | I60: 0 | J60: 0 | K60: 0 | L60: 0
A61: Waste management
A62: Other
A63: Total Capital Expenditure - Functional | B63: 3 | C63: =C43+C47+C53+C57+C62 -> 0 | D63: =D43+D47+D53+D57+D62 -> 348038357.1 | E63: 457492910.4 | F63: 709125000 | G63: 682272778 | H63: 682272778 | I63: 296130459.4 | J63: 459586000 | K63: 509997000 | L63: =L43+L47+L53+L57+L62 -> 533834000
A65: Funded by:
A66: National Government | C66: 0 | D66: 346343111.8 | E66: 449103607.4 | F66: 690000000 | G66: 662294204 | H66: 662294204 | I66: 289043691 | J66: =594586001-135000000 -> 459586001 | K66: =659472001-149475000 -> 509997001 | L66: =661829000-127995000 -> 533834000
A67: Provincial Government
A68: District Municipality
A69: ='A4-FinPerf RE'!A39 -> Transfers and subsidies - capital (monetary allocations) (National / Provincial Departmental Agencies, Households, Non-profit Institutions, Private Enterprises, Public Corporatons, Higher Educational Institutions)
A70: Transfers recognised - capital | B70: 4 | C70: =SUM(C66:C69) -> 0 | D70: 346343111.8 | E70: 449103607.4 | F70: 690000000 | G70: 662294204 | H70: 662294204 | I70: 289043691 | J70: 459586001 | K70: 509997001 | L70: 533834000
A72: Borrowing | B72: 6
A73: Internally generated funds | C73: 0 | D73: 0 | E73: 8740883.9 | F73: 19125000 | G73: 19978574 | H73: 19978574 | I73: 7086768.38 | J73: 7300000 | K73: 1200000 | L73: 1200000
A74: Total Capital Funding | B74: 7 | C74: =+C70+C72+C73 -> 0 | D74: =+D70+D72+D73 -> 346343111.8 | E74: 457844491.3 | F74: 709125000 | G74: 682272778 | H74: 682272778 | I74: 296130459.4 | J74: 466886001 | K74: 511197001 | L74: 535034000
A75: =head27a -> References
A76: 1. Municipalities may choose to appropriate for capital expenditure for three years or for one year (if one year appropriation projected expenditure required for yr2 and yr3).
A77: 2. Include capital component of PPP unitary payment. Note that capital transfers are only appropriated to municipalities for the budget year
A78: 3. Capital expenditure by functional classification must reconcile to the appropriations by vote
A79: 4. Must reconcile to supporting table SA20 and to Budgeted Financial Performance (revenue and expenditure)
A81: 6. Include finance leases and PPP capital funding component of unitary payment - total borrowing/repayments to reconcile to changes in Table SA17
A82: 7. Total Capital Funding must balance with Total Capital Expenditure
A83: 8. Include any capitalised interest (MFMA section 46) as part of relevant capital budget
A85: check balance | C85: =IF((C63-C74)=0,0,"Unbalanced") -> 0 | D85: =IF((D63-D74)=0,0,"Unbalanced") -> Unbalanced | E85: Unbalanced | F85: 0 | G85: 0 | H85: 0 | I85: Unbalanced | J85: Unbalanced | K85: Unbalanced | L85: Unbalanced

Sheet A5A
A1: =muni&" - "&Approve5 -> DC47 Sekhukhune - Table A5 Budgeted Capital Expenditure by vote, functional classification and funding
A2: =Vdesc -> Vote Description | B2: =head27 -> Ref | C2: =head1b -> 2016/17 | D2: =head1A -> 2017/18 | E2: =Head1 -> 2018/19 | F2: =Head2 -> Current Year 2019/20 | J2: =Head3 -> 2020/21 Medium Term Revenue & Expenditure Framework | N2: ="Multi-year appropriation for "&Head9& " in the "&Head2A&" Annual Budget" -> Multi-year appropriation for Budget Year 2020/21 in the 2019/20 Annual Budget | R2: ="Multi-year appropriation for "&RIGHT(Head10,7)& " in the "&Head2A&" Annual Budget" -> Multi-year appropriation for 2021/22 in the 2019/20 Annual Budget | V2: New multi-year appropriations (funds for new and existing projects)
A3: R thousand | B3: 1 | C3: =Head5 -> Audited Outcome | D3: =Head5 -> Audited Outcome | E3: =Head5 -> Audited Outcome | F3: =Head6 -> Original Budget | G3: =Head7 -> Adjusted Budget | H3: =Head8 -> Full Year Forecast | I3: =Head5b -> Pre-audit outcome | J3: =Head9 -> Budget Year 2020/21 | K3: =Head10 -> Budget Year +1 2021/22 | L3: =Head11 -> Budget Year +2 2022/23 | N3: ="Appropriation for "&RIGHT(Head9,7) -> Appropriation for 2020/21 | O3: ="Adjustments in "&Head2A -> Adjustments in 2019/20 | P3: ="Downward adjustments for "&RIGHT(Head9,7) -> Downward adjustments for 2020/21 | Q3: Appropriation carried forward | R3: ="Appropriation for "&RIGHT(Head9,7) -> Appropriation for 2020/21 | S3: ="Adjustments in "&Head2A -> Adjustments in 2019/20 | T3: ="Downward adjustments for "&RIGHT(Head9,7) -> Downward adjustments for 2020/21 | U3: Appropriation carried forward | V3: =Head9 -> Budget Year 2020/21 | W3: =Head10 -> Budget Year +1 2021/22 | X3: =Head11 -> Budget Year +2 2022/23
A4: Capital expenditure - Municipal Vote
A5: Multi-year expenditure appropriation | B5: 2
A6: ='Org structure'!A2 -> Vote 01 - Speakers Office | C6: =SUM(C7:C8) -> 0 | D6: 0 | E6: 0 | F6: 0 | G6: 0 | H6: 0 | I6: 0 | J6: 0 | K6: 0 | L6: 0 | N6: =SUM(N7:N8) -> 0 | O6: 0 | P6: 0 | Q6: 0 | R6: 0 | S6: 0 | T6: 0 | U6: 0 | V6: 0 | W6: 0 | X6: 0
A7: ='Org structure'!E3 -> 01.1 - Office Of The Speaker | C7: 0 | D7: 0 | E7: 0 | F7: 0 | G7: 0 | H7: 0 | I7: 0 | J7: =Q7+V7 -> 0 | K7: =U7+W7 -> 0 | L7: =X7 -> 0 | N7: 0 | O7: 0 | P7: 0 | Q7: =SUM(N7:P7) -> 0 | R7: 0 | S7: 0 | T7: 0 | U7: =SUM(R7:T7) -> 0 | V7: 0 | W7: 0 | X7: 0
A8: ='Org structure'!E4 -> 01.2 - Office Of The Chief Whip | C8: 0 | D8: 0 | E8: 0 | F8: 0 | G8: 0 | H8: 0 | I8: 0 | J8: =Q8+V8 -> 0 | K8: =U8+W8 -> 0 | L8: =X8 -> 0 | N8: 0 | O8: 0 | P8: 0 | Q8: =SUM(N8:P8) -> 0 | R8: 0 | S8: 0 | T8: 0 | U8: =SUM(R8:T8) -> 0 | V8: 0 | W8: 0 | X8: 0
A9: ='Org structure'!A3 -> Vote 02 - Executive Mayor's Office | C9: =SUM(C10:C10) -> 0 | D9: 0 | E9: 0 | F9: 0 | G9: 0 | H9: 0 | I9: 0 | J9: 0 | K9: 0 | L9: 0 | N9: =SUM(N10:N10) -> 0 | O9: 0 | P9: 0 | Q9: 0 | R9: 0 | S9: 0 | T9: 0 | U9: 0 | V9: 0 | W9: 0 | X9: 0
A10: ='Org structure'!E6 -> 02.1 - Executive Mayor's Office | C10: 0 | D10: 0 | E10: 0 | F10: 0 | G10: 0 | H10: 0 | I10: 0 | J10: =Q10+V10 -> 0 | K10: =U10+W10 -> 0 | L10: =X10 -> 0 | N10: 0 | O10: 0 | P10: 0 | Q10: =SUM(N10:P10) -> 0 | R10: 0 | S10: 0 | T10: 0 | U10: =SUM(R10:T10) -> 0 | V10: 0 | W10: 0 | X10: 0
A11: ='Org structure'!A4 -> Vote 03 - Municipal Manager Office | C11: =SUM(C12:C12) -> 0 | D11: 0 | E11: 0 | F11: 0 | G11: 0 | H11: 0 | I11: 0 | J11: 0 | K11: 0 | L11: 0 | N11: =SUM(N12:N12) -> 0 | O11: 0 | P11: 0 | Q11: 0 | R11: 0 | S11: 0 | T11: 0 | U11: 0 | V11: 0 | W11: 0 | X11: 0
A12: ='Org structure'!E8 -> 03.1 - Municipal Manager Admin | C12: 0 | D12: 0 | E12: 0 | F12: 0 | G12: 0 | H12: 0 | I12: 0 | J12: =Q12+V12 -> 0 | K12: =U12+W12 -> 0 | L12: =X12 -> 0 | N12: 0 | O12: 0 | P12: 0 | Q12: =SUM(N12:P12) -> 0 | R12: 0 | S12: 0 | T12: 0 | U12: =SUM(R12:T12) -> 0 | V12: 0 | W12: 0 | X12: 0
A13: ='Org structure'!A5 -> Vote 04 - Budget And Treasury | C13: =SUM(C14:C15) -> 0 | D13: 0 | E13: 0 | F13: 0 | G13: 0 | H13: 0 | I13: 0 | J13: 0 | K13: 0 | L13: 0 | N13: =SUM(N14:N15) -> 0 | O13: 0 | P13: 0 | Q13: 0 | R13: 0 | S13: 0 | T13: 0 | U13: 0 | V13: 0 | W13: 0 | X13: 0
A14: ='Org structure'!E10 -> 04.1 - Budget & Treasury Admin | C14: 0 | D14: 0 | E14: 0 | F14: 0 | G14: 0 | H14: 0 | I14: 0 | J14: =Q14+V14 -> 0 | K14: =U14+W14 -> 0 | L14: =X14 -> 0 | N14: 0 | O14: 0 | P14: 0 | Q14: =SUM(N14:P14) -> 0 | R14: 0 | S14: 0 | T14: 0 | U14: =SUM(R14:T14) -> 0 | V14: 0 | W14: 0 | X14: 0
A15: ='Org structure'!E11 -> 04.2 - Budget & Treasury Admin | C15: 0 | D15: 0 | E15: 0 | F15: 0 | G15: 0 | H15: 0 | I15: 0 | J15: =Q15+V15 -> 0 | K15: =U15+W15 -> 0 | L15: =X15 -> 0 | N15: 0 | O15: 0 | P15: 0 | Q15: =SUM(N15:P15) -> 0 | R15: 0 | S15: 0 | T15: 0 | U15: =SUM(R15:T15) -> 0 | V15: 0 | W15: 0 | X15: 0
A16: ='Org structure'!A6 -> Vote 05 - Infrustracture And Water Services | C16: =SUM(C17:C19) -> 0 | D16: 0 | E16: 0 | F16: 0 | G16: 9158706 | H16: 9158706 | I16: 6730804.13 | J16: 11000000 | K16: 26500000 | L16: 29000000 | N16: =SUM(N17:N19) -> 11000000 | O16: 0 | P16: 0 | Q16: 11000000 | R16: 26500000 | S16: 0 | T16: 0 | U16: 26500000 | V16: 0 | W16: 0 | X16: 29000000
A17: ='Org structure'!E13 -> 05.1 - Technical Services Admin | C17: 0 | D17: 0 | E17: 0 | F17: 0 | G17: 0 | H17: 0 | I17: 0 | J17: =Q17+V17 -> 0 | K17: =U17+W17 -> 0 | L17: =X17 -> 0 | N17: 0 | O17: 0 | P17: 0 | Q17: =SUM(N17:P17) -> 0 | R17: 0 | S17: 0 | T17: 0 | U17: =SUM(R17:T17) -> 0 | V17: 0 | W17: 0 | X17: 0
A18: ='Org structure'!E14 -> 05.2 - Water Services | C18: 0 | D18: 0 | E18: 0 | F18: 0 | G18: 9158706 | H18: 9158706 | I18: 6730804.13 | J18: =Q18+V18 -> 11000000 | K18: =U18+W18 -> 26500000 | L18: =X18 -> 29000000 | N18: 11000000 | O18: 0 | P18: 0 | Q18: =SUM(N18:P18) -> 11000000 | R18: 26500000 | S18: 0 | T18: 0 | U18: =SUM(R18:T18) -> 26500000 | V18: 0 | W18: 0 | X18: 29000000
A19: ='Org structure'!E15 -> 05.3 - Sanitation Services | C19: 0 | D19: 0 | E19: 0 | F19: 0 | G19: 0 | H19: 0 | I19: 0 | J19: =Q19+V19 -> 0 | K19: =U19+W19 -> 0 | L19: =X19 -> 0 | N19: 0 | O19: 0 | P19: 0 | Q19: =SUM(N19:P19) -> 0 | R19: 0 | S19: 0 | T19: 0 | U19: =SUM(R19:T19) -> 0 | V19: 0 | W19: 0 | X19: 0
A20: ='Org structure'!A7 -> Vote 06 - Planning And Economic Development | C20: =SUM(C21:C21) -> 0 | D20: 0 | E20: 0 | F20: 0 | G20: 0 | H20: 0 | I20: 0 | J20: 0 | K20: 0 | L20: 0 | N20: =SUM(N21:N21) -> 0 | O20: 0 | P20: 0 | Q20: 0 | R20: 0 | S20: 0 | T20: 0 | U20: 0 | V20: 0 | W20: 0 | X20: 0
A21: ='Org structure'!E17 -> 06.1 - Planning & Economic Dev Admin | C21: 0 | D21: 0 | E21: 0 | F21: 0 | G21: 0 | H21: 0 | I21: 0 | J21: =Q21+V21 -> 0 | K21: =U21+W21 -> 0 | L21: =X21 -> 0 | N21: 0 | O21: 0 | P21: 0 | Q21: =SUM(N21:P21) -> 0 | R21: 0 | S21: 0 | T21: 0 | U21: =SUM(R21:T21) -> 0 | V21: 0 | W21: 0 | X21: 0
A22: ='Org structure'!A8 -> Vote 07 - Community Services | C22: =SUM(C23:C23) -> 0 | D22: 0 | E22: 0 | F22: 0 | G22: 0 | H22: 0 | I22: 0 | J22: 0 | K22: 0 | L22: 0 | N22: =SUM(N23:N23) -> 0 | O22: 0 | P22: 0 | Q22: 0 | R22: 0 | S22: 0 | T22: 0 | U22: 0 | V22: 0 | W22: 0 | X22: 0
A23: ='Org structure'!E19 -> 07.1 - Community Services Admin | C23: 0 | D23: 0 | E23: 0 | F23: 0 | G23: 0 | H23: 0 | I23: 0 | J23: =Q23+V23 -> 0 | K23: =U23+W23 -> 0 | L23: =X23 -> 0 | N23: 0 | O23: 0 | P23: 0 | Q23: =SUM(N23:P23) -> 0 | R23: 0 | S23: 0 | T23: 0 | U23: =SUM(R23:T23) -> 0 | V23: 0 | W23: 0 | X23: 0
A24: ='Org structure'!A9 -> Vote 08 - Sekhukhune Development Angancy | C24: =SUM(C25:C25) -> 0 | D24: 0 | E24: 0 | F24: 0 | G24: 0 | H24: 0 | I24: 0 | J24: 0 | K24: 0 | L24: 0 | N24: =SUM(N25:N25) -> 0 | O24: 0 | P24: 0 | Q24: 0 | R24: 0 | S24: 0 | T24: 0 | U24: 0 | V24: 0 | W24: 0 | X24: 0
A25: ='Org structure'!E21 -> 08.1 - Sekhukhune Development Agency | C25: 0 | D25: 0 | E25: 0 | F25: 0 | G25: 0 | H25: 0 | I25: 0 | J25: =Q25+V25 -> 0 | K25: =U25+W25 -> 0 | L25: =X25 -> 0 | N25: 0 | O25: 0 | P25: 0 | Q25: =SUM(N25:P25) -> 0 | R25: 0 | S25: 0 | T25: 0 | U25: =SUM(R25:T25) -> 0 | V25: 0 | W25: 0 | X25: 0
A26: ='Org structure'!A10 -> Vote 09 - Corporate Services | C26: =SUM(C27:C27) -> 0 | D26: 0 | E26: 0 | F26: 0 | G26: 0 | H26: 0 | I26: 0 | J26: 0 | K26: 0 | L26: 0 | N26: =SUM(N27:N27) -> 0 | O26: 0 | P26: 0 | Q26: 0 | R26: 0 | S26: 0 | T26: 0 | U26: 0 | V26: 0 | W26: 0 | X26: 0
A27: ='Org structure'!E23 -> 09.1 - Corporate Services Admin | C27: 0 | D27: 0 | E27: 0 | F27: 0 | G27: 0 | H27: 0 | I27: 0 | J27: =Q27+V27 -> 0 | K27: =U27+W27 -> 0 | L27: =X27 -> 0 | N27: 0 | O27: 0 | P27: 0 | Q27: =SUM(N27:P27) -> 0 | R27: 0 | S27: 0 | T27: 0 | U27: =SUM(R27:T27) -> 0 | V27: 0 | W27: 0 | X27: 0
A28: ='Org structure'!A11 -> Vote 10 - | C28: 0 | D28: 0 | E28: 0 | F28: 0 | G28: 0 | H28: 0 | I28: 0 | J28: 0 | K28: 0 | L28: 0 | N28: 0 | O28: 0 | P28: 0 | Q28: 0 | R28: 0 | S28: 0 | T28: 0 | U28: 0 | V28: 0 | W28: 0
A29: ='Org structure'!A12 -> Vote 11 - | C29: 0 | D29: 0 | E29: 0 | F29: 0 | G29: 0 | H29: 0 | I29: 0 | J29: 0 | K29: 0 | L29: 0 | N29: 0 | O29: 0 | P29: 0 | Q29: 0 | R29: 0 | S29: 0 | T29: 0 | U29: 0 | V29: 0 | W29: 0
A30: ='Org structure'!A13 -> Vote 12 - | C30: 0 | D30: 0 | E30: 0 | F30: 0 | G30: 0 | H30: 0 | I30: 0 | J30: 0 | K30: 0 | L30: 0 | N30: 0 | O30: 0 | P30: 0 | Q30: 0 | R30: 0 | S30: 0 | T30: 0 | U30: 0 | V30: 0 | W30: 0
A31: ='Org structure'!A14 -> Vote 13 - | C31: 0 | D31: 0 | E31: 0 | F31: 0 | G31: 0 | H31: 0 | I31: 0 | J31: 0 | K31: 0 | L31: 0 | N31: 0 | O31: 0 | P31: 0 | Q31: 0 | R31: 0 | S31: 0 | T31: 0 | U31: 0 | V31: 0 | W31: 0
A32: ='Org structure'!A15 -> Vote 14 - | C32: 0 | D32: 0 | E32: 0 | F32: 0 | G32: 0 | H32: 0 | I32: 0 | J32: 0 | K32: 0 | L32: 0 | N32: 0 | O32: 0 | P32: 0 | Q32: 0 | R32: 0 | S32: 0 | T32: 0 | U32: 0 | V32: 0 | W32: 0
A33: ='Org structure'!A16 -> Vote 15 - Other | C33: =SUM(C34:C34) -> 0 | D33: 0 | E33: 0 | F33: 0 | G33: 0 | H33: 0 | I33: 0 | J33: 0 | K33: 0 | L33: 0 | N33: =SUM(N34:N34) -> 0 | O33: 0 | P33: 0 | Q33: 0 | R33: 0 | S33: 0 | T33: 0 | U33: 0 | V33: 0 | W33: 0 | X33: 0
A34: ='Org structure'!E30 -> 15.1 - Electricity Reporting Function | C34: 0 | D34: 0 | E34: 0 | F34: 0 | G34: 0 | H34: 0 | I34: 0 | J34: =Q34+V34 -> 0 | K34: =U34+W34 -> 0 | L34: =X34 -> 0 | N34: 0 | O34: 0 | P34: 0 | Q34: =SUM(N34:P34) -> 0 | R34: 0 | S34: 0 | T34: 0 | U34: =SUM(R34:T34) -> 0 | V34: 0 | W34: 0 | X34: 0
A35: Capital multi-year expenditure sub-total | C35: =C6+C9+C11+C13+C16+C20+C22+C24+C26+C28+C29+C30+C31+C32+C33 -> 0 | D35: 0 | E35: 0 | F35: 0 | G35: 9158706 | H35: 9158706 | I35: 6730804.13 | J35: 11000000 | K35: 26500000 | L35: 29000000 | N35: =N6+N9+N11+N13+N16+N20+N22+N24+N26+N28+N29+N30+N31+N32+N33 -> 11000000 | O35: 0 | P35: 0 | Q35: 11000000 | R35: 26500000 | S35: 0 | T35: 0 | U35: 26500000 | V35: 0 | W35: 0
A37: Capital expenditure - Municipal Vote
A38: Single-year expenditure appropriation | B38: 2
A39: ='Org structure'!A2 -> Vote 01 - Speakers Office | C39: =SUM(C40:C41) -> 0 | D39: 0 | E39: 0 | F39: 0 | G39: 0 | H39: 0 | I39: 0 | J39: 0 | K39: 0 | L39: 0
A40: ='Org structure'!E3 -> 01.1 - Office Of The Speaker | C40: 0 | D40: 0 | E40: 0 | F40: 0 | G40: 0 | H40: 0 | I40: 0 | J40: 0 | K40: 0 | L40: 0
A41: ='Org structure'!E4 -> 01.2 - Office Of The Chief Whip | C41: 0 | D41: 0 | E41: 0 | F41: 0 | G41: 0 | H41: 0 | I41: 0 | J41: 0 | K41: 0 | L41: 0
A42: ='Org structure'!A3 -> Vote 02 - Executive Mayor's Office | C42: =SUM(C43:C43) -> 0 | D42: 0 | E42: 0 | F42: 0 | G42: 0 | H42: 0 | I42: 0 | J42: 0 | K42: 0 | L42: 0
A43: ='Org structure'!E6 -> 02.1 - Executive Mayor's Office | C43: 0 | D43: 0 | E43: 0 | F43: 0 | G43: 0 | H43: 0 | I43: 0 | J43: 0 | K43: 0 | L43: 0
A44: ='Org structure'!A4 -> Vote 03 - Municipal Manager Office | C44: =SUM(C45:C45) -> 0 | D44: 0 | E44: 0 | F44: 0 | G44: 0 | H44: 0 | I44: 0 | J44: 0 | K44: 0 | L44: 0
A45: ='Org structure'!E8 -> 03.1 - Municipal Manager Admin | C45: 0 | D45: 0 | E45: 0 | F45: 0 | G45: 0 | H45: 0 | I45: 0 | J45: 0 | K45: 0 | L45: 0
A46: ='Org structure'!A5 -> Vote 04 - Budget And Treasury | C46: =SUM(C47:C48) -> 0 | D46: 0 | E46: 0 | F46: 0 | G46: 0 | H46: 0 | I46: 0 | J46: 0 | K46: 0 | L46: 0
A47: ='Org structure'!E10 -> 04.1 - Budget & Treasury Admin | C47: 0 | D47: 0 | E47: 0 | F47: 0 | G47: 0 | H47: 0 | I47: 0 | J47: 0 | K47: 0 | L47: 0
A48: ='Org structure'!E11 -> 04.2 - Budget & Treasury Admin | C48: 0 | D48: 0 | E48: 0 | F48: 0 | G48: 0 | H48: 0 | I48: 0 | J48: 0 | K48: 0 | L48: 0
A49: ='Org structure'!A6 -> Vote 05 - Infrustracture And Water Services | C49: =SUM(C50:C52) -> 0 | D49: 348038357.1 | E49: 457492910.4 | F49: 709125000 | G49: 673114072 | H49: 673114072 | I49: 289399655.3 | J49: 455886001 | K49: 484697001 | L49: 506034000
A50: ='Org structure'!E13 -> 05.1 - Technical Services Admin | C50: 0 | D50: 0 | E50: 0 | F50: 0 | G50: 0 | H50: 0 | I50: 0 | J50: 0 | K50: 0 | L50: 0
A51: ='Org structure'!E14 -> 05.2 - Water Services | C51: 0 | D51: 312525601.7 | E51: 446548116.3 | F51: 709125000 | G51: 673114072 | H51: 673114072 | I51: 289399655.3 | J51: =590886001-135000000 -> 455886001 | K51: =634172001-149475000 -> 484697001 | L51: =634029000-127995000 -> 506034000
A52: ='Org structure'!E15 -> 05.3 - Sanitation Services | C52: 0 | D52: 35512755.42 | E52: 10944794.03 | F52: 0 | G52: 0 | H52: 0 | I52: 0 | J52: 0 | K52: 0 | L52: 0
A53: ='Org structure'!A7 -> Vote 06 - Planning And Economic Development | C53: =SUM(C54:C54) -> 0 | D53: 0 | E53: 0 | F53: 0 | G53: 0 | H53: 0 | I53: 0 | J53: 0 | K53: 0 | L53: 0
A54: ='Org structure'!E17 -> 06.1 - Planning & Economic Dev Admin | C54: 0 | D54: 0 | E54: 0 | F54: 0 | G54: 0 | H54: 0 | I54: 0 | J54: 0 | K54: 0 | L54: 0
A55: ='Org structure'!A8 -> Vote 07 - Community Services | C55: =SUM(C56:C56) -> 0 | D55: 0 | E55: 0 | F55: 0 | G55: 0 | H55: 0 | I55: 0 | J55: 0 | K55: 0 | L55: 0
A56: ='Org structure'!E19 -> 07.1 - Community Services Admin | C56: 0 | D56: 0 | E56: 0 | F56: 0 | G56: 0 | H56: 0 | I56: 0 | J56: 0 | K56: 0 | L56: 0
A57: ='Org structure'!A9 -> Vote 08 - Sekhukhune Development Angancy | C57: =SUM(C58:C58) -> 0 | D57: 0 | E57: 0 | F57: 0 | G57: 0 | H57: 0 | I57: 0 | J57: 0 | K57: 0 | L57: 0
A58: ='Org structure'!E21 -> 08.1 - Sekhukhune Development Agency | C58: 0 | D58: 0 | E58: 0 | F58: 0 | G58: 0 | H58: 0 | I58: 0 | J58: 0 | K58: 0 | L58: 0
A59: ='Org structure'!A10 -> Vote 09 - Corporate Services | C59: =SUM(C60:C60) -> 0 | D59: 0 | E59: 0 | F59: 0 | G59: 0 | H59: 0 | I59: 0 | J59: 0 | K59: 0 | L59: 0
A60: ='Org structure'!E23 -> 09.1 - Corporate Services Admin | C60: 0 | D60: 0 | E60: 0 | F60: 0 | G60: 0 | H60: 0 | I60: 0 | J60: 0 | K60: 0 | L60: 0
A61: ='Org structure'!A11 -> Vote 10 - | C61: 0 | D61: 0 | E61: 0 | F61: 0 | G61: 0 | H61: 0 | I61: 0 | J61: 0 | K61: 0 | L61: 0
A62: ='Org structure'!A12 -> Vote 11 - | C62: 0 | D62: 0 | E62: 0 | F62: 0 | G62: 0 | H62: 0 | I62: 0 | J62: 0 | K62: 0 | L62: 0
A63: ='Org structure'!A13 -> Vote 12 - | C63: 0 | D63: 0 | E63: 0 | F63: 0 | G63: 0 | H63: 0 | I63: 0 | J63: 0 | K63: 0 | L63: 0
A64: ='Org structure'!A14 -> Vote 13 - | C64: 0 | D64: 0 | E64: 0 | F64: 0 | G64: 0 | H64: 0 | I64: 0 | J64: 0 | K64: 0 | L64: 0
A65: ='Org structure'!A15 -> Vote 14 - | C65: 0 | D65: 0 | E65: 0 | F65: 0 | G65: 0 | H65: 0 | I65: 0 | J65: 0 | K65: 0 | L65: 0
A66: ='Org structure'!A16 -> Vote 15 - Other | C66: =SUM(C67:C67) -> 0 | D66: 0 | E66: 0 | F66: 0 | G66: 0 | H66: 0 | I66: 0 | J66: 0 | K66: 0 | L66: 0
A67: ='Org structure'!E30 -> 15.1 - Electricity Reporting Function | C67: 0 | D67: 0 | E67: 0 | F67: 0 | G67: 0 | H67: 0 | I67: 0 | J67: 0 | K67: 0 | L67: 0
A68: Capital single-year expenditure sub-total | C68: =C39+C42+C44+C46+C49+C53+C55+C57+C59+C61+C62+C63+C64+C65+C66 -> 0 | D68: 348038357.1 | E68: 457492910.4 | F68: 709125000 | G68: 673114072 | H68: 673114072 | I68: 289399655.3 | J68: 455886001 | K68: 484697001 | L68: 506034000
A69: Total Capital Expenditure | C69: =C35+C68 -> 0 | D69: 348038357.1 | E69: 457492910.4 | F69: 709125000 | G69: 682272778 | H69: 682272778 | I69: 296130459.4 | J69: 466886001 | K69: 511197001 | L69: 535034000

Sheet A6-FinPos
A1: =muni&" - "&Approve6 -> DC47 Sekhukhune - Table A6 Budgeted Financial Position
A2: =desc -> Description | B2: =head27 -> Ref | C2: =head1b -> 2016/17 | D2: =head1A -> 2017/18 | E2: =Head1 -> 2018/19 | F2: =Head2 -> Current Year 2019/20 | J2: =Head3 -> 2020/21 Medium Term Revenue & Expenditure Framework
A3: R thousand | C3: =Head5 -> Audited Outcome | D3: =Head5 -> Audited Outcome | E3: =Head5 -> Audited Outcome | F3: =Head6 -> Original Budget | G3: =Head7 -> Adjusted Budget | H3: =Head8 -> Full Year Forecast | I3: =Head5b -> Pre-audit outcome | J3: =Head9 -> Budget Year 2020/21 | K3: =Head10 -> Budget Year +1 2021/22 | L3: =Head11 -> Budget Year +2 2022/23
A4: ASSETS
A5: Current assets
A6: Cash | C6: 0 | D6: 18248104.93 | E6: 12159793.68 | F6: 19875000 | G6: 71028086 | H6: 71028086 | I6: 71028086 | J6: ='A7-CFlow'!J40 -> 251257693.7 | K6: ='A7-CFlow'!K40 -> 369063142.5 | L6: ='A7-CFlow'!L40 -> 516628278.9
A7: Call investment deposits | B7: 1 | C7: 0 | D7: 1000 | E7: 1000 | F7: 0 | G7: 0 | H7: 0 | I7: 1000 | J7: 1000 | K7: 1045 | L7: 1092
A8: Consumer debtors | B8: 1 | C8: ='SA3'!C14 -> 0 | D8: ='SA3'!D14 -> 59158669.59 | E8: ='SA3'!E14 -> 119368458.7 | F8: ='SA3'!F14 -> 64000322 | G8: ='SA3'!G14 -> 65028265 | H8: ='SA3'!H14 -> 65028265 | I8: ='SA3'!I14 -> 132969844.1 | J8: ='SA3'!J14 -> 113863145 | K8: ='SA3'!K14 -> 118986989 | L8: ='SA3'!L14 -> 124341401
A9: Other debtors | C9: 0 | D9: 84522781.27 | E9: 88883473.83 | F9: 47402841 | G9: 47402841 | H9: 47402841 | I9: 98082211.29 | J9: 92578813 | K9: 96743815 | L9: 101097284
A10: Current portion of long-term receivables
A11: Inventory | B11: 2 | C11: 0 | D11: 26261453.73 | E11: 22284008.97 | F11: 27645000 | G11: 29917243 | H11: 29917243 | I11: 38299163.94 | J11: 30329366 | K11: 31694189 | L11: 33120427
A12: Total current assets | C12: =SUM(C6:C11) -> 0 | D12: 188192009.5 | E12: 242696735.2 | F12: 158923163 | G12: 213376435 | H12: 213376435 | I12: 340380305.3 | J12: 488030017.7 | K12: 616489180.5 | L12: 775188482.9
A14: Non current assets
A15: Long-term receivables
A16: Investments | C16: 0 | D16: 85129368.12 | E16: 58868291.99 | F16: 51989001 | G16: 51989001 | H16: 51989001 | I16: 287848625 | J16: 0 | K16: 0 | L16: 0
A17: Investment property
A18: Investment in Associate
A19: Property, plant and equipment | B19: 3 | C19: ='SA3'!C26 -> 0 | D19: ='SA3'!D26 -> 2944197720 | E19: ='SA3'!E26 -> 3359050059 | F19: ='SA3'!F26 -> 4497506001 | G19: ='SA3'!G26 -> 4477998405 | H19: ='SA3'!H26 -> 4477998405 | I19: ='SA3'!I26 -> 3584995066 | J19: ='SA3'!J26 -> 3919066264 | K19: ='SA3'!K26 -> 4127125374 | L19: ='SA3'!L26 -> 4285472780
A21: Biological
A22: Intangible | C22: 0 | D22: 0 | E22: 0 | F22: 0 | G22: 0 | H22: 0 | I22: 0 | J22: 0 | K22: 0 | L22: 0
A23: Other non-current assets | C23: 0 | D23: 0 | E23: 0 | F23: 0 | G23: 0 | H23: 0 | I23: 0 | J23: 0 | K23: 0 | L23: 0
A24: Total non current assets | C24: =SUM(C15:C19)+SUM(C21:C23) -> 0 | D24: =SUM(D15:D19)+SUM(D21:D23) -> 3029327088 | E24: 3417918351 | F24: 4549495002 | G24: 4529987406 | H24: 4529987406 | I24: 3872843691 | J24: 3919066264 | K24: 4127125374 | L24: 4285472780
A25: TOTAL ASSETS | C25: =C12+C24 -> 0 | D25: =D12+D24 -> 3217519097 | E25: =E12+E24 -> 3660615086 | F25: =F12+F24 -> 4708418165 | G25: 4743363841 | H25: 4743363841 | I25: 4213223997 | J25: 4407096282 | K25: 4743614554 | L25: 5060661263
A27: LIABILITIES
A28: Current liabilities
A29: Bank overdraft | B29: 1
A30: Borrowing | B30: 4 | C30: ='SA3'!C32 -> 0 | D30: ='SA3'!D32 -> 17244297 | E30: ='SA3'!E32 -> 0 | F30: ='SA3'!F32 -> 10172000 | G30: ='SA3'!G32 -> 10172000 | H30: ='SA3'!H32 -> 10172000 | I30: ='SA3'!I32 -> 0 | J30: ='SA3'!J32 -> 0 | K30: ='SA3'!K32 -> 0 | L30: ='SA3'!L32 -> 0
A31: Consumer deposits | C31: 0 | D31: 3808715.4 | E31: 4209179.54 | F31: 2626000 | G31: 1042820 | H31: 1042820 | I31: 4353996.64 | J31: 4314762 | K31: 4508926 | L31: 4711827
A32: Trade and other payables | B32: 4 | C32: ='SA3'!C39 -> 0 | D32: ='SA3'!D39 -> 372579019.9 | E32: ='SA3'!E39 -> 485244767.2 | F32: ='SA3'!F39 -> 86132167 | G32: ='SA3'!G39 -> 108588370 | H32: ='SA3'!H39 -> 108588370 | I32: ='SA3'!I39 -> 579203472.6 | J32: ='SA3'!J39 -> 180000000 | K32: ='SA3'!K39 -> 222971955 | L32: ='SA3'!L39 -> 299528546
A33: Provisions | C33: 0 | D33: 0 | E33: 0 | F33: 0 | G33: 0 | H33: 0 | I33: 0 | J33: 0 | K33: 0 | L33: 0
A34: Total current liabilities | C34: =SUM(C29:C33) -> 0 | D34: 393632032.3 | E34: 489453946.7 | F34: 98930167 | G34: 119803190 | H34: 119803190 | I34: 583557469.3 | J34: 184314762 | K34: 227480881 | L34: 304240373
A36: Non current liabilities
A37: Borrowing | C37: ='SA3'!C44 -> 0 | D37: ='SA3'!D44 -> 941360.22 | E37: ='SA3'!E44 -> 1227561.16 | F37: ='SA3'!F44 -> 0 | G37: ='SA3'!G44 -> 0 | H37: ='SA3'!H44 -> 0 | I37: ='SA3'!I44 -> 1227561.16 | J37: ='SA3'!J44 -> 0 | K37: ='SA3'!K44 -> 1282801 | L37: ='SA3'!L44 -> 1340527
A38: Provisions | C38: ='SA3'!C51 -> 0 | D38: ='SA3'!D51 -> 44055265.95 | E38: ='SA3'!E51 -> 51802525.92 | F38: ='SA3'!F51 -> 32814000 | G38: ='SA3'!G51 -> 14691881 | H38: ='SA3'!H51 -> 14691881 | I38: ='SA3'!I51 -> 51802525.92 | J38: ='SA3'!J51 -> 51802526 | K38: ='SA3'!K51 -> 54133639 | L38: ='SA3'!L51 -> 56569654
A39: Total non current liabilities | C39: =SUM(C37:C38) -> 0 | D39: =SUM(D37:D38) -> 44996626.17 | E39: =SUM(E37:E38) -> 53030087.08 | F39: =SUM(F37:F38) -> 32814000 | G39: 14691881 | H39: 14691881 | I39: 53030087.08 | J39: 51802526 | K39: =SUM(K37:K38) -> 55416440 | L39: 57910181
A40: TOTAL LIABILITIES | C40: =C34+C39 -> 0 | D40: =D34+D39 -> 438628658.5 | E40: =E34+E39 -> 542484033.8 | F40: =F34+F39 -> 131744167 | G40: 134495071 | H40: 134495071 | I40: 636587556.4 | J40: 236117288 | K40: =K34+K39 -> 282897321 | L40: 362150554
A42: NET ASSETS | B42: 5 | C42: =C25-C40 -> 0 | D42: 2778890439 | E42: 3118131052 | F42: 4576673998 | G42: 4608868770 | H42: 4608868770 | I42: 3576636440 | J42: 4170978994 | K42: 4460717233 | L42: 4698510709
A44: COMMUNITY WEALTH/EQUITY
A45: Accumulated Surplus/(Deficit) | C45: ='SA3'!C63 -> 0 | D45: ='SA3'!D63 -> 2753807986 | E45: ='SA3'!E63 -> 3097342847 | F45: ='SA3'!F63 -> 4562673998 | G45: ='SA3'!G63 -> 4408949954 | H45: ='SA3'!H63 -> 4408949954 | I45: ='SA3'!I63 -> 3475304504 | J45: 4446905000 | K45: ='SA3'!K63 -> 3297783394 | L45: ='SA3'!L63 -> 4765786127
A46: Reserves | B46: 4 | C46: ='SA3'!C70 -> 0 | D46: ='SA3'!D70 -> 0 | E46: ='SA3'!E70 -> 0 | F46: ='SA3'!F70 -> 0 | G46: ='SA3'!G70 -> 0 | H46: ='SA3'!H70 -> 0 | I46: ='SA3'!I70 -> 0 | J46: ='SA3'!J70 -> 0 | K46: ='SA3'!K70 -> 0 | L46: ='SA3'!L70 -> 0
A48: TOTAL COMMUNITY WEALTH/EQUITY | B48: 5 | C48: =SUM(C45:C46) -> 0 | D48: =SUM(D45:D46) -> 2753807986 | E48: 3097342847 | F48: 4562673998 | G48: 4408949954 | H48: 4408949954 | I48: 3475304504 | J48: 4446905000 | K48: 3297783394 | L48: 4765786127
A49: =head27a -> References
A50: 1. Detail to be provided in Table SA3
A51: 2. Include completed low cost housing to be transferred to beneficiaries within 12 months
A52: 3. Include 'Construction-work-in-progress' (disclosed separately in annual financial statements)
A53: 4. Detail to be provided in Table SA3. Includes reserves to be funded by statute.
A54: 5. Net assets must balance with Total Community Wealth/Equity
A55: check balance | C55: =IF((C42-C48)=0,0,"Unbalanced") -> 0 | D55: =IF((D42-D48)=0,0,"Unbalanced") -> Unbalanced | E55: Unbalanced | F55: Unbalanced | G55: Unbalanced | H55: Unbalanced | I55: Unbalanced | J55: Unbalanced | K55: Unbalanced | L55: Unbalanced

Sheet A7-CFlow
A1: =muni&" - "&Approve7 -> DC47 Sekhukhune - Table A7 Budgeted Cash Flows
A2: =desc -> Description | B2: =head27 -> Ref | C2: =head1b -> 2016/17 | D2: =head1A -> 2017/18 | E2: =Head1 -> 2018/19 | F2: =Head2 -> Current Year 2019/20 | J2: =Head3 -> 2020/21 Medium Term Revenue & Expenditure Framework
A3: R thousand | C3: =Head5 -> Audited Outcome | D3: =Head5 -> Audited Outcome | E3: =Head5 -> Audited Outcome | F3: =Head6 -> Original Budget | G3: =Head7 -> Adjusted Budget | H3: =Head8 -> Full Year Forecast | I3: =Head5b -> Pre-audit outcome | J3: =Head9 -> Budget Year 2020/21 | K3: =Head10 -> Budget Year +1 2021/22 | L3: =Head11 -> Budget Year +2 2022/23
A4: CASH FLOW FROM OPERATING ACTIVITIES
A5: Receipts
A6: Property rates | C6: 0 | J6: ='SA30'!N5 -> 0 | K6: ='SA30'!O5 -> 0 | L6: ='SA30'!P5 -> 0
A7: Service charges | C7: 39924581 | D7: 42176399 | E7: 57497476 | F7: 82804855 | G7: 35479945.82 | H7: 35479945.82 | I7: 35479945.82 | J7: ='SA30'!N6+'SA30'!N7+'SA30'!N8+'SA30'!N9 -> 40256086.4 | K7: ='SA30'!O6+'SA30'!O7+'SA30'!O8+'SA30'!O9 -> 44276319.4 | L7: ='SA30'!P6+'SA30'!P7+'SA30'!P8+'SA30'!P9 -> 53123753.2
A8: Other revenue | C8: 1816654 | D8: 2662720 | E8: 5535271 | F8: 3678605.6 | G8: 3678605.6 | H8: 3678605.6 | I8: 3678605.6 | J8: ='SA30'!N11+'SA30'!N15+'SA30'!N16+'SA30'!N17+'SA30'!N19 -> 2012351 | K8: ='SA30'!O11+'SA30'!O15+'SA30'!O16+'SA30'!O17+'SA30'!O19 -> 2146005 | L8: ='SA30'!P11+'SA30'!P15+'SA30'!P16+'SA30'!P17+'SA30'!P19 -> 2249112
A9: Transfers and Subsidies - Operational | B9: 1 | C9: 1117343097 | D9: 684324663 | E9: 790080706.1 | F9: 815044363 | G9: 891188920.5 | H9: 891188920.5 | I9: 891188920.5 | J9: ='SA30'!N18 -> 914290000 | K9: ='SA30'!O18 -> 995212000 | L9: ='SA30'!P18 -> 1071926000
A10: Transfers and Subsidies - Capital | B10: 1 | C10: 0 | D10: 578622767 | E10: 687345543.9 | F10: 449680637 | G10: 430136079.3 | H10: 430136079.3 | I10: 430136079.3 | J10: ='SA30'!N23 -> 459586000 | K10: ='SA30'!O23 -> 509997000 | L10: ='SA30'!P23 -> 533834000
A11: Interest | C11: 12685396 | D11: 11778640 | E11: 18139200 | F11: 19095054 | G11: 21095054 | H11: 21095054 | I11: 21095054 | J11: ='SA30'!N12+'SA30'!N13 -> 13160216 | K11: ='SA30'!O12+'SA30'!O13 -> 15860263.4 | L11: ='SA30'!P12+'SA30'!P13 -> 16653276.2
A12: Dividends | D12: 0 | E12: 0 | G12: 0 | J12: ='SA30'!N14 -> 0 | K12: ='SA30'!O14 -> 0 | L12: ='SA30'!P14 -> 0
A13: Payments
A14: Suppliers and employees | C14: -814867345 | D14: -816106686 | E14: -941788715.5 | F14: -842180528 | G14: -987298297.8 | H14: -987298297.8 | I14: -987298297.8 | J14: =-('SA30'!N35+'SA30'!N36+'SA30'!N38+'SA30'!N39+'SA30'!N40+'SA30'!N41+'SA30'!N44+'SA30'!N50) -> -828517317 | K14: =-('SA30'!O35+'SA30'!O36+'SA30'!O38+'SA30'!O39+'SA30'!O40+'SA30'!O41+'SA30'!O44+'SA30'!O50) -> -928986713 | L14: =-('SA30'!P35+'SA30'!P36+'SA30'!P38+'SA30'!P39+'SA30'!P40+'SA30'!P41+'SA30'!P44+'SA30'!P50) -> -985279470
A15: Finance charges | C15: -153741 | D15: -80657 | E15: -1100000 | F15: -500000 | G15: -806000 | H15: -806000 | I15: -806000 | J15: =-('SA30'!N37) -> -470526 | K15: =-('SA30'!O37) -> -500000 | L15: =-('SA30'!P37) -> -500000
A16: Transfers and Grants | B16: 1 | D16: 0 | E16: -3600000 | G16: -4228640 | H16: -4228640 | I16: -4228640 | J16: -4300000 | K16: -4493500 | L16: -4695708
A17: NET CASH FROM/(USED) OPERATING ACTIVITIES | C17: =SUM(C6:C12)+SUM(C14:C16) -> 356748642 | D17: 503377846 | E17: 612109481.5 | F17: 527622986.6 | G17: 389245667.5 | H17: 389245667.5 | I17: 389245667.5 | J17: 596016810.4 | K17: 633511374.8 | L17: 687310963.4
A19: CASH FLOWS FROM INVESTING ACTIVITIES
A20: Receipts
A21: Proceeds on disposal of PPE | J21: ='SA30'!N24+'SA30'!N25 -> 0 | K21: ='SA30'!O24+'SA30'!O25 -> 0 | L21: ='SA30'!P24+'SA30'!P25 -> 0
A23: Decrease (increase) in non-current receivables | J23: ='SA30'!N30 -> 0 | K23: ='SA30'!O30 -> 0 | L23: ='SA30'!P30 -> 0
A24: Decrease (increase) in non-current investments | C24: 0 | D24: 138399 | E24: 0 | F24: 58060068 | G24: 111967784 | H24: 111967784 | I24: 111967784 | J24: ='SA30'!N31 -> 0 | K24: ='SA30'!O31 -> 0 | L24: ='SA30'!P31 -> 0
A25: Payments
A26: Capital assets | C26: -337195467 | D26: -417639149 | E26: -658445543 | F26: -664680637 | G26: -450114653.2 | H26: -450114653.2 | I26: -450114653.2 | J26: =-('SA30'!N48) -> -466886000 | K26: =-('SA30'!O48) -> -511197000 | L26: =-('SA30'!P48) -> -535034000
A27: NET CASH FROM/(USED) INVESTING ACTIVITIES | C27: =+C21+C23+C24+C26 -> -337195467 | D27: =+D21+D23+D24+D26 -> -417500750 | E27: -658445543 | F27: -606620569 | G27: -338146869.2 | H27: -338146869.2 | I27: -338146869.2 | J27: -466886000 | K27: -511197000 | L27: -535034000
A29: CASH FLOWS FROM FINANCING ACTIVITIES
A30: Receipts
A31: Short term loans | J31: ='SA30'!N26 -> 0 | K31: ='SA30'!O26 -> 0 | L31: ='SA30'!P26 -> 0
A32: Borrowing long term/refinancing | J32: ='SA30'!N27 -> 0 | K32: ='SA30'!O27 -> 0 | L32: ='SA30'!P27 -> 0
A33: Increase (decrease) in consumer deposits | C33: 0 | D33: -3808715.4 | E33: -968724 | F33: 1583179.54 | G33: 4314761 | H33: 4314761 | I33: 4314761 | J33: ='SA30'!N28 -> -4314762 | K33: ='SA30'!O28 -> -4508926 | L33: ='SA30'!P28 -> -4711827
A34: Payments
A35: Repayment of borrowing | C35: 0 | E35: 0 | F35: 10172000 | G35: 0 | H35: 0 | I35: 0 | J35: =-('SA30'!N49) -> 0 | K35: =-('SA30'!O49) -> 0 | L35: =-('SA30'!P49) -> 0
A36: NET CASH FROM/(USED) FINANCING ACTIVITIES | C36: =SUM(C31:C33)+C35 -> 0 | D36: =SUM(D31:D33)+D35 -> -3808715.4 | E36: -968724 | F36: 11755179.54 | G36: 4314761 | H36: 4314761 | I36: 4314761 | J36: -4314762 | K36: -4508926 | L36: -4711827
A38: NET INCREASE/ (DECREASE) IN CASH HELD | C38: =C17+C27+C36 -> 19553175 | D38: =D17+D27+D36 -> 82068380.6 | E38: =E17+E27+E36 -> -47304785.48 | F38: -67242402.86 | G38: 55413559.28 | H38: 55413559.28 | I38: 55413559.28 | J38: 124816048.4 | K38: 117805448.8 | L38: 147565136.4
A39: Cash/cash equivalents at the year begin: | B39: 2 | C39: ='[3]A7-CFlow'!$C$40 -> 109436100 | D39: 18950630 | E39: =D40 -> 101019010.6 | F39: 32734566 | G39: 71028086 | H39: =G39 -> 71028086 | I39: =H39 -> 71028086 | J39: =I40 -> 126441645.3 | K39: =J40 -> 251257693.7 | L39: =K40 -> 369063142.5
A40: Cash/cash equivalents at the year end: | B40: 2 | C40: =C38+C39 -> 128989275 | D40: =D38+D39 -> 101019010.6 | E40: =E38+E39 -> 53714225.12 | F40: =F38+F39 -> -34507836.86 | G40: 126441645.3 | H40: 126441645.3 | I40: 126441645.3 | J40: 251257693.7 | K40: 369063142.5 | L40: 516628278.9
A41: =head27a -> References
A42: 1. Local/District municipalities to include transfers from/to District/Local Municipalities
A43: 2. Cash equivalents includes investments with maturities of 3 months or less
A44: 3. The MTREF is populated directly from SA30.
A45: Total receipts | C45: =SUM(C6:C12)+SUM(C21:C23) -> 1171769728 | D45: 1319565189 | E45: 1558598197 | F45: 1370303515 | G45: 1381578605 | H45: 1381578605 | I45: 1381578605 | J45: 1429304653 | K45: 1567491588 | L45: 1677786141
A46: Total payments | C46: =SUM(C14:C16)+C26 -> -1152216553 | D46: =SUM(D14:D16)+D26 -> -1233826492 | E46: -1604934258 | F46: -1507361165 | G46: -1442447591 | H46: -1442447591 | I46: -1442447591 | J46: -1300173843 | K46: -1445177213 | L46: -1525509178
C47: =C45+C46 -> 19553175 | D47: =D45+D46 -> 85738697 | E47: -46336061.48 | F47: -137057650.4 | G47: -60868985.72 | H47: -60868985.72 | I47: -60868985.72 | J47: 129130810.4 | K47: 122314374.8 | L47: 152276963.4
A48: Borrowings & investments & c.deposits | C48: =C24+C32+C33 -> 0 | D48: =D24+D32+D33 -> -3670316.4 | E48: -968724 | F48: 59643247.54 | G48: 116282545 | H48: 116282545 | I48: 116282545 | J48: -4314762 | K48: -4508926 | L48: -4711827
A49: =A35 -> Repayment of borrowing | C49: =C35 -> 0 | D49: =D35 -> 0 | E49: 0 | F49: 10172000 | G49: 0 | H49: 0 | I49: =I35 -> 0 | J49: 0 | K49: 0 | L49: 0
C50: =C47+C48+C49 -> 19553175 | D50: =D47+D48+D49 -> 82068380.6 | E50: -47304785.48 | F50: -67242402.86 | G50: 55413559.28 | H50: 55413559.28 | I50: 55413559.28 | J50: 124816048.4 | K50: 117805448.8 | L50: 147565136.4
C51: =C38-C50 -> 0 | D51: 0 | E51: 0 | F51: 0 | G51: 0 | H51: 0 | I51: 0 | J51: 0 | K51: 0 | L51: 0

Sheet A8-ResRecon
A1: =muni&" - "&Approve8 -> DC47 Sekhukhune - Table A8 Cash backed reserves/accumulated surplus reconciliation
A2: =desc -> Description | B2: =head27 -> Ref | C2: =head1b -> 2016/17 | D2: =head1A -> 2017/18 | E2: =Head1 -> 2018/19 | F2: =Head2 -> Current Year 2019/20 | J2: =Head3 -> 2020/21 Medium Term Revenue & Expenditure Framework
A3: R thousand | C3: =Head5 -> Audited Outcome | D3: =Head5 -> Audited Outcome | E3: =Head5 -> Audited Outcome | F3: =Head6 -> Original Budget | G3: =Head7 -> Adjusted Budget | H3: =Head8 -> Full Year Forecast | I3: =Head5b -> Pre-audit outcome | J3: =Head9 -> Budget Year 2020/21 | K3: =Head10 -> Budget Year +1 2021/22 | L3: =Head11 -> Budget Year +2 2022/23
A4: Cash and investments available
A5: =LEFT('A7-CFlow'!A40,37) -> Cash/cash equivalents at the year end | B5: 1 | C5: ='A7-CFlow'!C40 -> 128989275 | D5: ='A7-CFlow'!D40 -> 101019010.6 | E5: ='A7-CFlow'!E40 -> 53714225.12 | F5: ='A7-CFlow'!F40 -> -34507836.86 | G5: 199488461.8 | H5: 199488461.8 | I5: ='A7-CFlow'!I40 -> 126441645.3 | J5: ='A7-CFlow'!J40 -> 251257693.7 | K5: ='A7-CFlow'!K40 -> 369063142.5 | L5: ='A7-CFlow'!L40 -> 516628278.9
A6: Other current investments > 90 days | C6: ='A6-FinPos'!C6+'A6-FinPos'!C7-'A6-FinPos'!C29-'A8-ResRecon'!C5 -> -128989275 | D6: ='A6-FinPos'!D6+'A6-FinPos'!D7-'A6-FinPos'!D29-'A8-ResRecon'!D5 -> -82769905.67 | E6: 0 | F6: ='A6-FinPos'!F6+'A6-FinPos'!F7-'A6-FinPos'!F29-'A8-ResRecon'!F5 -> 54382836.86 | G6: 5.960464478e-08 | H6: 5.960464478e-08 | I6: 1000 | J6: ='A6-FinPos'!J6+'A6-FinPos'!J7-'A6-FinPos'!J29-'A8-ResRecon'!J5 -> 1000 | K6: ='A6-FinPos'!K6+'A6-FinPos'!K7-'A6-FinPos'!K29-'A8-ResRecon'!K5 -> 1045 | L6: ='A6-FinPos'!L6+'A6-FinPos'!L7-'A6-FinPos'!L29-'A8-ResRecon'!L5 -> 1092
A7: ='A6-FinPos'!A14&" - "&'A6-FinPos'!A16 -> Non current assets - Investments | B7: 1 | C7: ='A6-FinPos'!C16 -> 0 | D7: ='A6-FinPos'!D16 -> 85129368.12 | E7: ='A6-FinPos'!E16 -> 58868291.99 | F7: ='A6-FinPos'!F16 -> 51989001 | G7: 1 | H7: 1 | I7: ='A6-FinPos'!I16 -> 287848625 | J7: ='A6-FinPos'!J16 -> 0 | K7: ='A6-FinPos'!K16 -> 0 | L7: ='A6-FinPos'!L16 -> 0
A8: Cash and investments available: | C8: =SUM(C5:C7) -> 0 | D8: =SUM(D5:D7) -> 103378473.1 | E8: 112582517.1 | F8: 71864001 | G8: 199488462.8 | H8: 199488462.8 | I8: 414291270.3 | J8: 251258693.7 | K8: =SUM(K5:K7) -> 369064187.5 | L8: 516629370.9
A10: Application of cash and investments
A11: ='SA3'!A37 -> Unspent conditional transfers | C11: ='SA3'!C37 -> 0 | D11: ='SA3'!D37 -> 45018792.21 | E11: ='SA3'!E37 -> 61052577.72 | F11: ='SA3'!F37 -> 0 | G11: 61052578 | H11: 61052578 | I11: =H11 -> 61052578 | J11: ='SA3'!J37 -> 20000000 | K11: ='SA3'!K37 -> 15576220 | L11: ='SA3'!L37 -> 30000000
A12: Unspent borrowing | C12: ='SA17'!C67 -> 0 | D12: ='SA17'!D67 -> 0 | E12: ='SA17'!E67 -> 0 | F12: ='SA17'!F67 -> 0 | G12: 0 | H12: 0 | J12: ='SA17'!I67 -> 0 | K12: ='SA17'!J67 -> 0 | L12: ='SA17'!K67 -> 0
A13: Statutory requirements | B13: 2 | G13: 0 | H13: 0
A14: Other working capital requirements | B14: 3 | C14: =-C32 -> 0 | D14: =-D32 -> 254612206.9 | E14: 276475986.9 | F14: =-F32 -> 9880955 | G14: 115690641 | H14: 115690641 | I14: 145785767.1 | J14: 82376000 | K14: 66960000 | L14: 101241000
A15: Other provisions | G15: 22000000 | H15: 22000000 | I15: 22000000 | J15: 20000000 | K15: 40000000 | L15: 60000000
A16: Long term investments committed | B16: 4 | C16: =C42 -> 0 | D16: =D42 -> 0 | E16: 0 | F16: 0 | G16: 0 | H16: 0 | I16: 0 | J16: 0 | K16: 0 | L16: 0
A17: Reserves to be backed by cash/investments | B17: 5 | C17: =SUM(C44:C48) -> 0 | D17: 0 | E17: 0 | F17: 0 | G17: 0 | H17: 0 | I17: 0 | J17: 50000000 | K17: 150000000 | L17: =K17*110/100 -> 165000000
A18: ="Total "&A10&":" -> Total Application of cash and investments: | C18: =SUM(C11:C17) -> 0 | D18: =SUM(D11:D17) -> 299630999.1 | E18: 337528564.6 | F18: 9880955 | G18: 198743219 | H18: 198743219 | I18: 228838345.1 | J18: 172376000 | K18: 272536220 | L18: 356241000
A19: Surplus(shortfall) | C19: =C8-C18 -> 0 | D19: =D8-D18 -> -196252526.1 | E19: -224946047.5 | F19: 61983046 | G19: 745243.81 | H19: 745243.81 | I19: 185452925.2 | J19: 78882693.68 | K19: 96527967.48 | L19: 160388370.9
A20: =head27a -> References
A21: 1. Must reconcile with Budgeted Cash Flows
A22: 2. For example: VAT, taxation
A23: 3. Council approval for policy required - include sufficient working capital (e.g. allowing for a % of current debtors > 90 days as uncollectable)
A24: 4. For example: sinking fund requirements for borrowing
A25: 5. Council approval required for each reserve created and basis of cash backing of reserves
A28: Other working capital requirements
A29: Debtors | C29: =IF(ISERROR(ROUND(C35*C36,-3)),0,(ROUND(C35*C36,-3))) -> 0 | D29: =IF(ISERROR(ROUND(D35*D36,-3)),0,(ROUND(D35*D36,-3))) -> 63241000 | E29: 109343000 | F29: 73069000 | G29: 20581000 | H29: 20581000 | I29: 90932000 | J29: 77624000 | K29: 93040000 | L29: 118759000
A31: Creditors due | C31: ='SA3'!C35+'SA3'!C36 -> 0 | D31: ='SA3'!D35+'SA3'!D36 -> 317853206.9 | E31: ='SA3'!E35+'SA3'!E36 -> 385818986.9 | F31: ='SA3'!F35+'SA3'!F36 -> 82949955 | G31: ='SA3'!G35+'SA3'!G36 -> 105406158 | H31: ='SA3'!H35+'SA3'!H36 -> 105406158 | I31: ='SA3'!I35+'SA3'!I36 -> 236717767.1 | J31: ='SA3'!J35+'SA3'!J36 -> 160000000 | K31: ='SA3'!K35+'SA3'!K36 -> 160000000 | L31: ='SA3'!L35+'SA3'!L36 -> 220000000
A32: Total | C32: =C29-C31 -> 0 | D32: =D29-D31 -> -254612206.9 | E32: -276475986.9 | F32: -9880955 | G32: -84825158 | H32: -84825158 | I32: -145785767.1 | J32: -82376000 | K32: -66960000 | L32: -101241000
A34: Debtors collection assumptions
A35: Balance outstanding - debtors | C35: ='A6-FinPos'!C8+'A6-FinPos'!C9+'A6-FinPos'!C15 -> 0 | D35: ='A6-FinPos'!D8+'A6-FinPos'!D9+'A6-FinPos'!D15 -> 143681450.9 | E35: ='A6-FinPos'!E8+'A6-FinPos'!E9+'A6-FinPos'!E15 -> 208251932.5 | F35: ='A6-FinPos'!F8+'A6-FinPos'!F9+'A6-FinPos'!F15 -> 111403163 | G35: ='A6-FinPos'!G8+'A6-FinPos'!G9+'A6-FinPos'!G15 -> 112431106 | H35: ='A6-FinPos'!H8+'A6-FinPos'!H9+'A6-FinPos'!H15 -> 112431106 | I35: ='A6-FinPos'!I8+'A6-FinPos'!I9+'A6-FinPos'!I15 -> 231052055.4 | J35: ='A6-FinPos'!J8+'A6-FinPos'!J9+'A6-FinPos'!J15 -> 206441958 | K35: ='A6-FinPos'!K8+'A6-FinPos'!K9+'A6-FinPos'!K15 -> 215730804 | L35: ='A6-FinPos'!L8+'A6-FinPos'!L9+'A6-FinPos'!L15 -> 225438685
A36: Estimate of debtors collection rate | C36: =IF(ISERROR('SA10'!D10),0,('SA10'!D10)) -> 0 | D36: =IF(ISERROR('SA10'!E10),0,('SA10'!E10)) -> 0.4401500486 | E36: =IF(ISERROR('SA10'!F10),0,('SA10'!F10)) -> 0.5250505242 | F36: =IF(ISERROR('SA10'!G10),0,('SA10'!G10)) -> 0.6558941322 | G36: =IF(ISERROR('SA10'!H10),0,('SA10'!H10)) -> 0.1830522475 | H36: =IF(ISERROR('SA10'!I10),0,('SA10'!I10)) -> 0.1830522475 | I36: =IF(ISERROR('SA10'!J10),0,('SA10'!J10)) -> 0.3935576678 | J36: =IF(ISERROR('SA10'!K10),0,('SA10'!K10)) -> 0.376009218 | K36: =IF(ISERROR('SA10'!L10),0,('SA10'!L10)) -> 0.4312763328 | L36: =IF(ISERROR('SA10'!M10),0,('SA10'!M10)) -> 0.5267910996
K39: `
A40: =A16 -> Long term investments committed
A41: Balance (Insert description; eg sinking fund)
C42: =SUM(C41:C41) -> 0 | D42: 0 | E42: 0 | F42: 0 | G42: 0 | H42: 0 | I42: 0 | J42: 0 | K42: 0 | L42: 0
A43: =A17 -> Reserves to be backed by cash/investments
A44: ='SA3'!A65 -> Housing Development Fund | C44: ='SA3'!C65 -> 0 | D44: ='SA3'!D65 -> 0 | E44: ='SA3'!E65 -> 0 | F44: ='SA3'!F65 -> 0 | G44: ='SA3'!G65 -> 0 | H44: ='SA3'!H65 -> 0 | I44: ='SA3'!I65 -> 0 | J44: ='SA3'!J65 -> 0 | K44: ='SA3'!K65 -> 0 | L44: ='SA3'!L65 -> 0
A45: ='SA3'!A66 -> Capital replacement | C45: ='SA3'!C66 -> 0 | D45: ='SA3'!D66 -> 0 | E45: ='SA3'!E66 -> 0 | F45: ='SA3'!F66 -> 0 | G45: ='SA3'!G66 -> 0 | H45: ='SA3'!H66 -> 0 | I45: ='SA3'!I66 -> 0 | J45: ='SA3'!J66 -> 0 | K45: ='SA3'!K66 -> 0 | L45: ='SA3'!L66 -> 0
A46: ='SA3'!A67 -> Self-insurance | C46: ='SA3'!C67 -> 0 | D46: ='SA3'!D67 -> 0 | E46: ='SA3'!E67 -> 0 | F46: ='SA3'!F67 -> 0 | G46: ='SA3'!G67 -> 0 | H46: ='SA3'!H67 -> 0 | I46: ='SA3'!I67 -> 0 | J46: ='SA3'!J67 -> 0 | K46: ='SA3'!K67 -> 0 | L46: ='SA3'!L67 -> 0
A47: ='SA3'!A68 -> Other reserves | C47: ='SA3'!C68 -> 0 | D47: ='SA3'!D68 -> 0 | E47: ='SA3'!E68 -> 0 | F47: ='SA3'!F68 -> 0 | G47: ='SA3'!G68 -> 0 | H47: ='SA3'!H68 -> 0 | I47: ='SA3'!I68 -> 0 | J47: ='SA3'!J68 -> 0 | K47: ='SA3'!K68 -> 0 | L47: ='SA3'!L68 -> 0
A48: ='SA3'!A69 -> Revaluation | C48: ='SA3'!C69 -> 0 | D48: ='SA3'!D69 -> 0 | E48: ='SA3'!E69 -> 0 | F48: ='SA3'!F69 -> 0 | G48: ='SA3'!G69 -> 0 | H48: ='SA3'!H69 -> 0 | I48: ='SA3'!I69 -> 0 | J48: ='SA3'!J69 -> 0 | K48: ='SA3'!K69 -> 0 | L48: ='SA3'!L69 -> 0
C49: =SUM(C44:C48) -> 0 | D49: 0 | E49: 0 | F49: 0 | G49: 0 | H49: 0 | I49: 0 | J49: 0 | K49: 0 | L49: 0

Sheet A9-Asset
A1: =muni&" - "&Approve9 -> DC47 Sekhukhune - Table A9 Asset Management
A2: =desc -> Description | B2: =head27 -> Ref | C2: =head1b -> 2016/17 | D2: =head1A -> 2017/18 | E2: =Head1 -> 2018/19 | F2: =Head2 -> Current Year 2019/20 | I2: =Head3 -> 2020/21 Medium Term Revenue & Expenditure Framework
A3: R thousand | C3: =Head5 -> Audited Outcome | D3: =Head5 -> Audited Outcome | E3: =Head5 -> Audited Outcome | F3: =Head6 -> Original Budget | G3: =Head7 -> Adjusted Budget | H3: =Head8 -> Full Year Forecast | I3: =Head9 -> Budget Year 2020/21 | J3: =Head10 -> Budget Year +1 2021/22 | K3: =Head11 -> Budget Year +2 2022/23
A4: CAPITAL EXPENDITURE
A5: Total New Assets | B5: 1 | C5: =C15+C18+C19+C22+C25+C26+SUM(C29:C35) -> 0 | D5: =D15+D18+D19+D22+D25+D26+SUM(D29:D35) -> 328010260.2 | E5: 452406655.3 | F5: 434711400 | G5: 402231992 | H5: 402231992 | I5: 246489403 | J5: 340285001 | K5: 376783000
A6: Roads Infrastructure | C6: =SA34a!C7 -> 0 | D6: =SA34a!D7 -> 0 | E6: =SA34a!E7 -> 0 | F6: =SA34a!F7 -> 0 | G6: =SA34a!G7 -> 0 | H6: =SA34a!H7 -> 0 | I6: =SA34a!I7 -> 0 | J6: =SA34a!J7 -> 0 | K6: =SA34a!K7 -> 0
A7: Storm water Infrastructure | C7: =SA34a!C12 -> 0 | D7: =SA34a!D12 -> 0 | E7: =SA34a!E12 -> 0 | F7: =SA34a!F12 -> 0 | G7: =SA34a!G12 -> 0 | H7: =SA34a!H12 -> 0 | I7: =SA34a!I12 -> 0 | J7: =SA34a!J12 -> 0 | K7: =SA34a!K12 -> 0
A8: Electrical Infrastructure | C8: =SA34a!C16 -> 0 | D8: =SA34a!D16 -> 0 | E8: =SA34a!E16 -> 0 | F8: =SA34a!F16 -> 0 | G8: =SA34a!G16 -> 0 | H8: =SA34a!H16 -> 0 | I8: =SA34a!I16 -> 0 | J8: =SA34a!J16 -> 0 | K8: =SA34a!K16 -> 0
A9: Water Supply Infrastructure | C9: =SA34a!C26 -> 0 | D9: =SA34a!D26 -> 7473803.34 | E9: =SA34a!E26 -> 57389831.02 | F9: =SA34a!F26 -> 426211400 | G9: =SA34a!G26 -> 399656030 | H9: =SA34a!H26 -> 399656030 | I9: =SA34a!I26-135000000 -> 245689403 | J9: =SA34a!J26-149475000 -> 340285001 | K9: =SA34a!K26-127995000 -> 376783000
A10: Sanitation Infrastructure | C10: =SA34a!C37 -> 0 | D10: =SA34a!D37 -> 319820256.9 | E10: =SA34a!E37 -> 394877797 | F10: =SA34a!F37 -> 8500000 | G10: =SA34a!G37 -> 1214962 | H10: =SA34a!H37 -> 1214962 | I10: =SA34a!I37 -> 0 | J10: =SA34a!J37 -> 0 | K10: =SA34a!K37 -> 0
A11: Solid Waste Infrastructure | C11: =SA34a!C44 -> 0 | D11: =SA34a!D44 -> 0 | E11: =SA34a!E44 -> 0 | F11: =SA34a!F44 -> 0 | G11: =SA34a!G44 -> 0 | H11: =SA34a!H44 -> 0 | I11: =SA34a!I44 -> 0 | J11: =SA34a!J44 -> 0 | K11: =SA34a!K44 -> 0
A12: Rail Infrastructure | C12: =SA34a!C52 -> 0 | D12: =SA34a!D52 -> 0 | E12: =SA34a!E52 -> 0 | F12: =SA34a!F52 -> 0 | G12: =SA34a!G52 -> 0 | H12: =SA34a!H52 -> 0 | I12: =SA34a!I52 -> 0 | J12: =SA34a!J52 -> 0 | K12: =SA34a!K52 -> 0
A13: Coastal Infrastructure | C13: =SA34a!C62 -> 0 | D13: =SA34a!D62 -> 0 | E13: =SA34a!E62 -> 0 | F13: =SA34a!F62 -> 0 | G13: =SA34a!G62 -> 0 | H13: =SA34a!H62 -> 0 | I13: =SA34a!I62 -> 0 | J13: =SA34a!J62 -> 0 | K13: =SA34a!K62 -> 0
A14: Information and Communication Infrastructure | C14: =SA34a!C68 -> 0 | D14: =SA34a!D68 -> 0 | E14: =SA34a!E68 -> 0 | F14: =SA34a!F68 -> 0 | G14: =SA34a!G68 -> 0 | H14: =SA34a!H68 -> 0 | I14: =SA34a!I68 -> 0 | J14: =SA34a!J68 -> 0 | K14: =SA34a!K68 -> 0
A15: Infrastructure | C15: =SUM(C6:C14) -> 0 | D15: =SUM(D6:D14) -> 327294060.2 | E15: 452267628 | F15: 434711400 | G15: 400870992 | H15: 400870992 | I15: 245689403 | J15: 340285001 | K15: 376783000
A16: Community Facilities | C16: =SA34a!C75 -> 0 | D16: =SA34a!D75 -> 0 | E16: =SA34a!E75 -> 0 | F16: =SA34a!F75 -> 0 | G16: =SA34a!G75 -> 0 | H16: =SA34a!H75 -> 0 | I16: =SA34a!I75 -> 0 | J16: =SA34a!J75 -> 0 | K16: =SA34a!K75 -> 0
A17: Sport and Recreation Facilities | C17: =SA34a!C98 -> 0 | D17: =SA34a!D98 -> 0 | E17: =SA34a!E98 -> 0 | F17: =SA34a!F98 -> 0 | G17: =SA34a!G98 -> 0 | H17: =SA34a!H98 -> 0 | I17: =SA34a!I98 -> 0 | J17: =SA34a!J98 -> 0 | K17: =SA34a!K98 -> 0
A18: Community Assets | C18: =SUM(C16:C17) -> 0 | D18: =SUM(D16:D17) -> 0 | E18: 0 | F18: 0 | G18: 0 | H18: 0 | I18: 0 | J18: 0 | K18: 0
A19: Heritage Assets | C19: =SA34a!C103 -> 0 | D19: =SA34a!D103 -> 0 | E19: =SA34a!E103 -> 0 | F19: =SA34a!F103 -> 0 | G19: =SA34a!G103 -> 0 | H19: =SA34a!H103 -> 0 | I19: =SA34a!I103 -> 0 | J19: =SA34a!J103 -> 0 | K19: =SA34a!K103 -> 0
A20: Revenue Generating | C20: =SA34a!C111 -> 0 | D20: =SA34a!D111 -> 0 | E20: =SA34a!E111 -> 0 | F20: =SA34a!F111 -> 0 | G20: =SA34a!G111 -> 0 | H20: =SA34a!H111 -> 0 | I20: =SA34a!I111 -> 0 | J20: =SA34a!J111 -> 0 | K20: =SA34a!K111 -> 0
A21: Non-revenue Generating | C21: =SA34a!C114 -> 0 | D21: =SA34a!D114 -> 0 | E21: =SA34a!E114 -> 0 | F21: =SA34a!F114 -> 0 | G21: =SA34a!G114 -> 0 | H21: =SA34a!H114 -> 0 | I21: =SA34a!I114 -> 0 | J21: =SA34a!J114 -> 0 | K21: =SA34a!K114 -> 0
A22: Investment properties | C22: =SUM(C20:C21) -> 0 | D22: =SUM(D20:D21) -> 0 | E22: 0 | F22: 0 | G22: 0 | H22: 0 | I22: 0 | J22: 0 | K22: 0
A23: Operational Buildings | C23: =SA34a!C119 -> 0 | D23: =SA34a!D119 -> 0 | E23: =SA34a!E119 -> 0 | F23: =SA34a!F119 -> 0 | G23: =SA34a!G119 -> 0 | H23: =SA34a!H119 -> 0 | I23: =SA34a!I119 -> 0 | J23: =SA34a!J119 -> 0 | K23: =SA34a!K119 -> 0
A24: Housing | C24: =SA34a!C131 -> 0 | D24: =SA34a!D131 -> 0 | E24: =SA34a!E131 -> 0 | F24: =SA34a!F131 -> 0 | G24: =SA34a!G131 -> 0 | H24: =SA34a!H131 -> 0 | I24: =SA34a!I131 -> 0 | J24: =SA34a!J131 -> 0 | K24: =SA34a!K131 -> 0
A25: Other Assets | C25: =SUM(C23:C24) -> 0 | D25: =SUM(D23:D24) -> 0 | E25: 0 | F25: 0 | G25: 0 | H25: 0 | I25: 0 | J25: 0 | K25: 0
A26: Biological or Cultivated Assets | C26: =SA34a!C136 -> 0 | D26: =SA34a!D136 -> 0 | E26: =SA34a!E136 -> 0 | F26: =SA34a!F136 -> 0 | G26: =SA34a!G136 -> 0 | H26: =SA34a!H136 -> 0 | I26: =SA34a!I136 -> 0 | J26: =SA34a!J136 -> 0 | K26: =SA34a!K136 -> 0
A27: Servitudes | C27: =SA34a!C140 -> 0 | D27: =SA34a!D140 -> 0 | E27: =SA34a!E140 -> 0 | F27: =SA34a!F140 -> 0 | G27: =SA34a!G140 -> 0 | H27: =SA34a!H140 -> 0 | I27: =SA34a!I140 -> 0 | J27: =SA34a!J140 -> 0 | K27: =SA34a!K140 -> 0
A28: Licences and Rights | C28: =SA34a!C141 -> 0 | D28: =SA34a!D141 -> 0 | E28: =SA34a!E141 -> 0 | F28: =SA34a!F141 -> 0 | G28: =SA34a!G141 -> 0 | H28: =SA34a!H141 -> 0 | I28: =SA34a!I141 -> 0 | J28: =SA34a!J141 -> 0 | K28: =SA34a!K141 -> 0
A29: Intangible Assets | C29: =SUM(C27:C28) -> 0 | D29: =SUM(D27:D28) -> 0 | E29: 0 | F29: 0 | G29: 0 | H29: 0 | I29: 0 | J29: 0 | K29: 0
A30: Computer Equipment | C30: =SA34a!C149 -> 0 | D30: =SA34a!D149 -> 716200 | E30: =SA34a!E149 -> 0 | F30: =SA34a!F149 -> 0 | G30: =SA34a!G149 -> 1091000 | H30: =SA34a!H149 -> 1091000 | I30: =SA34a!I149 -> 500000 | J30: =SA34a!J149 -> 0 | K30: =SA34a!K149 -> 0
A31: Furniture and Office Equipment | C31: =SA34a!C152 -> 0 | D31: =SA34a!D152 -> 0 | E31: =SA34a!E152 -> 139027.33 | F31: =SA34a!F152 -> 0 | G31: =SA34a!G152 -> 270000 | H31: =SA34a!H152 -> 270000 | I31: =SA34a!I152 -> 300000 | J31: =SA34a!J152 -> 0 | K31: =SA34a!K152 -> 0
A32: Machinery and Equipment | C32: =SA34a!C155 -> 0 | D32: =SA34a!D155 -> 0 | E32: =SA34a!E155 -> 0 | F32: =SA34a!F155 -> 0 | G32: =SA34a!G155 -> 0 | H32: =SA34a!H155 -> 0 | I32: =SA34a!I155 -> 0 | J32: =SA34a!J155 -> 0 | K32: =SA34a!K155 -> 0
A33: Transport Assets | C33: =SA34a!C158 -> 0 | D33: =SA34a!D158 -> 0 | E33: =SA34a!E158 -> 0 | F33: =SA34a!F158 -> 0 | G33: =SA34a!G158 -> 0 | H33: =SA34a!H158 -> 0 | I33: =SA34a!I158 -> 0 | J33: =SA34a!J158 -> 0 | K33: =SA34a!K158 -> 0
A34: Land | C34: =SA34a!C161 -> 0 | D34: =SA34a!D161 -> 0 | E34: =SA34a!E161 -> 0 | F34: =SA34a!F161 -> 0 | G34: =SA34a!G161 -> 0 | H34: =SA34a!H161 -> 0 | I34: =SA34a!I161 -> 0 | J34: =SA34a!J161 -> 0 | K34: =SA34a!K161 -> 0
A35: Zoo's, Marine and Non-biological Animals | C35: =SA34a!C164 -> 0 | D35: =SA34a!D164 -> 0 | E35: =SA34a!E164 -> 0 | F35: =SA34a!F164 -> 0 | G35: =SA34a!G164 -> 0 | H35: =SA34a!H164 -> 0 | I35: =SA34a!I164 -> 0 | J35: =SA34a!J164 -> 0 | K35: =SA34a!K164 -> 0
A37: Total Renewal of Existing Assets | B37: 2 | C37: =C47+C50+C51+C54+C57+C58+SUM(C61:C67) -> 0 | D37: =D47+D50+D51+D54+D57+D58+SUM(D61:D67) -> 20028096.85 | E37: 5086255.03 | F37: 274413600 | G37: 262127291 | H37: 262127291 | I37: 218086598 | J37: 168475000 | K37: 154147000
A38: Roads Infrastructure | C38: =SA34b!C7 -> 0 | D38: =SA34b!D7 -> 0 | E38: =SA34b!E7 -> 0 | F38: =SA34b!F7 -> 0 | G38: =SA34b!G7 -> 0 | H38: =SA34b!H7 -> 0 | I38: =SA34b!I7 -> 0 | J38: =SA34b!J7 -> 0 | K38: =SA34b!K7 -> 0
A39: Storm water Infrastructure | C39: =SA34b!C12 -> 0 | D39: =SA34b!D12 -> 0 | E39: =SA34b!E12 -> 0 | F39: =SA34b!F12 -> 0 | G39: =SA34b!G12 -> 0 | H39: =SA34b!H12 -> 0 | I39: =SA34b!I12 -> 0 | J39: =SA34b!J12 -> 0 | K39: =SA34b!K12 -> 0
A40: Electrical Infrastructure | C40: =SA34b!C16 -> 0 | D40: =SA34b!D16 -> 0 | E40: =SA34b!E16 -> 0 | F40: =SA34b!F16 -> 0 | G40: =SA34b!G16 -> 0 | H40: =SA34b!H16 -> 0 | I40: =SA34b!I16 -> 0 | J40: =SA34b!J16 -> 0 | K40: =SA34b!K16 -> 0
A41: Water Supply Infrastructure | C41: =SA34b!C26 -> 0 | D41: =SA34b!D26 -> 11231130.17 | E41: =SA34b!E26 -> 432405.72 | F41: =SA34b!F26 -> 267413600 | G41: =SA34b!G26 -> 251127291 | H41: =SA34b!H26 -> 251127291 | I41: =SA34b!I26 -> 212086598 | J41: =SA34b!J26 -> 168475000 | K41: =SA34b!K26 -> 154147000
A42: Sanitation Infrastructure | C42: =SA34b!C37 -> 0 | D42: =SA34b!D37 -> 8796966.68 | E42: =SA34b!E37 -> 4653849.31 | F42: =SA34b!F37 -> 0 | G42: =SA34b!G37 -> 0 | H42: =SA34b!H37 -> 0 | I42: =SA34b!I37 -> 0 | J42: =SA34b!J37 -> 0 | K42: =SA34b!K37 -> 0
A43: Solid Waste Infrastructure | C43: =SA34b!C44 -> 0 | D43: =SA34b!D44 -> 0 | E43: =SA34b!E44 -> 0 | F43: =SA34b!F44 -> 0 | G43: =SA34b!G44 -> 0 | H43: =SA34b!H44 -> 0 | I43: =SA34b!I44 -> 0 | J43: =SA34b!J44 -> 0 | K43: =SA34b!K44 -> 0
A44: Rail Infrastructure | C44: =SA34b!C52 -> 0 | D44: =SA34b!D52 -> 0 | E44: =SA34b!E52 -> 0 | F44: =SA34b!F52 -> 0 | G44: =SA34b!G52 -> 0 | H44: =SA34b!H52 -> 0 | I44: =SA34b!I52 -> 0 | J44: =SA34b!J52 -> 0 | K44: =SA34b!K52 -> 0
A45: Coastal Infrastructure | C45: =SA34b!C62 -> 0 | D45: =SA34b!D62 -> 0 | E45: =SA34b!E62 -> 0 | F45: =SA34b!F62 -> 0 | G45: =SA34b!G62 -> 0 | H45: =SA34b!H62 -> 0 | I45: =SA34b!I62 -> 0 | J45: =SA34b!J62 -> 0 | K45: =SA34b!K62 -> 0
A46: Information and Communication Infrastructure | C46: =SA34b!C68 -> 0 | D46: =SA34b!D68 -> 0 | E46: =SA34b!E68 -> 0 | F46: =SA34b!F68 -> 0 | G46: =SA34b!G68 -> 0 | H46: =SA34b!H68 -> 0 | I46: =SA34b!I68 -> 0 | J46: =SA34b!J68 -> 0 | K46: =SA34b!K68 -> 0
A47: Infrastructure | C47: =SUM(C38:C46) -> 0 | D47: =SUM(D38:D46) -> 20028096.85 | E47: 5086255.03 | F47: 267413600 | G47: 251127291 | H47: 251127291 | I47: 212086598 | J47: 168475000 | K47: 154147000
A48: Community Facilities | C48: =SA34b!C75 -> 0 | D48: =SA34b!D75 -> 0 | E48: =SA34b!E75 -> 0 | F48: =SA34b!F75 -> 0 | G48: =SA34b!G75 -> 0 | H48: =SA34b!H75 -> 0 | I48: =SA34b!I75 -> 0 | J48: =SA34b!J75 -> 0 | K48: =SA34b!K75 -> 0
A49: Sport and Recreation Facilities | C49: =SA34b!C98 -> 0 | D49: =SA34b!D98 -> 0 | E49: =SA34b!E98 -> 0 | F49: =SA34b!F98 -> 0 | G49: =SA34b!G98 -> 0 | H49: =SA34b!H98 -> 0 | I49: =SA34b!I98 -> 0 | J49: =SA34b!J98 -> 0 | K49: =SA34b!K98 -> 0
A50: Community Assets | C50: =SUM(C48:C49) -> 0 | D50: =SUM(D48:D49) -> 0 | E50: 0 | F50: 0 | G50: 0 | H50: 0 | I50: 0 | J50: 0 | K50: 0
A51: Heritage Assets | C51: =SA34b!C103 -> 0 | D51: =SA34b!D103 -> 0 | E51: =SA34b!E103 -> 0 | F51: =SA34b!F103 -> 0 | G51: =SA34b!G103 -> 0 | H51: =SA34b!H103 -> 0 | I51: =SA34b!I103 -> 0 | J51: =SA34b!J103 -> 0 | K51: =SA34b!K103 -> 0
A52: Revenue Generating | C52: =SA34b!C111 -> 0 | D52: =SA34b!D111 -> 0 | E52: =SA34b!E111 -> 0 | F52: =SA34b!F111 -> 0 | G52: =SA34b!G111 -> 0 | H52: =SA34b!H111 -> 0 | I52: =SA34b!I111 -> 0 | J52: =SA34b!J111 -> 0 | K52: =SA34b!K111 -> 0
A53: Non-revenue Generating | C53: =SA34b!C114 -> 0 | D53: =SA34b!D114 -> 0 | E53: =SA34b!E114 -> 0 | F53: =SA34b!F114 -> 0 | G53: =SA34b!G114 -> 0 | H53: =SA34b!H114 -> 0 | I53: =SA34b!I114 -> 0 | J53: =SA34b!J114 -> 0 | K53: =SA34b!K114 -> 0
A54: Investment properties | C54: =SUM(C52:C53) -> 0 | D54: =SUM(D52:D53) -> 0 | E54: 0 | F54: 0 | G54: 0 | H54: 0 | I54: 0 | J54: 0 | K54: 0
A55: Operational Buildings | C55: =SA34b!C119 -> 0 | D55: =SA34b!D119 -> 0 | E55: =SA34b!E119 -> 0 | F55: =SA34b!F119 -> 0 | G55: =SA34b!G119 -> 0 | H55: =SA34b!H119 -> 0 | I55: =SA34b!I119 -> 0 | J55: =SA34b!J119 -> 0 | K55: =SA34b!K119 -> 0
A56: Housing | C56: =SA34b!C131 -> 0 | D56: =SA34b!D131 -> 0 | E56: =SA34b!E131 -> 0 | F56: =SA34b!F131 -> 0 | G56: =SA34b!G131 -> 0 | H56: =SA34b!H131 -> 0 | I56: =SA34b!I131 -> 0 | J56: =SA34b!J131 -> 0 | K56: =SA34b!K131 -> 0
A57: Other Assets | C57: =SUM(C55:C56) -> 0 | D57: =SUM(D55:D56) -> 0 | E57: 0 | F57: 0 | G57: 0 | H57: 0 | I57: 0 | J57: 0 | K57: 0
A58: Biological or Cultivated Assets | C58: =SA34b!C136 -> 0 | D58: =SA34b!D136 -> 0 | E58: =SA34b!E136 -> 0 | F58: =SA34b!F136 -> 0 | G58: =SA34b!G136 -> 0 | H58: =SA34b!H136 -> 0 | I58: =SA34b!I136 -> 0 | J58: =SA34b!J136 -> 0 | K58: =SA34b!K136 -> 0
A59: Servitudes | C59: =SA34b!C140 -> 0 | D59: =SA34b!D140 -> 0 | E59: =SA34b!E140 -> 0 | F59: =SA34b!F140 -> 0 | G59: =SA34b!G140 -> 0 | H59: =SA34b!H140 -> 0 | I59: =SA34b!I140 -> 0 | J59: =SA34b!J140 -> 0 | K59: =SA34b!K140 -> 0
A60: Licences and Rights | C60: =SA34b!C141 -> 0 | D60: =SA34b!D141 -> 0 | E60: =SA34b!E141 -> 0 | F60: =SA34b!F141 -> 0 | G60: =SA34b!G141 -> 0 | H60: =SA34b!H141 -> 0 | I60: =SA34b!I141 -> 0 | J60: =SA34b!J141 -> 0 | K60: =SA34b!K141 -> 0
A61: Intangible Assets | C61: =SUM(C59:C60) -> 0 | D61: =SUM(D59:D60) -> 0 | E61: 0 | F61: 0 | G61: 0 | H61: 0 | I61: 0 | J61: 0 | K61: 0
A62: Computer Equipment | C62: =SA34b!C149 -> 0 | D62: =SA34b!D149 -> 0 | E62: =SA34b!E149 -> 0 | F62: =SA34b!F149 -> 0 | G62: =SA34b!G149 -> 0 | H62: =SA34b!H149 -> 0 | I62: =SA34b!I149 -> 0 | J62: =SA34b!J149 -> 0 | K62: =SA34b!K149 -> 0
A63: Furniture and Office Equipment | C63: =SA34b!C152 -> 0 | D63: =SA34b!D152 -> 0 | E63: =SA34b!E152 -> 0 | F63: =SA34b!F152 -> 7000000 | G63: =SA34b!G152 -> 7000000 | H63: =SA34b!H152 -> 7000000 | I63: =SA34b!I152 -> 6000000 | J63: =SA34b!J152 -> 0 | K63: =SA34b!K152 -> 0
A64: Machinery and Equipment | C64: =SA34b!C155 -> 0 | D64: =SA34b!D155 -> 0 | E64: =SA34b!E155 -> 0 | F64: =SA34b!F155 -> 0 | G64: =SA34b!G155 -> 0 | H64: =SA34b!H155 -> 0 | I64: =SA34b!I155 -> 0 | J64: =SA34b!J155 -> 0 | K64: =SA34b!K155 -> 0
A65: Transport Assets | C65: =SA34b!C158 -> 0 | D65: =SA34b!D158 -> 0 | E65: =SA34b!E158 -> 0 | F65: =SA34b!F158 -> 0 | G65: =SA34b!G158 -> 4000000 | H65: =SA34b!H158 -> 4000000 | I65: =SA34b!I158 -> 0 | J65: =SA34b!J158 -> 0 | K65: =SA34b!K158 -> 0
A66: Land | C66: =SA34b!C161 -> 0 | D66: =SA34b!D161 -> 0 | E66: =SA34b!E161 -> 0 | F66: =SA34b!F161 -> 0 | G66: =SA34b!G161 -> 0 | H66: =SA34b!H161 -> 0 | I66: =SA34b!I161 -> 0 | J66: =SA34b!J161 -> 0 | K66: =SA34b!K161 -> 0
A67: Zoo's, Marine and Non-biological Animals | C67: =SA34b!C164 -> 0 | D67: =SA34b!D164 -> 0 | E67: =SA34b!E164 -> 0 | F67: =SA34b!F164 -> 0 | G67: =SA34b!G164 -> 0 | H67: =SA34b!H164 -> 0 | I67: =SA34b!I164 -> 0 | J67: =SA34b!J164 -> 0 | K67: =SA34b!K164 -> 0
A69: Total Upgrading of Existing Assets | B69: 6 | C69: =C79+C82+C83+C86+C89+C90+SUM(C93:C99) -> 0 | D69: =D79+D82+D83+D86+D89+D90+SUM(D93:D99) -> 0 | E69: 0 | F69: 0 | G69: 17913495 | H69: 17913495 | I69: 2310000 | J69: 2437000 | K69: 4104000
A70: Roads Infrastructure | C70: =SA34e!C7 -> 0 | D70: =SA34e!D7 -> 0 | E70: =SA34e!E7 -> 0 | F70: =SA34e!F7 -> 0 | G70: =SA34e!G7 -> 4854000 | H70: =SA34e!H7 -> 4854000 | I70: =SA34e!I7 -> 2310000 | J70: =SA34e!J7 -> 2437000 | K70: =SA34e!K7 -> 2604000
A71: Storm water Infrastructure | C71: =SA34e!C12 -> 0 | D71: =SA34e!D12 -> 0 | E71: =SA34e!E12 -> 0 | F71: =SA34e!F12 -> 0 | G71: =SA34e!G12 -> 0 | H71: =SA34e!H12 -> 0 | I71: =SA34e!I12 -> 0 | J71: =SA34e!J12 -> 0 | K71: =SA34e!K12 -> 0
A72: Electrical Infrastructure | C72: =SA34e!C16 -> 0 | D72: =SA34e!D16 -> 0 | E72: =SA34e!E16 -> 0 | F72: =SA34e!F16 -> 0 | G72: =SA34e!G16 -> 0 | H72: =SA34e!H16 -> 0 | I72: =SA34e!I16 -> 0 | J72: =SA34e!J16 -> 0 | K72: =SA34e!K16 -> 0
A73: Water Supply Infrastructure | C73: =SA34e!C26 -> 0 | D73: =SA34e!D26 -> 0 | E73: =SA34e!E26 -> 0 | F73: =SA34e!F26 -> 0 | G73: =SA34e!G26 -> 13059495 | H73: =SA34e!H26 -> 13059495 | I73: =SA34e!I26 -> 0 | J73: =SA34e!J26 -> 0 | K73: =SA34e!K26 -> 1500000
A74: Sanitation Infrastructure | C74: =SA34e!C37 -> 0 | D74: =SA34e!D37 -> 0 | E74: =SA34e!E37 -> 0 | F74: =SA34e!F37 -> 0 | G74: =SA34e!G37 -> 0 | H74: =SA34e!H37 -> 0 | I74: =SA34e!I37 -> 0 | J74: =SA34e!J37 -> 0 | K74: =SA34e!K37 -> 0
A75: Solid Waste Infrastructure | C75: =SA34e!C44 -> 0 | D75: =SA34e!D44 -> 0 | E75: =SA34e!E44 -> 0 | F75: =SA34e!F44 -> 0 | G75: =SA34e!G44 -> 0 | H75: =SA34e!H44 -> 0 | I75: =SA34e!I44 -> 0 | J75: =SA34e!J44 -> 0 | K75: =SA34e!K44 -> 0
A76: Rail Infrastructure | C76: =SA34e!C52 -> 0 | D76: =SA34e!D52 -> 0 | E76: =SA34e!E52 -> 0 | F76: =SA34e!F52 -> 0 | G76: =SA34e!G52 -> 0 | H76: =SA34e!H52 -> 0 | I76: =SA34e!I52 -> 0 | J76: =SA34e!J52 -> 0 | K76: =SA34e!K52 -> 0
A77: Coastal Infrastructure | C77: =SA34e!C62 -> 0 | D77: =SA34e!D62 -> 0 | E77: =SA34e!E62 -> 0 | F77: =SA34e!F62 -> 0 | G77: =SA34e!G62 -> 0 | H77: =SA34e!H62 -> 0 | I77: =SA34e!I62 -> 0 | J77: =SA34e!J62 -> 0 | K77: =SA34e!K62 -> 0
A78: Information and Communication Infrastructure | C78: =SA34e!C68 -> 0 | D78: =SA34e!D68 -> 0 | E78: =SA34e!E68 -> 0 | F78: =SA34e!F68 -> 0 | G78: =SA34e!G68 -> 0 | H78: =SA34e!H68 -> 0 | I78: =SA34e!I68 -> 0 | J78: =SA34e!J68 -> 0 | K78: =SA34e!K68 -> 0
A79: Infrastructure | C79: =SUM(C70:C78) -> 0 | D79: 0 | E79: 0 | F79: 0 | G79: 17913495 | H79: 17913495 | I79: 2310000 | J79: 2437000 | K79: 4104000
A80: Community Facilities | C80: =SA34e!C75 -> 0 | D80: =SA34e!D75 -> 0 | E80: =SA34e!E75 -> 0 | F80: =SA34e!F75 -> 0 | G80: =SA34e!G75 -> 0 | H80: =SA34e!H75 -> 0 | I80: =SA34e!I75 -> 0 | J80: =SA34e!J75 -> 0 | K80: =SA34e!K75 -> 0
A81: Sport and Recreation Facilities | C81: =SA34e!C98 -> 0 | D81: =SA34e!D98 -> 0 | E81: =SA34e!E98 -> 0 | F81: =SA34e!F98 -> 0 | G81: =SA34e!G98 -> 0 | H81: =SA34e!H98 -> 0 | I81: =SA34e!I98 -> 0 | J81: =SA34e!J98 -> 0 | K81: =SA34e!K98 -> 0
A82: Community Assets | C82: =SUM(C80:C81) -> 0 | D82: 0 | E82: 0 | F82: 0 | G82: 0 | H82: 0 | I82: 0 | J82: 0 | K82: 0
A83: Heritage Assets | C83: =SA34e!C103 -> 0 | D83: =SA34e!D103 -> 0 | E83: =SA34e!E103 -> 0 | F83: =SA34e!F103 -> 0 | G83: =SA34e!G103 -> 0 | H83: =SA34e!H103 -> 0 | I83: =SA34e!I103 -> 0 | J83: =SA34e!J103 -> 0 | K83: =SA34e!K103 -> 0
A84: Revenue Generating | C84: =SA34e!C111 -> 0 | D84: =SA34e!D111 -> 0 | E84: =SA34e!E111 -> 0 | F84: =SA34e!F111 -> 0 | G84: =SA34e!G111 -> 0 | H84: =SA34e!H111 -> 0 | I84: =SA34e!I111 -> 0 | J84: =SA34e!J111 -> 0 | K84: =SA34e!K111 -> 0
A85: Non-revenue Generating | C85: =SA34e!C114 -> 0 | D85: =SA34e!D114 -> 0 | E85: =SA34e!E114 -> 0 | F85: =SA34e!F114 -> 0 | G85: =SA34e!G114 -> 0 | H85: =SA34e!H114 -> 0 | I85: =SA34e!I114 -> 0 | J85: =SA34e!J114 -> 0 | K85: =SA34e!K114 -> 0
A86: Investment properties | C86: =SUM(C84:C85) -> 0 | D86: 0 | E86: 0 | F86: 0 | G86: 0 | H86: 0 | I86: 0 | J86: 0 | K86: 0
A87: Operational Buildings | C87: =SA34e!C119 -> 0 | D87: =SA34e!D119 -> 0 | E87: =SA34e!E119 -> 0 | F87: =SA34e!F119 -> 0 | G87: =SA34e!G119 -> 0 | H87: =SA34e!H119 -> 0 | I87: =SA34e!I119 -> 0 | J87: =SA34e!J119 -> 0 | K87: =SA34e!K119 -> 0
A88: Housing | C88: =SA34e!C131 -> 0 | D88: =SA34e!D131 -> 0 | E88: =SA34e!E131 -> 0 | F88: =SA34e!F131 -> 0 | G88: =SA34e!G131 -> 0 | H88: =SA34e!H131 -> 0 | I88: =SA34e!I131 -> 0 | J88: =SA34e!J131 -> 0 | K88: =SA34e!K131 -> 0
A89: Other Assets | C89: =SUM(C87:C88) -> 0 | D89: 0 | E89: 0 | F89: 0 | G89: 0 | H89: 0 | I89: 0 | J89: 0 | K89: 0
A90: Biological or Cultivated Assets | C90: =SA34e!C136 -> 0 | D90: =SA34e!D136 -> 0 | E90: =SA34e!E136 -> 0 | F90: =SA34e!F136 -> 0 | G90: =SA34e!G136 -> 0 | H90: =SA34e!H136 -> 0 | I90: =SA34e!I136 -> 0 | J90: =SA34e!J136 -> 0 | K90: =SA34e!K136 -> 0
A91: Servitudes | C91: =SA34e!C140 -> 0 | D91: =SA34e!D140 -> 0 | E91: =SA34e!E140 -> 0 | F91: =SA34e!F140 -> 0 | G91: =SA34e!G140 -> 0 | H91: =SA34e!H140 -> 0 | I91: =SA34e!I140 -> 0 | J91: =SA34e!J140 -> 0 | K91: =SA34e!K140 -> 0
A92: Licences and Rights | C92: =SA34e!C141 -> 0 | D92: =SA34e!D141 -> 0 | E92: =SA34e!E141 -> 0 | F92: =SA34e!F141 -> 0 | G92: =SA34e!G141 -> 0 | H92: =SA34e!H141 -> 0 | I92: =SA34e!I141 -> 0 | J92: =SA34e!J141 -> 0 | K92: =SA34e!K141 -> 0
A93: Intangible Assets | C93: =SUM(C91:C92) -> 0 | D93: 0 | E93: 0 | F93: 0 | G93: 0 | H93: 0 | I93: 0 | J93: 0 | K93: 0
A94: Computer Equipment | C94: =SA34e!C149 -> 0 | D94: =SA34e!D149 -> 0 | E94: =SA34e!E149 -> 0 | F94: =SA34e!F149 -> 0 | G94: =SA34e!G149 -> 0 | H94: =SA34e!H149 -> 0 | I94: =SA34e!I149 -> 0 | J94: =SA34e!J149 -> 0 | K94: =SA34e!K149 -> 0
A95: Furniture and Office Equipment | C95: =SA34e!C152 -> 0 | D95: =SA34e!D152 -> 0 | E95: =SA34e!E152 -> 0 | F95: =SA34e!F152 -> 0 | G95: =SA34e!G152 -> 0 | H95: =SA34e!H152 -> 0 | I95: =SA34e!I152 -> 0 | J95: =SA34e!J152 -> 0 | K95: =SA34e!K152 -> 0
A96: Machinery and Equipment | C96: =SA34e!C155 -> 0 | D96: =SA34e!D155 -> 0 | E96: =SA34e!E155 -> 0 | F96: =SA34e!F155 -> 0 | G96: =SA34e!G155 -> 0 | H96: =SA34e!H155 -> 0 | I96: =SA34e!I155 -> 0 | J96: =SA34e!J155 -> 0 | K96: =SA34e!K155 -> 0
A97: Transport Assets | C97: =SA34e!C158 -> 0 | D97: =SA34e!D158 -> 0 | E97: =SA34e!E158 -> 0 | F97: =SA34e!F158 -> 0 | G97: =SA34e!G158 -> 0 | H97: =SA34e!H158 -> 0 | I97: =SA34e!I158 -> 0 | J97: =SA34e!J158 -> 0 | K97: =SA34e!K158 -> 0
A98: Land | C98: =SA34e!C161 -> 0 | D98: =SA34e!D161 -> 0 | E98: =SA34e!E161 -> 0 | F98: =SA34e!F161 -> 0 | G98: =SA34e!G161 -> 0 | H98: =SA34e!H161 -> 0 | I98: =SA34e!I161 -> 0 | J98: =SA34e!J161 -> 0 | K98: =SA34e!K161 -> 0
A99: Zoo's, Marine and Non-biological Animals | C99: =SA34e!C164 -> 0 | D99: =SA34e!D164 -> 0 | E99: =SA34e!E164 -> 0 | F99: =SA34e!F164 -> 0 | G99: =SA34e!G164 -> 0 | H99: =SA34e!H164 -> 0 | I99: =SA34e!I164 -> 0 | J99: =SA34e!J164 -> 0 | K99: =SA34e!K164 -> 0
A101: Total Capital Expenditure | B101: 4 | C101: =+C5+C37+C69 -> 0 | D101: =+D5+D37+D69 -> 348038357.1 | E101: 457492910.4 | F101: 709125000 | G101: 682272778 | H101: 682272778 | I101: 466886001 | J101: 511197001 | K101: 535034000
A102: Roads Infrastructure | C102: =+C6+C38+C70 -> 0 | D102: =+D6+D38+D70 -> 0 | E102: 0 | F102: 0 | G102: 4854000 | H102: 4854000 | I102: 2310000 | J102: 2437000 | K102: 2604000
A103: Storm water Infrastructure | C103: =+C7+C39+C71 -> 0 | D103: 0 | E103: 0 | F103: 0 | G103: 0 | H103: 0 | I103: 0 | J103: 0 | K103: 0
A104: Electrical Infrastructure | C104: 0 | D104: 0 | E104: 0 | F104: 0 | G104: 0 | H104: 0 | I104: 0 | J104: 0 | K104: 0
A105: Water Supply Infrastructure | C105: 0 | D105: 18704933.51 | E105: 57822236.74 | F105: 693625000 | G105: 663842816 | H105: 663842816 | I105: =+I9+I41+I73 -> 457776001 | J105: 508760001 | K105: 532430000
A106: Sanitation Infrastructure | C106: 0 | D106: 328617223.6 | E106: 399531646.3 | F106: 8500000 | G106: 1214962 | H106: 1214962 | I106: 0 | J106: 0 | K106: 0
A107: Solid Waste Infrastructure | C107: 0 | D107: 0 | E107: 0 | F107: 0 | G107: 0 | H107: 0 | I107: 0 | J107: 0 | K107: 0
A108: Rail Infrastructure | C108: 0 | D108: 0 | E108: 0 | F108: 0 | G108: 0 | H108: 0 | I108: 0 | J108: 0 | K108: 0
A109: Coastal Infrastructure | C109: 0 | D109: 0 | E109: 0 | F109: 0 | G109: 0 | H109: 0 | I109: 0 | J109: 0 | K109: 0
A110: Information and Communication Infrastructure | C110: 0 | D110: 0 | E110: 0 | F110: 0 | G110: 0 | H110: 0 | I110: 0 | J110: 0 | K110: 0
A111: Infrastructure | C111: =SUM(C102:C110) -> 0 | D111: =SUM(D102:D110) -> 347322157.1 | E111: 457353883 | F111: 702125000 | G111: 669911778 | H111: 669911778 | I111: 460086001 | J111: 511197001 | K111: 535034000
A112: Community Facilities | C112: =+C16+C48+C80 -> 0 | D112: =+D16+D48+D80 -> 0 | E112: 0 | F112: 0 | G112: 0 | H112: 0 | I112: 0 | J112: 0 | K112: 0
A113: Sport and Recreation Facilities | C113: =+C17+C49+C81 -> 0 | D113: =+D17+D49+D81 -> 0 | E113: 0 | F113: 0 | G113: 0 | H113: 0 | I113: 0 | J113: 0 | K113: 0
A114: Community Assets | C114: =SUM(C112:C113) -> 0 | D114: =SUM(D112:D113) -> 0 | E114: 0 | F114: 0 | G114: 0 | H114: 0 | I114: 0 | J114: 0 | K114: 0
A115: Heritage Assets | C115: =+C19+C51+C83 -> 0 | D115: =+D19+D51+D83 -> 0 | E115: 0 | F115: 0 | G115: 0 | H115: 0 | I115: 0 | J115: 0 | K115: 0
A116: Revenue Generating | C116: =+C20+C52+C84 -> 0 | D116: =+D20+D52+D84 -> 0 | E116: 0 | F116: 0 | G116: 0 | H116: 0 | I116: 0 | J116: 0 | K116: 0
A117: Non-revenue Generating | C117: =+C21+C53+C85 -> 0 | D117: =+D21+D53+D85 -> 0 | E117: 0 | F117: 0 | G117: 0 | H117: 0 | I117: 0 | J117: 0 | K117: 0
A118: Investment properties | C118: =SUM(C116:C117) -> 0 | D118: =SUM(D116:D117) -> 0 | E118: 0 | F118: 0 | G118: 0 | H118: 0 | I118: 0 | J118: 0 | K118: 0
A119: Operational Buildings | C119: =+C23+C55+C87 -> 0 | D119: =+D23+D55+D87 -> 0 | E119: 0 | F119: 0 | G119: 0 | H119: 0 | I119: 0 | J119: 0 | K119: 0
A120: Housing | C120: =+C24+C56+C88 -> 0 | D120: =+D24+D56+D88 -> 0 | E120: 0 | F120: 0 | G120: 0 | H120: 0 | I120: 0 | J120: 0 | K120: 0
A121: Other Assets | C121: =SUM(C119:C120) -> 0 | D121: 0 | E121: 0 | F121: 0 | G121: 0 | H121: 0 | I121: 0 | J121: 0 | K121: 0
A122: Biological or Cultivated Assets | C122: =+C26+C58+C90 -> 0 | D122: =+D26+D58+D90 -> 0 | E122: 0 | F122: 0 | G122: 0 | H122: 0 | I122: 0 | J122: 0 | K122: 0
A123: Servitudes | C123: =+C27+C59+C91 -> 0 | D123: =+D27+D59+D91 -> 0 | E123: 0 | F123: 0 | G123: 0 | H123: 0 | I123: 0 | J123: 0 | K123: 0
A124: Licences and Rights | C124: =+C28+C60+C92 -> 0 | D124: =+D28+D60+D92 -> 0 | E124: 0 | F124: 0 | G124: 0 | H124: 0 | I124: 0 | J124: 0 | K124: 0
A125: Intangible Assets | C125: =SUM(C123:C124) -> 0 | D125: =SUM(D123:D124) -> 0 | E125: 0 | F125: 0 | G125: 0 | H125: 0 | I125: 0 | J125: 0 | K125: 0
A126: Computer Equipment | C126: =+C30+C62+C94 -> 0 | D126: =+D30+D62+D94 -> 716200 | E126: 0 | F126: 0 | G126: 1091000 | H126: 1091000 | I126: 500000 | J126: 0 | K126: 0
A127: Furniture and Office Equipment | C127: =+C31+C63+C95 -> 0 | D127: 0 | E127: 139027.33 | F127: 7000000 | G127: 7270000 | H127: 7270000 | I127: 6300000 | J127: 0 | K127: 0
A128: Machinery and Equipment | C128: 0 | D128: 0 | E128: 0 | F128: 0 | G128: 0 | H128: 0 | I128: 0 | J128: 0 | K128: 0
A129: Transport Assets | C129: 0 | D129: 0 | E129: 0 | F129: 0 | G129: 4000000 | H129: 4000000 | I129: 0 | J129: 0 | K129: 0
A130: Land | C130: 0 | D130: 0 | E130: 0 | F130: 0 | G130: 0 | H130: 0 | I130: 0 | J130: 0 | K130: 0
A131: Zoo's, Marine and Non-biological Animals | C131: 0 | D131: 0 | E131: 0 | F131: 0 | G131: 0 | H131: 0 | I131: 0 | J131: 0 | K131: 0
A132: TOTAL CAPITAL EXPENDITURE - Asset class | C132: =+C5+C37+C69 -> 0 | D132: =+D5+D37+D69 -> 348038357.1 | E132: 457492910.4 | F132: 709125000 | G132: 682272778 | H132: 682272778 | I132: 466886001 | J132: 511197001 | K132: 535034000
A134: ASSET REGISTER SUMMARY - PPE (WDV) | B134: 5 | C134: =C144+C147+C148+C151+C154+C155+C158+C159+C160+C161+C162+C163+C164 -> 0 | D134: =D144+D147+D148+D151+D154+D155+D158+D159+D160+D161+D162+D163+D164 -> 1895239756 | E134: 2233021658 | F134: 2037733494 | G134: 2018225898 | H134: 2018225898 | I134: 2793037864 | J134: 2950425696 | K134: 3055821616
A135: Roads Infrastructure | C135: 0 | D135: 34975203.14 | E135: 30856445.49 | F135: 38201071 | G135: 50399697 | H135: 50399697 | I135: 31216761 | J135: 32644566 | K135: 34170906
A136: Storm water Infrastructure | C136: 0 | D136: 0 | E136: 0 | F136: 0 | G136: 0 | H136: 0 | I136: 0 | J136: 0 | K136: 0
A137: Electrical Infrastructure
A138: Water Supply Infrastructure | C138: 0 | D138: 1757902946 | E138: 2111789505 | F138: 1904683833 | G138: 1874901649 | H138: 1874901649 | I138: 2666416740 | J138: 2825189572 | K138: 2924892527
A139: Sanitation Infrastructure | C139: 0 | D139: 69141301.05 | E139: 49748218.61 | F139: 49954280 | G139: 42669242 | H139: 42669242 | I139: 48398333 | J139: 50576258 | K139: 52852189
A140: Solid Waste Infrastructure | C140: 0 | D140: 0 | E140: 0 | F140: 0 | G140: 0 | H140: 0 | I140: 0 | J140: 0 | K140: 0
A141: Rail Infrastructure
A142: Coastal Infrastructure
A143: Information and Communication Infrastructure
A144: Infrastructure | C144: =SUM(C135:C143) -> 0 | D144: =SUM(D135:D143) -> 1862019450 | E144: 2192394169 | F144: 1992839184 | G144: 1967970588 | H144: 1967970588 | I144: 2746031834 | J144: 2908410396 | K144: 3011915622
A147: Community Assets | C147: 0 | D147: 38042303.21 | E147: 35603535.7 | F147: 40486219 | G147: 40486219 | H147: 40486219 | I147: 35182078 | J147: 36765271 | K147: 38419709
A148: Heritage Assets | C148: 0 | D148: 0 | E148: 0 | F148: 0 | G148: 0 | H148: 0 | I148: 0 | J148: 0 | K148: 0
A151: Investment properties
A154: Other Assets | C154: 0 | D154: -15408025.65 | E154: -15408025.65 | F154: -14061808 | G154: -14061808 | H154: -14061808 | I154: -15408026 | J154: -16101387 | K154: -16825949
A155: Biological or Cultivated Assets
A158: Intangible Assets | C158: 0 | D158: 0 | E158: 0 | F158: 0 | G158: 0 | H158: 0 | I158: 0 | J158: 0 | K158: 0
A159: Computer Equipment | C159: 0 | D159: 0 | E159: 5483413.51 | F159: 0 | G159: 1091000 | H159: 1091000 | I159: 5983413 | J159: 5730167 | K159: 5988026
A160: Furniture and Office Equipment | C160: 0 | D160: 8064115.75 | E160: 4595334.06 | F160: 16328574 | G160: 16598574 | H160: 16598574 | I160: 10895334 | J160: 4802123 | K160: 5018220
A161: Machinery and Equipment | C161: 0 | D161: 517982.18 | E161: 3790842.03 | F161: 675856 | G161: 675856 | H161: 675856 | I161: 3790842 | J161: 3961429 | K161: 4139694
A162: Transport Assets | C162: 0 | D162: 2003929.73 | E162: 6562389.77 | F162: 1465469 | G162: 5465469 | H162: 5465469 | I162: 6562389 | J162: 6857697 | K162: 7166294
A163: Land
A164: Zoo's, Marine and Non-biological Animals
A165: TOTAL ASSET REGISTER SUMMARY - PPE (WDV) | B165: 5 | C165: =C144+C147+C148+C151+C154+C155+C158+C159+C160+C161+C162+C163+C164 -> 0 | D165: =D144+D147+D148+D151+D154+D155+D158+D159+D160+D161+D162+D163+D164 -> 1895239756 | E165: 2233021658 | F165: 2037733494 | G165: 2018225898 | H165: 2018225898 | I165: 2793037864 | J165: 2950425696 | K165: 3055821616
A167: EXPENDITURE OTHER ITEMS | C167: =SUM(C168:C169) -> 0 | D167: =SUM(D168:D169) -> 214757874.7 | E167: 220325426.9 | F167: 179656551 | G167: 225239360 | H167: 225239360 | I167: 170584648 | J167: 208274035 | K167: 223108598
A168: Depreciation | B168: 7 | C168: =SA34d!C167 -> 0 | D168: =SA34d!D167 -> 94287428.87 | E168: =SA34d!E167 -> 101039968 | F168: =SA34d!F167 -> 74127235 | G168: =SA34d!G167 -> 80430272 | H168: =SA34d!H167 -> 80430272 | I168: =SA34d!I167 -> 90340954 | J168: =SA34d!J167 -> 104150000 | K168: =SA34d!K167 -> 107382250
A169: Repairs and Maintenance by Asset Class | B169: 3 | C169: =C179+C182+C183+C186+C189+C190+SUM(C193:C199) -> 0 | D169: =D179+D182+D183+D186+D189+D190+SUM(D193:D199) -> 120470445.9 | E169: 119285459 | F169: 105529316 | G169: 144809088 | H169: 144809088 | I169: 80243694 | J169: 104124035 | K169: 115726348
A170: Roads Infrastructure | C170: =SA34c!C7 -> 0 | D170: =SA34c!D7 -> 0 | E170: =SA34c!E7 -> 0 | F170: =SA34c!F7 -> 0 | G170: =SA34c!G7 -> 0 | H170: =SA34c!H7 -> 0 | I170: =SA34c!I7 -> 0 | J170: =SA34c!J7 -> 0 | K170: =SA34c!K7 -> 0
A171: Storm water Infrastructure | C171: =SA34c!C12 -> 0 | D171: =SA34c!D12 -> 0 | E171: =SA34c!E12 -> 0 | F171: =SA34c!F12 -> 0 | G171: =SA34c!G12 -> 0 | H171: =SA34c!H12 -> 0 | I171: =SA34c!I12 -> 0 | J171: =SA34c!J12 -> 0 | K171: =SA34c!K12 -> 0
A172: Electrical Infrastructure | C172: =SA34c!C16 -> 0 | D172: =SA34c!D16 -> 0 | E172: =SA34c!E16 -> 0 | F172: =SA34c!F16 -> 0 | G172: =SA34c!G16 -> 0 | H172: =SA34c!H16 -> 0 | I172: =SA34c!I16 -> 0 | J172: =SA34c!J16 -> 0 | K172: =SA34c!K16 -> 0
A173: Water Supply Infrastructure | C173: =SA34c!C26 -> 0 | D173: =SA34c!D26 -> 34227329.46 | E173: =SA34c!E26 -> 36099243.73 | F173: =SA34c!F26 -> 34419845 | G173: =SA34c!G26 -> 33219845 | H173: =SA34c!H26 -> 33219845 | I173: =SA34c!I26 -> 24767721 | J173: =SA34c!J26 -> 36993522 | K173: =SA34c!K26 -> 45772299
A174: Sanitation Infrastructure | C174: =SA34c!C37 -> 0 | D174: =SA34c!D37 -> 86164923.19 | E174: =SA34c!E37 -> 81180068.35 | F174: =SA34c!F37 -> 69388000 | G174: =SA34c!G37 -> 109456296 | H174: =SA34c!H37 -> 109456296 | I174: =SA34c!I37 -> 54500000 | J174: =SA34c!J37 -> 65602500 | K174: =SA34c!K37 -> 69023625
A175: Solid Waste Infrastructure | C175: =SA34c!C44 -> 0 | D175: =SA34c!D44 -> 0 | E175: =SA34c!E44 -> 0 | F175: =SA34c!F44 -> 0 | G175: =SA34c!G44 -> 0 | H175: =SA34c!H44 -> 0 | I175: =SA34c!I44 -> 0 | J175: =SA34c!J44 -> 0 | K175: =SA34c!K44 -> 0
A176: Rail Infrastructure | C176: =SA34c!C52 -> 0 | D176: =SA34c!D52 -> 0 | E176: =SA34c!E52 -> 0 | F176: =SA34c!F52 -> 0 | G176: =SA34c!G52 -> 0 | H176: =SA34c!H52 -> 0 | I176: =SA34c!I52 -> 0 | J176: =SA34c!J52 -> 0 | K176: =SA34c!K52 -> 0
A177: Coastal Infrastructure | C177: =SA34c!C62 -> 0 | D177: =SA34c!D62 -> 0 | E177: =SA34c!E62 -> 0 | F177: =SA34c!F62 -> 0 | G177: =SA34c!G62 -> 0 | H177: =SA34c!H62 -> 0 | I177: =SA34c!I62 -> 0 | J177: =SA34c!J62 -> 0 | K177: =SA34c!K62 -> 0
A178: Information and Communication Infrastructure | C178: =SA34c!C68 -> 0 | D178: =SA34c!D68 -> 0 | E178: =SA34c!E68 -> 0 | F178: =SA34c!F68 -> 0 | G178: =SA34c!G68 -> 0 | H178: =SA34c!H68 -> 0 | I178: =SA34c!I68 -> 0 | J178: =SA34c!J68 -> 0 | K178: =SA34c!K68 -> 0
A179: Infrastructure | C179: =SUM(C170:C178) -> 0 | D179: =SUM(D170:D178) -> 120392252.7 | E179: 117279312.1 | F179: 103807845 | G179: 142676141 | H179: 142676141 | I179: 79267721 | J179: 102596022 | K179: 114795924
A180: Community Facilities | C180: =SA34c!C75 -> 0 | D180: =SA34c!D75 -> 0 | E180: =SA34c!E75 -> 0 | F180: =SA34c!F75 -> 0 | G180: =SA34c!G75 -> 0 | H180: =SA34c!H75 -> 0 | I180: =SA34c!I75 -> 0 | J180: =SA34c!J75 -> 0 | K180: =SA34c!K75 -> 0
A181: Sport and Recreation Facilities | C181: =SA34c!C98 -> 0 | D181: =SA34c!D98 -> 0 | E181: =SA34c!E98 -> 0 | F181: =SA34c!F98 -> 0 | G181: =SA34c!G98 -> 0 | H181: =SA34c!H98 -> 0 | I181: =SA34c!I98 -> 0 | J181: =SA34c!J98 -> 0 | K181: =SA34c!K98 -> 0
A182: Community Assets | C182: =SUM(C180:C181) -> 0 | D182: 0 | E182: 0 | F182: 0 | G182: 0 | H182: 0 | I182: 0 | J182: 0 | K182: 0
A183: Heritage Assets | C183: =SA34c!C103 -> 0 | D183: =SA34c!D103 -> 0 | E183: =SA34c!E103 -> 0 | F183: =SA34c!F103 -> 0 | G183: =SA34c!G103 -> 0 | H183: =SA34c!H103 -> 0 | I183: =SA34c!I103 -> 0 | J183: =SA34c!J103 -> 0 | K183: =SA34c!K103 -> 0
A184: Revenue Generating | C184: =SA34c!C111 -> 0 | D184: =SA34c!D111 -> 0 | E184: =SA34c!E111 -> 0 | F184: =SA34c!F111 -> 0 | G184: =SA34c!G111 -> 0 | H184: =SA34c!H111 -> 0 | I184: =SA34c!I111 -> 0 | J184: =SA34c!J111 -> 0 | K184: =SA34c!K111 -> 0
A185: Non-revenue Generating | C185: =SA34c!C114 -> 0 | D185: =SA34c!D114 -> 0 | E185: =SA34c!E114 -> 0 | F185: =SA34c!F114 -> 0 | G185: =SA34c!G114 -> 0 | H185: =SA34c!H114 -> 0 | I185: =SA34c!I114 -> 0 | J185: =SA34c!J114 -> 0 | K185: =SA34c!K114 -> 0
A186: Investment properties | C186: =SUM(C184:C185) -> 0 | D186: 0 | E186: 0 | F186: 0 | G186: 0 | H186: 0 | I186: 0 | J186: 0 | K186: 0
A187: Operational Buildings | C187: =SA34c!C119 -> 0 | D187: =SA34c!D119 -> -702088.52 | E187: =SA34c!E119 -> 1438091.43 | F187: =SA34c!F119 -> 1056000 | G187: =SA34c!G119 -> 1056000 | H187: =SA34c!H119 -> 1056000 | I187: =SA34c!I119 -> 474868 | J187: =SA34c!J119 -> 1000000 | K187: =SA34c!K119 -> 400316
A188: Housing | C188: =SA34c!C131 -> 0 | D188: =SA34c!D131 -> 0 | E188: =SA34c!E131 -> 0 | F188: =SA34c!F131 -> 0 | G188: =SA34c!G131 -> 0 | H188: =SA34c!H131 -> 0 | I188: =SA34c!I131 -> 0 | J188: =SA34c!J131 -> 0 | K188: =SA34c!K131 -> 0
A189: Other Assets | C189: =SUM(C187:C188) -> 0 | D189: -702088.52 | E189: 1438091.43 | F189: 1056000 | G189: 1056000 | H189: 1056000 | I189: 474868 | J189: 1000000 | K189: 400316
A190: Biological or Cultivated Assets | C190: =SA34c!C136 -> 0 | D190: =SA34c!D136 -> 0 | E190: =SA34c!E136 -> 0 | F190: =SA34c!F136 -> 0 | G190: =SA34c!G136 -> 0 | H190: =SA34c!H136 -> 0 | I190: =SA34c!I136 -> 0 | J190: =SA34c!J136 -> 0 | K190: =SA34c!K136 -> 0
A191: Servitudes | C191: =SA34c!C140 -> 0 | D191: =SA34c!D140 -> 0 | E191: =SA34c!E140 -> 0 | F191: =SA34c!F140 -> 0 | G191: =SA34c!G140 -> 0 | H191: =SA34c!H140 -> 0 | I191: =SA34c!I140 -> 0 | J191: =SA34c!J140 -> 0 | K191: =SA34c!K140 -> 0
A192: Licences and Rights | C192: =SA34c!C141 -> 0 | D192: =SA34c!D141 -> 0 | E192: =SA34c!E141 -> 0 | F192: =SA34c!F141 -> 0 | G192: =SA34c!G141 -> 0 | H192: =SA34c!H141 -> 0 | I192: =SA34c!I141 -> 0 | J192: =SA34c!J141 -> 0 | K192: =SA34c!K141 -> 0
A193: Intangible Assets | C193: =SUM(C191:C192) -> 0 | D193: 0 | E193: 0 | F193: 0 | G193: 0 | H193: 0 | I193: 0 | J193: 0 | K193: 0
A194: Computer Equipment | C194: =SA34c!C149 -> 0 | D194: =SA34c!D149 -> 0 | E194: =SA34c!E149 -> 0 | F194: =SA34c!F149 -> 0 | G194: =SA34c!G149 -> 0 | H194: =SA34c!H149 -> 0 | I194: =SA34c!I149 -> 0 | J194: =SA34c!J149 -> 0 | K194: =SA34c!K149 -> 0
A195: Furniture and Office Equipment | C195: =SA34c!C152 -> 0 | D195: =SA34c!D152 -> 0 | E195: =SA34c!E152 -> 0 | F195: =SA34c!F152 -> 0 | G195: =SA34c!G152 -> 0 | H195: =SA34c!H152 -> 0 | I195: =SA34c!I152 -> 0 | J195: =SA34c!J152 -> 0 | K195: =SA34c!K152 -> 0
A196: Machinery and Equipment | C196: =SA34c!C155 -> 0 | D196: =SA34c!D155 -> 176872.5 | E196: =SA34c!E155 -> 72751.14 | F196: =SA34c!F155 -> 65471 | G196: =SA34c!G155 -> 185471 | H196: =SA34c!H155 -> 185471 | I196: =SA34c!I155 -> 130942 | J196: =SA34c!J155 -> 138013 | K196: =SA34c!K155 -> 140108
A197: Transport Assets | C197: =SA34c!C158 -> 0 | D197: =SA34c!D158 -> 603409.24 | E197: =SA34c!E158 -> 495304.31 | F197: =SA34c!F158 -> 600000 | G197: =SA34c!G158 -> 891476 | H197: =SA34c!H158 -> 891476 | I197: =SA34c!I158 -> 370163 | J197: =SA34c!J158 -> 390000 | K197: =SA34c!K158 -> 390000
A198: Land | C198: =SA34c!C161 -> 0 | D198: =SA34c!D161 -> 0 | E198: =SA34c!E161 -> 0 | F198: =SA34c!F161 -> 0 | G198: =SA34c!G161 -> 0 | H198: =SA34c!H161 -> 0 | I198: =SA34c!I161 -> 0 | J198: =SA34c!J161 -> 0 | K198: =SA34c!K161 -> 0
A199: Zoo's, Marine and Non-biological Animals | C199: =SA34c!C164 -> 0 | D199: =SA34c!D164 -> 0 | E199: =SA34c!E164 -> 0 | F199: =SA34c!F164 -> 0 | G199: =SA34c!G164 -> 0 | H199: =SA34c!H164 -> 0 | I199: =SA34c!I164 -> 0 | J199: =SA34c!J164 -> 0 | K199: =SA34c!K164 -> 0
A201: TOTAL EXPENDITURE OTHER ITEMS | C201: =SUM(C168:C169) -> 0 | D201: 214757874.7 | E201: 220325426.9 | F201: 179656551 | G201: 225239360 | H201: 225239360 | I201: 170584648 | J201: 208274035 | K201: 223108598
A203: Renewal and upgrading of Existing Assets as % of total capex | C203: =IF(ISERROR((C37+C69)/C132),0,((C37+C69)/C132)) -> 0 | D203: =IF(ISERROR((D37+D69)/D132),0,((D37+D69)/D132)) -> 0.05754565967 | E203: 0.01111766962 | F203: 0.3869749339 | G203: 0.4104528204 | H203: 0.4104528204 | I203: 0.4720565567 | J203: 0.3343368597 | K203: 0.2957774646
A204: Renewal and upgrading of Existing Assets as % of deprecn | C204: =IF(ISERROR((C37+C69)/C168),0,((C37+C69)/C168)) -> 0 | D204: =IF(ISERROR((D37+D69)/D168),0,((D37+D69)/D168)) -> 0.2124153462 | E204: 0.05033904041 | F204: 3.701926829 | G204: 3.481783401 | H204: 3.481783401 | I204: 2.439608929 | J204: 1.641017763 | K204: 1.473716559
A205: R&M as a % of PPE | C205: =IF(ISERROR(ROUND(C169/'A6-FinPos'!C19,3)),0,(ROUND(C169/'A6-FinPos'!C19,3))) -> 0 | D205: =IF(ISERROR(ROUND(D169/'A6-FinPos'!D19,3)),0,(ROUND(D169/'A6-FinPos'!D19,3))) -> 0.041 | E205: =IF(ISERROR(ROUND(E169/'A6-FinPos'!E19,3)),0,(ROUND(E169/'A6-FinPos'!E19,3))) -> 0.036 | F205: =IF(ISERROR(ROUND(F169/'A6-FinPos'!F19,3)),0,(ROUND(F169/'A6-FinPos'!F19,3))) -> 0.023 | G205: =IF(ISERROR(ROUND(G169/'A6-FinPos'!G19,3)),0,(ROUND(G169/'A6-FinPos'!G19,3))) -> 0.032 | H205: =IF(ISERROR(ROUND(H169/'A6-FinPos'!H19,3)),0,(ROUND(H169/'A6-FinPos'!H19,3))) -> 0.032 | I205: =IF(ISERROR(ROUND(I169/'A6-FinPos'!J19,3)),0,(ROUND(I169/'A6-FinPos'!J19,3))) -> 0.02 | J205: =IF(ISERROR(ROUND(J169/'A6-FinPos'!K19,3)),0,(ROUND(J169/'A6-FinPos'!K19,3))) -> 0.025 | K205: =IF(ISERROR(ROUND(K169/'A6-FinPos'!L19,3)),0,(ROUND(K169/'A6-FinPos'!L19,3))) -> 0.027
A206: Renewal and upgrading and R&M as a % of PPE | C206: =IF(ISERROR(ROUND((C37+C69+C169)/C165,2)),0,(ROUND((C37+C69+C169)/C165,2))) -> 0 | D206: =IF(ISERROR(ROUND((D37+D69+D169)/D165,2)),0,(ROUND((D37+D69+D169)/D165,2))) -> 0.07 | E206: 0.06 | F206: 0.19 | G206: 0.21 | H206: 0.21 | I206: 0.11 | J206: 0.09 | K206: 0.09
A208: =head27a -> References
A209: 1. Detail of new assets provided in Table SA34a
A210: 2. Detail of renewal of existing assets provided in Table SA34b
A211: 3. Detail of Repairs and Maintenance by Asset Class provided in Table SA34c
A212: 4. Must reconcile to total capital expenditure on Budgeted Capital Expenditure
A213: 5. Must reconcile to 'Budgeted Financial Position' (written down value)
A214: 6. Detail of upgrading of existing assets provided in Table SA34e
A215: 7. Detail of depreciation provided in Table SA34d
A217: Check balance to A6 | C217: =C165-'A6-FinPos'!D17-'A6-FinPos'!D19-'A6-FinPos'!D20-'A6-FinPos'!D21-'A6-FinPos'!D22-C148 -> -2944197720 | D217: =D165-'A6-FinPos'!E17-'A6-FinPos'!E19-'A6-FinPos'!E20-'A6-FinPos'!E21-'A6-FinPos'!E22-D148 -> -1463810303 | E217: =E165-'A6-FinPos'!F17-'A6-FinPos'!F19-'A6-FinPos'!F20-'A6-FinPos'!F21-'A6-FinPos'!F22-E148 -> -2264484343 | F217: =F165-'A6-FinPos'!G17-'A6-FinPos'!G19-'A6-FinPos'!G20-'A6-FinPos'!G21-'A6-FinPos'!G22-F148 -> -2440264911 | G217: =G165-'A6-FinPos'!H17-'A6-FinPos'!H19-'A6-FinPos'!H20-'A6-FinPos'!H21-'A6-FinPos'!H22-G148 -> -2459772507 | H217: =H165-'A6-FinPos'!I17-'A6-FinPos'!I19-'A6-FinPos'!I20-'A6-FinPos'!I21-'A6-FinPos'!I22-H148 -> -1566769168 | I217: =I165-'A6-FinPos'!J17-'A6-FinPos'!J19-'A6-FinPos'!J20-'A6-FinPos'!J21-'A6-FinPos'!J22-I148 -> -1126028400 | J217: =J165-'A6-FinPos'!K17-'A6-FinPos'!K19-'A6-FinPos'!K20-'A6-FinPos'!K21-'A6-FinPos'!K22-J148 -> -1176699678 | K217: =K165-'A6-FinPos'!L17-'A6-FinPos'!L19-'A6-FinPos'!L20-'A6-FinPos'!L21-'A6-FinPos'!L22-K148 -> -1229651164

Sheet A10-SerDel
A1: =muni&" - "&Approve10 -> DC47 Sekhukhune - Table A10 Basic service delivery measurement
A2: =desc -> Description | B2: =head27 -> Ref | C2: =head1b -> 2016/17 | D2: =head1A -> 2017/18 | E2: =Head1 -> 2018/19 | F2: =Head2 -> Current Year 2019/20 | I2: =Head3 -> 2020/21 Medium Term Revenue & Expenditure Framework
C3: =Head5A -> Outcome | D3: =Head5A -> Outcome | E3: =Head5A -> Outcome | F3: =Head6 -> Original Budget | G3: =Head7 -> Adjusted Budget | H3: =Head8 -> Full Year Forecast | I3: =Head9 -> Budget Year 2020/21 | J3: =Head10 -> Budget Year +1 2021/22 | K3: =Head11 -> Budget Year +2 2022/23
A4: Household service targets | B4: 1
A5: Water:
A6: Piped water inside dwelling | C6: ='SA9'!E67 -> 31954 | D6: ='SA9'!F67 -> 34859 | E6: ='SA9'!G67 -> 34859 | F6: ='SA9'!H67 -> 0 | G6: ='SA9'!I67 -> 0 | H6: ='SA9'!J67 -> 0 | I6: ='SA9'!K67 -> 15086411 | J6: ='SA9'!L67 -> 20000000 | K6: ='SA9'!M67 -> 25052192
A7: Piped water inside yard (but not in dwelling) | C7: ='SA9'!E68 -> 95862 | D7: ='SA9'!F68 -> 101671 | E7: ='SA9'!G68 -> 0 | F7: ='SA9'!H68 -> 8000000 | G7: ='SA9'!I68 -> 7400000 | H7: ='SA9'!J68 -> 0 | I7: ='SA9'!K68 -> 332600000 | J7: ='SA9'!L68 -> 343185492.7 | K7: ='SA9'!M68 -> 402124299.5
A8: Using public tap (at least min.service level) | B8: 2 | C8: ='SA9'!E69 -> 21382 | D8: ='SA9'!F69 -> 6512 | E8: ='SA9'!G69 -> 114319 | F8: ='SA9'!H69 -> 393593235.7 | G8: ='SA9'!I69 -> 351513502.6 | H8: ='SA9'!J69 -> 0 | I8: ='SA9'!K69 -> 109589588.5 | J8: ='SA9'!L69 -> 144374507.2 | K8: ='SA9'!M69 -> 104053508.9
A9: Other water supply (at least min.service level) | B9: 4 | C9: ='SA9'!E70 -> 55193 | D9: ='SA9'!F70 -> 63979 | E9: ='SA9'!G70 -> 63979 | F9: ='SA9'!H70 -> 0 | G9: ='SA9'!I70 -> 0 | H9: ='SA9'!J70 -> 0 | I9: ='SA9'!K70 -> 0 | J9: ='SA9'!L70 -> 0 | K9: ='SA9'!M70 -> 0
A10: Minimum Service Level and Above sub-total | C10: =SUM(C6:C9) -> 204391 | D10: =SUM(D6:D9) -> 207021 | E10: 213157 | F10: 401593235.7 | G10: 358913502.6 | H10: 0 | I10: 457275999.5 | J10: 507559999.9 | K10: 531230000.4
A11: Using public tap (< min.service level) | B11: 3 | C11: ='SA9'!E72 -> 0 | D11: ='SA9'!F72 -> 0 | E11: ='SA9'!G72 -> 0 | F11: ='SA9'!H72 -> 0 | G11: ='SA9'!I72 -> 0 | H11: ='SA9'!J72 -> 0 | I11: ='SA9'!K72 -> 0 | J11: ='SA9'!L72 -> 0 | K11: ='SA9'!M72 -> 0
A12: Other water supply (< min.service level) | B12: =B9 -> 4 | C12: ='SA9'!E73 -> 0 | D12: ='SA9'!F73 -> 0 | E12: ='SA9'!G73 -> 11645 | F12: ='SA9'!H73 -> 0 | G12: ='SA9'!I73 -> 0 | H12: ='SA9'!J73 -> 0 | I12: ='SA9'!K73 -> 0 | J12: ='SA9'!L73 -> 0 | K12: ='SA9'!M73 -> 0
A13: No water supply | C13: ='SA9'!E74 -> 0 | D13: ='SA9'!F74 -> 0 | E13: ='SA9'!G74 -> 71629 | F13: ='SA9'!H74 -> 0 | G13: ='SA9'!I74 -> 0 | H13: ='SA9'!J74 -> 0 | I13: ='SA9'!K74 -> 0 | J13: ='SA9'!L74 -> 0 | K13: ='SA9'!M74 -> 0
A14: Below Minimum Service Level sub-total | C14: =SUM(C11:C13) -> 0 | D14: =SUM(D11:D13) -> 0 | E14: 83274 | F14: 0 | G14: 0 | H14: 0 | I14: 0 | J14: 0 | K14: 0
A15: Total number of households | B15: 5 | C15: =C10+C14 -> 204391 | D15: =D10+D14 -> 207021 | E15: 296431 | F15: 401593235.7 | G15: 358913502.6 | H15: 0 | I15: 457275999.5 | J15: 507559999.9 | K15: 531230000.4
A16: Sanitation/sewerage:
A17: Flush toilet (connected to sewerage) | C17: ='SA9'!E78 -> 40668 | D17: ='SA9'!F78 -> 40668 | E17: ='SA9'!G78 -> 40668 | F17: ='SA9'!H78 -> 0 | G17: ='SA9'!I78 -> 0 | H17: ='SA9'!J78 -> 0 | I17: ='SA9'!K78 -> 0 | J17: ='SA9'!L78 -> 0 | K17: ='SA9'!M78 -> 0
A18: Flush toilet (with septic tank) | C18: ='SA9'!E79 -> 29049 | D18: ='SA9'!F79 -> 29049 | E18: ='SA9'!G79 -> 29049 | F18: ='SA9'!H79 -> 0 | G18: ='SA9'!I79 -> 0 | H18: ='SA9'!J79 -> 0 | I18: ='SA9'!K79 -> 0 | J18: ='SA9'!L79 -> 0 | K18: ='SA9'!M79 -> 0
A19: Chemical toilet | C19: ='SA9'!E80 -> 0 | D19: ='SA9'!F80 -> 0 | E19: ='SA9'!G80 -> 0 | F19: ='SA9'!H80 -> 50000000 | G19: ='SA9'!I80 -> 19962739 | H19: ='SA9'!J80 -> 0 | I19: ='SA9'!K80 -> 0 | J19: ='SA9'!L80 -> 0 | K19: ='SA9'!M80 -> 0
A20: Pit toilet (ventilated) | C20: ='SA9'!E81 -> 53183 | D20: ='SA9'!F81 -> 61096 | E20: ='SA9'!G81 -> 61096 | F20: ='SA9'!H81 -> 0 | G20: ='SA9'!I81 -> 0 | H20: ='SA9'!J81 -> 0 | I20: ='SA9'!K81 -> 0 | J20: ='SA9'!L81 -> 0 | K20: ='SA9'!M81 -> 0
A21: Other toilet provisions (> min.service level) | C21: ='SA9'!E82 -> 167589 | D21: ='SA9'!F82 -> 159676 | E21: ='SA9'!G82 -> 159676 | F21: ='SA9'!H82 -> 9000000 | G21: ='SA9'!I82 -> 0 | H21: ='SA9'!J82 -> 0 | I21: ='SA9'!K82 -> 48000000 | J21: ='SA9'!L82 -> 58000000 | K21: ='SA9'!M82 -> 58000000
A22: =$A$10 -> Minimum Service Level and Above sub-total | C22: =SUM(C17:C21) -> 290489 | D22: =SUM(D17:D21) -> 290489 | E22: 290489 | F22: 59000000 | G22: 19962739 | H22: 0 | I22: 48000000 | J22: 58000000 | K22: 58000000
A23: Bucket toilet | C23: ='SA9'!E84 -> 0 | D23: ='SA9'!F84 -> 0 | E23: ='SA9'!G84 -> 0 | F23: ='SA9'!H84 -> 0 | G23: ='SA9'!I84 -> 0 | H23: ='SA9'!J84 -> 0 | I23: ='SA9'!K84 -> 0 | J23: ='SA9'!L84 -> 0 | K23: ='SA9'!M84 -> 0
A24: Other toilet provisions (< min.service level) | C24: ='SA9'!E85 -> 0 | D24: ='SA9'!F85 -> 0 | E24: ='SA9'!G85 -> 0 | F24: ='SA9'!H85 -> 0 | G24: ='SA9'!I85 -> 0 | H24: ='SA9'!J85 -> 0 | I24: ='SA9'!K85 -> 0 | J24: ='SA9'!L85 -> 0 | K24: ='SA9'!M85 -> 0
A25: No toilet provisions | C25: ='SA9'!E86 -> 0 | D25: ='SA9'!F86 -> 0 | E25: ='SA9'!G86 -> 0 | F25: ='SA9'!H86 -> 0 | G25: ='SA9'!I86 -> 0 | H25: ='SA9'!J86 -> 0 | I25: ='SA9'!K86 -> 0 | J25: ='SA9'!L86 -> 0 | K25: ='SA9'!M86 -> 0
A26: =$A$14 -> Below Minimum Service Level sub-total | C26: =SUM(C23:C25) -> 0 | D26: =SUM(D23:D25) -> 0 | E26: 0 | F26: 0 | G26: 0 | H26: 0 | I26: 0 | J26: 0 | K26: 0
A27: =$A$15 -> Total number of households | B27: =$B$15 -> 5 | C27: =C22+C26 -> 290489 | D27: =D22+D26 -> 290489 | E27: 290489 | F27: 59000000 | G27: 19962739 | H27: 0 | I27: 48000000 | J27: 58000000 | K27: 58000000
A28: Energy:
A29: Electricity (at least min.service level) | C29: ='SA9'!E90 -> 0 | D29: ='SA9'!F90 -> 0 | E29: ='SA9'!G90 -> 0 | F29: ='SA9'!H90 -> 0 | G29: ='SA9'!I90 -> 0 | H29: ='SA9'!J90 -> 0 | I29: ='SA9'!K90 -> 0 | J29: ='SA9'!L90 -> 0 | K29: ='SA9'!M90 -> 0
A30: Electricity - prepaid (min.service level) | C30: ='SA9'!E91 -> 0 | D30: ='SA9'!F91 -> 0 | E30: ='SA9'!G91 -> 0 | F30: ='SA9'!H91 -> 0 | G30: ='SA9'!I91 -> 0 | H30: ='SA9'!J91 -> 0 | I30: ='SA9'!K91 -> 0 | J30: ='SA9'!L91 -> 0 | K30: ='SA9'!M91 -> 0
A31: =$A$10 -> Minimum Service Level and Above sub-total | C31: =SUM(C29:C30) -> 0 | D31: =SUM(D29:D30) -> 0 | E31: 0 | F31: 0 | G31: 0 | H31: 0 | I31: 0 | J31: 0 | K31: 0
A32: Electricity (< min.service level) | C32: ='SA9'!E93 -> 0 | D32: ='SA9'!F93 -> 0 | E32: ='SA9'!G93 -> 0 | F32: ='SA9'!H93 -> 0 | G32: ='SA9'!I93 -> 0 | H32: ='SA9'!J93 -> 0 | I32: ='SA9'!K93 -> 0 | J32: ='SA9'!L93 -> 0 | K32: ='SA9'!M93 -> 0
A33: Electricity - prepaid (< min. service level) | C33: ='SA9'!E94 -> 0 | D33: ='SA9'!F94 -> 0 | E33: ='SA9'!G94 -> 0 | F33: ='SA9'!H94 -> 0 | G33: ='SA9'!I94 -> 0 | H33: ='SA9'!J94 -> 0 | I33: ='SA9'!K94 -> 0 | J33: ='SA9'!L94 -> 0 | K33: ='SA9'!M94 -> 0
A34: Other energy sources | C34: ='SA9'!E95 -> 0 | D34: ='SA9'!F95 -> 0 | E34: ='SA9'!G95 -> 0 | F34: ='SA9'!H95 -> 0 | G34: ='SA9'!I95 -> 0 | H34: ='SA9'!J95 -> 0 | I34: ='SA9'!K95 -> 0 | J34: ='SA9'!L95 -> 0 | K34: ='SA9'!M95 -> 0
A35: =$A$14 -> Below Minimum Service Level sub-total | C35: =SUM(C32:C34) -> 0 | D35: =SUM(D32:D34) -> 0 | E35: 0 | F35: 0 | G35: 0 | H35: 0 | I35: 0 | J35: 0 | K35: 0
A36: =$A$15 -> Total number of households | B36: =$B$15 -> 5 | C36: =C31+C35 -> 0 | D36: =D31+D35 -> 0 | E36: 0 | F36: 0 | G36: 0 | H36: 0 | I36: 0 | J36: 0 | K36: 0
A37: Refuse:
A38: Removed at least once a week | C38: ='SA9'!E99 -> 0 | D38: ='SA9'!F99 -> 0 | E38: ='SA9'!G99 -> 0 | F38: ='SA9'!H99 -> 0 | G38: ='SA9'!I99 -> 0 | H38: ='SA9'!J99 -> 0 | I38: ='SA9'!K99 -> 0 | J38: ='SA9'!L99 -> 0 | K38: ='SA9'!M99 -> 0
A39: =$A$10 -> Minimum Service Level and Above sub-total | C39: =SUM(C38) -> 0 | D39: =SUM(D38) -> 0 | E39: 0 | F39: 0 | G39: 0 | H39: 0 | I39: 0 | J39: 0 | K39: 0
A40: Removed less frequently than once a week | C40: ='SA9'!E101 -> 0 | D40: ='SA9'!F101 -> 0 | E40: ='SA9'!G101 -> 0 | F40: ='SA9'!H101 -> 0 | G40: ='SA9'!I101 -> 0 | H40: ='SA9'!J101 -> 0 | I40: ='SA9'!K101 -> 0 | J40: ='SA9'!L101 -> 0 | K40: ='SA9'!M101 -> 0
A41: Using communal refuse dump | C41: ='SA9'!E102 -> 0 | D41: ='SA9'!F102 -> 0 | E41: ='SA9'!G102 -> 0 | F41: ='SA9'!H102 -> 0 | G41: ='SA9'!I102 -> 0 | H41: ='SA9'!J102 -> 0 | I41: ='SA9'!K102 -> 0 | J41: ='SA9'!L102 -> 0 | K41: ='SA9'!M102 -> 0
A42: Using own refuse dump | C42: ='SA9'!E103 -> 0 | D42: ='SA9'!F103 -> 0 | E42: ='SA9'!G103 -> 0 | F42: ='SA9'!H103 -> 0 | G42: ='SA9'!I103 -> 0 | H42: ='SA9'!J103 -> 0 | I42: ='SA9'!K103 -> 0 | J42: ='SA9'!L103 -> 0 | K42: ='SA9'!M103 -> 0
A43: Other rubbish disposal | C43: ='SA9'!E104 -> 0 | D43: ='SA9'!F104 -> 0 | E43: ='SA9'!G104 -> 0 | F43: ='SA9'!H104 -> 0 | G43: ='SA9'!I104 -> 0 | H43: ='SA9'!J104 -> 0 | I43: ='SA9'!K104 -> 0 | J43: ='SA9'!L104 -> 0 | K43: ='SA9'!M104 -> 0
A44: No rubbish disposal | C44: ='SA9'!E105 -> 0 | D44: ='SA9'!F105 -> 0 | E44: ='SA9'!G105 -> 0 | F44: ='SA9'!H105 -> 0 | G44: ='SA9'!I105 -> 0 | H44: ='SA9'!J105 -> 0 | I44: ='SA9'!K105 -> 0 | J44: ='SA9'!L105 -> 0 | K44: ='SA9'!M105 -> 0
A45: =$A$14 -> Below Minimum Service Level sub-total | C45: =SUM(C40:C44) -> 0 | D45: 0 | E45: 0 | F45: 0 | G45: 0 | H45: 0 | I45: 0 | J45: 0 | K45: 0
A46: =$A$15 -> Total number of households | B46: =$B$15 -> 5 | C46: =C39+C45 -> 0 | D46: =D39+D45 -> 0 | E46: 0 | F46: 0 | G46: 0 | H46: 0 | I46: 0 | J46: 0 | K46: 0
A48: Households receiving Free Basic Service | B48: 7
A49: Water (6 kilolitres per household per month) | C49: ='SA9'!E263 -> 0 | D49: ='SA9'!F263 -> 0 | E49: ='SA9'!G263 -> 0 | F49: ='SA9'!H263 -> 0 | G49: ='SA9'!I263 -> 0 | H49: ='SA9'!J263 -> 0 | I49: ='SA9'!K263 -> 0 | J49: ='SA9'!L263 -> 0 | K49: ='SA9'!M263 -> 0
A50: Sanitation (free minimum level service) | C50: ='SA9'!E275 -> 0 | D50: ='SA9'!F275 -> 0 | E50: ='SA9'!G275 -> 0 | F50: ='SA9'!H275 -> 0 | G50: ='SA9'!I275 -> 0 | H50: ='SA9'!J275 -> 0 | I50: ='SA9'!K275 -> 0 | J50: ='SA9'!L275 -> 0 | K50: ='SA9'!M275 -> 0
A51: Electricity/other energy (50kwh per household per month) | C51: ='SA9'!E251 -> 0 | D51: ='SA9'!F251 -> 0 | E51: ='SA9'!G251 -> 0 | F51: ='SA9'!H251 -> 0 | G51: ='SA9'!I251 -> 0 | H51: ='SA9'!J251 -> 0 | I51: ='SA9'!K251 -> 0 | J51: ='SA9'!L251 -> 0 | K51: ='SA9'!M251 -> 0
A52: Refuse (removed at least once a week) | C52: ='SA9'!E287 -> 0 | D52: ='SA9'!F287 -> 0 | E52: ='SA9'!G287 -> 0 | F52: ='SA9'!H287 -> 0 | G52: ='SA9'!I287 -> 0 | H52: ='SA9'!J287 -> 0 | I52: ='SA9'!K287 -> 0 | J52: ='SA9'!L287 -> 0 | K52: ='SA9'!M287 -> 0
A54: Cost of Free Basic Services provided - Formal Settlements (R'000) | B54: 8
A55: Water (6 kilolitres per indigent household per month) | C55: ='SA1'!C20 -> 0 | D55: ='SA1'!D20 -> 0 | E55: ='SA1'!E20 -> 2300000 | F55: ='SA1'!F20 -> 0 | G55: ='SA1'!G20 -> 0 | H55: ='SA1'!H20 -> 0 | I55: ='SA1'!J20 -> 2500000 | J55: ='SA1'!K20 -> 2700000 | K55: ='SA1'!L20 -> 2900000
A56: Sanitation (free sanitation service to indigent households) | C56: ='SA1'!C26 -> 0 | D56: ='SA1'!D26 -> 0 | E56: ='SA1'!E26 -> 0 | F56: ='SA1'!F26 -> 0 | G56: ='SA1'!G26 -> 0 | H56: ='SA1'!H26 -> 0 | I56: ='SA1'!J26 -> 0 | J56: ='SA1'!K26 -> 0 | K56: ='SA1'!L26 -> 0
A57: Electricity/other energy (50kwh per indigent household per month) | C57: ='SA1'!C14 -> 0 | D57: ='SA1'!D14 -> 0 | E57: ='SA1'!E14 -> 0 | F57: ='SA1'!F14 -> 0 | G57: ='SA1'!G14 -> 0 | H57: ='SA1'!H14 -> 0 | I57: ='SA1'!J14 -> 0 | J57: ='SA1'!K14 -> 0 | K57: ='SA1'!L14 -> 0
A58: Refuse (removed once a week for indigent households) | C58: ='SA1'!C33 -> 0 | D58: ='SA1'!D33 -> 0 | E58: ='SA1'!E33 -> 0 | F58: ='SA1'!F33 -> 0 | G58: ='SA1'!G33 -> 0 | H58: ='SA1'!H33 -> 0 | I58: ='SA1'!J33 -> 0 | J58: ='SA1'!K33 -> 0 | K58: ='SA1'!L33 -> 0
A59: Cost of Free Basic Services provided - Informal Formal Settlements (R'000) | C59: ='SA9'!E260+'SA9'!E272+'SA9'!E284+'SA9'!E296 -> 0 | D59: ='SA9'!F260+'SA9'!F272+'SA9'!F284+'SA9'!F296 -> 0 | E59: ='SA9'!G260+'SA9'!G272+'SA9'!G284+'SA9'!G296 -> 0 | F59: ='SA9'!H260+'SA9'!H272+'SA9'!H284+'SA9'!H296 -> 0 | G59: ='SA9'!I260+'SA9'!I272+'SA9'!I284+'SA9'!I296 -> 0 | H59: ='SA9'!J260+'SA9'!J272+'SA9'!J284+'SA9'!J296 -> 0 | I59: ='SA9'!K260+'SA9'!K272+'SA9'!K284+'SA9'!K296 -> 0 | J59: ='SA9'!L260+'SA9'!L272+'SA9'!L284+'SA9'!L296 -> 0 | K59: ='SA9'!M260+'SA9'!M272+'SA9'!M284+'SA9'!M296 -> 0
A60: Total cost of FBS provided | C60: =SUM(C55:C59) -> 0 | D60: 0 | E60: 2300000 | F60: 0 | G60: 0 | H60: 0 | I60: 2500000 | J60: 2700000 | K60: 2900000
A62: Highest level of free service provided per household
A63: Property rates (R value threshold)
A64: Water (kilolitres per household per month)
A65: Sanitation (kilolitres per household per month)
A66: Sanitation (Rand per household per month)
A67: Electricity (kwh per household per month)
A68: Refuse (average litres per week)
A69: Revenue cost of subsidised services provided (R'000) | B69: 9
A70: Property rates (tariff adjustment) ( impermissable values per section 17 of MPRA)
A71: Property rates exemptions, reductions and rebates and impermissable values in excess of section 17 of MPRA) | C71: ='SA1'!C8 -> 0 | D71: ='SA1'!D8 -> 0 | E71: ='SA1'!E8 -> 0 | F71: ='SA1'!F8 -> 0 | G71: ='SA1'!G8 -> 0 | H71: ='SA1'!H8 -> 0 | I71: ='SA1'!J8 -> 0 | J71: ='SA1'!K8 -> 0 | K71: ='SA1'!L8 -> 0
A72: Water (in excess of 6 kilolitres per indigent household per month) | C72: ='SA1'!C19 -> 0 | D72: ='SA1'!D19 -> 0 | E72: ='SA1'!E19 -> 0 | F72: ='SA1'!F19 -> 0 | G72: ='SA1'!G19 -> 0 | H72: ='SA1'!H19 -> 0 | I72: ='SA1'!J19 -> 0 | J72: ='SA1'!K19 -> 0 | K72: ='SA1'!L19 -> 0
A73: Sanitation (in excess of free sanitation service to indigent households) | C73: ='SA1'!C25 -> 0 | D73: ='SA1'!D25 -> 0 | E73: ='SA1'!E25 -> 0 | F73: ='SA1'!F25 -> 0 | G73: ='SA1'!G25 -> 0 | H73: ='SA1'!H25 -> 0 | I73: ='SA1'!J25 -> 0 | J73: ='SA1'!K25 -> 0 | K73: ='SA1'!L25 -> 0
A74: Electricity/other energy (in excess of 50 kwh per indigent household per month) | C74: ='SA1'!C13 -> 0 | D74: ='SA1'!D13 -> 0 | E74: ='SA1'!E13 -> 0 | F74: ='SA1'!F13 -> 0 | G74: ='SA1'!G13 -> 0 | H74: ='SA1'!H13 -> 0 | I74: ='SA1'!J13 -> 0 | J74: ='SA1'!K13 -> 0 | K74: ='SA1'!L13 -> 0
A75: Refuse (in excess of one removal a week for indigent households) | C75: ='SA1'!C32 -> 0 | D75: ='SA1'!D32 -> 0 | E75: ='SA1'!E32 -> 0 | F75: ='SA1'!F32 -> 0 | G75: ='SA1'!G32 -> 0 | H75: ='SA1'!H32 -> 0 | I75: ='SA1'!J32 -> 0 | J75: ='SA1'!K32 -> 0 | K75: ='SA1'!L32 -> 0
A76: Municipal Housing - rental rebates
A77: Housing - top structure subsidies | B77: 6
A78: Other
A79: Total revenue cost of subsidised services provided | C79: =SUM(C70:C78) -> 0 | D79: =SUM(D70:D78) -> 0 | E79: 0 | F79: 0 | G79: 0 | H79: 0 | I79: 0 | J79: =SUM(J70:J78) -> 0 | K79: =SUM(K70:K78) -> 0
A80: =head27a -> References
A81: 1. Include services provided by another entity; e.g. Eskom
A82: 2. Stand distance <= 200m from dwelling
A83: 3. Stand distance > 200m from dwelling
A84: 4. Borehole, spring, rain-water tank etc.
A85: 5. Must agree to total number of households in municipal area (informal settlements receiving services must be included)
A86: 6. Include value of subsidy provided by municipality above provincial subsidy level
A87: 7. Show number of households receiving at least these levels of services completely free (informal settlements must be included)
A88: 8. Must reflect the cost to the municipality of providing the Free Basic Service
A89: 9. Reflect the cost to the municipality in terms of 'revenue foregone' of providing free services (note this will not equal 'Revenue Foregone' on SA1)

Sheet SA1
A1: =muni&" - "&TableA1 -> DC47 Sekhukhune - Supporting Table SA1 Supportinging detail to 'Budgeted Financial Performance'
A2: =desc -> Description | B2: =head27 -> Ref | C2: =head1b -> 2016/17 | D2: =head1A -> 2017/18 | E2: =Head1 -> 2018/19 | F2: =Head2 -> Current Year 2019/20 | J2: =Head3 -> 2020/21 Medium Term Revenue & Expenditure Framework
C3: =Head5 -> Audited Outcome | D3: =Head5 -> Audited Outcome | E3: =Head5 -> Audited Outcome | F3: =Head6 -> Original Budget | G3: =Head7 -> Adjusted Budget | H3: =Head8 -> Full Year Forecast | I3: =Head5b -> Pre-audit outcome | J3: =Head9 -> Budget Year 2020/21 | K3: =Head10 -> Budget Year +1 2021/22 | L3: =Head11 -> Budget Year +2 2022/23
A4: R thousand
A5: REVENUE ITEMS:
A6: ='A4-FinPerf RE'!A5 -> Property rates | B6: 6
A7: Total Property Rates
A8: less Revenue Foregone (exemptions, reductions and rebates and impermissable values in excess of section 17 of MPRA)
A9: Net Property Rates | C9: =C7-C8 -> 0 | D9: =D7-D8 -> 0 | E9: 0 | F9: 0 | G9: 0 | H9: 0 | I9: 0 | J9: 0 | K9: 0 | L9: 0
A11: ='A4-FinPerf RE'!A6 -> Service charges - electricity revenue | B11: 6
A12: ="Total "&A11 -> Total Service charges - electricity revenue | C12: 0 | D12: 0 | E12: 0 | F12: 97381 | G12: 97381 | H12: 97381 | I12: 0 | J12: 89591 | K12: 85111 | L12: 82558
A13: less Revenue Foregone (in excess of 50 kwh per indigent household per month)
A14: less Cost of Free Basis Services (50 kwh per indigent household per month) | C14: ='SA9'!E250 -> 0 | D14: ='SA9'!F250 -> 0 | E14: ='SA9'!G250 -> 0 | F14: ='SA9'!H250 -> 0 | G14: ='SA9'!I250 -> 0 | H14: ='SA9'!J250 -> 0 | J14: ='SA9'!K250 -> 0 | K14: ='SA9'!L250 -> 0 | L14: ='SA9'!M250 -> 0
A15: ="Net "& A11 -> Net Service charges - electricity revenue | C15: =C12-C13-C14 -> 0 | D15: =D12-D13-D14 -> 0 | E15: 0 | F15: 97381 | G15: 97381 | H15: 97381 | I15: 0 | J15: 89591 | K15: 85111 | L15: 82558
A17: ='A4-FinPerf RE'!A7 -> Service charges - water revenue | B17: 6
A18: ="Total "&A17 -> Total Service charges - water revenue | C18: 0 | D18: 59633188.84 | E18: 73837262.32 | F18: 93392631 | G18: 93392628 | H18: 93392628 | I18: 68750955.67 | J18: 85921218 | K18: 81625157 | L18: 79176403
A19: less Revenue Foregone (in excess of 6 kilolitres per indigent household per month)
A20: less Cost of Free Basis Services (6 kilolitres per indigent household per month) | C20: ='SA9'!E262 -> 0 | D20: ='SA9'!F262 -> 0 | E20: 2300000 | F20: ='SA9'!H262 -> 0 | G20: ='SA9'!I262 -> 0 | H20: ='SA9'!J262 -> 0 | J20: 2500000 | K20: 2700000 | L20: 2900000
A21: ="Net "& A17 -> Net Service charges - water revenue | C21: =C18-C19-C20 -> 0 | D21: =D18-D19-D20 -> 59633188.84 | E21: 71537262.32 | F21: 93392631 | G21: 93392628 | H21: 93392628 | I21: 68750955.67 | J21: 83421218 | K21: 78925157 | L21: 76276403
A23: ='A4-FinPerf RE'!A8 -> Service charges - sanitation revenue
A24: ="Total "&A23 -> Total Service charges - sanitation revenue | C24: 0 | D24: 12765233.86 | E24: 12257476.57 | F24: 17324704 | G24: 17324703 | H24: 17324703 | I24: 10702524.44 | J24: 17129407 | K24: 16272937 | L24: 15784748
A25: less Revenue Foregone (in excess of free sanitation service to indigent households)
A26: less Cost of Free Basis Services (free sanitation service to indigent households) | C26: ='SA9'!E274 -> 0 | D26: ='SA9'!F274 -> 0 | E26: ='SA9'!G274 -> 0 | F26: ='SA9'!H274 -> 0 | G26: ='SA9'!I274 -> 0 | H26: ='SA9'!J274 -> 0 | J26: ='SA9'!K274 -> 0 | K26: ='SA9'!L274 -> 0 | L26: ='SA9'!M274 -> 0
A27: ="Net "& A23 -> Net Service charges - sanitation revenue | C27: =C24-C25-C26 -> 0 | D27: =D24-D25-D26 -> 12765233.86 | E27: 12257476.57 | F27: 17324704 | G27: 17324703 | H27: 17324703 | I27: 10702524.44 | J27: 17129407 | K27: 16272937 | L27: 15784748
A29: ='A4-FinPerf RE'!A9 -> Service charges - refuse revenue | B29: 6
A30: Total refuse removal revenue
A31: Total landfill revenue
A32: less Revenue Foregone (in excess of one removal a week to indigent households)
A33: less Cost of Free Basis Services (removed once a week to indigent households) | C33: ='SA9'!E286 -> 0 | D33: ='SA9'!F286 -> 0 | E33: ='SA9'!G286 -> 0 | F33: ='SA9'!H286 -> 0 | G33: ='SA9'!I286 -> 0 | H33: ='SA9'!J286 -> 0 | J33: ='SA9'!K286 -> 0 | K33: ='SA9'!L286 -> 0 | L33: ='SA9'!M286 -> 0
A34: ="Net "& A29 -> Net Service charges - refuse revenue | C34: =SUM(C30:C31)-C32-C33 -> 0 | D34: =SUM(D30:D31)-D32-D33 -> 0 | E34: 0 | F34: 0 | G34: 0 | H34: 0 | I34: 0 | J34: 0 | K34: 0 | L34: 0
A36: Other Revenue by source
A37: Fuel Levy
A38: Other Revenue | C38: 0 | D38: 11569323.98 | E38: 14731638.37 | F38: 1889014 | G38: 93787369 | H38: 93787369 | I38: 4905182.67 | J38: 1996602 | K38: 2096135 | L38: 2200738
A49: Total 'Other' Revenue | B49: 1 | C49: =SUM(C37:C38) -> 0 | D49: =SUM(D37:D38) -> 11569323.98 | E49: =SUM(E37:E38) -> 14731638.37 | F49: 1889014 | G49: 93787369 | H49: 93787369 | I49: 4905182.67 | J49: 1996602 | K49: 2096135 | L49: 2200738
A51: EXPENDITURE ITEMS:
A52: ='A4-FinPerf RE'!A24 -> Employee related costs
A53: Basic Salaries and Wages | B53: 2 | C53: 0 | D53: 206535380.3 | E53: 238184904.1 | F53: 238604193 | G53: 251092832 | H53: 251092832 | I53: 206888044 | J53: 265501215 | K53: 282167742 | L53: 302014050
A54: Pension and UIF Contributions | C54: 0 | D54: 33230038.43 | E54: 37637716.11 | F54: 39843933 | G54: 40181213 | H54: 40181213 | I54: 32969603.97 | J54: 41439025 | K54: 44128432 | L54: 46565086
A55: Medical Aid Contributions | C55: 0 | D55: 11380914.64 | E55: 12129874.28 | F55: 12347127 | G55: 12347127 | H55: 12347127 | I55: 11024924.23 | J55: 13418823 | K55: 14254335 | L55: 14995352
A56: Overtime | C56: 0 | D56: 20539989.45 | E56: 27585128.68 | F56: 23245296 | G56: 23245296 | H56: 23245296 | I56: 27098029.44 | J56: 24966960 | K56: 26441803 | L56: 27592190
A57: Performance Bonus | C57: 0 | D57: 0 | E57: 0 | F57: 0 | G57: 0 | H57: 0 | I57: 0 | J57: 0 | K57: 0 | L57: 0
A58: Motor Vehicle Allowance | C58: 0 | D58: 26518589.58 | E58: 28854029.82 | F58: 26472134 | G58: 27214134 | H58: 27214134 | I58: 22383645.21 | J58: 29765017 | K58: 31780986 | L58: 33591000
A59: Cellphone Allowance | C59: 0 | D59: 2661819.46 | E59: 1710344.2 | F59: 1682420 | G59: 4822365 | H59: 4822365 | I59: 1423762 | J59: 5123762 | K59: 5760105 | L59: 6100750
A60: Housing Allowances | C60: 0 | D60: 1431514.93 | E60: 2308554.75 | F60: 3146878 | G60: 3146874 | H60: 3146874 | I60: 2000418.01 | J60: 3343554 | K60: 3552232 | L60: 3760364
A61: Other benefits and allowances | C61: 0 | D61: 12898862.07 | E61: 14459872.51 | F61: 2132716 | G61: 2571245 | H61: 2571245 | I61: 9940751.73 | J61: 4875452 | K61: 10257987 | L61: 10783615
A62: Payments in lieu of leave | C62: 0 | D62: 5642470.35 | E62: 3929728.35 | F62: 3830388 | G62: 3830388 | H62: 3830388 | I62: 3452610.19 | J62: 4569788 | K62: 4854987 | L62: 5138891
A63: Long service awards | C63: 0 | D63: 0 | E63: 0 | F63: 0 | G63: 0 | H63: 0 | I63: 0 | J63: 0 | K63: 0 | L63: 0
A64: Post-retirement benefit obligations | B64: 4 | C64: 0 | D64: 2503025.21 | E64: 4619340.2 | F64: 562915 | G64: 562915 | H64: 562915 | I64: 5426802.12 | J64: 783477 | K64: 832785 | L64: 878505
A65: sub-total | B65: 5 | C65: =SUM(C53:C64) -> 0 | D65: =SUM(D53:D64) -> 323342604.5 | E65: 371419493 | F65: 351868000 | G65: 369014389 | H65: 369014389 | I65: 322608590.9 | J65: 393787073 | K65: 424031394 | L65: 451419803
A66: Less: Employees costs capitalised to PPE | C66: 0 | D66: -1553076.65 | E66: -1735189.82 | F66: 0 | G66: 0 | H66: 0 | I66: -2131206.19 | J66: -6294000 | K66: 0 | L66: 0
A67: ="Total "&A52 -> Total Employee related costs | B67: 1 | C67: =C65-C66 -> 0 | D67: =D65-D66 -> 324895681.1 | E67: 373154682.8 | F67: 351868000 | G67: 369014389 | H67: 369014389 | I67: 324739797.1 | J67: 400081073 | K67: 424031394 | L67: 451419803
A78: ='A4-FinPerf RE'!A27 -> Depreciation & asset impairment
A79: Depreciation of Property, Plant & Equipment | C79: 0 | D79: 94287428.87 | E79: 101039968 | F79: 74127235 | G79: 80430272 | H79: 80430272 | I79: 70789143.31 | J79: 90340954 | K79: 104150000 | L79: 107382250
A80: Lease amortisation | C80: 0 | D80: 0 | E80: 0 | F80: 0 | G80: 0 | H80: 0 | I80: 0 | J80: 0 | K80: 0 | L80: 0
A81: Capital asset impairment | C81: 0 | D81: 0 | E81: 0 | F81: 0 | G81: 0 | H81: 0 | I81: 0 | J81: 0 | K81: 0 | L81: 0
A83: ="Total "&LEFT(A78,35) -> Total Depreciation & asset impairment | B83: 1 | C83: =SUM(C79:C81) -> 0 | D83: =SUM(D79:D81) -> 94287428.87 | E83: 101039968 | F83: 74127235 | G83: 80430272 | H83: 80430272 | I83: 70789143.31 | J83: 90340954 | K83: 104150000 | L83: 107382250
A85: ='A4-FinPerf RE'!A29 -> Bulk purchases
A86: Electricity Bulk Purchases | C86: 0 | D86: 0 | E86: 0 | F86: 0 | G86: 0 | H86: 0 | I86: 0 | J86: 0 | K86: 0 | L86: 0
A87: Water Bulk Purchases | C87: 0 | D87: 133159048.9 | E87: 196006451.7 | F87: 109589589 | G87: 111140265 | H87: 111140265 | I87: 94318878.45 | J87: 130000000 | K87: 135850000 | L87: 141963250
A88: Total bulk purchases | B88: 1 | C88: =SUM(C86:C87) -> 0 | D88: =SUM(D86:D87) -> 133159048.9 | E88: 196006451.7 | F88: 109589589 | G88: 111140265 | H88: 111140265 | I88: 94318878.45 | J88: 130000000 | K88: 135850000 | L88: 141963250
A90: Transfers and grants
A91: Cash transfers and grants | C91: ='SA21'!C32 -> 0 | D91: ='SA21'!D32 -> 0 | E91: ='SA21'!E32 -> 0 | F91: ='SA21'!F32 -> 0 | G91: ='SA21'!G32 -> 0 | H91: ='SA21'!H32 -> 0 | I91: ='SA21'!I32 -> 0 | J91: ='SA21'!J32 -> 0 | K91: ='SA21'!K32 -> 0 | L91: ='SA21'!L32 -> 0
A92: Non-cash transfers and grants | C92: ='SA21'!C64 -> 0 | D92: ='SA21'!D64 -> 6586710.47 | E92: ='SA21'!E64 -> 7415578.35 | F92: ='SA21'!F64 -> 8245176 | G92: ='SA21'!G64 -> 4232852 | H92: ='SA21'!H64 -> 4232852 | I92: ='SA21'!I64 -> 3558070.59 | J92: ='SA21'!J64 -> 4300000 | K92: ='SA21'!K64 -> 4493500 | L92: ='SA21'!L64 -> 4695708
A93: Total transfers and grants | B93: 1 | C93: =SUM(C91:C92) -> 0 | D93: =SUM(D91:D92) -> 6586710.47 | E93: 7415578.35 | F93: 8245176 | G93: 4232852 | H93: 4232852 | I93: 3558070.59 | J93: 4300000 | K93: 4493500 | L93: 4695708
A95: ='A4-FinPerf RE'!A31 -> Contracted services
A96: Outsourced Services | C96: 0 | D96: 56631902.02 | E96: 54713184.85 | F96: 57937627 | G96: 48710103 | H96: 48710103 | I96: 40984199.26 | J96: 47080993 | K96: 66889435 | L96: 71740540
A97: Consultants and Professional Services | C97: 0 | D97: 118318071.2 | E97: 109897352.4 | F97: 81266821 | G97: 119414067 | H97: 119414067 | I97: 40804006.38 | J97: 57058155 | K97: 73067798 | L97: 73919200
A98: Contractors | C98: 0 | D98: 46913323.29 | E98: 61252029.33 | F98: 35953267 | G98: 51692722 | H98: 51692722 | I98: 33894264.23 | J98: 33620487 | K98: 49194199 | L98: 49124683
A127: Total contracted services | C127: =SUM(C96:C98) -> 0 | D127: =SUM(D96:D98) -> 221863296.5 | E127: 225862566.5 | F127: 175157715 | G127: 219816892 | H127: 219816892 | I127: 115682469.9 | J127: 137759635 | K127: 189151432 | L127: 194784423
A129: Other Expenditure By Type
A130: Collection costs
A131: Contributions to 'other' provisions
A133: Audit fees | C133: 0 | D133: 4420856.35 | E133: 6286326.04 | F133: 5691150 | G133: 5691150 | H133: 5691150 | I133: 5215783.6 | J133: 5691150 | K133: 6322389 | L133: 6733340
A136: Other Expenditure | C136: 0 | D136: 139951662.5 | E136: 140514234.8 | F136: 148183587 | G136: 138311990 | H136: 138311990 | I136: 116174972.9 | J136: 115166046 | K136: 120272303 | L136: 126113140
A157: Total 'Other' Expenditure | B157: 1 | C157: =+C130+C131+C133+C136 -> 0 | D157: =+D130+D131+D133+D136 -> 144372518.8 | E157: 146800560.9 | F157: 153874737 | G157: 144003140 | H157: 144003140 | I157: 121390756.5 | J157: 120857196 | K157: 126594692 | L157: 132846480
A159: Repairs and Maintenance by Expenditure Item | B159: 8
A160: Employee related costs
A161: Other materials | C161: 0 | D161: 22558449.28 | E161: 39287106.03 | F161: 32639845 | G161: 28939845 | H161: 28939845 | I161: 23255950.61 | J161: 19614207 | K161: 31373100 | L161: 41073458
A162: Contracted Services | C162: 0 | D162: 97911996.59 | E162: 79998352.93 | F162: 72889471 | G162: 115869243 | H162: 115869243 | I162: 35441469.13 | J162: 60629487 | K162: 72750935 | L162: 74652890
A163: Other Expenditure
A164: Total Repairs and Maintenance Expenditure | B164: 9 | C164: =SUM(C160:C163) -> 0 | D164: =SUM(D160:D163) -> 120470445.9 | E164: 119285459 | F164: 105529316 | G164: 144809088 | H164: 144809088 | I164: 58697419.74 | J164: 80243694 | K164: 104124035 | L164: 115726348
A166: check | C166: =C164-SA34c!C167 -> 0 | D166: =D164-SA34c!D167 -> 0 | E166: =E164-SA34c!E167 -> 0 | F166: =F164-SA34c!F167 -> 0 | G166: =G164-SA34c!G167 -> 0 | H166: =H164-SA34c!H167 -> 0 | J166: =J164-SA34c!I167 -> 0 | K166: =K164-SA34c!J167 -> 0 | L166: =L164-SA34c!K167 -> 0
A169: =head27a -> References
A170: 1. Must reconcile with 'Budgeted Financial Performance (Revenue and Expenditure)
A171: 2. Must reconcile to supporting documentation on staff salaries
A173: 4. Expenditure to meet any 'unfunded obligations'
A174: 5 This sub-total must agree with the total on SA22, but excluding councillor and board member items
A175: 6. Include a note for each revenue item that is affected by 'revenue foregone'
A176: 7. Special consideration may have to be given to including 'goodwill arising' or 'joint venture' budgets where circumstances require this (include separately under relevant notes)
A177: 8. Repairs and Maintenance is not a GRAP item. However to facilitate transparency, municipalities must provide a breakdown of the amounts included in the relevant GRAP items that will be spent on Repairs and Maintenance.
A178: 9. Must reconcile with Repairs and Maintenance by Asset Class (Total Repairs and Maintenance) on Table SA34c.
A179: 10. Only applicable to municipalities that have adopted the 'revaluation method' in GRAP 17. The aim is to prevent overstating 'depreciation and asset impairment'

Sheet SA2
A1: =muni&" - "&TableA2 -> DC47 Sekhukhune - Supporting Table SA2 Matrix Financial Performance Budget (revenue source/expenditure type and dept.)
A2: =desc -> Description | B2: =head27 -> Ref | C2: ='A3-FinPerf V'!A5 -> Vote 01 - Speakers Office | D2: ='A3-FinPerf V'!A6 -> Vote 02 - Executive Mayor's Office | E2: ='A3-FinPerf V'!A7 -> Vote 03 - Municipal Manager Office | F2: ='A3-FinPerf V'!A8 -> Vote 04 - Budget And Treasury | G2: ='A3-FinPerf V'!A9 -> Vote 05 - Infrustracture And Water Services | H2: ='A3-FinPerf V'!A10 -> Vote 06 - Planning And Economic Development | I2: ='A3-FinPerf V'!A11 -> Vote 07 - Community Services | J2: ='A3-FinPerf V'!A12 -> Vote 08 - Sekhukhune Development Angancy | K2: ='A3-FinPerf V'!A13 -> Vote 09 - Corporate Services | L2: ='A3-FinPerf V'!A14 -> Vote 10 - | M2: ='A3-FinPerf V'!A15 -> Vote 11 - | N2: ='A3-FinPerf V'!A16 -> Vote 12 - | O2: ='A3-FinPerf V'!A17 -> Vote 13 - | P2: ='A3-FinPerf V'!A18 -> Vote 14 - | Q2: ='A3-FinPerf V'!A19 -> Vote 15 - Other | R2: Total
A3: R thousand | B3: 1 | R3: R'000
A4: ='A4-FinPerf RE'!A4 -> Revenue By Source
A5: ='A4-FinPerf RE'!A5 -> Property rates | C5: 0 | D5: 0 | E5: 0 | F5: 0 | G5: 0 | H5: 0 | I5: 0 | J5: 0 | K5: 0 | L5: 0 | M5: 0 | N5: 0 | O5: 0 | P5: 0 | Q5: 0 | R5: =SUM(C5:Q5) -> 0
A6: ='A4-FinPerf RE'!A6 -> Service charges - electricity revenue | C6: 0 | D6: 0 | E6: 0 | F6: 89591 | G6: 0 | H6: 0 | I6: 0 | J6: 0 | K6: 0 | L6: 0 | M6: 0 | N6: 0 | O6: 0 | P6: 0 | Q6: 0 | R6: =SUM(C6:Q6) -> 89591
A7: ='A4-FinPerf RE'!A7 -> Service charges - water revenue | C7: 0 | D7: 0 | E7: 0 | F7: 85921218 | G7: 0 | H7: 0 | I7: 0 | J7: 0 | K7: 0 | L7: 0 | M7: 0 | N7: 0 | O7: 0 | P7: 0 | Q7: 0 | R7: 85921218
A8: ='A4-FinPerf RE'!A8 -> Service charges - sanitation revenue | C8: 0 | D8: 0 | E8: 0 | F8: 17129407 | G8: 0 | H8: 0 | I8: 0 | J8: 0 | K8: 0 | L8: 0 | M8: 0 | N8: 0 | O8: 0 | P8: 0 | Q8: 0 | R8: 17129407
A9: ='A4-FinPerf RE'!A9 -> Service charges - refuse revenue | C9: 0 | D9: 0 | E9: 0 | F9: 0 | G9: 0 | H9: 0 | I9: 0 | J9: 0 | K9: 0 | L9: 0 | M9: 0 | N9: 0 | O9: 0 | P9: 0 | Q9: 0 | R9: 0
C10: 0 | D10: 0 | E10: 0 | F10: 0 | G10: 0 | H10: 0 | I10: 0 | J10: 0 | K10: 0 | L10: 0 | M10: 0 | N10: 0 | O10: 0 | P10: 0 | Q10: 0
A11: ='A4-FinPerf RE'!A11 -> Rental of facilities and equipment | C11: 0 | D11: 0 | E11: 0 | F11: 0 | G11: 0 | H11: 0 | I11: 0 | J11: 0 | K11: 0 | L11: 0 | M11: 0 | N11: 0 | O11: 0 | P11: 0 | Q11: 0 | R11: 0
A12: ='A4-FinPerf RE'!A12 -> Interest earned - external investments | C12: 0 | D12: 0 | E12: 0 | F12: 13160216 | G12: 0 | H12: 0 | I12: 0 | J12: 0 | K12: 0 | L12: 0 | M12: 0 | N12: 0 | O12: 0 | P12: 0 | Q12: 0 | R12: 13160216
A13: ='A4-FinPerf RE'!A13 -> Interest earned - outstanding debtors | C13: 0 | D13: 0 | E13: 0 | F13: 9723988 | G13: 0 | H13: 0 | I13: 0 | J13: 0 | K13: 0 | L13: 0 | M13: 0 | N13: 0 | O13: 0 | P13: 0 | Q13: 0 | R13: 9723988
A14: ='A4-FinPerf RE'!A14 -> Dividends received | C14: 0 | D14: 0 | E14: 0 | F14: 0 | G14: 0 | H14: 0 | I14: 0 | J14: 0 | K14: 0 | L14: 0 | M14: 0 | N14: 0 | O14: 0 | P14: 0 | Q14: 0 | R14: 0
A15: ='A4-FinPerf RE'!A15 -> Fines, penalties and forfeits | C15: 0 | D15: 0 | E15: 0 | F15: 52495 | G15: 0 | H15: 0 | I15: 0 | J15: 0 | K15: 0 | L15: 0 | M15: 0 | N15: 0 | O15: 0 | P15: 0 | Q15: 0 | R15: 52495
A16: ='A4-FinPerf RE'!A16 -> Licences and permits | C16: 0 | D16: 0 | E16: 0 | F16: 0 | G16: 0 | H16: 0 | I16: 0 | J16: 0 | K16: 0 | L16: 0 | M16: 0 | N16: 0 | O16: 0 | P16: 0 | Q16: 0 | R16: 0
A17: ='A4-FinPerf RE'!A17 -> Agency services | C17: 0 | D17: 0 | E17: 0 | F17: 0 | G17: 0 | H17: 0 | I17: 0 | J17: 0 | K17: 0 | L17: 0 | M17: 0 | N17: 0 | O17: 0 | P17: 0 | Q17: 0 | R17: 0
A18: ='A4-FinPerf RE'!A19 -> Other revenue | C18: 0 | D18: 0 | E18: 0 | F18: 1996602 | G18: 0 | H18: 0 | I18: 0 | J18: 0 | K18: 0 | L18: 0 | M18: 0 | N18: 0 | O18: 0 | P18: 0 | Q18: 0 | R18: 1996602
A19: ='A4-FinPerf RE'!A18 -> Transfers and subsidies | C19: 0 | D19: 0 | E19: 0 | F19: 914290000 | G19: 0 | H19: 0 | I19: 0 | J19: 0 | K19: 0 | L19: 0 | M19: 0 | N19: 0 | O19: 0 | P19: 0 | Q19: 0 | R19: 914290000
A20: ='A4-FinPerf RE'!A20 -> Gains | C20: 0 | D20: 0 | E20: 0 | F20: 372306 | G20: 0 | H20: 0 | I20: 0 | J20: 0 | K20: 0 | L20: 0 | M20: 0 | N20: 0 | O20: 0 | P20: 0 | Q20: 0 | R20: 372306
A21: ='A4-FinPerf RE'!A21 -> Total Revenue (excluding capital transfers and contributions) | C21: =SUM(C5:C9)+SUM(C11:C20) -> 0 | D21: =SUM(D5:D9)+SUM(D11:D20) -> 0 | E21: 0 | F21: 1042735823 | G21: 0 | H21: 0 | I21: 0 | J21: 0 | K21: 0 | L21: 0 | M21: 0 | N21: 0 | O21: 0 | P21: 0 | Q21: 0 | R21: =SUM(R5:R9)+SUM(R11:R20) -> 1042735823
A23: ='A4-FinPerf RE'!A23 -> Expenditure By Type
A24: ='A4-FinPerf RE'!A24 -> Employee related costs | C24: 15358694 | D24: 28845093 | E24: 18625291 | F24: 40499323 | G24: 192682964 | H24: 9363262 | I24: 61497954 | J24: 0 | K24: 33208492 | R24: =SUM(C24:Q24) -> 400081073
A25: ='A4-FinPerf RE'!A25 -> Remuneration of councillors | C25: 17292883 | D25: 0 | E25: 0 | F25: 0 | G25: 0 | H25: 0 | I25: 0 | J25: 0 | K25: 0 | L25: 0 | M25: 0 | N25: 0 | O25: 0 | P25: 0 | Q25: 0 | R25: =SUM(C25:Q25) -> 17292883
A26: ='A4-FinPerf RE'!A26 -> Debt impairment | C26: 0 | D26: 0 | E26: 0 | F26: 15000000 | G26: 0 | H26: 0 | I26: 0 | J26: 0 | K26: 0 | L26: 0 | M26: 0 | N26: 0 | O26: 0 | P26: 0 | Q26: 0 | R26: 15000000
A27: ='A4-FinPerf RE'!A27 -> Depreciation & asset impairment | C27: 0 | D27: 0 | E27: 0 | F27: 90340954 | G27: 0 | H27: 0 | I27: 0 | J27: 0 | K27: 0 | L27: 0 | M27: 0 | N27: 0 | O27: 0 | P27: 0 | Q27: 0 | R27: 90340954
A28: ='A4-FinPerf RE'!A28 -> Finance charges | C28: 0 | D28: 0 | E28: 0 | F28: 470526 | G28: 0 | H28: 0 | I28: 0 | J28: 0 | K28: 0 | L28: 0 | M28: 0 | N28: 0 | O28: 0 | P28: 0 | Q28: 0 | R28: 470526
A29: ='A4-FinPerf RE'!A29 -> Bulk purchases | C29: 0 | D29: 0 | E29: 0 | F29: 0 | G29: 130000000 | H29: 0 | I29: 0 | J29: 0 | K29: 0 | L29: 0 | M29: 0 | N29: 0 | O29: 0 | P29: 0 | Q29: 0 | R29: 130000000
A30: ='A4-FinPerf RE'!A30 -> Other materials | C30: 0 | D30: 0 | E30: 0 | F30: 1882103 | G30: 20114207 | H30: 0 | I30: 55651 | J30: 0 | K30: 474569 | L30: 0 | M30: 0 | N30: 0 | O30: 0 | P30: 0 | Q30: 0 | R30: 22526530
A31: ='A4-FinPerf RE'!A31 -> Contracted services | C31: 792447 | D31: 859856 | E31: 35500000 | F31: 22850723 | G31: 67303514 | H31: 358000 | I31: 1329819 | J31: 0 | K31: 8765276 | L31: 0 | M31: 0 | N31: 0 | O31: 0 | P31: 0 | Q31: 0 | R31: 137759635
A32: ='A4-FinPerf RE'!A32 -> Transfers and subsidies | C32: 0 | D32: 0 | E32: 0 | F32: 0 | G32: 0 | H32: 0 | I32: 0 | J32: 4300000 | K32: 0 | L32: 0 | M32: 0 | N32: 0 | O32: 0 | P32: 0 | Q32: 0 | R32: 4300000
A33: ='A4-FinPerf RE'!A33 -> Other expenditure | C33: 5722704 | D33: 1866020 | E33: 10620900 | F33: 2578698 | G33: 40437643 | H33: 668748 | I33: 609694 | J33: 0 | K33: 58352789 | L33: 0 | M33: 0 | N33: 0 | O33: 0 | P33: 0 | Q33: 0 | R33: 120857196
A34: ='A4-FinPerf RE'!A34 -> Losses | C34: 0 | D34: 0 | E34: 0 | F34: 0 | G34: 0 | H34: 0 | I34: 0 | J34: 0 | K34: 0 | L34: 0 | M34: 0 | N34: 0 | O34: 0 | P34: 0 | Q34: 0 | R34: 0
A35: Total Expenditure | C35: =SUM(C24:C34) -> 39166728 | D35: 31570969 | E35: 64746191 | F35: 173622327 | G35: 450538328 | H35: 10390010 | I35: 63493118 | J35: 4300000 | K35: 100801126 | L35: 0 | M35: 0 | N35: 0 | O35: 0 | P35: 0 | Q35: 0 | R35: 938628797
A37: ='A4-FinPerf RE'!A37 -> Surplus/(Deficit) | C37: =C21-C35 -> -39166728 | D37: -31570969 | E37: -64746191 | F37: 869113496 | G37: -450538328 | H37: -10390010 | I37: =I21-I35 -> -63493118 | J37: -4300000 | K37: -100801126 | L37: 0 | M37: 0 | N37: 0 | O37: 0 | P37: 0 | Q37: 0 | R37: =R21-R35 -> 104107026
A38: ='A4-FinPerf RE'!A38 -> Transfers and subsidies - capital (monetary allocations) (National / Provincial and District) | G38: 0 | R38: =SUM(C38:Q38) -> 0
A39: ='A4-FinPerf RE'!A39 -> Transfers and subsidies - capital (monetary allocations) (National / Provincial Departmental Agencies, Households, Non-profit Institutions, Private Enterprises, Public Corporatons, Higher Educational Institutions) | F39: 0 | R39: =SUM(C39:Q39) -> 0
A40: ='A4-FinPerf RE'!A40 -> Transfers and subsidies - capital (in-kind - all) | F40: 0 | R40: =SUM(C40:Q40) -> 0
A41: ='A4-FinPerf RE'!A41 -> Surplus/(Deficit) after capital transfers & contributions | C41: =SUM(C37:C40) -> -39166728 | D41: -31570969 | E41: -64746191 | F41: 869113496 | G41: -450538328 | H41: -10390010 | I41: -63493118 | J41: -4300000 | K41: -100801126 | L41: 0 | M41: 0 | N41: 0 | O41: 0 | P41: 0 | Q41: =SUM(Q37:Q40) -> 0 | R41: =SUM(R37:R40) -> 104107026
A42: =head27a -> References
A43: 1. Departmental columns to be based on municipal organisation structure
A44: check balance | R44: ='A4-FinPerf RE'!J41-'SA2'!R41 -> 457086000

Sheet SA3
A1: =muni&" - "&TableA3 -> DC47 Sekhukhune - Supporting Table SA3 Supportinging detail to 'Budgeted Financial Position'
A2: =desc -> Description | B2: =head27 -> Ref | C2: =head1b -> 2016/17 | D2: =head1A -> 2017/18 | E2: =Head1 -> 2018/19 | F2: =Head2 -> Current Year 2019/20 | J2: =Head3 -> 2020/21 Medium Term Revenue & Expenditure Framework
C3: =Head5 -> Audited Outcome | D3: =Head5 -> Audited Outcome | E3: =Head5 -> Audited Outcome | F3: =Head6 -> Original Budget | G3: =Head7 -> Adjusted Budget | H3: =Head8 -> Full Year Forecast | I3: =Head5b -> Pre-audit outcome | J3: =Head9 -> Budget Year 2020/21 | K3: =Head10 -> Budget Year +1 2021/22 | L3: =Head11 -> Budget Year +2 2022/23
A4: R thousand
A5: ASSETS
A11: ='A6-FinPos'!A8 -> Consumer debtors
A12: =A11 -> Consumer debtors | C12: 0 | D12: 145073739.5 | E12: 220384645.7 | F12: 134160937 | G12: 135188880 | H12: 135188880 | I12: 259066653.1 | J12: 239959954 | K12: 250758154 | L12: 262042269
A13: Less: Provision for debt impairment | C13: =C20 -> 0 | D13: -85915069.92 | E13: -101016187 | F13: -70160615 | G13: -70160615 | H13: -70160615 | I13: -126096809 | J13: -126096809 | K13: -131771165 | L13: -137700868
A14: ="Total "&A11 -> Total Consumer debtors | B14: 2 | C14: =SUM(C12:C13) -> 0 | D14: =SUM(D12:D13) -> 59158669.59 | E14: 119368458.7 | F14: =SUM(F12:F13) -> 64000322 | G14: 65028265 | H14: 65028265 | I14: 132969844.1 | J14: 113863145 | K14: 118986989 | L14: 124341401
A16: Debt impairment provision
A17: Balance at the beginning of the year | C17: 0 | D17: -85915069.92 | E17: -101016187 | F17: -70160615 | G17: -70160615 | H17: -70160615 | I17: -126096809 | J17: -126096809 | K17: -131771165 | L17: -137700868
A18: Contributions to the provision | C18: 0 | D18: 0 | E18: 0 | F18: 0 | G18: 0 | H18: 0 | I18: 0 | J18: 0 | K18: 0 | L18: 0
A19: Bad debts written off | C19: 0 | D19: 0 | E19: 0 | F19: 0 | G19: 0 | H19: 0 | I19: 0 | J19: 0 | K19: 0 | L19: 0
A20: Balance at end of year | C20: =SUM(C17:C19) -> 0 | D20: =SUM(D17:D19) -> -85915069.92 | E20: -101016187 | F20: -70160615 | G20: -70160615 | H20: -70160615 | I20: -126096809 | J20: -126096809 | K20: -131771165 | L20: -137700868
A22: ='A6-FinPos'!A19&" (PPE)" -> Property, plant and equipment (PPE)
A23: PPE at cost/valuation (excl. finance leases) | C23: 0 | D23: 3529849505 | E23: 4033560965 | F23: 5003501638 | G23: 4976649416 | H23: 4976649416 | I23: 4330295116 | J23: 4636050657 | K23: 4876374066 | L23: 5068437660
A24: Leases recognised as PPE | B24: 3 | C24: 0 | D24: 0 | E24: 0 | F24: 0 | G24: 0 | H24: 0 | I24: 0 | J24: 0 | K24: 0 | L24: 0
A25: Less: Accumulated depreciation | C25: 0 | D25: 585651785.4 | E25: 674510906.5 | F25: 505995637 | G25: 498651011 | H25: 498651011 | I25: 745300049.9 | J25: 716984393 | K25: 749248692 | L25: 782964880
A26: ="Total "&A22 -> Total Property, plant and equipment (PPE) | B26: 2 | C26: =SUM(C23:C24)-C25 -> 0 | D26: =SUM(D23:D24)-D25 -> 2944197720 | E26: 3359050059 | F26: 4497506001 | G26: 4477998405 | H26: 4477998405 | I26: 3584995066 | J26: 3919066264 | K26: 4127125374 | L26: 4285472780
A28: LIABILITIES
A29: ='A6-FinPos'!A28&" - "&'A6-FinPos'!A30 -> Current liabilities - Borrowing
A30: Short term loans (other than bank overdraft)
A31: Current portion of long-term liabilities | C31: 0 | D31: 17244297 | E31: 0 | F31: 10172000 | G31: 10172000 | H31: 10172000 | I31: 0 | J31: 0 | K31: 0 | L31: 0
A32: ="Total "&A29 -> Total Current liabilities - Borrowing | C32: =SUM(C30:C31) -> 0 | D32: =SUM(D30:D31) -> 17244297 | E32: 0 | F32: 10172000 | G32: 10172000 | H32: 10172000 | I32: 0 | J32: 0 | K32: 0 | L32: 0
A34: ='A6-FinPos'!A32 -> Trade and other payables
A35: Trade Payables | B35: 5 | C35: 0 | D35: 317853206.9 | E35: 385818986.9 | F35: 82949955 | G35: 105406158 | H35: 105406158 | I35: 236717767.1 | J35: 160000000 | K35: 160000000 | L35: 220000000
A36: Other creditors
A37: Unspent conditional transfers | C37: 0 | D37: 45018792.21 | E37: 61052577.72 | F37: 0 | G37: 0 | H37: 0 | I37: 292091936.2 | J37: 20000000 | K37: 15576220 | L37: 30000000
A38: VAT | C38: 0 | D38: 9707020.82 | E38: 38373202.56 | F38: 3182212 | G38: 3182212 | H38: 3182212 | I38: 50393769.37 | J38: 0 | K38: 47395735 | L38: 49528546
A39: ="Total "&A34 -> Total Trade and other payables | B39: 2 | C39: =SUM(C35:C38) -> 0 | D39: 372579019.9 | E39: 485244767.2 | F39: 86132167 | G39: 108588370 | H39: 108588370 | I39: 579203472.6 | J39: 180000000 | K39: 222971955 | L39: =SUM(L35:L38) -> 299528546
A41: ='A6-FinPos'!A36&" - "&'A6-FinPos'!A37 -> Non current liabilities - Borrowing
A42: Borrowing | B42: 4 | C42: 0 | D42: 276925.11 | E42: 0 | F42: 0 | G42: 0 | H42: 0 | I42: 0 | J42: 0 | K42: 0 | L42: 0
A43: Finance leases (including PPP asset element) | C43: 0 | D43: 664435.11 | E43: 1227561.16 | F43: 0 | G43: 0 | H43: 0 | I43: 1227561.16 | J43: 0 | K43: 1282801 | L43: 1340527
A44: ="Total "&A41 -> Total Non current liabilities - Borrowing | C44: =SUM(C42:C43) -> 0 | D44: =SUM(D42:D43) -> 941360.22 | E44: 1227561.16 | F44: 0 | G44: 0 | H44: 0 | I44: 1227561.16 | J44: 0 | K44: 1282801 | L44: 1340527
A46: ='A6-FinPos'!A38&" - non-current" -> Provisions - non-current
A47: Retirement benefits
A49: Refuse landfill site rehabilitation | C49: 0 | D49: 12441973.28 | E49: 0 | F49: 0 | G49: 0 | H49: 0 | I49: 0 | J49: 0 | K49: 0 | L49: 0
A50: Other | C50: 0 | D50: 31613292.67 | E50: 51802525.92 | F50: 32814000 | G50: 14691881 | H50: 14691881 | I50: 51802525.92 | J50: 51802526 | K50: 54133639 | L50: 56569654
A51: ="Total "&A46 -> Total Provisions - non-current | C51: =+C47+C49+C50 -> 0 | D51: 44055265.95 | E51: 51802525.92 | F51: 32814000 | G51: 14691881 | H51: 14691881 | I51: =+I47+I49+I50 -> 51802525.92 | J51: =+J47+J49+J50 -> 51802526 | K51: 54133639 | L51: 56569654
A53: CHANGES IN NET ASSETS
A54: ='A6-FinPos'!A45 -> Accumulated Surplus/(Deficit)
A55: =A54&" - opening balance" -> Accumulated Surplus/(Deficit) - opening balance | C55: 0 | D55: 2409521881 | E55: 2785158064 | F55: 3829687106 | G55: 3630965049 | H55: 3630965049 | I55: 3100752038 | J55: 2329200942 | K55: 2720296435 | L55: 4147265623
A56: GRAP adjustments | C56: 0 | D56: 0 | E56: 0 | F56: 0 | G56: 0 | H56: 0 | I56: 0 | J56: 0 | K56: 0 | L56: 0
A57: Restated balance | C57: =SUM(C55:C56) -> 0 | D57: =SUM(D55:D56) -> 2409521881 | E57: =SUM(E55:E56) -> 2785158064 | F57: =SUM(F55:F56) -> 3829687106 | G57: 3630965049 | H57: 3630965049 | I57: 3100752038 | J57: 2329200942 | K57: 2720296435 | L57: 4147265623
A58: ='A4-FinPerf RE'!A37 -> Surplus/(Deficit) | C58: ='A4-FinPerf RE'!C45 -> 0 | D58: ='A4-FinPerf RE'!D45 -> 357568615.6 | E58: ='A4-FinPerf RE'!E45 -> 311690005.8 | F58: ='A4-FinPerf RE'!F45 -> 732986892 | G58: ='A4-FinPerf RE'!G45 -> 777984905 | H58: ='A4-FinPerf RE'!H45 -> 777984905 | I58: ='A4-FinPerf RE'!I45 -> 393431590.7 | J58: ='A4-FinPerf RE'!J45 -> 561193026 | K58: ='A4-FinPerf RE'!K45 -> 576927339 | L58: ='A4-FinPerf RE'!L45 -> 617935701
A60: Transfers to/from Reserves | C60: 0 | D60: 100000 | E60: 100000 | F60: 0 | G60: 0 | H60: 0 | I60: 0 | J60: 0 | K60: 0 | L60: 0
A61: Depreciation offsets | C61: 0 | D61: 0 | E61: 0 | F61: 0 | G61: 0 | H61: 0 | I61: 0 | J61: 0 | K61: 0 | L61: 0
A62: Other adjustments | C62: 0 | D62: -13382510.43 | E62: 394776.73 | F62: 0 | G62: 0 | H62: 0 | I62: -18879125.05 | J62: 535522 | K62: 559620 | L62: 584803
A63: Accumulated Surplus/(Deficit) | B63: 1 | C63: =SUM(C57:C62) -> 0 | D63: =SUM(D57:D62) -> 2753807986 | E63: =SUM(E57:E62) -> 3097342847 | F63: 4562673998 | G63: 4408949954 | H63: 4408949954 | I63: 3475304504 | J63: 2890929490 | K63: 3297783394 | L63: 4765786127
A64: Reserves
A65: Housing Development Fund
A66: Capital replacement
A67: Self-insurance
A68: Other reserves
A69: Revaluation | C69: 0 | D69: 0 | E69: 0 | F69: 0 | G69: 0 | H69: 0 | I69: 0 | J69: 0 | K69: 0 | L69: 0
A70: Total Reserves | B70: 2 | C70: =SUM(C65:C69) -> 0 | D70: 0 | E70: 0 | F70: 0 | G70: 0 | H70: 0 | I70: 0 | J70: 0 | K70: 0 | L70: 0
A71: ='A6-FinPos'!A48 -> TOTAL COMMUNITY WEALTH/EQUITY | B71: 2 | C71: =C63+C70 -> 0 | D71: 2753807986 | E71: 3097342847 | F71: 4562673998 | G71: 4408949954 | H71: 4408949954 | I71: 3475304504 | J71: 2890929490 | K71: 3297783394 | L71: 4765786127
A77: =head27a -> References
A78: ="1. Must reconcile with "&'Template names'!F103 -> 1. Must reconcile with Table A4 Budgeted Financial Performance (revenue and expenditure)
A79: ="2. Must reconcile with "&'Template names'!F105 -> 2. Must reconcile with Table A6 Budgeted Financial Position
A80: 3. Leases treated as assets to be depreciated as the same as purchased/constructed assets. Includes PPP asset element accounted for as finance leases
A81: 4. Borrowing must reconcile to Table A17
A82: 5. Trade Payable should only include Trade Payables from Exchance Transactions ("True Creditors")
A83: check | C83: =C71-'A6-FinPos'!C48 -> 0 | D83: =D71-'A6-FinPos'!D48 -> 0 | E83: =E71-'A6-FinPos'!E48 -> 0 | F83: =F71-'A6-FinPos'!F48 -> 0 | G83: =G71-'A6-FinPos'!G48 -> 0 | H83: =H71-'A6-FinPos'!H48 -> 0 | I83: =I71-'A6-FinPos'!I48 -> 0 | J83: =J71-'A6-FinPos'!J48 -> -1555975510 | K83: =K71-'A6-FinPos'!K48 -> 0 | L83: =L71-'A6-FinPos'!L48 -> 0
C84: =TREND(D84:H84) -> 0 | D84: =TREND(E84:H84) -> 0 | E84: =E74 -> 0 | F84: =H74 -> 0 | G84: =J74 -> 0 | H84: =K74 -> 0 | I84: =L74 -> 0

Sheet SA4
A1: =muni&" - "&TableA4 -> DC47 Sekhukhune - Supporting Table SA4 Reconciliation of IDP strategic objectives and budget (revenue)
A2: Strategic Objective | B2: Goal | C2: Goal Code | D2: =head27 -> Ref | E2: =head1b -> 2016/17 | F2: =head1A -> 2017/18 | G2: =Head1 -> 2018/19 | H2: =Head2 -> Current Year 2019/20 | K2: =Head3 -> 2020/21 Medium Term Revenue & Expenditure Framework
A3: R thousand | E3: =Head5 -> Audited Outcome | F3: =Head5 -> Audited Outcome | G3: =Head5 -> Audited Outcome | H3: =Head6 -> Original Budget | I3: =Head7 -> Adjusted Budget | J3: =Head8 -> Full Year Forecast | K3: =Head9 -> Budget Year 2020/21 | L3: =Head10 -> Budget Year +1 2021/22 | M3: =Head11 -> Budget Year +2 2022/23
A4: GOOD GOVERNANCE AND PUBLIC PARTICIPATION | E4: 0 | F4: 0 | G4: 0 | H4: 0 | I4: 0 | J4: 0 | K4: 0 | L4: 0 | M4: 0
A5: FIANCIAL VIABILITY | E5: 0 | F5: 1200987753 | G5: 1319747259 | H5: 1384625707 | I5: 1119997123 | J5: 1119997123 | K5: 1042735823 | L5: 1119760552 | M5: 1194859129
A6: LOCAL ECONOMIC DEVELOPMENT | E6: 0 | F6: 0 | G6: 0 | H6: 0 | I6: 0 | J6: 0 | K6: 0 | L6: 0 | M6: 0
A7: BASIC SERVICE DELIVERY, INFRASTRUCTURE DEVELOPMENT AND SOCIAL SERVICES | E7: 0 | F7: 201879.29 | G7: -19264.75 | H7: 0 | I7: 0 | J7: 0 | K7: 0 | L7: 0 | M7: 0
A8: INSTITUTIONAL DEVELOPMENT AND ORGANISATIONAL TRANSFORMATION | E8: 0 | F8: -3122.61 | G8: -1810 | H8: -12876 | I8: 0 | J8: 0 | K8: 0 | L8: 0 | M8: 0
A9: Allocations to other priorities | D9: 2
A10: ='A4-FinPerf RE'!A21 -> Total Revenue (excluding capital transfers and contributions) | D10: 1 | E10: =SUM(E4:E9) -> 0 | F10: 1201186510 | G10: 1319726184 | H10: 1384612831 | I10: 1119997123 | J10: 1119997123 | K10: 1042735823 | L10: 1119760552 | M10: 1194859129
A11: =head27a -> References
A12: ="1. Total revenue must reconcile to "&'Template names'!F103 -> 1. Total revenue must reconcile to Table A4 Budgeted Financial Performance (revenue and expenditure)
A13: 2. Balance of allocations not directly linked to an IDP strategic objective
A14: check op revenue balance | E14: =E10-'A4-FinPerf RE'!C59 -> 0 | F14: =F10-'A4-FinPerf RE'!D59 -> -152121350.7 | G14: =G10-'A4-FinPerf RE'!E59 -> -124194171.2 | H14: =H10-'A4-FinPerf RE'!F59 -> -287427000 | I14: =I10-'A4-FinPerf RE'!G59 -> -645136079 | J14: =J10-'A4-FinPerf RE'!H59 -> -645136079 | K14: =K10-'A4-FinPerf RE'!J59 -> -457086000 | L14: =L10-'A4-FinPerf RE'!K59 -> -507297000 | M14: =M10-'A4-FinPerf RE'!L59 -> -530934000

Sheet SA5
A1: =muni&" - "&TableA5 -> DC47 Sekhukhune - Supporting Table SA5 Reconciliation of IDP strategic objectives and budget (operating expenditure)
A2: Strategic Objective | B2: Goal | C2: Goal Code | D2: =head27 -> Ref | E2: =head1b -> 2016/17 | F2: =head1A -> 2017/18 | G2: =Head1 -> 2018/19 | H2: =Head2 -> Current Year 2019/20 | K2: =Head3 -> 2020/21 Medium Term Revenue & Expenditure Framework
A3: R thousand | E3: =Head5 -> Audited Outcome | F3: =Head5 -> Audited Outcome | G3: =Head5 -> Audited Outcome | H3: =Head6 -> Original Budget | I3: =Head7 -> Adjusted Budget | J3: =Head8 -> Full Year Forecast | K3: =Head9 -> Budget Year 2020/21 | L3: =Head10 -> Budget Year +1 2021/22 | M3: =Head11 -> Budget Year +2 2022/23
A4: Allocations to Other Priorities | E4: 0 | F4: 0 | G4: 0 | H4: 0 | I4: 0 | J4: 0 | K4: 0 | L4: 0 | M4: 0
A5: GOOD GOVERNANCE AND PUBLIC PARTICIPATION | E5: 0 | F5: 68670553.05 | G5: 68485195.69 | H5: 68503246 | I5: 70678696 | J5: 70678696 | K5: 70737697 | L5: 80803166 | M5: 88775139
A6: FIANCIAL VIABILITY | E6: 0 | F6: 157790107.3 | G6: 179503638.4 | H6: 129100059 | I6: 163912547 | J6: 163912547 | K6: 173622327 | L6: 189054491 | M6: 193711669
A7: LOCAL ECONOMIC DEVELOPMENT | E7: 0 | F7: 13364081.28 | G7: 14281721.09 | H7: 14897753 | I7: 14597753 | J7: 14597753 | K7: 14690010 | L7: 24698055 | M7: 24736606
A8: BASIC SERVICE DELIVERY, INFRASTRUCTURE DEVELOPMENT AND SOCIAL SERVICES | E8: 0 | F8: 555281081 | G8: 648328277.5 | H8: 514946281 | I8: 551584601 | J8: 551584601 | K8: 514031446 | L8: 562967429 | M8: 604155134
A9: INSTITUTIONAL DEVELOPMENT AND ORGANISATIONAL TRANSFORMATION | E9: 0 | F9: 175538082.4 | G9: 203166632.6 | H9: 197605600 | I9: 186374700 | J9: 186374700 | K9: 165547317 | L9: 192607072 | M9: 196478880
A22: Allocations to other priorities
A23: ='A4-FinPerf RE'!A35 -> Total Expenditure | D23: 1 | E23: =SUM(E4:E22) -> 0 | F23: 970643905.1 | G23: 1113765465 | H23: 925052939 | I23: 987148297 | J23: 987148297 | K23: 938628797 | L23: 1050130213 | M23: 1107857428
A24: =head27a -> References
A25: ="1. Total expenditure must reconcile to "&'Template names'!F103 -> 1. Total expenditure must reconcile to Table A4 Budgeted Financial Performance (revenue and expenditure)
A26: 2. Balance of allocations not directly linked to an IDP strategic objective
A27: check op expenditure balance | E27: =E23-'A4-FinPerf RE'!C35 -> 0 | F27: =F23-'A4-FinPerf RE'!D35 -> -25095340 | G27: =G23-'A4-FinPerf RE'!E35 -> -18464883.91 | H27: =H23-'A4-FinPerf RE'!F35 -> -14000000 | I27: =I23-'A4-FinPerf RE'!G35 -> 0 | J27: =J23-'A4-FinPerf RE'!H35 -> 0 | K27: =K23-'A4-FinPerf RE'!J35 -> 0 | L27: =L23-'A4-FinPerf RE'!K35 -> 0 | M27: =M23-'A4-FinPerf RE'!L35 -> 0

Sheet SA6
A1: =muni&" - "&TableA6 -> DC47 Sekhukhune - Supporting Table SA6 Reconciliation of IDP strategic objectives and budget (capital expenditure)
A2: Strategic Objective | B2: Goal | C2: Goal Code | D2: =head27 -> Ref | E2: =head1b -> 2016/17 | F2: =head1A -> 2017/18 | G2: =Head1 -> 2018/19 | H2: =Head2 -> Current Year 2019/20 | K2: =Head3 -> 2020/21 Medium Term Revenue & Expenditure Framework
A3: R thousand | E3: =Head5 -> Audited Outcome | F3: =Head5 -> Audited Outcome | G3: =Head5 -> Audited Outcome | H3: =Head6 -> Original Budget | I3: =Head7 -> Adjusted Budget | J3: =Head8 -> Full Year Forecast | K3: =Head9 -> Budget Year 2020/21 | L3: =Head10 -> Budget Year +1 2021/22 | M3: =Head11 -> Budget Year +2 2022/23
A4: BASIC SERVICE DELIVERY, INFRASTRUCTURE DEVELOPMENT AND SOCIAL SERVICES | E4: 0 | F4: 348038357.1 | G4: 457492910.4 | H4: 709125000 | I4: 682272778 | J4: 682272778 | K4: 601886001 | L4: 660672001 | M4: 663029000
A5: INSTITUTIONAL DEVELOPMENT AND ORGANISATIONAL TRANSFORMATION | E5: 0 | F5: 0 | G5: 0 | H5: 0 | I5: 0 | J5: 0 | K5: 0 | L5: 0 | M5: 0
A6: Allocations to other priorities | D6: 3
A7: Total Capital Expenditure | D7: 1 | E7: =SUM(E4:E6) -> 0 | F7: 348038357.1 | G7: 457492910.4 | H7: 709125000 | I7: 682272778 | J7: 682272778 | K7: 601886001 | L7: 660672001 | M7: 663029000
A8: =head27a -> References
A9: 1. Total capital expenditure must reconcile to Budgeted Capital Expenditure
A10: 2. Goal code must be used on Table SA36
A11: 3. Balance of allocations not directly linked to an IDP strategic objective
A12: check capital balance | E12: =E7-'A5-Capex'!C40 -> 0 | F12: =F7-'A5-Capex'!D40 -> 0 | G12: =G7-'A5-Capex'!E40 -> 0 | H12: =H7-'A5-Capex'!F40 -> 0 | I12: =I7-'A5-Capex'!G40 -> 0 | J12: =J7-'A5-Capex'!H40 -> 0 | K12: =K7-'A5-Capex'!J40 -> 135000000 | L12: =L7-'A5-Capex'!K40 -> 149475000 | M12: =M7-'A5-Capex'!L40 -> 127995000

Sheet SA7
A1: =muni&" - "&TableA7 -> DC47 Sekhukhune - Supporting Table SA7 Measureable performance objectives
A2: Description | B2: Unit of measurement | C2: =head1b -> 2016/17 | D2: =head1A -> 2017/18 | E2: =Head1 -> 2018/19 | F2: =Head2 -> Current Year 2019/20 | I2: =Head3 -> 2020/21 Medium Term Revenue & Expenditure Framework
C3: =Head5 -> Audited Outcome | D3: =Head5 -> Audited Outcome | E3: =Head5 -> Audited Outcome | F3: =Head6 -> Original Budget | G3: =Head7 -> Adjusted Budget | H3: =Head8 -> Full Year Forecast | I3: =Head9 -> Budget Year 2020/21 | J3: =Head10 -> Budget Year +1 2021/22 | K3: =Head11 -> Budget Year +2 2022/23
A5: 1. Include a measurable performance objective for each revenue source (within a relevant function) and each vote (MFMA s17(3)(b))
A6: 2. Include all Basic Services performance targets from 'Basic Service Delivery' to ensure Table SA7 represents all strategic responsibilities
A7: 3. Only include prior year comparative information for individual measures where relevant activity occurred in that year/s
A9: =muni&" - "&"Entities measureable performance objectives" -> DC47 Sekhukhune - Entities measureable performance objectives
A10: =A2 -> Description | B10: Unit of measurement | C10: =head1b -> 2016/17 | D10: =head1A -> 2017/18 | E10: =Head1 -> 2018/19 | F10: =Head2 -> Current Year 2019/20 | I10: =Head3 -> 2020/21 Medium Term Revenue & Expenditure Framework
C11: =Head5 -> Audited Outcome | D11: =Head5 -> Audited Outcome | E11: =Head5 -> Audited Outcome | F11: =Head6 -> Original Budget | G11: =Head7 -> Adjusted Budget | H11: =Head8 -> Full Year Forecast | I11: =Head9 -> Budget Year 2020/21 | J11: =Head10 -> Budget Year +1 2021/22 | K11: =Head11 -> Budget Year +2 2022/23
A12: Entity 1 - Sekhuknue District Municipality
A13: Mining Input Supplier Park | C13: 0 | D13: 0 | E13: 0 | F13: 0 | G13: 0 | H13: 0 | I13: 0 | J13: 0 | K13: 0
A14: Digital Economy | C14: 0 | D14: 0 | E14: 0 | F14: 100000 | G14: 0 | H14: 100000 | I14: 110000 | J14: 121000 | K14: 133100
A15: Wild-Life Empowerment programmes | C15: 0 | D15: 0 | E15: 0 | F15: 0 | G15: 0 | H15: 0 | I15: 0 | J15: 0 | K15: 0
A16: Fresh Produce Market | C16: 0 | D16: 0 | E16: 0 | F16: 60000 | G16: 0 | H16: 60000 | I16: 66000 | J16: 72600 | K16: 79860
A17: Agri-Park | C17: 0 | D17: 0 | E17: 0 | F17: 0 | G17: 0 | H17: 0 | I17: 0 | J17: 0 | K17: 0
A18: Mining Research/Study | C18: 0 | D18: 0 | E18: 0 | F18: 0 | G18: 0 | H18: 0 | I18: 0 | J18: 0 | K18: 0
A19: Contract Management | C19: 0 | D19: 0 | E19: 0 | F19: 0 | G19: 0 | H19: 0 | I19: 0 | J19: 0 | K19: 0
A20: VIP sanitation supply | C20: 0 | D20: 0 | E20: 0 | F20: 0 | G20: 0 | H20: 0 | I20: 0 | J20: 0 | K20: 0
A21: Small Business Support | C21: 0 | D21: 0 | E21: 0 | F21: 450000 | G21: 0 | H21: 450000 | I21: 495000 | J21: 544500 | K21: 598950
A22: RAL-MOU | C22: 0 | D22: 0 | E22: 0 | F22: 0 | G22: 0 | H22: 0 | I22: 0 | J22: 0 | K22: 0
A23: BEE Keeping | C23: 0 | D23: 0 | E23: 0 | F23: 50000 | G23: 0 | H23: 50000 | I23: 55000 | J23: 60500 | K23: 66550
A24: Skills Development and leanerships | C24: 0 | D24: 0 | E24: 0 | F24: 320000 | G24: 0 | H24: 320000 | I24: 352000 | J24: 387200 | K24: 425920
A25: LED lights manufacturing | C25: 0 | D25: 0 | E25: 0 | F25: 0 | G25: 0 | H25: 0 | I25: 0 | J25: 0 | K25: 0
A26: Aquaculture farming (Da-Hoop& Flag Boshielo Dams | C26: 0 | D26: 0 | E26: 0 | F26: 150000 | G26: 0 | H26: 150000 | I26: 165000 | J26: 181500 | K26: 199650
A27: Solar Energy | C27: 0 | D27: 0 | E27: 0 | F27: 0 | G27: 0 | H27: 0 | I27: 0 | J27: 0 | K27: 0
A28: Marketing brochure &Promotional materials | C28: 0 | D28: 0 | E28: 0 | F28: 250000 | G28: 0 | H28: 250000 | I28: 275000 | J28: 302500 | K28: 332750
A29: Tourism Route | C29: 0 | D29: 0 | E29: 0 | F29: 150000 | G29: 0 | H29: 150000 | I29: 165000 | J29: 181500 | K29: 199650
A30: Stakeholder management | C30: 0 | D30: 0 | E30: 0 | F30: 60000 | G30: 0 | H30: 60000 | I30: 66000 | J30: 72600 | K30: 79860
A31: SDA website development & maintenance | C31: 0 | D31: 0 | E31: 0 | F31: 160000 | G31: 0 | H31: 160000 | I31: 176000 | J31: 193600 | K31: 212960
A32: Erf 488 Portion land Development | C32: 0 | D32: 0 | E32: 0 | F32: 100000 | G32: 0 | H32: 100000 | I32: 110000 | J32: 121000 | K32: 133100
A34: Entity 2 - (name of entity)
A35: =#REF! -> 
A38: Entity 3 - (name of entity)
A39: =#REF! -> 
A42: And so on for the rest of the Entities
A43: 1. Include a measurable performance objective as agreed with the parent municipality (MFMA s87(5)(d))
A44: 2. Only include prior year comparative information for individual measures where relevant activity occurred in that year/s

Sheet SA8
A1: =muni&" - "&TableA8 -> DC47 Sekhukhune - Supporting Table SA8 Performance indicators and benchmarks
A2: Description of financial indicator | B2: Basis of calculation | C2: =head1b -> 2016/17 | D2: =head1A -> 2017/18 | E2: =Head1 -> 2018/19 | F2: =Head2 -> Current Year 2019/20 | J2: =Head3 -> 2020/21 Medium Term Revenue & Expenditure Framework
C3: =Head5 -> Audited Outcome | D3: =Head5 -> Audited Outcome | E3: =Head5 -> Audited Outcome | F3: =Head6 -> Original Budget | G3: =Head7 -> Adjusted Budget | H3: =Head8 -> Full Year Forecast | I3: =Head5b -> Pre-audit outcome | J3: =Head9 -> Budget Year 2020/21 | K3: =Head10 -> Budget Year +1 2021/22 | L3: =Head11 -> Budget Year +2 2022/23
A4: Borrowing Management
A6: Credit Rating
A7: Capital Charges to Operating Expenditure | B7: Interest & Principal Paid /Operating Expenditure | C7: =IF(ISERROR(('A4-FinPerf RE'!C28-'A7-CFlow'!C35)/'A4-FinPerf RE'!C35),0,(('A4-FinPerf RE'!C28-'A7-CFlow'!C35)/'A4-FinPerf RE'!C35)) -> 0 | D7: =IF(ISERROR(('A4-FinPerf RE'!D28-'A7-CFlow'!D35)/'A4-FinPerf RE'!D35),0,(('A4-FinPerf RE'!D28-'A7-CFlow'!D35)/'A4-FinPerf RE'!D35)) -> 0.003411054979 | E7: =IF(ISERROR(('A4-FinPerf RE'!E28-'A7-CFlow'!E35)/'A4-FinPerf RE'!E35),0,(('A4-FinPerf RE'!E28-'A7-CFlow'!E35)/'A4-FinPerf RE'!E35)) -> 0.002700300343 | F7: =IF(ISERROR(('A4-FinPerf RE'!F28-'A7-CFlow'!F35)/'A4-FinPerf RE'!F35),0,(('A4-FinPerf RE'!F28-'A7-CFlow'!F35)/'A4-FinPerf RE'!F35)) -> -0.01029973881 | G7: =IF(ISERROR(('A4-FinPerf RE'!G28-'A7-CFlow'!G35)/'A4-FinPerf RE'!G35),0,(('A4-FinPerf RE'!G28-'A7-CFlow'!G35)/'A4-FinPerf RE'!G35)) -> 0.0005065095098 | H7: =IF(ISERROR(('A4-FinPerf RE'!H28-'A7-CFlow'!H35)/'A4-FinPerf RE'!H35),0,(('A4-FinPerf RE'!H28-'A7-CFlow'!H35)/'A4-FinPerf RE'!H35)) -> 0.0005065095098 | I7: =IF(ISERROR(('A4-FinPerf RE'!I28-'A7-CFlow'!I35)/'A4-FinPerf RE'!I35),0,(('A4-FinPerf RE'!I28-'A7-CFlow'!I35)/'A4-FinPerf RE'!I35)) -> 0 | J7: =IF(ISERROR(('A4-FinPerf RE'!J28-'A7-CFlow'!J35)/'A4-FinPerf RE'!J35),0,(('A4-FinPerf RE'!J28-'A7-CFlow'!J35)/'A4-FinPerf RE'!J35)) -> 0.0005012908207 | K7: =IF(ISERROR(('A4-FinPerf RE'!K28-'A7-CFlow'!K35)/'A4-FinPerf RE'!K35),0,(('A4-FinPerf RE'!K28-'A7-CFlow'!K35)/'A4-FinPerf RE'!K35)) -> 0.00047613143 | L7: =IF(ISERROR(('A4-FinPerf RE'!L28-'A7-CFlow'!L35)/'A4-FinPerf RE'!L35),0,(('A4-FinPerf RE'!L28-'A7-CFlow'!L35)/'A4-FinPerf RE'!L35)) -> 0.0004513216118
